Workbook

Sheet Planilha3 (hidden)
M1: =SUBTOTAL(9,M4:M20) -> 47758.9 | O1: =SUBTOTAL(9,O4:O20) -> 2387.945 | R1: =SUBTOTAL(9,R4:R20) -> 27290.8 | S1: =SUBTOTAL(9,S4:S20) -> 818.724
L2: Pista de Rolamento | P2: Acostamento
A3: Rua | B3: Estaca inicial | E3: Estaca Final | H3: Cruza Paralelo | I3: Cruza Meio Fio | J3: Comp. | K3: Comp. Acostamento | L3: Largura | M3: Área | N3: Espessura | O3: Volume | P3: Largura | Q3: Espessura | R3: Área | S3: Volume | V3: Volume
A4: AP 010-020 | B4: 2 | C4: + | D4: 11.87 | E4: 13 | F4: + | G4: 5.4 | J4: =(E4-B4)*20+(G4-D4) -> 213.53 | K4: =J4*2 -> 427.06 | L4: 7 | M4: =J4*L4-AB4 -> 1494.71 | N4: 0.05 | O4: =M4*N4 -> 74.7355 | P4: 2 | Q4: 0.03 | R4: =K4*P4 -> 854.12 | S4: =(K4*P4)*(Q4) -> 25.6236 | T4: ok | U4: =J4*9 -> 1921.77 | V4: =7*J4*0.05+2*J4*0.03 -> 87.5473
A5: TRECHO 01 | B5: 0 | C5: + | D5: 9.93 | E5: 91 | F5: + | G5: 4.02 | J5: 1814.09 | K5: 3628.18 | L5: 7 | M5: 12698.63 | N5: 0.05 | O5: =M5*N5 -> 634.9315 | P5: 2 | Q5: 0.03 | R5: =K5*P5 -> 7256.36 | S5: =(K5*P5)*(Q5) -> 217.6908 | T5: ok
A6: TRECHO 01 | B6: 91 | C6: + | D6: 4.02 | E6: 98 | F6: + | G6: 4.36 | J6: 140.34 | K6: 280.68 | L6: 7 | M6: 982.38 | N6: 0.05 | O6: 49.119 | P6: 2 | Q6: 0.03 | R6: 561.36 | S6: 16.8408 | T6: ok
A7: TRECHO 01 | B7: 98 | C7: + | D7: 4.36 | E7: 168 | F7: + | G7: 12.57 | J7: 1408.21 | K7: 2816.42 | L7: 7 | M7: 9857.47 | N7: 0.05 | O7: 492.8735 | P7: 2 | Q7: 0.03 | R7: 5632.84 | S7: 168.9852
A8: TRECHO 01 | B8: 168 | C8: + | D8: 12.57 | E8: 175 | F8: + | G8: 13.57 | J8: 141 | K8: 282 | L8: 7 | M8: 987 | N8: 0.05 | O8: 49.35 | P8: 2 | Q8: 0.03 | R8: 564 | S8: 16.92
A9: TRECHO 01 | B9: 175 | C9: + | D9: 13.57 | E9: 191 | F9: + | G9: 10 | J9: 316.43 | K9: 632.86 | L9: 7 | M9: 2215.01 | N9: 0.05 | O9: 110.7505 | P9: 2 | Q9: 0.03 | R9: 1265.72 | S9: 37.9716
A10: TRECHO 02 | B10: 191 | C10: + | D10: 18.83 | E10: 257 | F10: + | G10: 5.05 | J10: 1306.22 | K10: 2612.44 | L10: 7 | M10: 9143.54 | N10: 0.05 | O10: 457.177 | P10: 2 | Q10: 0.03 | R10: 5224.88 | S10: 156.7464
A11: TRECHO 02 | B11: 257 | C11: + | D11: 5.05 | E11: 264 | F11: + | G11: 5.38 | J11: 140.33 | K11: 280.66 | L11: 7 | M11: 982.31 | N11: 0.05 | O11: 49.1155 | P11: 2 | Q11: 0.03 | R11: 561.32 | S11: 16.8396
A12: TRECHO 02 | B12: 264 | C12: + | D12: 5.38 | E12: 264 | F12: + | G12: 17 | J12: 11.62 | K12: 23.24 | L12: 7 | M12: 81.34 | N12: 0.05 | O12: 4.067 | P12: 2 | Q12: 0.03 | R12: 46.48 | S12: 1.3944
A13: TRECHO 03 | B13: 265 | C13: + | D13: 14.47 | E13: 268 | F13: + | G13: 7 | J13: 52.53 | K13: 105.06 | L13: 7 | M13: 367.71 | N13: 0.05 | O13: 18.3855 | P13: 2 | Q13: 0.03 | R13: 210.12 | S13: 6.3036
A14: TRECHO 03 | B14: 268 | C14: + | D14: 7 | E14: 288 | F14: + | G14: 7 | J14: 400 | K14: 800 | L14: 7 | M14: 2800 | N14: 0.05 | O14: 140 | P14: 2 | Q14: 0.03 | R14: 1600 | S14: 48
A15: TRECHO 04 | B15: 289 | C15: + | D15: 0.03 | E15: 313 | F15: + | G15: 13.96 | J15: 493.93 | K15: 987.86 | L15: 7 | M15: 3457.51 | N15: 0.05 | O15: 172.8755 | P15: 2 | Q15: 0.03 | R15: 1975.72 | S15: 59.2716
A16: TRECHO 04 | B16: 313 | C16: + | D16: 13.96 | E16: 320 | F16: + | G16: 13.97 | J16: 140.01 | K16: 280.02 | L16: 7 | M16: 980.07 | N16: 0.05 | O16: 49.0035 | P16: 2 | Q16: 0.03 | R16: 560.04 | S16: 16.8012
A17: TRECHO 04 | B17: 320 | C17: + | D17: 13.97 | E17: 325 | F17: + | G17: 0 | J17: 86.03 | K17: 172.06 | L17: 7 | M17: 602.21 | N17: 0.05 | O17: 30.1105 | P17: 2 | Q17: 0.03 | R17: 344.12 | S17: 10.3236
A18: RAMAL A | B18: 0 | C18: + | D18: 17.51 | E18: 3 | F18: + | G18: 10.17 | J18: 52.66 | K18: 105.32 | L18: 7 | M18: 368.62 | N18: 0.05 | O18: 18.431 | P18: 2 | Q18: 0.03 | R18: 210.64 | S18: 6.3192
A19: RAMAL B | B19: 0 | C19: + | D19: 17.52 | E19: 3 | F19: + | G19: 10.41 | J19: 52.89 | K19: 105.78 | L19: 7 | M19: 370.23 | N19: 0.05 | O19: 18.5115 | P19: 2 | Q19: 0.03 | R19: 211.56 | S19: 6.3468
A20: RAMAL C | B20: 0 | C20: + | D20: 17.53 | E20: 3 | F20: + | G20: 10.41 | J20: 52.88 | K20: 105.76 | L20: 7 | M20: 370.16 | N20: 0.05 | O20: 18.508 | P20: 2 | Q20: 0.03 | R20: 211.52 | S20: 6.3456

Sheet COMPOSIÇÕES_GERAL (hidden)
C1: Composições Analíticas com Preço Unitário | E1: Bancos | G1: B.D.I. | I1: Encargos Sociais
C2: ESTUDO DE VIABILIDADE TÉCNICA, ECONÔMICA E AMBIENTAL, ESTUDOS BÁSICOS, PROJETO BÁSICO E PROJETO EXECUTIVO PARA PAVIMENTAÇÃO DO RAMAL DA TOTOIA, NO ESTADO DO AMAPÁ. V1 | E2: SINAPI - 08/2024 - Amapá SBC - 08/2024 - Amapá SICRO3 - 04/2024 - Amapá | G2: 23,38% | I2: Não Desonerado: embutido nos preços unitário dos insumos de mão de obra, de acordo com as bases.
A3: Composições Analíticas com Preço Unitário
A4: Composições Principais
A5: 1.1 | B5: Código | C5: Banco | D5: Descrição | E5: Tipo | G5: Und | H5: Quant. | I5: Valor Unit | J5: Total
A6: Composição | B6: 74209/001 | C6: Próprio | D6: PLACA DE OBRA EM CHAPA DE ACO GALVANIZADO | E6: SEDI - SERVIÇOS DIVERSOS | G6: m² | H6: 1 | I6: 516.16 | J6: 516.16
A7: Composição Auxiliar | B7: 88262 | C7: SINAPI | D7: CARPINTEIRO DE FORMAS COM ENCARGOS COMPLEMENTARES | E7: SEDI - SERVIÇOS DIVERSOS | G7: H | H7: 1 | I7: 24.94 | J7: 24.94
A8: Composição Auxiliar | B8: 88316 | C8: SINAPI | D8: SERVENTE COM ENCARGOS COMPLEMENTARES | E8: SEDI - SERVIÇOS DIVERSOS | G8: H | H8: 2 | I8: 18.99 | J8: 37.98
A9: Composição Auxiliar | B9: 94962 | C9: SINAPI | D9: CONCRETO MAGRO PARA LASTRO, TRAÇO 1:4,5:4,5 (EM MASSA SECA DE CIMENTO/ AREIA MÉDIA/ BRITA 1) - PREPARO MECÂNICO COM BETONEIRA 400 L. AF_05/2021 | E9: FUES - FUNDAÇÕES E ESTRUTURAS | G9: m³ | H9: 0.01 | I9: 604.3 | J9: 6.04
A10: Insumo | B10: 00004813 | C10: SINAPI | D10: PLACA DE OBRA (PARA CONSTRUCAO CIVIL) EM CHAPA GALVANIZADA *N. 22*, ADESIVADA, DE *2,4 X 1,2* M (SEM POSTES PARA FIXACAO) | E10: Material | G10: m² | H10: 1 | I10: 400 | J10: 400
A11: Insumo | B11: 00004417 | C11: SINAPI | D11: SARRAFO NAO APARELHADO *2,5 X 7* CM, EM MACARANDUBA/MASSARANDUBA, ANGELIM, PEROBA-ROSA OU EQUIVALENTE DA REGIAO - BRUTA | E11: Material | G11: M | H11: 1 | I11: 4.53 | J11: 4.53
A12: Insumo | B12: 00004491 | C12: SINAPI | D12: PONTALETE *7,5 X 7,5* CM EM PINUS, MISTA OU EQUIVALENTE DA REGIAO - BRUTA | E12: Material | G12: M | H12: 4 | I12: 10.22 | J12: 40.88
A13: Insumo | B13: 00005075 | C13: SINAPI | D13: PREGO DE ACO POLIDO COM CABECA 18 X 30 (2 3/4 X 10) | E13: Material | G13: KG | H13: 0.11 | I13: 16.27 | J13: 1.79
E14: MO sem LS => | F14: 50.55 | G14: LS => | H14: 0 | I14: MO com LS => | J14: 50.55
E15: Valor do BDI => | F15: 120.68 | H15: Valor com BDI => | J15: 636.84
A17: 1.3 | B17: Código | C17: Banco | D17: Descrição | E17: Tipo | G17: Und | H17: Quant. | I17: Valor Unit | J17: Total
A18: Composição | B18: 121 | C18: Próprio | D18: CANTEIRO DE OBRA | E18: SEDI - SERVIÇOS DIVERSOS | G18: UND. | H18: 1 | I18: 82129.47 | J18: 82129.47
A19: Composição Auxiliar | B19: 98525 | C19: SINAPI | D19: LIMPEZA MECANIZADA DE CAMADA VEGETAL, VEGETAÇÃO E PEQUENAS ÁRVORES (DIÂMETRO DE TRONCO MENOR QUE 0,20 M), COM TRATOR DE ESTEIRAS. AF_03/2024 | E19: URBA - URBANIZAÇÃO | G19: m² | H19: 360 | I19: 0.67 | J19: 241.2
A20: Composição Auxiliar | B20: 93582 | C20: SINAPI | D20: EXECUÇÃO DE CENTRAL DE ARMADURA EM CANTEIRO DE OBRA, NÃO INCLUSO MOBILIÁRIO E EQUIPAMENTOS. AF_04/2016 | E20: CANT - CANTEIRO DE OBRAS | G20: m² | H20: 13.8 | I20: 275.88 | J20: 3807.14
A21: Composição Auxiliar | B21: 93210 | C21: SINAPI | D21: EXECUÇÃO DE REFEITÓRIO EM CANTEIRO DE OBRA EM CHAPA DE MADEIRA COMPENSADA, NÃO INCLUSO MOBILIÁRIO E EQUIPAMENTOS. AF_02/2016 | E21: CANT - CANTEIRO DE OBRAS | G21: m² | H21: 13.8 | I21: 570.7 | J21: 7875.66
A22: Composição Auxiliar | B22: 93584 | C22: SINAPI | D22: EXECUÇÃO DE DEPÓSITO EM CANTEIRO DE OBRA EM CHAPA DE MADEIRA COMPENSADA, NÃO INCLUSO MOBILIÁRIO. AF_04/2016 | E22: CANT - CANTEIRO DE OBRAS | G22: m² | H22: 13.8 | I22: 784.88 | J22: 10831.34
A23: Composição Auxiliar | B23: 89402 | C23: SINAPI | D23: TUBO, PVC, SOLDÁVEL, DE 25MM, INSTALADO EM RAMAL DE DISTRIBUIÇÃO DE ÁGUA - FORNECIMENTO E INSTALAÇÃO. AF_06/2022 | E23: INHI - INSTALAÇÕES HIDROS SANITÁRIAS | G23: M | H23: 45 | I23: 10.79 | J23: 485.55
A24: Composição Auxiliar | B24: 74209/001 | C24: Próprio | D24: PLACA DE OBRA EM CHAPA DE ACO GALVANIZADO | E24: SEDI - SERVIÇOS DIVERSOS | G24: m² | H24: 4.5 | I24: 516.16 | J24: 2322.72
A25: Composição Auxiliar | B25: 95636 | C25: SINAPI | D25: KIT CAVALETE PARA MEDIÇÃO DE ÁGUA - ENTRADA PRINCIPAL, EM AÇO GALVANIZADO DN 25 MM (1") - FORNECIMENTO E INSTALAÇÃO (EXCLUSIVE HIDRÔMETRO). AF_03/2024 | E25: INHI - INSTALAÇÕES HIDROS SANITÁRIAS | G25: UN | H25: 1 | I25: 388.53 | J25: 388.53
A26: Composição Auxiliar | B26: 89712 | C26: SINAPI | D26: TUBO PVC, SERIE NORMAL, ESGOTO PREDIAL, DN 50 MM, FORNECIDO E INSTALADO EM RAMAL DE DESCARGA OU RAMAL DE ESGOTO SANITÁRIO. AF_08/2022 | E26: INHI - INSTALAÇÕES HIDROS SANITÁRIAS | G26: M | H26: 45 | I26: 22.58 | J26: 1016.1
A27: Composição Auxiliar | B27: 86931 | C27: SINAPI | D27: VASO SANITÁRIO SIFONADO COM CAIXA ACOPLADA LOUÇA BRANCA, INCLUSO ENGATE FLEXÍVEL EM PLÁSTICO BRANCO, 1/2 X 40CM - FORNECIMENTO E INSTALAÇÃO. AF_01/2020 | E27: INHI - INSTALAÇÕES HIDROS SANITÁRIAS | G27: UN | H27: 8 | I27: 440.36 | J27: 3522.88
A28: Composição Auxiliar | B28: 101489 | C28: SINAPI | D28: ENTRADA DE ENERGIA ELÉTRICA, AÉREA, MONOFÁSICA, COM CAIXA DE SOBREPOR, CABO DE 10 MM2 E DISJUNTOR DIN 50A (NÃO INCLUSO O POSTE DE CONCRETO). AF_07/2020_PS | E28: INEL - INSTALAÇÃO ELÉTRICA/ELETRIFICAÇÃO E ILUMINAÇÃO EXTERNA | G28: UN | H28: 1 | I28: 1543.8 | J28: 1543.8
A29: Composição Auxiliar | B29: 99059 | C29: SINAPI | D29: LOCAÇÃO CONVENCIONAL DE OBRA, UTILIZANDO GABARITO DE TÁBUAS CORRIDAS PONTALETADAS A CADA 2,00M - 2 UTILIZAÇÕES. AF_03/2024 | E29: SERT - SERVIÇOS TÉCNICOS | G29: M | H29: 76 | I29: 56.21 | J29: 4271.96
A30: Composição Auxiliar | B30: 93212 | C30: SINAPI | D30: EXECUÇÃO DE SANITÁRIO E VESTIÁRIO EM CANTEIRO DE OBRA EM CHAPA DE MADEIRA COMPENSADA, NÃO INCLUSO MOBILIÁRIO. AF_02/2016 | E30: CANT - CANTEIRO DE OBRAS | G30: m² | H30: 27.6 | I30: 926.49 | J30: 25571.12
A31: Composição Auxiliar | B31: 98459 | C31: SINAPI | D31: TAPUME COM TELHA METÁLICA. AF_03/2024 | E31: CANT - CANTEIRO DE OBRAS | G31: m² | H31: 212.8 | I31: 90.15 | J31: 19183.92
A32: Insumo | B32: 00005059 | C32: SINAPI | D32: POSTE DE CONCRETO ARMADO DE SECAO CIRCULAR, EXTENSAO DE 9,00 M, RESISTENCIA DE 300 A 400 DAN, TIPO C-17 | E32: Material | G32: UN | H32: 1 | I32: 1067.55 | J32: 1067.55
E33: MO sem LS => | F33: 20503.56 | G33: LS => | H33: 0 | I33: MO com LS => | J33: 20503.56
E34: Valor do BDI => | F34: 19201.87 | H34: Valor com BDI => | J34: 101331.34
A36: 1.4 | B36: Código | C36: Banco | D36: Descrição | E36: Tipo | G36: Und | H36: Quant. | I36: Valor Unit | J36: Total
A37: Composição | B37: 5502985 | C37: SICRO3 | D37: Limpeza mecanizada da camada vegetal | G37: m² | H37: 1 | I37: 0.59 | J37: 0.59
A38: A | B38: Código | C38: Banco | D38: Equipamentos | E38: Quantidade | F38: Utilização | H38: Custo Horário | J38: Custo Horário Total
F39: Operativa | G39: Improdutiva | H39: Operativa | I39: Improdutiva
A40: Insumo | B40: E9540 | C40: SICRO3 | D40: Trator sobre esteiras com lâmina - 127 kW | E40: 1 | F40: 1 | G40: 0 | H40: 324.7459 | I40: 130.9839 | J40: 324.7459
F41: Custo horário total de equipamentos | J41: 324.7459
A42: B | B42: Código | C42: Banco | D42: Mão de Obra | E42: Quantidade | F42: Custo Horário | J42: Custo Horário Total
A43: Insumo | B43: P9824 | C43: SICRO3 | D43: Servente | E43: 1 | I43: 21,1436 | J43: 21,1436
F44: Custo horário total de mão de obra | J44: 21.1436
F45: Custo horário total de execução | J45: 345.8895
F46: Produção de equipe | J46: 622.95
F47: Custo unitário de execução | J47: 0.5552
F48: Custo do FIC | J48: 0.0357
F49: Custo do FIT | J49: 0
E50: MO sem LS => | F50: 0.03 | G50: LS => | H50: 0 | I50: MO com LS => | J50: 0.03394108676
E51: Valor do BDI => | F51: 0.14 | H51: Valor com BDI => | J51: 0.73
A53: 1.5 | B53: Código | C53: Banco | D53: Descrição | E53: Tipo | G53: Und | H53: Quant. | I53: Valor Unit | J53: Total
A54: Composição | B54: 5914655 | C54: SICRO3 | D54: Carga, manobra e descarga de materiais diversos em caminhão carroceria de 15 t - carga e descarga manuais | G54: t | H54: 1 | I54: 33.5 | J54: 33.5
A55: A | B55: Código | C55: Banco | D55: Equipamentos | E55: Quantidade | F55: Utilização | H55: Custo Horário | J55: Custo Horário Total
F56: Operativa | G56: Improdutiva | H56: Operativa | I56: Improdutiva
A57: Insumo | B57: E9592 | C57: SICRO3 | D57: Caminhão carroceria com capacidade de 15 t - 188 kW | E57: 1 | F57: 1 | G57: 0 | H57: 269.7472 | I57: 78.8341 | J57: 269.7472
F58: Custo horário total de equipamentos | J58: 269.7472
A59: B | B59: Código | C59: Banco | D59: Mão de Obra | E59: Quantidade | F59: Custo Horário | J59: Custo Horário Total
A60: Insumo | B60: P9824 | C60: SICRO3 | D60: Servente | E60: 6 | I60: 21,1436 | J60: 126,8616
F61: Custo horário total de mão de obra | J61: 126.8616
F62: Custo horário total de execução | J62: 396.6088
F63: Produção de equipe | J63: 11.84
F64: Custo unitário de execução | J64: 33.4974
F65: Custo do FIC | J65: 0
F66: Custo do FIT | J66: 0
E67: MO sem LS => | F67: 10.71 | G67: LS => | H67: 0 | I67: MO com LS => | J67: 10.71466216
E68: Valor do BDI => | F68: 7.83 | H68: Valor com BDI => | J68: 41.33
A70: 1.6 | B70: Código | C70: Banco | D70: Descrição | E70: Tipo | G70: Und | H70: Quant. | I70: Valor Unit | J70: Total
A71: Composição | B71: 5914464 | C71: SICRO3 | D71: Transporte com caminhão carroceria de 15 t - rodovia em revestimento primário | G71: tkm | H71: 1 | I71: 0.92 | J71: 0.92
A72: A | B72: Código | C72: Banco | D72: Equipamentos | E72: Quantidade | F72: Utilização | H72: Custo Horário | J72: Custo Horário Total
F73: Operativa | G73: Improdutiva | H73: Operativa | I73: Improdutiva
A74: Insumo | B74: E9592 | C74: SICRO3 | D74: Caminhão carroceria com capacidade de 15 t - 188 kW | E74: 1 | F74: 1 | G74: 0 | H74: 269.7472 | I74: 78.8341 | J74: 269.7472
F75: Custo horário total de equipamentos | J75: 269.7472
F76: Custo horário total de execução | J76: 269.7472
F77: Produção de equipe | J77: 310.73
F78: Custo unitário de execução | J78: 0.8681
F79: Custo do FIC | J79: 0.0558
F80: Custo do FIT | J80: 0
E81: MO sem LS => | F81: 0 | G81: LS => | H81: 0 | I81: MO com LS => | J81: 0
E82: Valor do BDI => | F82: 0.22 | H82: Valor com BDI => | J82: 1.14
A84: 1.7 | B84: Código | C84: Banco | D84: Descrição | E84: Tipo | G84: Und | H84: Quant. | I84: Valor Unit | J84: Total
A85: Composição | B85: 78472 | C85: Próprio | D85: SINAPI - 78472 - SERVICOS TOPOGRAFICOS PARA PAVIMENTACAO, INCLUSIVE NOTA DE SERVICOS, ACOMPANHAMENTO E GREIDE | E85: SEDI - SERVIÇOS DIVERSOS | G85: m² | H85: 1 | I85: 0.51 | J85: 0.51
A86: Composição Auxiliar | B86: 5914464 | C86: SICRO3 | D86: Transporte com caminhão carroceria de 15 t - rodovia em revestimento primário | G86: tkm | H86: 0.0010606 | I86: 0.92 | J86: 0
A87: Composição Auxiliar | B87: 5914479 | C87: SICRO3 | D87: Transporte com caminhão carroceria de 15 t - rodovia pavimentada | G87: tkm | H87: 0.000216 | I87: 0.72 | J87: 0
A88: Insumo | B88: M0289 | C88: SICRO3 | D88: Tábua - E = 2,5 cm e L = 15 cm | E88: Material | G88: m | H88: 0.002886 | I88: 7.0416 | J88: 0.02
A89: Insumo | B89: P9848 | C89: SICRO3 | D89: Desenhista | E89: Mão de Obra | G89: mês | H89: 1.14e-05 | I89: 8883.6415 | J89: 0.1
A90: Insumo | B90: P9950 | C90: SICRO3 | D90: Auxiliar de topografia | E90: Mão de Obra | G90: mês | H90: 1.42e-05 | I90: 4519.6557 | J90: 0.06
A91: Insumo | B91: E9512 | C91: SICRO3 | D91: Veículo leve - 53 kW | E91: Equipamento | G91: H | H91: 0.001 | I91: 61.6653 | J91: 0.06
A92: Insumo | B92: P9949 | C92: SICRO3 | D92: Topógrafo | E92: Mão de Obra | G92: mês | H92: 1.42e-05 | I92: 7926.4674 | J92: 0.11
A93: Insumo | B93: P9824 | C93: SICRO3 | D93: Servente | E93: Mão de Obra | G93: h | H93: 0.0075 | I93: 21.1436 | J93: 0.16
E94: MO sem LS => | F94: 0.43 | G94: LS => | H94: 0 | I94: MO com LS => | J94: 0.43
E95: Valor do BDI => | F95: 0.12 | H95: Valor com BDI => | J95: 0.63
A97: 2.1 | B97: Código | C97: Banco | D97: Descrição | E97: Tipo | G97: Und | H97: Quant. | I97: Valor Unit | J97: Total
A98: Composição | B98: 0005 | C98: Próprio | D98: ADMINISTRAÇÃO DE OBRA | E98: SEOP - SERVIÇOS OPERACIONAIS | G98: MÊS | H98: 1 | I98: 86218.07 | J98: 86218.07
A99: Insumo | B99: P9903 | C99: SICRO3 | D99: Auxiliar técnico | E99: Mão de Obra | G99: mês | H99: 2 | I99: 4801.2272 | J99: 9602.45
A100: Insumo | B100: P9840 | C100: SICRO3 | D100: Encarregado geral | E100: Mão de Obra | G100: mês | H100: 1 | I100: 10416.0147 | J100: 10416.01
A101: Insumo | B101: P9842 | C101: SICRO3 | D101: Faxineiro | E101: Mão de Obra | G101: mês | H101: 1 | I101: 4111.6911 | J101: 4111.69
A102: Insumo | B102: P9948 | C102: SICRO3 | D102: Motorista de veículo leve - mensalista | E102: Mão de Obra | G102: mês | H102: 1 | I102: 4946.3317 | J102: 4946.33
A103: Insumo | B103: P9819 | C103: SICRO3 | D103: Engenheiro supervisor | E103: Mão de Obra | G103: mês | H103: 1 | I103: 23564.3607 | J103: 23564.36
A104: Insumo | B104: P9827 | C104: SICRO3 | D104: Vigia | E104: Mão de Obra | G104: mês | H104: 2 | I104: 4809.3191 | J104: 9618.64
A105: Insumo | B105: P9897 | C105: SICRO3 | D105: Técnico de meio ambiente | E105: Mão de Obra | G105: mês | H105: 1 | I105: 7726.4929 | J105: 7726.49
A106: Insumo | B106: P9806 | C106: SICRO3 | D106: Auxiliar administrativo | E106: Mão de Obra | G106: mês | H106: 2 | I106: 4965.0169 | J106: 9930.03
A107: Insumo | B107: P9878 | C107: SICRO3 | D107: Secretária | E107: Mão de Obra | G107: mês | H107: 1 | I107: 6302.0703 | J107: 6302.07
E108: MO sem LS => | F108: 86218.07 | G108: LS => | H108: 0 | I108: MO com LS => | J108: 86218.07
E109: Valor do BDI => | F109: 20157.78 | H109: Valor com BDI => | J109: 106375.85
A111: 3.1 | B111: Código | C111: Banco | D111: Descrição | E111: Tipo | G111: Und | H111: Quant. | I111: Valor Unit | J111: Total
A112: Composição | B112: 101 | C112: Próprio | D112: MOBILIZAÇÃO E DESMOBILIZAÇÃO DE PESSOAL, VEÍCULOS E EQUIPAMENTOS | E112: SEDI - SERVIÇOS DIVERSOS | G112: Unid | H112: 1 | I112: 7921.29 | J112: 7921.29
A113: Insumo | B113: MOB/DESM - 01 | C113: Próprio | D113: MOBILIZAÇÃO E DESMOBILIZAÇÃO DE PESSOAL, VEÍCULOS E EQUIPAMENTOS PESADOS | E113: Material | G113: Und. | H113: 1 | I113: 7921.29 | J113: 7921.29
E114: MO sem LS => | F114: 0 | G114: LS => | H114: 0 | I114: MO com LS => | J114: 0
E115: Valor do BDI => | F115: 1852 | H115: Valor com BDI => | J115: 9773.29
A117: 4.1 | B117: Código | C117: Banco | D117: Descrição | E117: Tipo | G117: Und | H117: Quant. | I117: Valor Unit | J117: Total
A118: Composição | B118: 5502138 | C118: SICRO3 | D118: Escavação, carga e transporte de material de 1ª categoria - DMT de 600 a 800 m - caminho de serviço em revestimento primário - com escavadeira e caminhão basculante de 14 m³ | G118: m³ | H118: 1 | I118: 6.59 | J118: 6.59
A119: A | B119: Código | C119: Banco | D119: Equipamentos | E119: Quantidade | F119: Utilização | H119: Custo Horário | J119: Custo Horário Total
F120: Operativa | G120: Improdutiva | H120: Operativa | I120: Improdutiva
A121: Insumo | B121: E9667 | C121: SICRO3 | D121: Caminhão basculante com capacidade de 14 m³ - 210 kW | E121: 4 | F121: 0.88 | G121: 0.12 | H121: 304.3057 | I121: 87.7759 | J121: 1113.2885
A122: Insumo | B122: E9515 | C122: SICRO3 | D122: Escavadeira hidráulica sobre esteiras com caçamba com capacidade de 1,56 m³ - 118 kW | E122: 1 | F122: 1 | G122: 0 | H122: 290.6252 | I122: 130.2831 | J122: 290.6252
F123: Custo horário total de equipamentos | J123: 1403.9137
A124: B | B124: Código | C124: Banco | D124: Mão de Obra | E124: Quantidade | F124: Custo Horário | J124: Custo Horário Total
A125: Insumo | B125: P9824 | C125: SICRO3 | D125: Servente | E125: 1 | I125: 21,1436 | J125: 21,1436
F126: Custo horário total de mão de obra | J126: 21.1436
F127: Custo horário total de execução | J127: 1425.0573
F128: Produção de equipe | J128: 230.19
F129: Custo unitário de execução | J129: 6.1908
F130: Custo do FIC | J130: 0.398
F131: Custo do FIT | J131: 0
E132: MO sem LS => | F132: 0.09 | G132: LS => | H132: 0 | I132: MO com LS => | J132: 0.09185281724
E133: Valor do BDI => | F133: 1.54 | H133: Valor com BDI => | J133: 8.13
A135: 4.2 | B135: Código | C135: Banco | D135: Descrição | E135: Tipo | G135: Und | H135: Quant. | I135: Valor Unit | J135: Total
A136: Composição | B136: 4016096 | C136: SICRO3 | D136: Escavação e carga de material de jazida com escavadeira hidráulica de 1,56 m³ | G136: m³ | H136: 1 | I136: 1.44 | J136: 1.44
A137: A | B137: Código | C137: Banco | D137: Equipamentos | E137: Quantidade | F137: Utilização | H137: Custo Horário | J137: Custo Horário Total
F138: Operativa | G138: Improdutiva | H138: Operativa | I138: Improdutiva
A139: Insumo | B139: E9515 | C139: SICRO3 | D139: Escavadeira hidráulica sobre esteiras com caçamba com capacidade de 1,56 m³ - 118 kW | E139: 1 | F139: 1 | G139: 0 | H139: 290.6252 | I139: 130.2831 | J139: 290.6252
F140: Custo horário total de equipamentos | J140: 290.6252
A141: B | B141: Código | C141: Banco | D141: Mão de Obra | E141: Quantidade | F141: Custo Horário | J141: Custo Horário Total
A142: Insumo | B142: P9824 | C142: SICRO3 | D142: Servente | E142: 1 | I142: 21,1436 | J142: 21,1436
F143: Custo horário total de mão de obra | J143: 21.1436
F144: Custo horário total de execução | J144: 311.7688
F145: Produção de equipe | J145: 230.19
F146: Custo unitário de execução | J146: 1.3544
F147: Custo do FIC | J147: 0.0871
F148: Custo do FIT | J148: 0
E149: MO sem LS => | F149: 0.09 | G149: LS => | H149: 0 | I149: MO com LS => | J149: 0.09185281724
E150: Valor do BDI => | F150: 0.34 | H150: Valor com BDI => | J150: 1.78
A152: 4.3 | B152: Código | C152: Banco | D152: Descrição | E152: Tipo | G152: Und | H152: Quant. | I152: Valor Unit | J152: Total
A153: Composição | B153: 5915320 | C153: SICRO3 | D153: Transporte com caminhão basculante de 14 m³ - rodovia em revestimento primário | G153: tkm | H153: 1 | I153: 0.74 | J153: 0.74
A154: A | B154: Código | C154: Banco | D154: Equipamentos | E154: Quantidade | F154: Utilização | H154: Custo Horário | J154: Custo Horário Total
F155: Operativa | G155: Improdutiva | H155: Operativa | I155: Improdutiva
A156: Insumo | B156: E9667 | C156: SICRO3 | D156: Caminhão basculante com capacidade de 14 m³ - 210 kW | E156: 1 | F156: 1 | G156: 0 | H156: 304.3057 | I156: 87.7759 | J156: 304.3057
F157: Custo horário total de equipamentos | J157: 304.3057
F158: Custo horário total de execução | J158: 304.3057
F159: Produção de equipe | J159: 435.75
F160: Custo unitário de execução | J160: 0.6983
F161: Custo do FIC | J161: 0.0449
F162: Custo do FIT | J162: 0
E163: MO sem LS => | F163: 0 | G163: LS => | H163: 0 | I163: MO com LS => | J163: 0
E164: Valor do BDI => | F164: 0.17 | H164: Valor com BDI => | J164: 0.91
A166: 4.4 | B166: Código | C166: Banco | D166: Descrição | E166: Tipo | G166: Und | H166: Quant. | I166: Valor Unit | J166: Total
A167: Composição | B167: 5502978 | C167: SICRO3 | D167: Compactação de aterros a 100% do Proctor normal | G167: m³ | H167: 1 | I167: 5.28 | J167: 5.28
A168: A | B168: Código | C168: Banco | D168: Equipamentos | E168: Quantidade | F168: Utilização | H168: Custo Horário | J168: Custo Horário Total
F169: Operativa | G169: Improdutiva | H169: Operativa | I169: Improdutiva
A170: Insumo | B170: E9524 | C170: SICRO3 | D170: Motoniveladora - 93 kW | E170: 1 | F170: 0.29 | G170: 0.71 | H170: 290.7247 | I170: 126.3484 | J170: 174.0175
A171: Insumo | B171: E9571 | C171: SICRO3 | D171: Caminhão tanque com capacidade de 10.000 l - 188 kW | E171: 1 | F171: 0.9 | G171: 0.1 | H171: 330.9726 | I171: 84.2553 | J171: 306.3009
A172: Insumo | B172: E9518 | C172: SICRO3 | D172: Grade de 24 discos rebocável de D = 60 cm (24") | E172: 1 | F172: 0.52 | G172: 0.48 | H172: 4.9256 | I172: 3.4301 | J172: 4.2078
A173: Insumo | B173: E9685 | C173: SICRO3 | D173: Rolo compactador pé de carneiro vibratório autopropelido por pneus de 11,6 t - 82 kW | E173: 1 | F173: 1 | G173: 0 | H173: 223.3134 | I173: 99.6192 | J173: 223.3134
A174: Insumo | B174: E9577 | C174: SICRO3 | D174: Trator agrícola sobre pneus - 77 kW | E174: 1 | F174: 0.52 | G174: 0.48 | H174: 150.6719 | I174: 55.5956 | J174: 105.0353
F175: Custo horário total de equipamentos | J175: 812.8749
A176: B | B176: Código | C176: Banco | D176: Mão de Obra | E176: Quantidade | F176: Custo Horário | J176: Custo Horário Total
A177: Insumo | B177: P9824 | C177: SICRO3 | D177: Servente | E177: 1 | I177: 21,1436 | J177: 21,1436
F178: Custo horário total de mão de obra | J178: 21.1436
F179: Custo horário total de execução | J179: 834.0185
F180: Produção de equipe | J180: 168.2
F181: Custo unitário de execução | J181: 4.9585
F182: Custo do FIC | J182: 0.3188
F183: Custo do FIT | J183: 0
E184: MO sem LS => | F184: 5.28 | G184: LS => | H184: -5.15 | I184: MO com LS => | J184: 0.125705113
E185: Valor do BDI => | F185: 1.23 | H185: Valor com BDI => | J185: 6.51
A187: 5.1 | B187: Código | C187: Banco | D187: Descrição | E187: Tipo | G187: Und | H187: Quant. | I187: Valor Unit | J187: Total
A188: Composição | B188: 99063 | C188: SINAPI | D188: LOCAÇÃO DE REDE DE ÁGUA OU ESGOTO. AF_03/2024 | E188: SERT - SERVIÇOS TÉCNICOS | G188: M | H188: 1 | I188: 8.18 | J188: 8.18
A189: Composição Auxiliar | B189: 91693 | C189: SINAPI | D189: SERRA CIRCULAR DE BANCADA COM MOTOR ELÉTRICO POTÊNCIA DE 5HP, COM COIFA PARA DISCO 10" - CHI DIURNO. AF_08/2015 | E189: CHOR - CUSTOS HORÁRIOS DE MÁQUINAS E EQUIPAMENTOS | G189: CHI | H189: 0.0021 | I189: 33.85 | J189: 0.07
A190: Composição Auxiliar | B190: 97733 | C190: SINAPI | D190: PEÇA RETANGULAR PRÉ-MOLDADA, VOLUME DE CONCRETO DE ATÉ 10 LITROS, TAXA DE AÇO APROXIMADA DE 30KG/M³. AF_03/2024 | E190: FUES - FUNDAÇÕES E ESTRUTURAS | G190: m³ | H190: 0.0005 | I190: 3528.69 | J190: 1.76
A191: Composição Auxiliar | B191: 88262 | C191: SINAPI | D191: CARPINTEIRO DE FORMAS COM ENCARGOS COMPLEMENTARES | E191: SEDI - SERVIÇOS DIVERSOS | G191: H | H191: 0.1184 | I191: 24.94 | J191: 2.95
A192: Composição Auxiliar | B192: 91692 | C192: SINAPI | D192: SERRA CIRCULAR DE BANCADA COM MOTOR ELÉTRICO POTÊNCIA DE 5HP, COM COIFA PARA DISCO 10" - CHP DIURNO. AF_08/2015 | E192: CHOR - CUSTOS HORÁRIOS DE MÁQUINAS E EQUIPAMENTOS | G192: CHP | H192: 0.0005 | I192: 35.16 | J192: 0.02
A193: Composição Auxiliar | B193: 88239 | C193: SINAPI | D193: AJUDANTE DE CARPINTEIRO COM ENCARGOS COMPLEMENTARES | E193: SEDI - SERVIÇOS DIVERSOS | G193: H | H193: 0.1184 | I193: 20.89 | J193: 2.47
A194: Insumo | B194: 00007356 | C194: SINAPI | D194: TINTA LATEX ACRILICA PREMIUM, COR BRANCO FOSCO | E194: Material | G194: L | H194: 0.0011 | I194: 33.89 | J194: 0.04
A195: Insumo | B195: 00005068 | C195: SINAPI | D195: PREGO DE ACO POLIDO COM CABECA 17 X 21 (2 X 11) | E195: Material | G195: KG | H195: 0.0007 | I195: 16.27 | J195: 0.01
A196: Insumo | B196: 00004433 | C196: SINAPI | D196: CAIBRO NAO APARELHADO *6 X 6* CM, EM MACARANDUBA/MASSARANDUBA, ANGELIM OU EQUIVALENTE DA REGIAO - BRUTA | E196: Material | G196: M | H196: 0.0413 | I196: 16.31 | J196: 0.67
A197: Insumo | B197: 00004417 | C197: SINAPI | D197: SARRAFO NAO APARELHADO *2,5 X 7* CM, EM MACARANDUBA/MASSARANDUBA, ANGELIM, PEROBA-ROSA OU EQUIVALENTE DA REGIAO - BRUTA | E197: Material | G197: M | H197: 0.0413 | I197: 4.53 | J197: 0.19
E198: MO sem LS => | F198: 5.31 | G198: LS => | H198: 0 | I198: MO com LS => | J198: 5.31
E199: Valor do BDI => | F199: 1.91 | H199: Valor com BDI => | J199: 10.09
A201: 5.2 | B201: Código | C201: Banco | D201: Descrição | E201: Tipo | G201: Und | H201: Quant. | I201: Valor Unit | J201: Total
A202: Composição | B202: 4805757 | C202: SICRO3 | D202: Escavação mecânica de vala em material de 1ª categoria | G202: m³ | H202: 1 | I202: 7 | J202: 7
A203: A | B203: Código | C203: Banco | D203: Equipamentos | E203: Quantidade | F203: Utilização | H203: Custo Horário | J203: Custo Horário Total
F204: Operativa | G204: Improdutiva | H204: Operativa | I204: Improdutiva
A205: Insumo | B205: E9526 | C205: SICRO3 | D205: Retroescavadeira de pneus - capacidade da caçamba da pá-carregadeira de 0,76 m³ e da retroescavadeira de 0,29 m³ - 58 kW | E205: 1 | F205: 1 | G205: 0 | H205: 149.9226 | I205: 75.5951 | J205: 149.9226
F206: Custo horário total de equipamentos | J206: 149.9226
A207: B | B207: Código | C207: Banco | D207: Mão de Obra | E207: Quantidade | F207: Custo Horário | J207: Custo Horário Total
A208: Insumo | B208: P9824 | C208: SICRO3 | D208: Servente | E208: 1 | I208: 21,1436 | J208: 21,1436
F209: Custo horário total de mão de obra | J209: 21.1436
F210: Custo horário total de execução | J210: 171.0662
F211: Produção de equipe | J211: 26
F212: Custo unitário de execução | J212: 6.5795
F213: Custo do FIC | J213: 0.423
... 4312 more rows

Sheet CRONOGRAMA_MÃO DE OBRA (hidden)
B1: =#REF! ->  | C1: =#REF! ->  | D1: =#REF! ->  | F1: =#REF! -> 
B2: =#REF! ->  | C2: =#REF! ->  | D2: =#REF! ->  | F2: =#REF! ->  | H2: Valor Médio de Mão de Obra Sem Engenheiro | J2: ='Custo Horário de Mão de Obra'!H3 -> 26.27577028
A3: Cronograma Mão de Obra
A4: Item | B4: Descrição | C4: % Percentual SIENGE MOD | D4: Valor Total | E4: Valor MOD | F4: Total Por Etapa | G4: 30 DIAS | H4: 60 DIAS | I4: 90 DIAS | J4: 120 DIAS | K4: 150 DIAS | L4: 180 DIAS | M4: 210 DIAS | N4: 240 DIAS | O4: 270 DIAS | P4: 300 DIAS
A5: =#REF! ->  | B5: =#REF! ->  | C5: 0.35 | D5: =RIGHT(F5,12)-#REF! ->  | E5: =D5*C5 ->  | F5: =#REF! ->  | G5: =#REF! ->  | H5: =#REF! ->  | I5: =#REF! ->  | J5: =#REF! ->  | K5: =#REF! ->  | L5: =#REF! ->  | M5: =#REF! ->  | N5: =#REF! ->  | O5: =#REF! ->  | P5: =#REF! ->  | Q5: =D5*1 -> 
B6: % DE EXECUÇÃO POR MÊS | G6: =LEFT(G5,6) ->  | H6: =LEFT(H5,6) ->  | Q6: =D6*1 -> 0
B7: VALOR POR MÊS | G7: =$C$5*$D$5*G6 ->  | H7: =$C$5*$D$5*H6 ->  | Q7: 0
B8: NÚMERO DE COLABORADORES | G8: =(G7/$J$2)/176 ->  | H8: =(H7/$J$2)/176 ->  | Q8: 0
A9: =#REF! ->  | B9: =#REF! ->  | D9: =(RIGHT(F9,10))*1 ->  | E9: =D9*C9 ->  | F9: =#REF! ->  | G9: =#REF! ->  | H9: =#REF! ->  | I9: =#REF! ->  | J9: =#REF! ->  | K9: =#REF! ->  | L9: =#REF! ->  | M9: =#REF! ->  | N9: =#REF! ->  | O9: =#REF! ->  | P9: =#REF! -> 
B10: % DE EXECUÇÃO POR MÊS | Q10: 0
B11: VALOR POR MÊS | Q11: 0
B12: NÚMERO DE COLABORADORES | Q12: 0
A13: =#REF! ->  | B13: =#REF! ->  | D13: =RIGHT(F13,10)*1 ->  | E13: =D13*C13 ->  | F13: =#REF! ->  | G13: =#REF! ->  | H13: =#REF! ->  | I13: =#REF! ->  | J13: =#REF! ->  | K13: =#REF! ->  | L13: =#REF! ->  | M13: =#REF! ->  | N13: =#REF! ->  | O13: =#REF! ->  | P13: =#REF! -> 
B14: % DE EXECUÇÃO POR MÊS | G14: =LEFT(G13,6)*1 ->  | P14: =LEFT(P13,6) ->  | Q14: 0
B15: VALOR POR MÊS | G15: =$C$13*$D$13*G14 ->  | P15: =$C$13*$D$13*P14 ->  | Q15: 0
B16: NÚMERO DE COLABORADORES | G16: =(G15/$J$2)/176 ->  | P16: =(P15/$J$2)/176 ->  | Q16: 0
A17: =#REF! ->  | B17: =#REF! ->  | C17: 0.15 | D17: =RIGHT(F17,12)*1 ->  | E17: =D17*C17 ->  | F17: =#REF! ->  | G17: =#REF! ->  | H17: =#REF! ->  | I17: =#REF! ->  | J17: =#REF! ->  | K17: =#REF! ->  | L17: =#REF! ->  | M17: =#REF! ->  | N17: =#REF! ->  | O17: =#REF! ->  | P17: =#REF! -> 
B18: % DE EXECUÇÃO POR MÊS | G18: =LEFT(G17,5)*1 ->  | H18: =LEFT(H17,5)*1 ->  | I18: =LEFT(I17,6)*1 ->  | J18: =LEFT(J17,6)*1 ->  | K18: =LEFT(K17,6)*1 ->  | Q18: 0
B19: VALOR POR MÊS | G19: =$C$17*$D$17*G18 ->  | H19: =$C$17*$D$17*H18 ->  | I19: =$C$17*$D$17*I18 ->  | J19: =$C$17*$D$17*J18 ->  | K19: =$C$17*$D$17*K18 ->  | Q19: 0
B20: NÚMERO DE COLABORADORES | G20: =(G19/$J$2)/176 ->  | H20: =(H19/$J$2)/176 ->  | I20: =(I19/$J$2)/176 ->  | J20: =(J19/$J$2)/176 ->  | K20: =(K19/$J$2)/176 ->  | Q20: 0
A21: =#REF! ->  | B21: =#REF! ->  | C21: 0.1 | D21: =RIGHT(F21,12)*1 ->  | E21: =D21*C21 ->  | F21: =#REF! ->  | G21: =#REF! ->  | H21: =#REF! ->  | I21: =#REF! ->  | J21: =#REF! ->  | K21: =#REF! ->  | L21: =#REF! ->  | M21: =#REF! ->  | N21: =#REF! ->  | O21: =#REF! ->  | P21: =#REF! -> 
B22: % DE EXECUÇÃO POR MÊS | I22: =LEFT(I21,5)*1 ->  | J22: =LEFT(J21,6)*1 ->  | K22: =LEFT(K21,6)*1 ->  | L22: =LEFT(L21,6)*1 ->  | M22: =LEFT(M21,6)*1 ->  | N22: =LEFT(N21,6)*1 ->  | Q22: 0
B23: VALOR POR MÊS | I23: =$C$21*$D$21*I22 ->  | Q23: 0
B24: NÚMERO DE COLABORADORES | I24: =(I23/$J$2)/176 ->  | Q24: 0
A25: =#REF! ->  | B25: =#REF! ->  | C25: 0.1 | D25: =RIGHT(F25,10)*1 ->  | E25: =D25*C25 ->  | F25: =#REF! ->  | G25: =#REF! ->  | H25: =#REF! ->  | I25: =#REF! ->  | J25: =#REF! ->  | K25: =#REF! ->  | L25: =#REF! ->  | M25: =#REF! ->  | N25: =#REF! ->  | O25: =#REF! ->  | P25: =#REF! -> 
B26: % DE EXECUÇÃO POR MÊS | O26: =LEFT(O25,6) ->  | P26: =LEFT(P25,6) ->  | Q26: 0
B27: VALOR POR MÊS | O27: =$C$25*$D$25*O26 ->  | P27: =$C$25*$D$25*P26 ->  | Q27: 0
B28: NÚMERO DE COLABORADORES | O28: =(O27/$J$2)/176 ->  | P28: =(P27/$J$2)/176 ->  | Q28: 0
A29: =#REF! ->  | B29: =#REF! ->  | C29: 0.5 | D29: =RIGHT(F29,10)*1 ->  | E29: =D29*C29 ->  | F29: =#REF! ->  | G29: =#REF! ->  | H29: =#REF! ->  | I29: =#REF! ->  | J29: =#REF! ->  | L29: =#REF! ->  | M29: =#REF! ->  | N29: =#REF! ->  | O29: =#REF! ->  | P29: =#REF! -> 
B30: % DE EXECUÇÃO POR MÊS | L30: =LEFT(L29,6) ->  | M30: =LEFT(M29,6) ->  | N30: =LEFT(N29,6) ->  | O30: =LEFT(O29,6) ->  | P30: =LEFT(P29,6) ->  | Q30: 0
B31: VALOR POR MÊS | L31: =$C$29*$D$29*L30 ->  | M31: =$C$29*$D$29*M30 ->  | N31: =$C$29*$D$29*N30 ->  | O31: =$C$29*$D$29*O30 ->  | P31: =$C$29*$D$29*P30 ->  | Q31: 0
B32: NÚMERO DE COLABORADORES | L32: =(L31/$J$2)/176 ->  | M32: =(M31/$J$2)/176 ->  | N32: =(N31/$J$2)/176 ->  | O32: =(O31/$J$2)/176 ->  | P32: =(P31/$J$2)/176 ->  | Q32: 0
A33: =#REF! ->  | B33: =#REF! ->  | C33: 0.35 | D33: =RIGHT(F33,10)*1 ->  | E33: =D33*C33 ->  | F33: =#REF! ->  | G33: =#REF! ->  | H33: =#REF! ->  | I33: =#REF! ->  | J33: =#REF! ->  | K33: =#REF! ->  | L33: =#REF! ->  | M33: =#REF! ->  | N33: =#REF! ->  | O33: =#REF! ->  | P33: =#REF! -> 
B34: % DE EXECUÇÃO POR MÊS | N34: =LEFT(N33,6) ->  | O34: =LEFT(O33,6) ->  | P34: =LEFT(P33,6) ->  | Q34: 0
B35: VALOR POR MÊS | N35: =$C$33*$D$33*N34 ->  | O35: =$C$33*$D$33*O34 ->  | P35: =$C$33*$D$33*P34 ->  | Q35: 0
B36: NÚMERO DE COLABORADORES | N36: =(N35/$J$2)/176 ->  | O36: =(O35/$J$2)/176 ->  | P36: =(P35/$J$2)/176 ->  | Q36: 0
A37: =#REF! ->  | B37: =#REF! ->  | C37: 0.35 | D37: =RIGHT(F37,10)*1 ->  | E37: =D37*C37 ->  | F37: =#REF! ->  | G37: =#REF! ->  | H37: =#REF! ->  | I37: =#REF! ->  | O37: =#REF! ->  | P37: =#REF! -> 
B38: % DE EXECUÇÃO POR MÊS | O38: =LEFT(O37,6) ->  | P38: =LEFT(P37,6) ->  | Q38: 0
B39: VALOR POR MÊS | O39: =$C$37*$D$37*O38 ->  | P39: =$C$37*$D$37*P38 ->  | Q39: 0
B40: NÚMERO DE COLABORADORES | O40: =(O39/$J$2)/176 ->  | P40: =(P39/$J$2)/176 ->  | Q40: 0
A41: =#REF! ->  | B41: =#REF! ->  | C41: 0.5 | D41: =RIGHT(F41,12)*1 ->  | E41: =D41*C41 ->  | F41: =#REF! ->  | H41: =#REF! ->  | I41: =#REF! ->  | J41: =#REF! ->  | K41: =#REF! ->  | L41: =#REF! ->  | M41: =#REF! -> 
B42: % DE EXECUÇÃO POR MÊS | H42: =LEFT(H41,5) ->  | I42: =LEFT(I41,6) ->  | J42: =LEFT(J41,6) ->  | K42: =LEFT(K41,6) ->  | Q42: 0
B43: VALOR POR MÊS | H43: =$C$41*$D$41*H42 ->  | I43: =$C$41*$D$41*I42 ->  | J43: =$C$41*$D$41*J42 ->  | K43: =$C$41*$D$41*K42 ->  | Q43: 0
B44: NÚMERO DE COLABORADORES | H44: =(H43/$J$2)/176 ->  | I44: =(I43/$J$2)/176 ->  | J44: =(J43/$J$2)/176 ->  | K44: =(K43/$J$2)/176 ->  | Q44: 0
E45: Valor | G45: =G7+G11+G15+G19+G23+G27+G31+G35+G39+G43 ->  | H45: =H7+H11+H15+H19+H23+H27+H31+H35+H39+H43 -> 
E46: Quantidade Mão de Obra | G46: =ROUNDUP((G8+G12+G16+G20+G24+G28+G32+G36+G40+G44),0) ->  | H46: =ROUNDUP((H8+H12+H16+H20+H24+H28+H32+H36+H40+H44),0) -> 
E47: Quantidade Média da Mão de Obra | G47: =ROUNDUP(AVERAGE(G46:P46),0) -> 
A49: _______________________________________________________________ PERFIL ORÇAMENTARIO Diretor
E50: =SUM(E5:E44)/SUM(G45:P45) -> 
D56: ID | F56: TIPO | G56: QUANT. | H56: COEF. | I56: TOTAL
D57: NMO | E57: A | F57: Funcionários da mão de obra ordinária Média | G57: =G47 ->  | H57: 1.33 | I57: =G57*H57 -> 
D58: NPV | E58: B | F58: Funcionários da parcela variável no mês de pico | G58: 0 | H58: 1.33 | I58: =G58*H58 -> 0
D59: NPF | E59: C | F59: Funcionários da parcela fixa da administração local | G59: 14 | I59: 14
D60: NPF-V | E60: D | F60: Funcionários das parcelas fixa e vinculada | G60: 14 | I60: 14
D61: NFA | E61: E | F61: Funcionários alojados no canteiro ((D+B + A))x 0,35 | G61: =(G57+G58+G60)*0.35 ->  | I61: =G61 -> 
D62: NMAX | E62: F | F62: Número máximo de funcionários (A + B +D) | G62: =G57+G58+G60 ->  | I62: =SUM(I57:I61) -> 
F64: INSTALAÇÕES COBERTAS | G64: EQUAÇÕES DE DIMENSIONAMENTO | H64: ÁREA (m2)
F65: Escritório e seção técnica | G65: AE-ST = 57,95 + 4,5 x NPF | H65: =57.95+4.5*I59 -> 120.95
F66: Refeitório e cozinha | G66: AR-C = 1,55 x 50% NMAX | H66: =1.55*I62*0.5 -> 
F67: Alojamentos | G67: AAL = 3,11 x 35% (NMO + NPV) | H67: =3.11*(I57+I58)*0.35 -> 
F68: Banheiros e vestiário | G68: AB-V = 0,77 x (NMO + NPV) | H68: =0.77*(I57+I58) -> 
F69: Ambulatório | G69: AAMB = 0,25 x NMAX | H69: =0.25*I62 -> 
F70: Área de recreação | G70: AAR = 1,5 x 35% NFA | H70: =1.5*I61*0.35 -> 
F71: Residências | G71: ARES = 8,46 x NPF-V | H71: =8.46*I60 -> 118.44
F72: TOTAL: | H72: =SUM(H65:H71) -> 
F75: Descrição | G75: Unidade | H75: Quant.
F76: Engenheiro supervisor | G76: Und. | H76: 1
F77: Encarregado geral | G77: Und. | H77: 1
F78: Técnico em meio ambiente | G78: Und. | H78: 1
F79: Secretária | G79: Und. | H79: 1
F80: Auxiliar técnico | G80: Und. | H80: 2
F81: Porteiro | G81: Und. | H81: 2
F82: Vigia | G82: Und | H82: 2
F83: Motorista | G83: Und | H83: 1
F84: Auxiliar administrativo | G84: Und | H84: 2
F85: Faxineiro | G85: Und | H85: 1
F86: Total | H86: =SUM(H76:H85) -> 14
F89: INSTALAÇÕES COBERTAS | G89: ÁREA (m2) | H89: FEAC (%) | I89: Áreas Equivalentes (m²) | K89: Área total de referência do terreno | L89: =G103/0.4 -> 
F90: Escritório e seção técnica | G90: =H65 -> 120.95 | H90: 0.7 | I90: =G90*H90 -> 84.665 | K90: Áreas descobertas | L90: =L89-G103 -> 
F91: Refeitório e cozinha | H91: 0.7 | I91: =G91*H91 ->  | K91: CCP 01 | L91: =0.8*1.05*2.4718*H72 -> 
F92: Alojamentos | H92: 0.7 | K92: CCP 02 | L92: =L90*0.05 -> 
F93: Banheiros e vestiário | H93: 0.7 | K93: CCP 03 | L93: =L91+L92 -> 
F94: Ambulatório | H94: 0.6 | K94: CMCC | L94: 1675.58
F95: Área de recreação | H95: 0.5 | K95: CCP - TOTAL | L95: =L93*L94 -> 
F96: Residências | G96: 118.44 | H96: 0.7 | I96: 82.908
F97: Almoxarifado | G97: 104.88 | H97: 0.5 | I97: 52.44
F98: Depósito de Cimento | G98: 93.45 | H98: 0.5 | I98: 46.725
F99: Oficina | G99: 215.14 | H99: 0.5 | I99: 107.57
F100: Topografia | G100: 14.77 | H100: 0.6 | I100: 8.862
F101: Guarita | G101: 6.1 | H101: 0.7 | I101: 4.27
F102: Laboratório | G102: 28 | H102: 0.6 | I102: 16.8
F103: Total | G103: =SUM(G90:G102) ->  | I103: =SUM(I90:I102) -> 
U135: Custo total do Canteiro Central

Sheet Custo Horário de Mão de Obra (hidden)
B1: Obra
B2: COMPLEMENTAÇÃO DOS ESTUDOS PRELIMINARES E CONSOLIDAÇÃO DO PROJETO RODOVIÁRIO DO RAMAL DO MANGA, NO ESTADO DO AMAPÁ - CODESAFV
A3: Planilha de Custo Horário de Mão de Obra | H3: =AVERAGE(H5:H28) -> 26.27577028
A4: Codigo | B4: Descrição | C4: Unidade | D4: Salário | E4: Encargos | F4: Adicional de Periculosidade | G4: Custo | H4: MÉDIA
A5: P9824 | B5: Servente | C5: h | D5: 6,1778 | E5: 197,7515% | F5: 0,0000% | G5: 18.3944 | H5: 18.3944
A6: P9801 | B6: Ajudante | C6: h | D6: 6,8953 | E6: 185,8522% | F6: 0,0000% | G6: 19.7103 | H6: 19.7103
A7: P9805 | B7: Armador | C7: h | D7: 9,2900 | E7: 159,8139% | F7: 0,0000% | G7: 24.1367 | H7: 24.1367
A8: P9821 | B8: Pedreiro | C8: h | D8: 8,7001 | E8: 164,1073% | F8: 0,0000% | G8: 22.9775 | H8: 22.9775
A9: P9825 | B9: Soldador | C9: h | D9: 11,4412 | E9: 145,4213% | F9: 0,0000% | G9: 28.0791 | H9: 28.0791
A10: P9822 | B10: Pintor | C10: h | D10: 9,2900 | E10: 160,7028% | F10: 0,0000% | G10: 24.2192 | H10: 24.2192
A11: P9808 | B11: Carpinteiro | C11: h | D11: 8,6900 | E11: 164,7141% | F11: 0,0000% | G11: 23.0036 | H11: 23.0036
A12: P9802 | B12: Ajudante especializado | C12: h | D12: 8,2081 | E12: 179,8206% | F12: 0,0000% | G12: 22.9679 | H12: 22.9679
A13: P9810 | B13: Eletricista | C13: h | D13: 10,1149 | E13: 159,3210% | F13: 0,0000% | G13: 26.23 | H13: 26.23
A14: P9830 | B14: Montador | C14: h | D14: 9,1500 | E14: 170,6986% | F14: 0,0000% | G14: 24.7689 | H14: 24.7689
A15: P9950 | B15: Auxiliar de topografia | C15: mês | D15: 1.685,2000 | E15: 129,6400% | F15: 0,0000% | G15: 3869.8932 | H15: =G15/176 -> 21.98802955
A16: P9949 | B16: Topógrafo | C16: mês | D16: 2.688,4200 | E16: 101,0370% | F16: 0,0000% | G16: 5404.7189 | H16: =G16/176 -> 30.70863011
A17: P9848 | B17: Desenhista | C17: mês | D17: 3.384,9090 | E17: 88,0257% | F17: 0,0000% | G17: 6364.4988 | H17: =G17/176 -> 36.161925
A18: P9823 | B18: Serralheiro | C18: h | D18: 9,7753 | E18: 156,1903% | F18: 0,0000% | G18: 25.0433 | H18: =G18 -> 25.0433
A19: P9853 | B19: Pré-marcador | C19: h | D19: 6,8565 | E19: 183,0396% | F19: 0,0000% | G19: 19.4066 | H19: =G19 -> 19.4066
A20: P9819 | B20: Engenheiro supervisor | C20: mês | D20: 11.884,7930 | E20: 60,2981% | F20: 0,0000% | G20: 19051.0973
A21: P9840 | B21: Encarregado geral | C21: mês | D21: 5.563,8587 | E21: 75,1751% | F21: 0,0000% | G21: 9746.495 | H21: =G21/176 -> 55.3778125
A22: P9897 | B22: Técnico de meio ambiente | C22: mês | D22: 3.430,5249 | E22: 89,7725% | F22: 0,0000% | G22: 6510.1928 | H22: 36.98973182
A23: P9878 | B23: Secretária | C23: mês | D23: 2.593,8973 | E23: 98,1257% | F23: 0,0000% | G23: 5139.1771 | H23: 29.19986989
A24: P9903 | B24: Auxiliar técnico | C24: mês | D24: 1.850,8404 | E24: 121,0252% | F24: 0,0000% | G24: 4090.8236 | H24: 23.24331591
A25: P9827 | B25: Vigia | C25: mês | D25: 1.408,0000 | E25: 160,2026% | F25: 30,0000% | G25: 4086.0526 | H25: 23.21620795
A26: P9948 | B26: Motorista de veículo leve - mensalista | C26: mês | D26: 1.913,7645 | E26: 118,2377% | F26: 0,0000% | G26: 4176.5556 | H26: 23.73042955
A27: P9806 | B27: Auxiliar administrativo | C27: mês | D27: 1.911,8000 | E27: 120,1302% | F27: 0,0000% | G27: 4208.4491 | H27: 23.91164261
A28: P9842 | B28: Faxineiro | C28: mês | D28: 1.555,4000 | E28: 136,2390% | F28: 0,0000% | G28: 3674.4614 | H28: 20.87762159
A31: _______________________________________________________________ PERFIL ORÇAMENTARIO Diretor

Sheet Resumo do Orçamento
D1: Obra | E1: Bancos | F1: BDI SERVIÇO: | G1: 0.2338 | I1: Encargos Sociais
D2: CONTRATAÇÃO DE OBRAS DE PAVIMENTAÇÃO EM CONCRETO BETUMINOSO USINADO A QUENTE (CBUQ) NO RAMAL DA TOTOIA, NO MUNICÍPIO DE SANTANA/AP, NA ÁREA DE ATUAÇÃO DA 11ª SUPERINTENDÊNCIA REGIONAL DA CODEVASF, NO ESTADO DO AMAPÁ | E2: ='Orçamento Sintético'!E2 -> SINAPI - 01/2026 - Amapá SBC - 03/2026 - Amapá SICRO3 - 10/2025 - Amapá ORSE - 12/2025 - Sergipe | F2: BDI MATERIAL: | G2: 0.1459 | I2: Não Desonerado
A3: Planilha Orçamentária Resumida
A4: Item | D4: Descrição | H4: Quant. | I4: Total | J4: Peso (%)
A5: 1 | D5: SERVIÇOS PRELIMINARES | H5: 1 | I5: =VLOOKUP(A5,'Orçamento Sintético'!$A$5:$J$143,9,FALSE) -> 1475877.09 | J5: =I5/$H$17 -> 0.068112146
A6: 2 | D6: ADMINISTRAÇÃO LOCAL | H6: 1 | I6: =VLOOKUP(A6,'Orçamento Sintético'!$A$5:$J$143,9,FALSE) -> 1488815.38 | J6: =I6/$H$17 -> 0.06870925175
A7: 3 | D7: MOBILIZAÇÃO E DESMOBIOLIZAÇÃO | H7: 1 | I7: =VLOOKUP(A7,'Orçamento Sintético'!$A$5:$J$143,9,FALSE) -> 21728.18 | J7: 0.001002761665
A8: 4 | D8: TERRAPLANAGEM | H8: 1 | I8: =VLOOKUP(A8,'Orçamento Sintético'!$A$5:$J$143,9,FALSE) -> 734886.89 | J8: 0.03391523826
A9: 5 | D9: DRENAGEM PROFUNDA | H9: 1 | I9: =VLOOKUP(A9,'Orçamento Sintético'!$A$5:$J$143,9,FALSE) -> 2146937.6 | J9: 0.09908177873
A10: 6 | D10: PAVIMENTAÇÃO | H10: 1 | I10: =VLOOKUP(A10,'Orçamento Sintético'!$A$5:$J$143,9,FALSE) -> 11880859.89 | J10: 0.5483050512
A11: 7 | D11: DEMOLIÇÃO | H11: 1 | I11: =VLOOKUP(A11,'Orçamento Sintético'!$A$5:$J$143,9,FALSE) -> 1107890.72 | J11: 0.05112947073
A12: 8 | D12: DRENAGEM SUPERFICIAL | H12: 1 | I12: =VLOOKUP(A12,'Orçamento Sintético'!$A$5:$J$143,9,FALSE) -> 320134.94 | J12: 0.01477431821
A13: 9 | D13: SINALIZAÇÃO | H13: 1 | I13: =VLOOKUP(A13,'Orçamento Sintético'!$A$5:$J$143,9,FALSE) -> 248653.13 | J13: 0.01147541242
A14: 10 | D14: ILUMINAÇÃO DO RAMAL DA TOTOIA | H14: 1 | I14: =VLOOKUP(A14,'Orçamento Sintético'!$A$5:$J$143,9,FALSE) -> 1777526.88 | J14: 0.0820333693
A15: 11 | D15: SERVIÇOS FINAIS | H15: 1 | I15: =VLOOKUP(A15,'Orçamento Sintético'!$A$5:$J$143,9,FALSE) -> 465028.6 | J15: 0.02146120169
F17: Total Geral | H17: =SUM(I5:I15) -> 21668339.3
R22: ='[171]Consolidado Pavimentação'!B23+'[171]Consolidado Pavimentação'!C23 -> 87748
R23: =H17/R22 -> 246.9382698
G51: =TRUNC(4.65985,2) -> 4.65

Sheet Orçamento Sintético
D1: Obra | E1: Bancos | G1: BDI SERVIÇO | H1: 0.2338 | I1: Encargos Sociais
D2: CONTRATAÇÃO DE OBRAS DE PAVIMENTAÇÃO EM CONCRETO BETUMINOSO USINADO A QUENTE (CBUQ) NO RAMAL DA TOTOIA, NO MUNICÍPIO DE SANTANA/AP, NA ÁREA DE ATUAÇÃO DA 11ª SUPERINTENDÊNCIA REGIONAL DA CODEVASF, NO ESTADO DO AMAPÁ | E2: SINAPI - 01/2026 - Amapá SBC - 03/2026 - Amapá SICRO3 - 10/2025 - Amapá ORSE - 12/2025 - Sergipe | G2: BDI MATERIAL | H2: 0.1459 | I2: Não Desonerado
A3: Orçamento Sintético
A4: Item | B4: Código | C4: Banco | D4: Descrição | E4: Und | F4: Quant. | G4: Valor Unit | H4: Valor Unit com BDI | I4: Total | J4: Peso (%)
A5: 1 | D5: SERVIÇOS PRELIMINARES | I5: =SUM(I6:I13) -> 1475877.09 | J5: =SUM(J6:J13) -> 0.068112146
A6: 1.1 | B6: 103689 | C6: SINAPI | D6: FORNECIMENTO E INSTALAÇÃO DE PLACA DE OBRA COM CHAPA GALVANIZADA E ESTRUTURA DE MADEIRA. AF_03/2022_PS | E6: m² | F6: 5.76 | G6: 462.44 | H6: =TRUNC(G6*(1+$H$1),2) -> 570.55 | I6: =TRUNC(H6*F6,2) -> 3286.36 | J6: =I6/$H$146 -> 0.0001516664454
A7: 1.2 | B7: 42675 | C7: SBC | D7: ALUGUEL MENSAL DE BANHEIRO QUIMICO PADRAO STANDARD COM 3 LIMPEZAS SEMANAIS | E7: MES | F7: 26 | G7: 285 | H7: =TRUNC(G7*(1+$H$1),2) -> 351.63 | I7: =TRUNC(H7*F7,2) -> 9142.38 | J7: 0.0004219234282
A8: 1.3 | B8: 200 | C8: Próprio | D8: CANTEIRO DE OBRAS | E8: UN | F8: 1 | G8: 171160.86 | H8: =TRUNC(G8*(1+$H$1),2) -> 211178.26 | I8: =TRUNC(H8*F8,2) -> 211178.26 | J8: 0.009745936552
A9: 1.4 | B9: 5502985 | C9: SICRO3 | D9: Limpeza mecanizada da camada vegetal | E9: m² | F9: 226960.93 | G9: 0.89 | H9: 1.09 | I9: 247387.41 | J9: 0.01141699909
A10: 1.5 | B10: 5914655 | C10: SICRO3 | D10: Carga, manobra e descarga de materiais diversos em caminhão carroceria de 15 t - carga e descarga manuais | E10: t | F10: 18724.28 | G10: 35.75 | H10: 44.1 | I10: 825740.74 | J10: 0.03810816918
A11: 1.6 | B11: 5914464 | C11: SICRO3 | D11: Transporte com caminhão carroceria de 15 t - rodovia em revestimento primário | E11: tkm | F11: 48308.63 | G11: 0.9 | H11: 1.11 | I11: 53622.57 | J11: 0.002474696803
A12: 1.7 | B12: 4413942 | C12: SICRO3 | D12: Espalhamento de material em bota-fora | E12: m³ | F12: 18724.28 | G12: 2.82 | H12: 3.47 | I12: 64973.25 | J12: 0.002998533902
A13: 1.8 | B13: 78472 | C13: Próprio | D13: SINAPI - 78472 - SERVICOS TOPOGRAFICOS PARA PAVIMENTACAO, INCLUSIVE NOTA DE SERVICOS, ACOMPANHAMENTO E GREIDE | E13: m² | F13: 87748.01 | G13: 0.56 | H13: 0.69 | I13: 60546.12 | J13: 0.002794220598
A14: 2 | D14: ADMINISTRAÇÃO LOCAL | I14: =I15 -> 1488815.38 | J14: 0.06515680211
A15: 2.1 | B15: 5 | C15: Próprio | D15: ADMINISTRAÇÃO DE OBRA | E15: MÊS | F15: 13 | G15: 92822.39 | H15: =TRUNC(G15*(1+$H$1),2) -> 114524.26 | I15: =TRUNC(H15*F15,2) -> 1488815.38 | J15: =I15/$H$146 -> 0.06870925175
A16: 3 | D16: MOBILIZAÇÃO E DESMOBIOLIZAÇÃO | I16: =I17 -> 21728.18 | J16: 0.0009532169607
A17: 3.1 | B17: 101 | C17: Próprio | D17: MOBILIZAÇÃO E DESMOBILIZAÇÃO DE PESSOAL, VEÍCULOS E EQUIPAMENTOS | E17: Unid | F17: 2 | G17: 8805.39 | H17: =TRUNC(G17*(1+$H$1),2) -> 10864.09 | I17: =TRUNC(H17*F17,2) -> 21728.18 | J17: =I17/$H$146 -> 0.001002761665
A18: 4 | D18: TERRAPLANAGEM | I18: =SUM(I19:I22) -> 734886.89 | J18: 0.03148678058
A19: 4.1 | B19: 5502138 | C19: SICRO3 | D19: Escavação, carga e transporte de material de 1ª categoria - DMT de 600 a 800 m - caminho de serviço em revestimento primário - com escavadeira e caminhão basculante de 14 m³ | E19: m³ | F19: 21723.89 | G19: 7.4 | H19: =TRUNC(G19*(1+$H$1),2) -> 9.13 | I19: =TRUNC(H19*F19,2) -> 198339.11 | J19: =I19/$H$146 -> 0.00915340614
A20: 4.2 | B20: 4016096 | C20: SICRO3 | D20: Escavação e carga de material de jazida com escavadeira hidráulica de 1,56 m³ | E20: m³ | F20: 26114.76 | G20: 1.76 | H20: 2.17 | I20: 56669.02 | J20: =I20/$H$146 -> 0.002615291334
A21: 4.3 | B21: 5915320 | C21: SICRO3 | D21: Transporte com caminhão basculante de 14 m³ - rodovia em revestimento primário | E21: tkm | F21: 111170.53 | G21: 0.76 | H21: 0.93 | I21: 103388.59 | J21: =I21/$H$146 -> 0.004771412731
A22: 4.4 | B22: 5502978 | C22: SICRO3 | D22: Compactação de aterros a 100% do Proctor normal | E22: m³ | F22: 47838.65 | G22: 6.38 | H22: 7.87 | I22: 376490.17 | J22: =I22/$H$146 -> 0.01737512805
A23: 5 | D23: DRENAGEM PROFUNDA | I23: =SUM(I24:I40) -> 2146937.6 | J23: 0.09471186512
A24: 5.1 | B24: 99063 | C24: SINAPI | D24: LOCAÇÃO DE REDE DE ÁGUA OU ESGOTO. AF_03/2024 | E24: M | F24: 821 | G24: 8.72 | H24: =TRUNC(G24*(1+$H$1),2) -> 10.75 | I24: =TRUNC(H24*F24,2) -> 8825.75 | J24: =I24/$H$146 -> 0.0004073108639
A25: 5.2 | B25: 4805757 | C25: SICRO3 | D25: Escavação mecânica de vala em material de 1ª categoria | E25: m³ | F25: 1987.61 | G25: 7.26 | H25: 8.95 | I25: 17789.1 | J25: 0.0008209720068
A26: 5.3 | B26: 2003767 | C26: SICRO3 | D26: Lastro de areia comercial - espalhamento manual | E26: m³ | F26: 264.69 | G26: 304.2 | H26: 375.32 | I26: 99343.45 | J26: 0.004584728374
A27: 5.4 | B27: 2003826 | C27: SICRO3 | D27: Tubo de concreto PA1 comercial para drenagem - D = 0,80 m - fornecimento e instalação | E27: m | F27: 155 | G27: 514.96 | H27: 635.35 | I27: 98479.25 | J27: 0.004544845299
A28: 5.5 | B28: 2003830 | C28: SICRO3 | D28: Tubo de concreto PA1 comercial para drenagem - D = 1,00 m - fornecimento e instalação | E28: m | F28: 563 | G28: 666.31 | H28: 822.09 | I28: 462836.67 | J28: 0.0213600435
A29: 5.6 | B29: 2003838 | C29: SICRO3 | D29: Tubo de concreto PA1 comercial para drenagem - D = 1,50 m - fornecimento e instalação | E29: m | F29: 84 | G29: 1593.22 | H29: 1965.71 | I29: 165119.64 | J29: 0.007620318185
A30: 5.7 | B30: 705388 | C30: SICRO3 | D30: Corpo de BTCC 3,00 x 3,00 m - moldado no local - altura do aterro 0,00 a 1,00 m - areia e brita comerciais | E30: m | F30: 19 | G30: 16723.56 | H30: 20633.52 | I30: 392036.88 | J30: 0.01809261312
A31: 5.8 | B31: 804101 | C31: SICRO3 | D31: Boca de BSTC D = 0,80 m - esconsidade 0° - areia e brita comerciais - alas retas | E31: un | F31: 6 | G31: 1969.84 | H31: 2430.38 | I31: 14582.28 | J31: 0.000672976355
A32: 5.9 | B32: 804393 | C32: SICRO3 | D32: Boca de BSTC D = 1,00 m - esconsidade 0° - areia e brita comerciais - alas esconsas | E32: un | F32: 30 | G32: 4393.99 | H32: 5421.3 | I32: 162639 | J32: 0.007505835946
A33: 5.10 | B33: 804417 | C33: SICRO3 | D33: Boca de BDTC D = 1,00 m - esconsidade 0° - areia e brita comerciais - alas esconsas | E33: un | F33: 6 | G33: 6173.15 | H33: 7616.43 | I33: 45698.58 | J33: 0.002109002419
A34: 5.11 | B34: 804457 | C34: SICRO3 | D34: Boca de BTTC D = 1,50 m - esconsidade 0° - areia e brita comerciais - alas esconsas | E34: un | F34: 2 | G34: 21159.37 | H34: 26106.43 | I34: 52212.86 | J34: 0.002409638287
A35: 5.12 | B35: 705427 | C35: SICRO3 | D35: Boca de BTCC 3,00 x 3,00 m - esconsidade 0° - areia e brita comerciais | E35: un | F35: 2 | G35: 67870.41 | H35: 83738.51 | I35: 167477.02 | J35: 0.00772911194
A36: 5.13 | B36: 2003682 | C36: SICRO3 | D36: Poço de visita - PVI 03 - areia e brita comerciais | E36: un | F36: 3 | G36: 3450.47 | H36: 4257.18 | I36: 12771.54 | J36: 0.0005894101907
A37: 5.14 | B37: 2003714 | C37: SICRO3 | D37: Chaminé dos poços de visita - CPV 01 - areia e brita comerciais | E37: un | F37: 3 | G37: 1820.57 | H37: 2246.21 | I37: 6738.63 | J37: 0.0003109896844
A38: 5.15 | B38: 2003919 | C38: SICRO3 | D38: Boca de saída para dreno longitudinal profundo - BSD 01 - tubo de PEAD - areia e brita comerciais | E38: un | F38: 24 | G38: 283.96 | H38: 350.34 | I38: 8408.16 | J38: 0.0003880389671
A39: 5.16 | B39: 2003573 | C39: SICRO3 | D39: Dreno longitudinal profundo para corte em solo - DPS 02 - tubo PEAD e areia comercial | E39: m | F39: 1341.15 | G39: 246.37 | H39: 303.97 | I39: 407669.36 | J39: 0.01881405651
A40: 5.17 | B40: 4815671 | C40: SICRO3 | D40: Reaterro e compactação com soquete vibratório | E40: m³ | F40: 971.6 | G40: 20.28 | H40: 25.02 | I40: 24309.43 | J40: 0.001121887084
A41: 6 | D41: PAVIMENTAÇÃO | I41: =I42+I44+I46 -> 11880859.89 | J41: 0.5715219214
A42: 6.1 | D42: SUBBASE | I42: =I43 -> 408820.89 | J42: 0.01758311515
A43: 6.1.1 | B43: 4011227 | C43: SICRO3 | D43: Sub-base de solo estabilizado granulometricamente sem mistura com material de jazida - 100% Proctor intermediário | E43: m³ | F43: 12937.37 | G43: 25.62 | H43: =TRUNC(G43*(1+$H$1),2) -> 31.6 | I43: =TRUNC(H43*F43,2) -> 408820.89 | J43: =I43/$H$146 -> 0.01886719994
A44: 6.2 | D44: BASE | I44: =I45 -> 3037696.82 | J44: 0.1318848177
A45: 6.2.1 | B45: 4011287 | C45: Próprio | D45: Base de solo melhorado com 30% de areia e 2% de cimento e mistura na pista com material de jazida. SICRO (4011287/6416153) | E45: m³ | F45: 12937.38 | G45: 190.31 | H45: =TRUNC(G45*(1+$H$1),2) -> 234.8 | I45: =TRUNC(H45*F45,2) -> 3037696.82 | J45: =I45/$H$146 -> 0.1401905692
A46: 6.3 | D46: CBUQ | I46: =SUM(I47:I55) -> 8434342.18 | J46: 0.3892472821
A47: 6.3.1 | B47: 4011352 | C47: SICRO3 | D47: Imprimação com emulsão asfáltica | E47: m² | F47: 87748.01 | G47: 0.74 | H47: =TRUNC(G47*(1+$H$1),2) -> 0.91 | I47: =TRUNC(H47*F47,2) -> 79850.68 | J47: 0.003685131514
A48: 6.3.2 | B48: EAI - 01.2026 | C48: Próprio | D48: EMULSÃO ASFÁLTICA PARA IMPRIMAÇÃO (EAI) | E48: KG | F48: 114072.41 | G48: =TRUNC(RESUMO_Transp!W35/1000,2) -> 4.38 | H48: =TRUNC(G48*(1+$H$2),2) -> 5.01 | I48: =TRUNC(H48*F48,2) -> 571502.77 | J48: 0.02637501481
A49: 6.3.3 | B49: 5914622 | C49: SICRO3 | D49: Transporte de material betuminoso com caminhão tanque distribuidor - rodovia pavimentada | E49: tkm | F49: 1254.09 | G49: 2.26 | H49: =TRUNC(G49*(1+$H$1),2) -> 2.78 | I49: =TRUNC(H49*F49,2) -> 3486.37 | J49: 0.0001608969636
A50: 6.3.4 | B50: 4011353 | C50: SICRO3 | D50: Pintura de ligação | E50: m² | F50: 87748.01 | G50: 0.51 | H50: 0.62 | I50: 54403.76 | J50: 0.002510748943
A51: 6.3.5 | B51: RR 2C - 01.2026 | C51: Próprio | D51: EMULSÕES ASFÁLTICAS RR-2C | E51: KG | F51: 39486.6 | G51: =TRUNC(RESUMO_Transp!W42/1000,2) -> 5.15 | H51: =TRUNC(G51*(1+$H$2),2) -> 5.9 | I51: =TRUNC(H51*F51,2) -> 232970.94 | J51: 0.01075167491
A52: 6.3.6 | B52: 5914622 | C52: SICRO3 | D52: Transporte de material betuminoso com caminhão tanque distribuidor - rodovia pavimentada | E52: tkm | F52: 470.29 | G52: 2.26 | H52: =TRUNC(G52*(1+$H$1),2) -> 2.78 | I52: =TRUNC(H52*F52,2) -> 1307.4 | J52: 6.033688055e-05
A53: 6.3.7 | B53: 4011463 | C53: SICRO3 | D53: Concreto asfáltico - faixa C-12,5 - areia e brita comerciais | E53: t | F53: 9890.93 | G53: 348.94 | H53: 430.52 | I53: 4258243.18 | J53: 0.1965191296
A54: 6.3.8 | B54: CAP 50/70 - 01.2026 | C54: Próprio | D54: CIMENTOS ASFÁLTICOS CAP-50-70 | E54: t | F54: 548.45 | G54: =RESUMO_Transp!W17 -> 5134.742343 | H54: =TRUNC(G54*(1+$H$2),2) -> 5883.9 | I54: =TRUNC(H54*F54,2) -> 3227024.95 | J54: 0.1489281161
A55: 6.3.9 | B55: 5915321 | C55: SICRO3 | D55: Transporte com caminhão basculante de 14 m³ - rodovia pavimentada | E55: tkm | F55: 6531.92 | G55: 0.69 | H55: =TRUNC(G55*(1+$H$1),2) -> 0.85 | I55: =TRUNC(H55*F55,2) -> 5552.13 | J55: 0.0002562323731
A56: 7 | D56: DEMOLIÇÃO | I56: =I57+I62 -> 1107890.72 | J56: 0.05112947073
A57: 7.1 | D57: DEMOLIÇÃO PAVIMENTO | I57: =SUM(I58:I61) -> 105616.57 | J57: 0.00487423464
A58: 7.1.1 | B58: 97636 | C58: SINAPI | D58: DEMOLIÇÃO PARCIAL DE PAVIMENTO ASFÁLTICO, DE FORMA MECANIZADA, SEM REAPROVEITAMENTO. AF_09/2023 | E58: m² | F58: 1952.16 | G58: 21.99493825 | H58: =TRUNC(G58*(1+$H$1),2) -> 27.13 | I58: =TRUNC(H58*F58,2) -> 52962.1 | J58: 0.002444215926
A59: 7.1.2 | B59: 5915433 | C59: SICRO3 | D59: Carga, manobra e descarga de material demolido em caminhão basculante de 6 m³ - carga manual e descarga livre | E59: t | F59: 244.02 | G59: 39.24 | H59: 48.41 | I59: 11813 | J59: 0.0005451732981
A60: 7.1.3 | B60: 5914344 | C60: SICRO3 | D60: Transporte com caminhão basculante de 6 m³ - rodovia pavimentada | E60: tkm | F60: 7906.25 | G60: 0.9 | H60: 1.11 | I60: 8775.93 | J60: 0.0004050116568
A61: 7.1.4 | B61: RES - 01 | C61: Próprio | D61: Resíduo Inerte - | E61: T | F61: 244.03 | G61: 114.67 | H61: =TRUNC(G61*(1+$H$2),2) -> 131.4 | I61: =TRUNC(H61*F61,2) -> 32065.54 | J61: 0.001479833759
A62: 7.2 | D62: DEMOLIÇÃO EDIFICAÇÃO | I62: =SUM(I63:I67) -> 1002274.15 | J62: 0.04625523609
A63: 7.2.1 | B63: 1600896 | C63: SICRO3 | D63: Demolição mecânica de alvenaria com escavadeira hidráulica | E63: m² | F63: 1778.4 | G63: 18.02 | H63: =TRUNC(G63*(1+$H$1),2) -> 22.23 | I63: =TRUNC(H63*F63,2) -> 39533.83 | J63: 0.001824497459
A64: 7.2.2 | B64: 1600895 | C64: SICRO3 | D64: Demolição manual de construções provisórias de madeira - sem reaproveitamento | E64: m² | F64: 1336.52 | G64: 16.21 | H64: 19.99 | I64: 26717.03 | J64: 0.001232998507
A65: 7.2.3 | B65: 5915433 | C65: SICRO3 | D65: Carga, manobra e descarga de material demolido em caminhão basculante de 6 m³ - carga manual e descarga livre | E65: t | F65: 4337.98 | G65: 39.24 | H65: 48.41 | I65: 210001.61 | J65: 0.009691633821
A66: 7.2.4 | B66: 5914344 | C66: SICRO3 | D66: Transporte com caminhão basculante de 6 m³ - rodovia pavimentada | E66: tkm | F66: 140550.55 | G66: 0.9 | H66: 1.11 | I66: 156011.11 | J66: 0.007199956944
A67: 7.2.5 | B67: RES - 01 | C67: Próprio | D67: Resíduo Inerte - | E67: T | F67: 4337.98 | G67: 114.67 | H67: =TRUNC(G67*(1+$H$2),2) -> 131.4 | I67: =TRUNC(H67*F67,2) -> 570010.57 | J67: 0.02630614936
A68: 8 | D68: DRENAGEM SUPERFICIAL | I68: =SUM(I69:I80) -> 320134.94 | J68: 0.01477431821
A69: 8.1 | B69: 2003377 | C69: SICRO3 | D69: Meio-fio de concreto - MFC 05 - areia e brita comerciais - fôrma de madeira | E69: m | F69: 1771.27 | G69: 73.51 | H69: =TRUNC(G69*(1+$H$1),2) -> 90.69 | I69: =TRUNC(H69*F69,2) -> 160636.47 | J69: 0.007413418619
A70: 8.2 | B70: 4016096 | C70: SICRO3 | D70: Escavação e carga de material de jazida com escavadeira hidráulica de 1,56 m³ | E70: m³ | F70: 265.69 | G70: 1.76 | H70: 2.17 | I70: 576.54 | J70: 2.66074844e-05
A71: 8.3 | B71: 5901638 | C71: SICRO3 | D71: Transporte com caminhão basculante com caçamba estanque com capacidade de 14 m³ - rodovia em revestimento primário | E71: tkm | F71: 891.12 | G71: 0.76 | H71: 0.93 | I71: 828.74 | J71: 3.824658588e-05
A72: 8.4 | B72: 4805754 | C72: SICRO3 | D72: Compactação manual com soquete vibratório | E72: m³ | F72: 295.59 | G72: 8.18 | H72: 10.09 | I72: 2982.5 | J72: 0.0001376432203
A73: 8.5 | B73: 2003177 | C73: SICRO3 | D73: Dissipador de energia - DED 02 A - areia, brita e pedra de mão comerciais | E73: un | F73: 23 | G73: 597.36 | H73: 737.02 | I73: 16951.46 | J73: 0.0007823146834
A74: 8.6 | B74: 2003115 | C74: SICRO3 | D74: Entrada para descida d'água - EDA 01 B - areia e brita comerciais | E74: un | F74: 13 | G74: 410.95 | H74: 507.03 | I74: 6591.39 | J74: 0.0003041945167
A75: 8.7 | B75: 2003103 | C75: SICRO3 | D75: Entrada para descida d'água - EDA 01 A - areia e brita comerciais | E75: un | F75: 23 | G75: 276.09 | H75: 340.63 | I75: 7834.49 | J75: 0.000361563934
A76: 8.8 | B76: 2003455 | C76: SICRO3 | D76: Dissipador de energia - DEB 240-316 - areia, brita e pedra de mão comerciais | E76: un | F76: 2 | G76: 2141.57 | H76: 2642.26 | I76: 5284.52 | J76: 0.0002438820958
A77: 8.9 | B77: 2003457 | C77: SICRO3 | D77: Dissipador de energia - DEB 300-366 - areia, brita e pedra de mão comerciais | E77: un | F77: 16 | G77: 2911.94 | H77: 3592.75 | I77: 57484 | J77: =I77/$H$146 -> 0.002652902892
A78: 8.10 | B78: 2003463 | C78: SICRO3 | D78: Dissipador de energia - DEB 300-511 - areia, brita e pedra de mão comerciais | E78: un | F78: 3 | G78: 3836.82 | H78: 4733.86 | I78: 14201.58 | J78: 0.0006554069421
A79: 8.11 | B79: 2003473 | C79: SICRO3 | D79: Dissipador de energia - DEB 450-956 - areia, brita e pedra de mão comerciais | E79: un | F79: 1 | G79: 9573.85 | H79: 11812.21 | I79: 11812.21 | J79: 0.0005451368394
A80: 8.12 | B80: 2003389 | C80: SICRO3 | D80: Descida d'água de aterros tipo rápido - DAR 40-20 - areia e brita comerciais | E80: m | F80: 91.61 | G80: 309.23 | H80: 381.52 | I80: 34951.04 | J80: 0.001613000402
A81: 9 | D81: SINALIZAÇÃO | I81: =SUM(I82:I85) -> 248653.13 | J81: 0.01147541242
A82: 9.1 | B82: 5213417 | C82: SICRO3 | D82: Placa em aço nº 16 galvanizado com película retrorrefletiva tipo I + III - confecção | E82: m² | F82: 91.93 | G82: 449.36 | H82: =TRUNC(G82*(1+$H$1),2) -> 554.42 | I82: =TRUNC(H82*F82,2) -> 50967.83 | J82: 0.0023521798
A83: 9.2 | B83: 5213351 | C83: SICRO3 | D83: Suporte polimérico ecológico maciço colapsível D = 6,5 cm para placa de sinalização - fornecimento e implantação | E83: un | F83: 132 | G83: 745.45 | H83: 919.73 | I83: 121404.36 | J83: 0.005602845623
A84: 9.3 | B84: 5213403 | C84: SICRO3 | D84: Pintura de faixa com tinta acrílica emulsionada em água - espessura de 0,5 mm | E84: m² | F84: 2512.36 | G84: 19.11 | H84: 23.57 | I84: 59216.32 | J84: 0.002732849951
A85: 9.4 | B85: 5213407 | C85: SICRO3 | D85: Pintura de setas e zebrados com tinta acrílica emulsionada em água - espessura de 0,5 mm | E85: m² | F85: 392.2 | G85: 35.27 | H85: 43.51 | I85: 17064.62 | J85: 0.0007875370495
A86: 10 | D86: ILUMINAÇÃO DO RAMAL DA TOTOIA | I86: =I87+I94+I127 -> 1777526.88 | J86: 0.0820333693
A87: 10.1 | D87: REALOCAÇÃO DOS POSTES | I87: =SUM(I88:I93) -> 105474.61 | J87: 0.004867683145
A88: 10.1.1 | B88: 22969 | C88: SBC | D88: REMOCAO POSTE CONCRETO ENGAT.CONC.10A13M C/E S/REAPROVEIT. | E88: UN | F88: 20 | G88: 956.48 | H88: =TRUNC(G88*(1+$H$1),2) -> 1180.1 | I88: =TRUNC(H88*F88,2) -> 23602 | J88: 0.001089238989
A89: 10.1.2 | B89: 100585 | C89: SINAPI | D89: ASSENTAMENTO DE POSTE DE CONCRETO COM COMPRIMENTO NOMINAL DE 12 M, CARGA NOMINAL MENOR OU IGUAL A 1000 DAN, ENGASTAMENTO SIMPLES COM 1,8 M DE SOLO (NÃO INCLUI FORNECIMENTO). AF_04/2025 | E89: UN | F89: 20 | G89: 819.1975542 | H89: 1010.72 | I89: 20214.4 | J89: 0.0009329002892
A90: 10.1.3 | B90: 41215 | C90: SINAPI | D90: POSTE DE CONCRETO ARMADO DE SECAO DUPLO T, EXTENSAO DE 13,00 M, RESISTENCIA DE 600 DAN, TIPO B | E90: UN | F90: 20 | G90: 2360.1 | H90: =TRUNC(G90*(1+$H$2),2) -> 2704.43 | I90: =TRUNC(H90*F90,2) -> 54088.6 | J90: 0.00249620422
A91: 10.1.4 | B91: 5915014 | C91: SICRO3 | D91: Transporte com caminhão carroceria com capacidade de 11,5 t e com guindauto com capacidade de elevação de 11,9 t - rodovia pavimentada | E91: tkm | F91: 963.2 | G91: 1.35 | H91: =TRUNC(G91*(1+$H$1),2) -> 1.66 | I91: =TRUNC(H91*F91,2) -> 1598.91 | J91: 7.379014967e-05
A92: 10.1.5 | B92: 5915014 | C92: SICRO3 | D92: Transporte com caminhão carroceria com capacidade de 11,5 t e com guindauto com capacidade de elevação de 11,9 t - rodovia pavimentada | E92: tkm | F92: 1063.8 | G92: 1.35 | H92: 1.66 | I92: 1765.9 | J92: 8.14967855e-05
A93: 10.1.6 | B93: RES - 01 | C93: Próprio | D93: Resíduo Inerte - | E93: T | F93: 32 | G93: 114.67 | H93: =TRUNC(G93*(1+$H$2),2) -> 131.4 | I93: =TRUNC(H93*F93,2) -> 4204.8 | J93: 0.0001940527117
A94: 10.2 | D94: SUBESTAÇÃO | I94: =SUM(I95:I126) -> 34787.8 | J94: 0.00160546683
A95: 10.2.1 | B95: 101553 | C95: SINAPI | D95: ALÇA PREFORMADA DE DISTRIBUIÇÃO, EM AÇO GALVANIZADO, AWG 1 - FORNECIMENTO E INSTALAÇÃO. AF_07/2020 | E95: UN | F95: 2 | G95: 14.30730901 | H95: =TRUNC(G95*(1+$H$1),2) -> 17.65 | I95: =TRUNC(H95*F95,2) -> 35.3 | J95: 1.629105005e-06
A96: 10.2.2 | B96: 78564 | C96: SBC | D96: ISOLADOR EM PORCELANA, TIPO PILAR, PARA TENSAO 15 KV GERMER | E96: UN | F96: 2 | G96: 200.24 | H96: 247.05 | I96: 494.1 | J96: 2.280285504e-05
A97: 10.2.3 | B97: 444 | C97: SINAPI | D97: PINO ROSCA EXTERNA, EM ACO GALVANIZADO, PARA ISOLADOR DE 15KV, DIAMETRO 25 MM, COMPRIMENTO *290* MM | E97: UN | F97: 2 | G97: 24 | H97: 29.61 | I97: =TRUNC(H97*F97,2) -> 59.22 | J97: 2.733019784e-06
A98: 10.2.4 | B98: 78630 | C98: SBC | D98: CRUZETA POLIMERICA 90x112,5x2400mm | E98: UN | F98: 2 | G98: 411.11 | H98: 507.22 | I98: =TRUNC(H98*F98,2) -> 1014.44 | J98: 4.681669352e-05
A99: 10.2.5 | B99: 433 | C99: SINAPI | D99: PARAFUSO M16 EM ACO GALVANIZADO, COMPRIMENTO = 350 MM, DIAMETRO = 16 MM, ROSCA MAQUINA, CABECA QUADRADA | E99: UN | F99: 4 | G99: 21.34 | H99: 26.32 | I99: =TRUNC(H99*F99,2) -> 105.28 | J99: 4.858701839e-06
A100: 10.2.6 | B100: 47762 | C100: SBC | D100: SELA EM ACO GALVANIZADO PARA CRUZETA | E100: UN | F100: 2 | G100: 11.26 | H100: 13.89 | I100: 27.78 | J100: 1.282054873e-06
A101: 10.2.7 | B101: 436 | C101: SINAPI | D101: PARAFUSO FRANCES M16 EM ACO GALVANIZADO, COMPRIMENTO = 150 MM, DIAMETRO = 16 MM, CABECA ABAULADA | E101: UN | F101: 10 | G101: 12.13 | H101: 14.96 | I101: 149.6 | J101: 6.9040824e-06
A102: 10.2.8 | B102: 379 | C102: SINAPI | D102: ARRUELA QUADRADA EM ACO GALVANIZADO, DIMENSAO = 38 MM, ESPESSURA = 3MM, DIAMETRO DO FURO= 18 MM | E102: UN | F102: 30 | G102: 1.43 | H102: 1.76 | I102: 52.8 | J102: 2.436734965e-06
A103: 10.2.9 | B103: 1592 | C103: ORSE | D103: Mão francesa plana 619mm | E103: un | F103: 4 | G103: 9.18 | H103: 11.32 | I103: 45.28 | J103: 2.089684833e-06
A104: 10.2.10 | B104: 430 | C104: SINAPI | D104: PARAFUSO M16 EM ACO GALVANIZADO, COMPRIMENTO = 125 MM, DIAMETRO = 16 MM, ROSCA MAQUINA, CABECA QUADRADA | E104: UN | F104: 4 | G104: 10.85 | H104: 13.38 | I104: 53.52 | J104: 2.469963169e-06
A105: 10.2.11 | B105: 442 | C105: SINAPI | D105: PARAFUSO FRANCES M16 EM ACO GALVANIZADO, COMPRIMENTO = 45 MM, DIAMETRO = 16 MM, CABECA ABAULADA | E105: UN | F105: 10 | G105: 7.17 | H105: 8.84 | I105: 88.4 | J105: 4.079685055e-06
A106: 10.2.12 | B106: 8640 | C106: SBC | D106: PARAFUSO CABECA QUADRADA 18 x 450mm | E106: UN | F106: 2 | G106: 11.9 | H106: 14.68 | I106: 29.36 | J106: 1.354972321e-06
A107: 10.2.13 | B107: 4341 | C107: SINAPI | D107: PORCA ZINCADA, QUADRADA, DIAMETRO 3/8" | E107: UN | F107: 20 | G107: 1.36 | H107: 1.67 | I107: 33.4 | J107: 1.541419466e-06
A108: 10.2.14 | B108: 65100 | C108: SBC | D108: PARA RAIO POLIMERICO DE DISTRIBUICAO 15KV 10KA C/ FERRAGEM | E108: UN | F108: 2 | G108: 745.04 | H108: 919.23 | I108: 1838.46 | J108: 8.484545006e-05
A109: 10.2.15 | B109: 78037 | C109: SBC | D109: CONECTOR PARALELO BRONZE 50mm PARA ATERRAMENTO | E109: UN | F109: 4 | G109: 37.62 | H109: 46.41 | I109: 185.64 | J109: =I109/$H$146 -> 8.567338615e-06
A110: 10.2.16 | B110: 63439 | C110: SBC | D110: CABO SINGELO 0,6/1KV 2AWG - 25mm2 | E110: M | F110: 10 | G110: 44.31 | H110: 54.66 | I110: 546.6 | J110: 2.522574492e-05 | K110: sbc10/25
A111: 10.2.17 | B111: 78209 | C111: SBC | D111: CABO COBRE NU CORDOALHA 7 FIOS 3/0 AWG - 70mm2 | E111: M | F111: 17 | G111: 64.95 | H111: 80.13 | I111: 1362.21 | J111: 6.286637758e-05
A112: 10.2.18 | B112: 78042 | C112: SBC | D112: CONECTOR PARAFUSO FENDIDO SPLIT BOLD 1"" CABO 16mm2 | E112: UN | F112: 2 | G112: 25.98 | H112: 32.05 | I112: 64.1 | J112: 2.958233167e-06
A113: 10.2.19 | B113: 59230 | C113: SBC | D113: HASTE ATERRAMENTO COBREADA 5/8"" x 2,40m NORMATIZADA INTELLI | E113: UN | F113: 3 | G113: 134.03469 | H113: 165.37 | I113: 496.11 | J113: 2.289561711e-05
A114: 10.2.20 | B114: 10433 | C114: ORSE | D114: Fornecimento e instalação de chave seccionadora tripolar 15kv - 400a, com porta fusivel HH incorporado | E114: un | F114: 2 | G114: 2507.65 | H114: 3093.93 | I114: 6187.86 | J114: 0.0002855714928
A115: 10.2.21 | B115: 65433 | C115: SBC | D115: TRANSFORMADOR TRIFASICO 13,2KV 45 KVA | E115: UN | F115: 1 | G115: 12700.02 | H115: 15669.28 | I115: 15669.28 | J115: 0.000723141713
A116: 10.2.22 | B116: 102110 | C116: SINAPI | D116: SUPORTE PARA TRANSFORMADOR EM POSTE DE CONCRETO DUPLO T - FORNECIMENTO E INSTALAÇÃO. AF_12/2020 | E116: UN | F116: 2 | G116: 164.5103641 | H116: 202.97 | I116: 405.94 | J116: 1.873424605e-05
A117: 10.2.23 | B117: 101542 | C117: SINAPI | D117: ARMAÇÃO SECUNDÁRIA, COM 1 ESTRIBO, SEM ISOLADOR - FORNECIMENTO E INSTALAÇÃO. AF_07/2020 | E117: UN | F117: 2 | G117: 32.1263096 | H117: 39.63 | I117: 79.26 | J117: 3.657871464e-06
A118: 10.2.24 | B118: 78655 | C118: SBC | D118: ISOLADOR PARA PARA-RAIOS TIPO ROLDANA | E118: UN | F118: 4 | G118: 21.77 | H118: 26.85 | I118: 107.4 | J118: 4.95654044e-06
A119: 10.2.25 | B119: 104751 | C119: SINAPI | D119: CONECTOR GRAMPO PARALELO METÁLICO, PARA SPDA, PARA CABOS DE 6 A 50 MM2 - FORNECIMENTO E INSTALAÇÃO. AF_08/2023 | E119: UN | F119: 8 | G119: 23.37772505 | H119: 28.84 | I119: 230.72 | J119: 1.064779339e-05
A120: 10.2.26 | B120: 78321 | C120: SBC | D120: CONDUTOR COBRE NU 70mm DE PARA-RAIOS COM SUPORTES | E120: M | F120: 15 | G120: 107.92 | H120: 133.15 | I120: 1997.25 | J120: 9.217365357e-05
A121: 10.2.27 | B121: 67010 | C121: SBC | D121: ELETRODUTO GALVANIZADO 3"" | E121: M | F121: 10 | G121: 124.02 | H121: 153.01 | I121: 1530.1 | J121: 7.061454867e-05
A122: 10.2.28 | B122: 2629 | C122: SINAPI | D122: CURVA 135 GRAUS PARA ELETRODUTO, EM ACO GALVANIZADO ELETROLITICO, COM ROSCA, DIAMETRO DE 80 MM (3") | E122: UN | F122: 1 | G122: 106.43 | H122: =TRUNC(G122*(1+$H$1),2) -> 131.31 | I122: =TRUNC(H122*F122,2) -> 131.31 | J122: 6.059993716e-06
A123: 10.2.29 | B123: 61452 | C123: SBC | D123: CAIXA DE MEDICAO TRIFASICA CM3P4 TP LIGHT TAF | E123: UN | F123: 1 | G123: 123.36 | H123: =TRUNC(G123*(1+$H$1),2) -> 152.2 | I123: =TRUNC(H123*F123,2) -> 152.2 | J123: =I123/$H$146 -> 7.024073137e-06 | K123: sbc 11/25
A124: 10.2.30 | B124: 88264 | C124: SINAPI | D124: ELETRICISTA COM ENCARGOS COMPLEMENTARES | E124: H | F124: 16 | G124: 28.7391064 | H124: 35.45 | I124: 567.2 | J124: 2.617644076e-05
A125: 10.2.31 | B125: 88266 | C125: SINAPI | D125: ELETROTÉCNICO COM ENCARGOS COMPLEMENTARES | E125: H | F125: 16 | G125: 32.1162028 | H125: 39.62 | I125: 633.92 | J125: 2.925558767e-05
A126: 10.2.32 | B126: 88316 | C126: SINAPI | D126: SERVENTE COM ENCARGOS COMPLEMENTARES | E126: H | F126: 16 | G126: 20.96602 | H126: 25.86 | I126: 413.76 | J126: 1.909514127e-05
A127: 10.3 | D127: ILUMINAÇÃO | I127: =SUM(I128:I142) -> 1637264.47 | J127: =I127/$H$146 -> 0.07556021933
A128: 10.3.1 | B128: 41208 | C128: SINAPI | D128: POSTE DE CONCRETO ARMADO DE SECAO DUPLO T, EXTENSAO DE 12,00 M, RESISTENCIA DE 150 DAN, TIPO D | E128: UN | F128: 158 | G128: 989.94 | H128: =TRUNC(G128*(1+$H$2),2) -> 1134.37 | I128: =TRUNC(H128*F128,2) -> 179230.46 | J128: =I128/$H$146 -> 0.008271536527
A129: 10.3.2 | B129: 100585 | C129: SINAPI | D129: ASSENTAMENTO DE POSTE DE CONCRETO COM COMPRIMENTO NOMINAL DE 12 M, CARGA NOMINAL MENOR OU IGUAL A 1000 DAN, ENGASTAMENTO SIMPLES COM 1,8 M DE SOLO (NÃO INCLUI FORNECIMENTO). AF_04/2025 | E129: UN | F129: 158 | G129: 819.1975542 | H129: =TRUNC(G129*(1+$H$1),2) -> 1010.72 | I129: =TRUNC(H129*F129,2) -> 159693.76 | J129: =I129/$H$146 -> 0.007369912285
A130: 10.3.3 | B130: 2560 | C130: ORSE | D130: Poste circular de concreto 12/ 200 para iluminação pública | E130: un | F130: 3 | G130: 2128.01 | H130: =TRUNC(G130*(1+$H$1),2) -> 2625.53 | I130: =TRUNC(H130*F130,2) -> 7876.59 | J130: =I130/$H$146 -> 0.0003635068609
A131: 10.3.4 | B131: 100585 | C131: SINAPI | D131: ASSENTAMENTO DE POSTE DE CONCRETO COM COMPRIMENTO NOMINAL DE 12 M, CARGA NOMINAL MENOR OU IGUAL A 1000 DAN, ENGASTAMENTO SIMPLES COM 1,8 M DE SOLO (NÃO INCLUI FORNECIMENTO). AF_04/2025 | E131: UN | F131: 3 | G131: 819.1975542 | H131: =TRUNC(G131*(1+$H$1),2) -> 1010.72 | I131: =TRUNC(H131*F131,2) -> 3032.16 | J131: =I131/$H$146 -> 0.0001399350434
A132: 10.3.5 | B132: 5915014 | C132: SICRO3 | D132: Transporte com caminhão carroceria com capacidade de 11,5 t e com guindauto com capacidade de elevação de 11,9 t - rodovia pavimentada | E132: tkm | F132: 4995.4 | G132: 1.35 | H132: 1.66 | I132: 8292.36 | J132: 0.0003826947642
A133: 10.3.6 | B133: 78655 | C133: SBC | D133: ISOLADOR PARA PARA-RAIOS TIPO ROLDANA | E133: UN | F133: 161 | G133: 21.77 | H133: 26.85 | I133: 4322.85 | J133: 0.0001995007527
A134: 10.3.7 | B134: 61873 | C134: SBC | D134: CONECTOR METALICO TIPO PARAFUSO FENDIDO (SPLIT BOLT)120mm | E134: UN | F134: 340 | G134: 52.75 | H134: 65.08 | I134: 22127.2 | J134: 0.001021176551 | K134: sbc 11/25
A135: 10.3.8 | B135: 60881 | C135: SBC | D135: SUPORTE LUMINARIA ALTURA VARIAVEL 0,80m | E135: UN | F135: 340 | G135: 76.64 | H135: 94.55 | I135: 32147 | J135: 0.001483593161
A136: 10.3.9 | B136: 101659 | C136: SINAPI | D136: LUMINÁRIA DE LED PARA ILUMINAÇÃO PÚBLICA, DE 181 W ATÉ 239 W - FORNECIMENTO E INSTALAÇÃO. AF_02/2025_PS | E136: UN | F136: 170 | G136: 671.2798279 | H136: 828.22 | I136: 140797.4 | J136: 0.006497839915
A137: 10.3.10 | B137: 101636 | C137: SINAPI | D137: BRAÇO PARA ILUMINAÇÃO PÚBLICA, EM TUBO DE AÇO GALVANIZADO, COMPRIMENTO DE 1,50 M, PARA FIXAÇÃO EM POSTE DE CONCRETO - FORNECIMENTO E INSTALAÇÃO. AF_02/2025_PS | E137: UN | F137: 170 | G137: 144.4942643 | H137: 178.27 | I137: 30305.9 | J137: 0.001398625874
A138: 10.3.11 | B138: 101632 | C138: SINAPI | D138: RELÉ FOTOELÉTRICO PARA COMANDO DE ILUMINAÇÃO EXTERNA 1000 W - FORNECIMENTO E INSTALAÇÃO. AF_02/2025 | E138: UN | F138: 170 | G138: 33.04801189 | H138: 40.77 | I138: 6930.9 | J138: 0.0003198629994
A139: 10.3.12 | B139: 96985 | C139: SINAPI | D139: HASTE DE ATERRAMENTO, DIÂMETRO 5/8", COM 3 METROS - FORNECIMENTO E INSTALAÇÃO. AF_08/2023 | E139: UN | F139: 32 | G139: 82.98696673 | H139: 102.38 | I139: 3276.16 | J139: 0.0001511957125
A140: 10.3.13 | B140: 98111 | C140: SINAPI | D140: CAIXA DE INSPEÇÃO PARA ATERRAMENTO, CIRCULAR, EM POLIETILENO, DIÂMETRO INTERNO = 0,3 M. AF_12/2020 | E140: UN | F140: 32 | G140: 60.98295407 | H140: 75.24 | I140: 2407.68 | J140: 0.0001111151144
A141: 10.3.14 | B141: 91930 | C141: SINAPI | D141: CABO DE COBRE FLEXÍVEL ISOLADO, 6 MM², ANTI-CHAMA 450/750 V, PARA CIRCUITOS TERMINAIS - FORNECIMENTO E INSTALAÇÃO. AF_03/2023 | E141: M | F141: 1405 | G141: 11.03837535 | H141: 13.61 | I141: 19122.05 | J141: 0.0008824880271
A142: 10.3.15 | B142: 63408 | C142: SBC | D142: CABO FLEX CLASS 4 OU 5 450/750V 120mm2 | E142: M | F142: 6150 | G142: 134.13 | H142: 165.48 | I142: 1017702 | J142: 0.04696723574
A143: 11 | D143: SERVIÇOS FINAIS | I143: =I144 -> 465028.6 | J143: =I143/$H$146 -> 0.02146120169
A144: 11.1 | B144: 3713612 | C144: SICRO3 | D144: Cerca com 4 fios de arame farpado e mourão de concreto de seção triangular de 11 cm a cada 2,5 m e esticador de 15 cm a cada 50 m - areia e brita comerciais | E144: m | F144: 11602.51 | G144: 32.49 | H144: =TRUNC(G144*(1+$H$1),2) -> 40.08 | I144: =TRUNC(H144*F144,2) -> 465028.6 | J144: =I144/$H$146 -> 0.02146120169
F146: Total Geral | H146: =SUM(I143+I127+I94+I87+I81+I68+I62+I57+I46+I44+I42+I23+I18+I16+I14+I5) -> 21668339.3

Sheet CPUs
C1: Composições Analíticas com Preço Unitário | E1: Bancos | G1: BDI SERVIÇO | H1: 0.2338 | I1: Encargos Sociais
C2: CONTRATAÇÃO DE OBRAS DE PAVIMENTAÇÃO EM CONCRETO BETUMINOSO USINADO A QUENTE (CBUQ) NO RAMAL DA TOTOIA, NO MUNICÍPIO DE SANTANA/AP, NA ÁREA DE ATUAÇÃO DA 11ª SUPERINTENDÊNCIA REGIONAL DA CODEVASF, NO ESTADO DO AMAPÁ | E2: SINAPI - 01/2026 - Amapá SBC - 03/2026 - Amapá SICRO3 - 10/2025 - Amapá ORSE - 12/2025 - Sergipe | G2: BDI MATERIAL | H2: 0.1459 | I2: Não Desonerado
A3: Composições Analíticas com Preço Unitário
A4: Composições Principais
A5: 1.1 | B5: Código | C5: Banco | D5: Descrição | E5: Tipo | G5: Und | H5: Quant. | I5: Valor Unit | J5: Total
A6: Composição | B6: 103689 | C6: SINAPI | D6: FORNECIMENTO E INSTALAÇÃO DE PLACA DE OBRA COM CHAPA GALVANIZADA E ESTRUTURA DE MADEIRA. AF_03/2022_PS | E6: Sinalização Vertical Viária | G6: m² | H6: 1 | I6: 462.44 | J6: 462.44
A7: Composição Auxiliar | B7: 88262 | C7: SINAPI | D7: CARPINTEIRO DE FORMAS COM ENCARGOS COMPLEMENTARES | E7: Livro SINAPI: Cálculos e Parâmetros | G7: H | H7: 0.3729 | I7: 25.9260328 | J7: 9.6678176
A8: Composição Auxiliar | B8: 102234 | C8: SINAPI | D8: PINTURA IMUNIZANTE PARA MADEIRA, 2 DEMÃOS. AF_01/2021 | E8: Pintura em Madeira | G8: m² | H8: 0.5 | I8: 24.73717002 | J8: 12.368585
A9: Composição Auxiliar | B9: 88316 | C9: SINAPI | D9: SERVENTE COM ENCARGOS COMPLEMENTARES | E9: Livro SINAPI: Cálculos e Parâmetros | G9: H | H9: 1.1186 | I9: 20.96602 | J9: 23.45259
A10: Insumo | B10: 00005065 | C10: SINAPI | D10: PREGO DE ACO POLIDO COM CABECA 10 X 10 (7/8 X 17) | E10: Material | G10: KG | H10: 0.0113 | I10: 31.81 | J10: 0.359453
A11: Insumo | B11: 00004813 | C11: SINAPI | D11: PLACA DE OBRA (PARA CONSTRUCAO CIVIL) EM CHAPA GALVANIZADA *N. 22*, ADESIVADA, DE *2,4 X 1,2* M (SEM POSTES PARA FIXACAO) | E11: Material | G11: m² | H11: 1 | I11: 400 | J11: 400
A12: Insumo | B12: 00004509 | C12: SINAPI | D12: SARRAFO *2,5 X 10* CM EM PINUS, MISTA OU EQUIVALENTE DA REGIAO - BRUTA | E12: Material | G12: M | H12: 3.2083 | I12: 5.1 | J12: 16.36233
A13: Insumo | B13: 00005069 | C13: SINAPI | D13: PREGO DE ACO POLIDO COM CABECA 17 X 27 (2 1/2 X 11) | E13: Material | G13: KG | H13: 0.0132 | I13: 17.04 | J13: 0.224928
A15: 1.3 | B15: Código | C15: Banco | D15: Descrição | E15: Tipo | G15: Und | H15: Quant. | I15: Valor Unit | J15: Total
A16: Composição | B16: 200 | C16: Próprio | D16: CANTEIRO DE OBRAS | E16: CANT - CANTEIRO DE OBRAS | G16: UN | H16: 1 | I16: 171160.86 | J16: 171160.86
A17: Composição Auxiliar | B17: 98525 | C17: SINAPI | D17: LIMPEZA MECANIZADA DE CAMADA VEGETAL, VEGETAÇÃO E PEQUENAS ÁRVORES (DIÂMETRO DE TRONCO MENOR QUE 0,20 M), COM TRATOR DE ESTEIRAS. AF_03/2024 | E17: Supressão Vegetal | G17: m² | H17: 360 | I17: 0.709706551 | J17: 255.4943584
A18: Composição Auxiliar | B18: 202 | C18: Próprio | D18: CANTEIRO - INSTALAÇÕES HIDROSANITÁRIA | E18: CANT - CANTEIRO DE OBRAS | G18: UN | H18: 1 | I18: 58928.72823 | J18: 58928.72823
A19: Composição Auxiliar | B19: 201 | C19: Próprio | D19: CANTEIRO - INSTALAÇÕES ELÉTRICA | E19: CANT - CANTEIRO DE OBRAS | G19: UN | H19: 1 | I19: 10807.28618 | J19: 10807.28618
A20: Composição Auxiliar | B20: 101489 | C20: SINAPI | D20: ENTRADA DE ENERGIA ELÉTRICA, AÉREA, MONOFÁSICA, COM CAIXA DE SOBREPOR, CABO DE 10 MM2 E DISJUNTOR DIN 50A (NÃO INCLUSO O POSTE DE CONCRETO). AF_12/2025 | E20: Instalações Elétricas - Rede de Distribuição | G20: UN | H20: 1 | I20: 1676.239841 | J20: 1676.239841
A21: Composição Auxiliar | B21: 88472 | C21: SINAPI | D21: CONTRAPISO COM ARGAMASSA AUTONIVELANTE, APLICADO SOBRE LAJE, NÃO ADERIDO, ESPESSURA 5CM. AF_07/2021 | E21: Contrapiso | G21: m² | H21: 69 | I21: 59.75843916 | J21: 4123.332302
A22: Composição Auxiliar | B22: 87794 | C22: SINAPI | D22: EMBOÇO OU MASSA ÚNICA EM ARGAMASSA TRAÇO 1:2:8, PREPARO MANUAL, APLICADA MANUALMENTE EM PANOS CEGOS DE FACHADA (SEM PRESENÇA DE VÃOS), ESPESSURA DE 25 MM. AF_09/2022 | E22: Massa Única Externa | G22: m² | H22: 68.48 | I22: 46.5510937 | J22: 3187.818897
A23: Composição Auxiliar | B23: 102487 | C23: SINAPI | D23: CONCRETO CICLÓPICO FCK = 15MPA, 30% PEDRA DE MÃO EM VOLUME REAL, INCLUSIVE LANÇAMENTO. AF_05/2021 | E23: Produção de Concreto | G23: m³ | H23: 7.91 | I23: 857.7516083 | J23: 6784.815222
A24: Composição Auxiliar | B24: 87408 | C24: SINAPI | D24: ARGAMASSA INDUSTRIALIZADA PARA REVESTIMENTOS, MISTURA E PROJEÇÃO DE 2 M³/H DE ARGAMASSA. AF_08/2019 | E24: Argamassas | G24: m³ | H24: 0.55 | I24: 2398.447701 | J24: 1319.146236
A25: Composição Auxiliar | B25: 87248 | C25: SINAPI | D25: REVESTIMENTO CERÂMICO PARA PISO COM PLACAS TIPO ESMALTADA DE DIMENSÕES 35X35 CM APLICADA EM AMBIENTES DE ÁREA MAIOR QUE 10 M2. AF_02/2023_PE | E25: Revestimentos Cerâmicos Internos | G25: m² | H25: 27.6 | I25: 64.47630424 | J25: 1779.545997
A26: Composição Auxiliar | B26: 98441 | C26: SINAPI | D26: PAREDE DE MADEIRA COMPENSADA PARA CONSTRUÇÃO TEMPORÁRIA EM CHAPA SIMPLES, EXTERNA, SEM VÃO. AF_03/2024 | E26: Instalações para Canteiros de Obras | G26: m² | H26: 324.74 | I26: 105.8364394 | J26: 34369.32534
A27: Composição Auxiliar | B27: 91341 | C27: SINAPI | D27: PORTA EM ALUMÍNIO DE ABRIR TIPO VENEZIANA COM GUARNIÇÃO, FIXAÇÃO COM PARAFUSOS - FORNECIMENTO E INSTALAÇÃO. AF_10/2025 | E27: Esquadrias - Portas | G27: m² | H27: 8.96 | I27: 671.2492066 | J27: 6014.392891
A28: Composição Auxiliar | B28: 94207 | C28: SINAPI | D28: TELHAMENTO COM TELHA ONDULADA DE FIBROCIMENTO E = 6 MM, COM RECOBRIMENTO LATERAL DE 1/4 DE ONDA PARA TELHADO COM INCLINAÇÃO MAIOR QUE 10°, COM ATÉ 2 ÁGUAS, INCLUSO IÇAMENTO. AF_07/2019 | E28: Telhamento para Cobertura | G28: m² | H28: 98.6 | I28: 43.57895566 | J28: 4296.885028
A29: Composição Auxiliar | B29: 99059 | C29: SINAPI | D29: LOCAÇÃO CONVENCIONAL DE OBRA, UTILIZANDO GABARITO DE TÁBUAS CORRIDAS PONTALETADAS A CADA 2,00M - 2 UTILIZAÇÕES. AF_03/2024 | E29: Locação de Obras | G29: M | H29: 76 | I29: 59.73998847 | J29: 4540.239124
A30: Composição Auxiliar | B30: 90823 | C30: SINAPI | D30: PORTA DE MADEIRA PARA PINTURA, SEMI-OCA (LEVE OU MÉDIA), 90X210CM, ESPESSURA DE 3,5CM, INCLUSO DOBRADIÇAS - FORNECIMENTO E INSTALAÇÃO. AF_10/2025 | E30: Esquadrias - Portas | G30: UN | H30: 4 | I30: 466.0315137 | J30: 1864.126055
A31: Composição Auxiliar | B31: 100701 | C31: SINAPI | D31: PORTA DE FERRO, DE ABRIR, TIPO GRADE COM CHAPA, COM GUARNIÇÕES. AF_10/2025 | E31: Esquadrias - Portas | G31: m² | H31: 11.89 | I31: 765.0957438 | J31: 9096.988394
A32: Composição Auxiliar | B32: 103328 | C32: SINAPI | D32: ALVENARIA DE VEDAÇÃO DE BLOCOS CERÂMICOS FURADOS NA HORIZONTAL DE 9X19X19 CM (ESPESSURA 9 CM) E ARGAMASSA DE ASSENTAMENTO COM PREPARO EM BETONEIRA. AF_12/2021 | E32: Alvenaria de Vedação | G32: m² | H32: 76.36 | I32: 98.59908631 | J32: 7529.026231
A33: Composição Auxiliar | B33: 94559 | C33: SINAPI | D33: JANELA DE AÇO TIPO BASCULANTE, PARA VIDROS (VIDROS NÃO INCLUSOS), BATENTE/ REQUADRO INCLUSO (6,5 A 14 CM), DIMENSÕES 60X60 CM, COM COM PINTURA ANTICORROSIVA, SEM ACABAMENTO, COM FERRAGENS, FIXAÇÃO COM ARGAMASSA, EXCLUSIVE CONTRAMARCO - FORNECIMENTO E INSTALAÇÃO. AF_11/2024 | E33: Esquadrias - Janelas | G33: m² | H33: 8.96 | I33: 684.1824435 | J33: 6130.274694
A34: Composição Auxiliar | B34: 95636 | C34: SINAPI | D34: KIT CAVALETE PARA MEDIÇÃO DE ÁGUA - ENTRADA PRINCIPAL, EM AÇO GALVANIZADO DN 25 MM (1") - FORNECIMENTO E INSTALAÇÃO (EXCLUSIVE HIDRÔMETRO). AF_03/2024 | E34: Sistemas de Medição | G34: UN | H34: 1 | I34: 398.353368 | J34: 398.353368
A35: Composição Auxiliar | B35: 95241 | C35: SINAPI | D35: LASTRO DE CONCRETO MAGRO, APLICADO EM PISOS, LAJES SOBRE SOLO OU RADIERS, ESPESSURA DE 5 CM. AF_01/2024 | E35: Lastro | G35: m² | H35: 69 | I35: 51.1933869 | J35: 3532.343696
A36: Composição Auxiliar | B36: 96486 | C36: SINAPI | D36: FORRO EM RÉGUAS DE PVC, LISO, PARA AMBIENTES COMERCIAIS, INCLUSIVE ESTRUTURA BIDIRECIONAL DE FIXAÇÃO. AF_08/2023_PS | E36: Forros | G36: m² | H36: 39.54 | I36: 86.932331 | J36: 3437.304368
A37: Insumo | B37: 00005059 | C37: SINAPI | D37: POSTE DE CONCRETO ARMADO DE SECAO CIRCULAR, EXTENSAO DE 9,00 M, RESISTENCIA DE 300 A 400 DAN, TIPO C-17 | E37: Material | G37: UN | H37: 1 | I37: 1089.19 | J37: 1089.19
A39: 1.4 | B39: Código | C39: Banco | D39: Descrição | E39: Tipo | G39: Und | H39: Quant. | I39: Valor Unit | J39: Total
A40: Composição | B40: 5502985 | C40: SICRO3 | D40: Limpeza mecanizada da camada vegetal | G40: m² | H40: 1 | I40: 0.89 | J40: 0.89
A41: A | B41: Código | C41: Banco | D41: Equipamentos | E41: Quantidade | F41: Utilização | H41: Custo Horário | J41: Custo Horário Total
F42: Operativa | G42: Improdutiva | H42: Operativa | I42: Improdutiva
A43: Insumo | B43: E9540 | C43: SICRO3 | D43: Trator sobre esteiras com lâmina - 127 kW | E43: 1 | F43: 1 | G43: 0 | H43: 459.3095 | I43: 189.9285 | J43: 459.3095
F44: Custo horário total de equipamentos | J44: 459.3095
A45: B | B45: Código | C45: Banco | D45: Mão de Obra | E45: Quantidade | F45: Custo Horário | J45: Custo Horário Total
A46: Insumo | B46: P9824 | C46: SICRO3 | D46: Servente | E46: 1 | I46: 23,241200000000000000000000000000 | J46: 23,241200000000000000000000000000
F47: Adicional de Mão de obra (%) | J47: 0
F48: Custo horário total de mão de obra | J48: 23.2412
F49: Custo horário total de execução | J49: 482.5507
F50: Produção de equipe | J50: 622.95
F51: Custo unitário de execução | J51: 0.7746
F52: Custo do FIC | J52: 0.1123
A53: F | B53: Momento de Transporte | C53: Banco | D53: Descrição | E53: Quantidade | F53: Distância Média de Transporte (DMT) | J53: Custo Horário
F54: LN | G54: RP | H54: P | I54: FE
F55: Custo do FIT | J55: 0
F56: Custo total de transporte | J56: 0
A58: 1.5 | B58: Código | C58: Banco | D58: Descrição | E58: Tipo | G58: Und | H58: Quant. | I58: Valor Unit | J58: Total
A59: Composição | B59: 5914655 | C59: SICRO3 | D59: Carga, manobra e descarga de materiais diversos em caminhão carroceria de 15 t - carga e descarga manuais | G59: t | H59: 1 | I59: 35.75 | J59: 35.75
A60: A | B60: Código | C60: Banco | D60: Equipamentos | E60: Quantidade | F60: Utilização | H60: Custo Horário | J60: Custo Horário Total
F61: Operativa | G61: Improdutiva | H61: Operativa | I61: Improdutiva
A62: Insumo | B62: E9592 | C62: SICRO3 | D62: Caminhão carroceria com capacidade de 15 t - 188 kW | E62: 1 | F62: 1 | G62: 0 | H62: 283.6247 | I62: 87.947 | J62: 283.6247
F63: Custo horário total de equipamentos | J63: 283.6247
A64: B | B64: Código | C64: Banco | D64: Mão de Obra | E64: Quantidade | F64: Custo Horário | J64: Custo Horário Total
A65: Insumo | B65: P9824 | C65: SICRO3 | D65: Servente | E65: 6 | I65: 23,241200000000000000000000000000 | J65: 139,447200000000000000000000000000
F66: Adicional de Mão de obra (%) | J66: 0
F67: Custo horário total de mão de obra | J67: 139.4472
F68: Custo horário total de execução | J68: 423.0719
F69: Produção de equipe | J69: 12.34
F70: Custo unitário de execução | J70: 34.2846
F71: Custo do FIC | J71: 1.4618
A72: F | B72: Momento de Transporte | C72: Banco | D72: Descrição | E72: Quantidade | F72: Distância Média de Transporte (DMT) | J72: Custo Horário
F73: LN | G73: RP | H73: P | I73: FE
F74: Custo do FIT | J74: 0
F75: Custo total de transporte | J75: 0
A77: 1.6 | B77: Código | C77: Banco | D77: Descrição | E77: Tipo | G77: Und | H77: Quant. | I77: Valor Unit | J77: Total
A78: Composição | B78: 5914464 | C78: SICRO3 | D78: Transporte com caminhão carroceria de 15 t - rodovia em revestimento primário | G78: tkm | H78: 1 | I78: 0.9 | J78: 0.9
A79: A | B79: Código | C79: Banco | D79: Equipamentos | E79: Quantidade | F79: Utilização | H79: Custo Horário | J79: Custo Horário Total
F80: Operativa | G80: Improdutiva | H80: Operativa | I80: Improdutiva
A81: Insumo | B81: E9592 | C81: SICRO3 | D81: Caminhão carroceria com capacidade de 15 t - 188 kW | E81: 1 | F81: 1 | G81: 0 | H81: 283.6247 | I81: 87.947 | J81: 283.6247
F82: Custo horário total de equipamentos | J82: 283.6247
F83: Custo horário total de execução | J83: 283.6247
F84: Produção de equipe | J84: 323.8
F85: Custo unitário de execução | J85: 0.8759
F86: Custo do FIC | J86: 0.0215
A87: F | B87: Momento de Transporte | C87: Banco | D87: Descrição | E87: Quantidade | F87: Distância Média de Transporte (DMT) | J87: Custo Horário
F88: LN | G88: RP | H88: P | I88: FE
F89: Custo do FIT | J89: 0
F90: Custo total de transporte | J90: 0
A92: 1.7 | B92: Código | C92: Banco | D92: Descrição | E92: Tipo | G92: Und | H92: Quant. | I92: Valor Unit | J92: Total
A93: Composição | B93: 4413942 | C93: SICRO3 | D93: Espalhamento de material em bota-fora | G93: m³ | H93: 1 | I93: 2.82 | J93: 2.82
A94: A | B94: Código | C94: Banco | D94: Equipamentos | E94: Quantidade | F94: Utilização | H94: Custo Horário | J94: Custo Horário Total
F95: Operativa | G95: Improdutiva | H95: Operativa | I95: Improdutiva
A96: Insumo | B96: E9540 | C96: SICRO3 | D96: Trator sobre esteiras com lâmina - 127 kW | E96: 1 | F96: 1 | G96: 0 | H96: 459.3095 | I96: 189.9285 | J96: 459.3095
F97: Custo horário total de equipamentos | J97: 459.3095
A98: B | B98: Código | C98: Banco | D98: Mão de Obra | E98: Quantidade | F98: Custo Horário | J98: Custo Horário Total
A99: Insumo | B99: P9824 | C99: SICRO3 | D99: Servente | E99: 1 | I99: 23,241200000000000000000000000000 | J99: 23,241200000000000000000000000000
F100: Adicional de Mão de obra (%) | J100: 0
F101: Custo horário total de mão de obra | J101: 23.2412
F102: Custo horário total de execução | J102: 482.5507
F103: Produção de equipe | J103: 176.81
F104: Custo unitário de execução | J104: 2.7292
F105: Custo do FIC | J105: 0.0883
A106: F | B106: Momento de Transporte | C106: Banco | D106: Descrição | E106: Quantidade | F106: Distância Média de Transporte (DMT) | J106: Custo Horário
F107: LN | G107: RP | H107: P | I107: FE
F108: Custo do FIT | J108: 0
F109: Custo total de transporte | J109: 0
A111: 1.8 | B111: Código | C111: Banco | D111: Descrição | E111: Tipo | G111: Und | H111: Quant. | I111: Valor Unit | J111: Total
A112: Composição | B112: 78472 | C112: Próprio | D112: SINAPI - 78472 - SERVICOS TOPOGRAFICOS PARA PAVIMENTACAO, INCLUSIVE NOTA DE SERVICOS, ACOMPANHAMENTO E GREIDE | E112: SEDI - SERVIÇOS DIVERSOS | G112: m² | H112: 1 | I112: 0.56 | J112: 0.56
A113: Composição Auxiliar | B113: 5914464 | C113: SICRO3 | D113: Transporte com caminhão carroceria de 15 t - rodovia em revestimento primário | G113: tkm | H113: 0.0010606 | I113: 0.9 | J113: 0.0009545
A114: Composição Auxiliar | B114: 5914479 | C114: SICRO3 | D114: Transporte com caminhão carroceria de 15 t - rodovia pavimentada | G114: tkm | H114: 0.000216 | I114: 0.73 | J114: 0.0001577
A115: Insumo | B115: M0289 | C115: SICRO3 | D115: Tábua - E = 2,5 cm e L = 15 cm | E115: Material | G115: m | H115: 0.002886 | I115: 8.7961 | J115: 0.0253855
A116: Insumo | B116: P9848 | C116: SICRO3 | D116: Desenhista - mensalista | E116: Mão de Obra | G116: mês | H116: 1.14e-05 | I116: 9649.2231 | J116: 0.1100011
A117: Insumo | B117: P9949 | C117: SICRO3 | D117: Topógrafo - mensalista | E117: Mão de Obra | G117: mês | H117: 1.42e-05 | I117: 7751.6586 | J117: 0.1100736
A118: Insumo | B118: P9950 | C118: SICRO3 | D118: Auxiliar de topografia - mensalista | E118: Mão de Obra | G118: mês | H118: 1.42e-05 | I118: 5328.5518 | J118: 0.0756654
A119: Insumo | B119: P9824 | C119: SICRO3 | D119: Servente | E119: Mão de Obra | G119: h | H119: 0.0075 | I119: 23.2412 | J119: 0.174309
A120: Insumo | B120: E9512 | C120: SICRO3 | D120: Veículo leve - 53 kW | E120: Equipamento | G120: H | H120: 0.001 | I120: 66.6288 | J120: 0.0666288
A122: 2.1 | B122: Código | C122: Banco | D122: Descrição | E122: Tipo | G122: Und | H122: Quant. | I122: Valor Unit | J122: Total
A123: Composição | B123: 0005 | C123: Próprio | D123: ADMINISTRAÇÃO DE OBRA | E123: SEOP - SERVIÇOS OPERACIONAIS | G123: MÊS | H123: 1 | I123: 92822.39 | J123: 92822.39
A124: Insumo | B124: P9948 | C124: SICRO3 | D124: Motorista de veículo leve - mensalista | E124: Mão de Obra | G124: mês | H124: 1 | I124: 5502.086 | J124: 5502.086
A125: Insumo | B125: P9840 | C125: SICRO3 | D125: Encarregado geral - mensalista | E125: Mão de Obra | G125: mês | H125: 1 | I125: 9257.9051 | J125: 9257.9051
A126: Insumo | B126: P9827 | C126: SICRO3 | D126: Vigia - mensalista | E126: Mão de Obra | G126: mês | H126: 2 | I126: 5313.6609 | J126: 10627.3218
A127: Insumo | B127: P9842 | C127: SICRO3 | D127: Faxineiro - mensalista | E127: Mão de Obra | G127: mês | H127: 1 | I127: 4508.1931 | J127: 4508.1931
A128: Insumo | B128: P9897 | C128: SICRO3 | D128: Técnico de meio ambiente - mensalista | E128: Mão de Obra | G128: mês | H128: 1 | I128: 8262.8889 | J128: 8262.8889
A129: Insumo | B129: P9819 | C129: SICRO3 | D129: Engenheiro supervisor - mensalista | E129: Mão de Obra | G129: mês | H129: 1 | I129: 25766.1157 | J129: 25766.1157
A130: Insumo | B130: P9878 | C130: SICRO3 | D130: Secretária | E130: Mão de Obra | G130: mês | H130: 1 | I130: 6990.7167 | J130: 6990.7167
A131: Insumo | B131: P9806 | C131: SICRO3 | D131: Auxiliar administrativo - mensalista | E131: Mão de Obra | G131: mês | H131: 2 | I131: 5491.4074 | J131: 10982.8148
A132: Insumo | B132: P9903 | C132: SICRO3 | D132: Auxiliar técnico - mensalista | E132: Mão de Obra | G132: mês | H132: 2 | I132: 5462.1756 | J132: 10924.3512
A134: 3.1 | B134: Código | C134: Banco | D134: Descrição | E134: Tipo | G134: Und | H134: Quant. | I134: Valor Unit | J134: Total
A135: Composição | B135: 101 | C135: Próprio | D135: MOBILIZAÇÃO E DESMOBILIZAÇÃO DE PESSOAL, VEÍCULOS E EQUIPAMENTOS | E135: SEDI - SERVIÇOS DIVERSOS | G135: Unid | H135: 1 | I135: 8805.39 | J135: 8805.39
A136: Insumo | B136: MOB/DESM - 01 | C136: Próprio | D136: MOBILIZAÇÃO E DESMOBILIZAÇÃO DE PESSOAL, VEÍCULOS E EQUIPAMENTOS PESADOS | E136: Material | G136: Und. | H136: 1 | I136: 8805.39 | J136: 8805.39
A138: 4.1 | B138: Código | C138: Banco | D138: Descrição | E138: Tipo | G138: Und | H138: Quant. | I138: Valor Unit | J138: Total
A139: Composição | B139: 5502138 | C139: SICRO3 | D139: Escavação, carga e transporte de material de 1ª categoria - DMT de 600 a 800 m - caminho de serviço em revestimento primário - com escavadeira e caminhão basculante de 14 m³ | G139: m³ | H139: 1 | I139: 7.4 | J139: 7.4
A140: A | B140: Código | C140: Banco | D140: Equipamentos | E140: Quantidade | F140: Utilização | H140: Custo Horário | J140: Custo Horário Total
F141: Operativa | G141: Improdutiva | H141: Operativa | I141: Improdutiva
A142: Insumo | B142: E9515 | C142: SICRO3 | D142: Escavadeira hidráulica sobre esteiras com caçamba com capacidade de 1,56 m³ - 118 kW | E142: 1 | F142: 1 | G142: 0 | H142: 336.008 | I142: 155.6016 | J142: 336.008
A143: Insumo | B143: E9667 | C143: SICRO3 | D143: Caminhão basculante com capacidade de 14 m³ - 210 kW | E143: 4 | F143: 0.88 | G143: 0.12 | H143: 324.7219 | I143: 100.0942 | J143: 1191.0663
F144: Custo horário total de equipamentos | J144: 1527.0743
A145: B | B145: Código | C145: Banco | D145: Mão de Obra | E145: Quantidade | F145: Custo Horário | J145: Custo Horário Total
A146: Insumo | B146: P9824 | C146: SICRO3 | D146: Servente | E146: 1 | I146: 23,241200000000000000000000000000 | J146: 23,241200000000000000000000000000
F147: Adicional de Mão de obra (%) | J147: 0
F148: Custo horário total de mão de obra | J148: 23.2412
F149: Custo horário total de execução | J149: 1550.3155
F150: Produção de equipe | J150: 230.19
F151: Custo unitário de execução | J151: 6.7349
F152: Custo do FIC | J152: 0.6608
A153: F | B153: Momento de Transporte | C153: Banco | D153: Descrição | E153: Quantidade | F153: Distância Média de Transporte (DMT) | J153: Custo Horário
F154: LN | G154: RP | H154: P | I154: FE
F155: Custo do FIT | J155: 0
F156: Custo total de transporte | J156: 0
A158: 4.2 | B158: Código | C158: Banco | D158: Descrição | E158: Tipo | G158: Und | H158: Quant. | I158: Valor Unit | J158: Total
A159: Composição | B159: 4016096 | C159: SICRO3 | D159: Escavação e carga de material de jazida com escavadeira hidráulica de 1,56 m³ | G159: m³ | H159: 1 | I159: 1.76 | J159: 1.76
A160: A | B160: Código | C160: Banco | D160: Equipamentos | E160: Quantidade | F160: Utilização | H160: Custo Horário | J160: Custo Horário Total
F161: Operativa | G161: Improdutiva | H161: Operativa | I161: Improdutiva
A162: Insumo | B162: E9515 | C162: SICRO3 | D162: Escavadeira hidráulica sobre esteiras com caçamba com capacidade de 1,56 m³ - 118 kW | E162: 1 | F162: 1 | G162: 0 | H162: 336.008 | I162: 155.6016 | J162: 336.008
F163: Custo horário total de equipamentos | J163: 336.008
A164: B | B164: Código | C164: Banco | D164: Mão de Obra | E164: Quantidade | F164: Custo Horário | J164: Custo Horário Total
A165: Insumo | B165: P9824 | C165: SICRO3 | D165: Servente | E165: 1 | I165: 23,241200000000000000000000000000 | J165: 23,241200000000000000000000000000
F166: Adicional de Mão de obra (%) | J166: 0
F167: Custo horário total de mão de obra | J167: 23.2412
F168: Custo horário total de execução | J168: 359.2492
F169: Produção de equipe | J169: 230.19
F170: Custo unitário de execução | J170: 1.5607
F171: Custo do FIC | J171: 0.204
A172: F | B172: Momento de Transporte | C172: Banco | D172: Descrição | E172: Quantidade | F172: Distância Média de Transporte (DMT) | J172: Custo Horário
F173: LN | G173: RP | H173: P | I173: FE
F174: Custo do FIT | J174: 0
F175: Custo total de transporte | J175: 0
A177: 4.3 | B177: Código | C177: Banco | D177: Descrição | E177: Tipo | G177: Und | H177: Quant. | I177: Valor Unit | J177: Total
A178: Composição | B178: 5915320 | C178: SICRO3 | D178: Transporte com caminhão basculante de 14 m³ - rodovia em revestimento primário | G178: tkm | H178: 1 | I178: 0.76 | J178: 0.76
A179: A | B179: Código | C179: Banco | D179: Equipamentos | E179: Quantidade | F179: Utilização | H179: Custo Horário | J179: Custo Horário Total
F180: Operativa | G180: Improdutiva | H180: Operativa | I180: Improdutiva
A181: Insumo | B181: E9667 | C181: SICRO3 | D181: Caminhão basculante com capacidade de 14 m³ - 210 kW | E181: 1 | F181: 1 | G181: 0 | H181: 324.7219 | I181: 100.0942 | J181: 324.7219
F182: Custo horário total de equipamentos | J182: 324.7219
F183: Custo horário total de execução | J183: 324.7219
F184: Produção de equipe | J184: 435.75
F185: Custo unitário de execução | J185: 0.7452
F186: Custo do FIC | J186: 0.0182
A187: F | B187: Momento de Transporte | C187: Banco | D187: Descrição | E187: Quantidade | F187: Distância Média de Transporte (DMT) | J187: Custo Horário
F188: LN | G188: RP | H188: P | I188: FE
F189: Custo do FIT | J189: 0
F190: Custo total de transporte | J190: 0
A192: 4.4 | B192: Código | C192: Banco | D192: Descrição | E192: Tipo | G192: Und | H192: Quant. | I192: Valor Unit | J192: Total
A193: Composição | B193: 5502978 | C193: SICRO3 | D193: Compactação de aterros a 100% do Proctor normal | G193: m³ | H193: 1 | I193: 6.38 | J193: 6.38
A194: A | B194: Código | C194: Banco | D194: Equipamentos | E194: Quantidade | F194: Utilização | H194: Custo Horário | J194: Custo Horário Total
F195: Operativa | G195: Improdutiva | H195: Operativa | I195: Improdutiva
A196: Insumo | B196: E9571 | C196: SICRO3 | D196: Caminhão tanque com capacidade de 10.000 l - 188 kW | E196: 1 | F196: 0.9 | G196: 0.1 | H196: 361.1409 | I196: 100.5492 | J196: 335.0817
A197: Insumo | B197: E9518 | C197: SICRO3 | D197: Grade de 24 discos rebocável de D = 60 cm (24") | E197: 1 | F197: 0.52 | G197: 0.48 | H197: 5.1009 | I197: 3.5522 | J197: 4.3575
A198: Insumo | B198: E9685 | C198: SICRO3 | D198: Rolo compactador pé de carneiro vibratório autopropelido por pneus de 11,6 t - 82 kW | E198: 1 | F198: 1 | G198: 0 | H198: 247.6412 | I198: 113.9143 | J198: 247.6412
A199: Insumo | B199: E9577 | C199: SICRO3 | D199: Trator agrícola sobre pneus - 77 kW | E199: 1 | F199: 0.52 | G199: 0.48 | H199: 182.9493 | I199: 75.2569 | J199: 131.2569
A200: Insumo | B200: E9524 | C200: SICRO3 | D200: Motoniveladora - 93 kW | E200: 1 | F200: 0.29 | G200: 0.71 | H200: 344.679 | I200: 151.9249 | J200: 207.8236
F201: Custo horário total de equipamentos | J201: 926.1609
A202: B | B202: Código | C202: Banco | D202: Mão de Obra | E202: Quantidade | F202: Custo Horário | J202: Custo Horário Total
A203: Insumo | B203: P9824 | C203: SICRO3 | D203: Servente | E203: 1 | I203: 23,241200000000000000000000000000 | J203: 23,241200000000000000000000000000
F204: Adicional de Mão de obra (%) | J204: 0
F205: Custo horário total de mão de obra | J205: 23.2412
F206: Custo horário total de execução | J206: 949.4021
F207: Produção de equipe | J207: 168.2
F208: Custo unitário de execução | J208: 5.6445
F209: Custo do FIC | J209: 0.7314
A210: F | B210: Momento de Transporte | C210: Banco | D210: Descrição | E210: Quantidade | F210: Distância Média de Transporte (DMT) | J210: Custo Horário
F211: LN | G211: RP | H211: P | I211: FE
F212: Custo do FIT | J212: 0
... 4027 more rows

Sheet Memória de Cálculo
D1: Obra | E1: Bancos | G1: B.D.I. | H1: Encargos Sociais
D2: ='Orçamento Sintético'!D2 -> CONTRATAÇÃO DE OBRAS DE PAVIMENTAÇÃO EM CONCRETO BETUMINOSO USINADO A QUENTE (CBUQ) NO RAMAL DA TOTOIA, NO MUNICÍPIO DE SANTANA/AP, NA ÁREA DE ATUAÇÃO DA 11ª SUPERINTENDÊNCIA REGIONAL DA CODEVASF, NO ESTADO DO AMAPÁ | E2: ='Orçamento Sintético'!E2 -> SINAPI - 01/2026 - Amapá SBC - 03/2026 - Amapá SICRO3 - 10/2025 - Amapá ORSE - 12/2025 - Sergipe | G2: 0.2338 | H2: Não Desonerado
S3: = | T3: ) | U3: ( | V3: x | W3: + | X3: - | Y3: /
A4: Memória de Cálculo | I4: RAMAL DA TOTOIA
A5: Item | B5: Código | C5: Banco | D5: Descrição | E5: Und | F5: Quant. | H5: Memória de Cálculo | I5: AP 010-020 | J5: TRECHO 01 | K5: TRECHO 02 | L5: TRECHO 03 | M5: TRECHO 04 | N5: RAMAL A | O5: RAMAL B | V5: Confirmação
A6: 1 | D6: SERVIÇOS PREMILIMANRES
A7: 1.1 | B7: 103689 | C7: SINAPI | D7: FORNECIMENTO E INSTALAÇÃO DE PLACA DE OBRA COM CHAPA GALVANIZADA E ESTRUTURA DE MADEIRA. AF_03/2022_PS | E7: m² | F7: =ROUND(SUM(I7:O7),2) -> 5.76 | G7: Quantidade total de Placa de Obras => 2 placas com de 2,4 m x 1,2m cada | H7: =G7&$S$3&" "&I7&$S$3&" "&F7 -> Quantidade total de Placa de Obras => 2 placas com de 2,4 m x 1,2m cada = 5,76 = 5,76 | I7: =2*2.4*1.2 -> 5.76 | J7: 0 | K7: 0 | L7: 0 | M7: 0 | O7: 0 | P7: 5.76 | Q7: =P7-F7 -> 0 | R7: =#REF! ->  | V7: =F7-#REF! -> 
A8: 1.2 | B8: 42675 | C8: SBC | D8: ALUGUEL MENSAL DE BANHEIRO QUIMICO PADRAO STANDARD COM 3 LIMPEZAS SEMANAIS | E8: MES | F8: =ROUND(SUM(I8:O8),2) -> 26 | G8: Quantidade de Banheiros Quimicos x Quantidade de Meses => 2 x 13 | H8: =G8&$S$3&" "&I8&$S$3&" "&F8 -> Quantidade de Banheiros Quimicos x Quantidade de Meses => 2 x 13 = 26 = 26 | I8: 26 | P8: 26 | Q8: 0 | R8: =#REF! ->  | V8: =F8-#REF! -> 
A9: 1.3 | B9: 200 | C9: Próprio | D9: CANTEIRO DE OBRAS | E9: UN | F9: =ROUND(SUM(I9:O9),2) -> 1 | G9: Canteiro de Obra de pequeno porte (UND.) | H9: =G9&$S$3&" "&I9&$S$3&" "&F9 -> Canteiro de Obra de pequeno porte (UND.) = 1 = 1 | I9: 1 | J9: 0 | K9: 0 | L9: 0 | M9: 0 | O9: 0 | P9: 1 | Q9: 0 | V9: =F9-#REF! -> 
A10: 1.4 | B10: 5502985 | C10: SICRO3 | D10: Limpeza mecanizada da camada vegetal | E10: UND. | F10: =ROUND(SUM(I10:O10),2) -> 226960.93 | G10: Área de Supressão Vegetal | H10: =G10&$S$3&$U$3&" "&I10&$W$3&J10&$W$3&L10&$W$3&M10&$W$3&N10&$W$3&O10&$W$3&K10&$T$3&$S$3&" "&F10 -> Área de Supressão Vegetal = ( 3287,3+133556,38+14130,01+26612,81+0+0+49374,43) = 226960,93 | I10: =ROUND((VLOOKUP(I$5,'Consolidado Pavimentação'!$A$15:$AK$23,12,0)),2) -> 3287.3 | J10: =ROUND((VLOOKUP(J$5,'Consolidado Pavimentação'!$A$15:$AK$23,12,0)),2) -> 133556.38 | K10: =ROUND((VLOOKUP(K$5,'Consolidado Pavimentação'!$A$15:$AK$23,12,0)),2) -> 49374.43 | L10: =ROUND((VLOOKUP(L$5,'Consolidado Pavimentação'!$A$15:$AK$23,12,0)),2) -> 14130.01 | M10: =ROUND((VLOOKUP(M$5,'Consolidado Pavimentação'!$A$15:$AK$23,12,0)),2) -> 26612.81 | N10: =ROUND((VLOOKUP(N$5,'Consolidado Pavimentação'!$A$15:$AK$23,12,0)),2) -> 0 | O10: =ROUND((VLOOKUP(O$5,'Consolidado Pavimentação'!$A$15:$AK$23,12,0)),2) -> 0 | P10: ='Consolidado Pavimentação'!L23 -> 226960.93 | Q10: 0 | R10: =#REF! ->  | V10: =F10-#REF! -> 
A11: 1.5 | B11: 5914655 | C11: SICRO3 | D11: Carga, manobra e descarga de materiais diversos em caminhão carroceria de 15 t - carga e descarga manuais | E11: t | F11: =ROUND(SUM(I10:O10)*0.05*1.65,2) -> 18724.28 | G11: Volume total = Área total x 0,05 (altura) x 1,65 ton/m³(Densidade de solos granulares ) | H11: =G11&$S$3&$U$3&" "&I11&$W$3&J11&$W$3&L11&$W$3&M11&$W$3&N11&$W$3&O11&$W$3&K11&$T$3&$V$3&0.05&$V$3&1.65&$S$3&" "&F11 -> Volume total = Área total x 0,05 (altura) x 1,65 ton/m³(Densidade de solos granulares ) = ( 3287,3+133556,38+14130,01+26612,81+0+0+49374,43) x 0,05 x 1,65 = 18724,28 | I11: =I10 -> 3287.3 | J11: 133556.38 | K11: 49374.43 | L11: 14130.01 | M11: 26612.81 | N11: 0 | O11: 0 | P11: =P10*1.65*0.05 -> 18724.27672 | Q11: -0.003274999999 | R11: =#REF! ->  | V11: =F11-#REF! -> 
A12: 1.6 | B12: 5914464 | C12: SICRO3 | D12: Transporte com caminhão carroceria de 15 t - rodovia em revestimento primário | E12: tkm | F12: =ROUND(SUM(I12:O12)*0.05*1.65*'DMT ADOTADAS '!$J$14,2) -> 48308.63 | G12: Transporte com Caminhão = Volume total x DMT | H12: =G12&$S$3&$U$3&" "&I13&$W$3&J12&$W$3&L12&$W$3&M12&$W$3&N12&$W$3&O12&$W$3&K12&$T$3&$V$3&'DMT ADOTADAS '!$J$14&$S$3&" "&F12 -> Transporte com Caminhão = Volume total x DMT = ( 3287,3+133556,38+14130,01+26612,81+0+0+49374,43) x 2,58 = 48308,63 | I12: 3287.3 | J12: 133556.38 | K12: 49374.43 | L12: 14130.01 | M12: 26612.81 | N12: 0 | O12: 0 | P12: =P11*'DMT ADOTADAS '!J14 -> 48308.63395 | Q12: 0.003950500002 | R12: =#REF! ->  | V12: =F12-#REF! -> 
A13: 1.7 | B13: 4413942 | C13: SICRO3 | D13: Espalhamento de material em bota-fora | E13: m³ | F13: =ROUND(SUM(I12:O12)*0.05*1.65,2) -> 18724.28 | G13: Volume total = Área total x 0,05 (altura) x 1,65 ton/m³(Densidade de solos granulares ) | H13: =G13&$S$3&$U$3&" "&I13&$W$3&J13&$W$3&L13&$W$3&M13&$W$3&N13&$W$3&O13&$W$3&K13&$T$3&$V$3&0.05&$V$3&1.65&$S$3&" "&F13 -> Volume total = Área total x 0,05 (altura) x 1,65 ton/m³(Densidade de solos granulares ) = ( 3287,3+133556,38+14130,01+26612,81+0+0+49374,43) x 0,05 x 1,65 = 18724,28 | I13: 3287.3 | J13: 133556.38 | K13: 49374.43 | L13: 14130.01 | M13: 26612.81 | N13: 0 | O13: 0 | P13: =P11 -> 18724.27672 | Q13: -0.003274999999 | R13: =#REF! ->  | V13: =F13-#REF! -> 
A14: 1.8 | B14: 78472 | C14: Próprio | D14: SINAPI - 78472 - SERVICOS TOPOGRAFICOS PARA PAVIMENTACAO, INCLUSIVE NOTA DE SERVICOS, ACOMPANHAMENTO E GREIDE | E14: m² | F14: =ROUND(SUM(I14:O14),2) -> 87748.01 | G14: Área total construída = (Área pavimentada + Área de Acostamento) | H14: =G14&$S$3&$U$3&" "&I14&$W$3&J14&$W$3&L14&$W$3&M14&$W$3&N14&$W$3&O14&$W$3&K14&$T$3&$S$3&" "&F14 -> Área total construída = (Área pavimentada + Área de Acostamento) = ( 4471,4+50380,07+6747,67+5476,27+689,4+712,4+19270,8) = 87748,01 | I14: =ROUND((VLOOKUP(I$5,'Consolidado Pavimentação'!$A$15:$AK$23,2,0))+(VLOOKUP(I$5,'Consolidado Pavimentação'!$A$15:$AK$23,3,0)),2) -> 4471.4 | J14: =ROUND((VLOOKUP(J$5,'Consolidado Pavimentação'!$A$15:$AK$23,2,0))+(VLOOKUP(J$5,'Consolidado Pavimentação'!$A$15:$AK$23,3,0)),2) -> 50380.07 | K14: =ROUND((VLOOKUP(K$5,'Consolidado Pavimentação'!$A$15:$AK$23,2,0))+(VLOOKUP(K$5,'Consolidado Pavimentação'!$A$15:$AK$23,3,0)),2) -> 19270.8 | L14: =ROUND((VLOOKUP(L$5,'Consolidado Pavimentação'!$A$15:$AK$23,2,0))+(VLOOKUP(L$5,'Consolidado Pavimentação'!$A$15:$AK$23,3,0)),2) -> 6747.67 | M14: =ROUND((VLOOKUP(M$5,'Consolidado Pavimentação'!$A$15:$AK$23,2,0))+(VLOOKUP(M$5,'Consolidado Pavimentação'!$A$15:$AK$23,3,0)),2) -> 5476.27 | N14: =ROUND((VLOOKUP(N$5,'Consolidado Pavimentação'!$A$15:$AK$23,2,0))+(VLOOKUP(N$5,'Consolidado Pavimentação'!$A$15:$AK$23,3,0)),2) -> 689.4 | O14: =ROUND((VLOOKUP(O$5,'Consolidado Pavimentação'!$A$15:$AK$23,2,0))+(VLOOKUP(O$5,'Consolidado Pavimentação'!$A$15:$AK$23,3,0)),2) -> 712.4 | P14: ='Consolidado Pavimentação'!B23+'Consolidado Pavimentação'!C23 -> 87748 | Q14: -0.01000000001 | R14: =#REF! ->  | V14: =F14-#REF! -> 
A15: 2 | D15: ADMINISTRAÇÃO LOCAL
A16: 2.1 | B16: 5 | C16: Próprio | D16: ADMINISTRAÇÃO DE OBRA | E16: mês | F16: =ROUND(SUM(I16:O16),2) -> 13 | G16: Quantiade de Meses - Colaboradores baseado em obra de Pequeno Porte do DNIT | H16: =G16&$S$3&" "&I16&$S$3&" "&F16 -> Quantiade de Meses - Colaboradores baseado em obra de Pequeno Porte do DNIT = 13 = 13 | I16: 13 | J16: 0 | K16: 0 | L16: 0 | M16: 0 | N16: 0 | P16: 13 | Q16: 0 | R16: =#REF! ->  | V16: =F16-#REF! -> 
A17: 3 | D17: MOBILIZAÇÃO E DESMOBIOLIZAÇÃO | Q17: 0
A18: 3.1 | B18: 101 | C18: 0 | D18: MOBILIZAÇÃO E DESMOBILIZAÇÃO DE PESSOAL, VEÍCULOS E EQUIPAMENTOS | E18: und | F18: =ROUND(SUM(I18:O18),2) -> 2 | G18: Mobilização e Desmobilização | H18: =G18&$S$3&" "&I18&$S$3&" "&F18 -> Mobilização e Desmobilização = 2 = 2 | I18: 2 | J18: 0 | K18: 0 | L18: 0 | M18: 0 | N18: 0 | O18: 0 | P18: 2 | Q18: 0 | R18: =#REF! ->  | V18: =F18-#REF! -> 
A19: 4 | D19: TERRAPLANAGEM
A20: 4.1 | B20: 5502138 | C20: SICRO3 | D20: Escavação, carga e transporte de material de 1ª categoria - DMT de 600 a 800 m - caminho de serviço em revestimento primário - com escavadeira e caminhão basculante de 14 m³ | E20: m³ | F20: =SUM(I20:O20) -> 21723.89 | G20: Quadro de cubação => Volume de corte da terraplanagem | H20: =G20&$S$3&$U$3&" "&I20&$W$3&J20&$W$3&K20&$W$3&L20&$W$3&M20&$W$3&N20&$W$3&O20&$T$3&$S$3&" "&F20 -> Quadro de cubação => Volume de corte da terraplanagem = ( 264,66+9519,57+6332,22+1703,03+2459,64+397,1+1047,67) = 21723,89 | I20: =ROUND((VLOOKUP(I$5,'Consolidado Pavimentação'!$A$15:$AK$23,4,0)),2) -> 264.66 | J20: =ROUND((VLOOKUP(J$5,'Consolidado Pavimentação'!$A$15:$AK$23,4,0)),2) -> 9519.57 | K20: =ROUND((VLOOKUP(K$5,'Consolidado Pavimentação'!$A$15:$AK$23,4,0)),2) -> 6332.22 | L20: =ROUND((VLOOKUP(L$5,'Consolidado Pavimentação'!$A$15:$AK$23,4,0)),2) -> 1703.03 | M20: =ROUND((VLOOKUP(M$5,'Consolidado Pavimentação'!$A$15:$AK$23,4,0)),2) -> 2459.64 | N20: =ROUND((VLOOKUP(N$5,'Consolidado Pavimentação'!$A$15:$AK$23,4,0)),2) -> 397.1 | O20: =ROUND((VLOOKUP(O$5,'Consolidado Pavimentação'!$A$15:$AK$23,4,0)),2) -> 1047.67 | P20: ='Consolidado Pavimentação'!D23 -> 21723.89 | Q20: =P20-F20 -> 0 | R20: =#REF! ->  | V20: =F20-#REF! -> 
A21: 4.2 | B21: 4016096 | C21: SICRO3 | D21: Escavação e carga de material de jazida com escavadeira hidráulica de 1,56 m³ | E21: m³ | F21: =SUM(I21:O21) -> 26114.76 | G21: Volume escavado = (volume de aterro - de corte) | H21: =G21&$S$3&$U$3&" "&I21&$W$3&J21&$W$3&K21&$W$3&L21&$W$3&M21&$W$3&N21&$W$3&O21&$T$3&$S$3&" "&F21 -> Volume escavado = (volume de aterro - de corte) = ( 2317,05+21242,06+1659,68+1118,84+1164,91+-340,11+-1047,67) = 26114,76 | I21: =ROUND(I23-I20,2) -> 2317.05 | J21: =ROUND(J23-J20,2) -> 21242.06 | K21: =ROUND(K23-K20,2) -> 1659.68 | L21: =ROUND(L23-L20,2) -> 1118.84 | M21: 1164.91 | N21: -340.11 | O21: -1047.67 | P21: 26114.76 | Q21: =P21-F21 -> 0 | R21: =#REF! ->  | V21: =F21-#REF! -> 
A22: 4.3 | B22: 5915320 | C22: SICRO3 | D22: Transporte com caminhão basculante de 14 m³ - rodovia em revestimento primário | E22: tkm | F22: =ROUND(SUM(I22:O22)*1.65*'DMT ADOTADAS '!$J$14,2) -> 111170.53 | G22: Transporte com Caminhão = Carga total x Densidade (1,65 t/m³) x DMT | H22: =G22&$S$3&$U$3&" "&I22&$W$3&J22&$W$3&K22&$W$3&L22&$W$3&M22&$W$3&N22&$W$3&O22&$T$3&$V$3&1.65&$V$3&'DMT ADOTADAS '!$J$14&$S$3&" "&F22 -> Transporte com Caminhão = Carga total x Densidade (1,65 t/m³) x DMT = ( 2317,05+21242,06+1659,68+1118,84+1164,91+-340,11+-1047,67) x 1,65 x 2,58 = 111170,53 | I22: =I21 -> 2317.05 | J22: 21242.06 | K22: 1659.68 | L22: 1118.84 | M22: 1164.91 | N22: -340.11 | O22: -1047.67 | P22: =P21*'DMT ADOTADAS '!$J$14*1.65 -> 111170.5333 | Q22: 0.003319999989 | R22: =#REF! ->  | V22: =F22-#REF! -> 
A23: 4.4 | B23: 5502978 | C23: SICRO3 | D23: Compactação de aterros a 100% do Proctor normal | E23: m³ | F23: =SUM(I23:O23) -> 47838.65 | G23: Quadro de cubação => Volume de aterro da terraplanagem | H23: =G23&$S$3&$U$3&" "&I23&$W$3&J23&$W$3&L23&$W$3&M23&$W$3&N23&$W$3&O23&$W$3&K23&$T$3&$S$3&" "&F23 -> Quadro de cubação => Volume de aterro da terraplanagem = ( 2581,71+30761,63+2821,87+3624,55+56,99+0+7991,9) = 47838,65 | I23: =ROUND((VLOOKUP(I$5,'Consolidado Pavimentação'!$A$15:$AK$23,5,0)),2) -> 2581.71 | J23: =ROUND((VLOOKUP(J$5,'Consolidado Pavimentação'!$A$15:$AK$23,5,0)),2) -> 30761.63 | K23: =ROUND((VLOOKUP(K$5,'Consolidado Pavimentação'!$A$15:$AK$23,5,0)),2) -> 7991.9 | L23: =ROUND((VLOOKUP(L$5,'Consolidado Pavimentação'!$A$15:$AK$23,5,0)),2) -> 2821.87 | M23: =ROUND((VLOOKUP(M$5,'Consolidado Pavimentação'!$A$15:$AK$23,5,0)),2) -> 3624.55 | N23: =ROUND((VLOOKUP(N$5,'Consolidado Pavimentação'!$A$15:$AK$23,5,0)),2) -> 56.99 | O23: =ROUND((VLOOKUP(O$5,'Consolidado Pavimentação'!$A$15:$AK$23,5,0)),2) -> 0 | P23: ='Consolidado Pavimentação'!E23 -> 47838.65 | Q23: 0 | R23: =#REF! ->  | V23: =F23-#REF! -> 
A24: 5 | D24: DRENAGEM PROFUNDA | Q24: 0
A25: 5.1 | B25: 99063 | C25: SINAPI | D25: LOCAÇÃO DE REDE DE ÁGUA OU ESGOTO. AF_03/2024 | E25: M | F25: =ROUND((SUM(I25:O25)),2) -> 821 | G25: LOCAÇÃO DE REDE PLUVIAL (SOMATÓRIO DOS TUBOS) COMPRIMENTO QUANTIDADE: | H25: =G25&$S$3&$U$3&" "&I25&$W$3&J25&$W$3&K25&$W$3&L25&$W$3&M25&$W$3&N25&$W$3&O25&$T$3&$S$3&" "&F25 -> LOCAÇÃO DE REDE PLUVIAL (SOMATÓRIO DOS TUBOS) COMPRIMENTO QUANTIDADE: = ( 39+577+128+51+26+0+0) = 821 | I25: =I28+I29+I30+I31 -> 39 | J25: =J28+J29+J30+J31 -> 577 | K25: 128 | L25: 51 | M25: 26 | N25: 0 | O25: 0 | P25: =P28+P29+P30+P31 -> 821 | Q25: 0 | R25: =#REF! ->  | V25: =F25-#REF! -> 
A26: 5.2 | B26: 4805757 | C26: SICRO3 | D26: Escavação mecânica de vala em material de 1ª categoria | E26: m³ | F26: =ROUND((SUM(I26:O26)),2) -> 1987.61 | G26: Volume escavação tubulação (m³) | H26: =G26&$S$3&$U$3&" "&I26&$W$3&J26&$W$3&K26&$W$3&L26&$W$3&M26&$W$3&N26&$W$3&O26&$T$3&$S$3&" "&F26 -> Volume escavação tubulação (m³) = ( 34,54+1641,05+194,5+77,44+40,08+0+0) = 1987,61 | I26: =ROUND(IFERROR(IF(VLOOKUP(I$5,'Consolidado Drenagem'!$A$15:$AE$21,9,0)=0,0,VLOOKUP(I$5,'Consolidado Drenagem'!$A$15:$AE$21,9,0)),0),2) -> 34.54 | J26: =ROUND(IFERROR(IF(VLOOKUP(J$5,'Consolidado Drenagem'!$A$15:$AE$21,9,0)=0,0,VLOOKUP(J$5,'Consolidado Drenagem'!$A$15:$AE$21,9,0)),0),2) -> 1641.05 | K26: =ROUND(IFERROR(IF(VLOOKUP(K$5,'Consolidado Drenagem'!$A$15:$AE$21,9,0)=0,0,VLOOKUP(K$5,'Consolidado Drenagem'!$A$15:$AE$21,9,0)),0),2) -> 194.5 | L26: =ROUND(IFERROR(IF(VLOOKUP(L$5,'Consolidado Drenagem'!$A$15:$AE$21,9,0)=0,0,VLOOKUP(L$5,'Consolidado Drenagem'!$A$15:$AE$21,9,0)),0),2) -> 77.44 | M26: =ROUND(IFERROR(IF(VLOOKUP(M$5,'Consolidado Drenagem'!$A$15:$AE$21,9,0)=0,0,VLOOKUP(M$5,'Consolidado Drenagem'!$A$15:$AE$21,9,0)),0),2) -> 40.08 | N26: =ROUND(IFERROR(IF(VLOOKUP(N$5,'Consolidado Drenagem'!$A$15:$AE$21,9,0)=0,0,VLOOKUP(N$5,'Consolidado Drenagem'!$A$15:$AE$21,9,0)),0),2) -> 0 | O26: =ROUND(IFERROR(IF(VLOOKUP(O$5,'Consolidado Drenagem'!$A$15:$AE$21,9,0)=0,0,VLOOKUP(O$5,'Consolidado Drenagem'!$A$15:$AE$21,9,0)),0),2) -> 0 | P26: ='ITEM 8.2 - DRENAGEM_PROF. TUBOS'!I92 -> 1987.6082 | Q26: -0.0018 | R26: =#REF! ->  | V26: =F26-#REF! -> 
A27: 5.3 | B27: 2003767 | C27: SICRO3 | D27: Lastro de areia comercial - espalhamento manual | E27: m³ | F27: =ROUND((SUM(I27:O27)),2) -> 264.69 | G27: Volume de Concreto do Lastro (m³) (Extensão tubos para redes coletoras de águas pluviais x largura x altura): (Tubos 800 mm: ext. x 1,4m x 0,20m + Tubos 1000 mm: ext. x 1,64m x 0,20m + Tubos 1500 mm: ext. x 2,18 m x 0,20m ) | H27: =G27&$S$3&$U$3&" "&I27&$W$3&J27&$W$3&K27&$W$3&L27&$W$3&M27&$W$3&N27&$W$3&O27&$T$3&$S$3&" "&F27 -> Volume de Concreto do Lastro (m³) (Extensão tubos para redes coletoras de águas pluviais x largura x altura): (Tubos 800 mm: ext. x 1,4m x 0,20m + Tubos 1000 mm: ext. x 1,64m x 0,20m + Tubos 1500 mm: ext. x 2,18 m x 0,20m ) = ( 12,79+187,25+39,39+16,73+8,53+0+0) = 264,69 | I27: =ROUND(IFERROR(IF(VLOOKUP(I$5,'Consolidado Drenagem'!$A$15:$AE$21,11,0)=0,0,VLOOKUP(I$5,'Consolidado Drenagem'!$A$15:$AE$21,11,0)),0),2) -> 12.79 | J27: =ROUND(IFERROR(IF(VLOOKUP(J$5,'Consolidado Drenagem'!$A$15:$AE$21,11,0)=0,0,VLOOKUP(J$5,'Consolidado Drenagem'!$A$15:$AE$21,11,0)),0),2) -> 187.25 | K27: =ROUND(IFERROR(IF(VLOOKUP(K$5,'Consolidado Drenagem'!$A$15:$AE$21,11,0)=0,0,VLOOKUP(K$5,'Consolidado Drenagem'!$A$15:$AE$21,11,0)),0),2) -> 39.39 | L27: =ROUND(IFERROR(IF(VLOOKUP(L$5,'Consolidado Drenagem'!$A$15:$AE$21,11,0)=0,0,VLOOKUP(L$5,'Consolidado Drenagem'!$A$15:$AE$21,11,0)),0),2) -> 16.73 | M27: =ROUND(IFERROR(IF(VLOOKUP(M$5,'Consolidado Drenagem'!$A$15:$AE$21,11,0)=0,0,VLOOKUP(M$5,'Consolidado Drenagem'!$A$15:$AE$21,11,0)),0),2) -> 8.53 | N27: =ROUND(IFERROR(IF(VLOOKUP(N$5,'Consolidado Drenagem'!$A$15:$AE$21,11,0)=0,0,VLOOKUP(N$5,'Consolidado Drenagem'!$A$15:$AE$21,11,0)),0),2) -> 0 | O27: =ROUND(IFERROR(IF(VLOOKUP(O$5,'Consolidado Drenagem'!$A$15:$AE$21,11,0)=0,0,VLOOKUP(O$5,'Consolidado Drenagem'!$A$15:$AE$21,11,0)),0),2) -> 0 | P27: ='Consolidado Drenagem'!K21 -> 264.69 | Q27: 0 | R27: =#REF! ->  | V27: =F27-#REF! -> 
A28: 5.4 | B28: 2003826 | C28: SICRO3 | D28: Tubo de concreto PA1 comercial para drenagem - D = 0,80 m - fornecimento e instalação | E28: m | F28: 155 | G28: Comprimento Total Tubo PA1 - D = 0,80 m => | H28: =G28&$S$3&$U$3&" "&I28&$W$3&J28&$W$3&K28&$W$3&L28&$W$3&M28&$W$3&N28&$W$3&O28&$T$3&$S$3&" "&F28 -> Comprimento Total Tubo PA1 - D = 0,80 m => = ( 0+101+54+0+0+0+0) = 155 | I28: =ROUND(IFERROR(IF(VLOOKUP(I$5,'Consolidado Drenagem'!$A$15:$AE$21,6,0)=0,0,VLOOKUP(I$5,'Consolidado Drenagem'!$A$15:$AE$21,6,0)),0),2) -> 0 | J28: =ROUND(IFERROR(IF(VLOOKUP(J$5,'Consolidado Drenagem'!$A$15:$AE$21,6,0)=0,0,VLOOKUP(J$5,'Consolidado Drenagem'!$A$15:$AE$21,6,0)),0),2) -> 101 | K28: =ROUND(IFERROR(IF(VLOOKUP(K$5,'Consolidado Drenagem'!$A$15:$AE$21,6,0)=0,0,VLOOKUP(K$5,'Consolidado Drenagem'!$A$15:$AE$21,6,0)),0),2) -> 54 | L28: =ROUND(IFERROR(IF(VLOOKUP(L$5,'Consolidado Drenagem'!$A$15:$AE$21,6,0)=0,0,VLOOKUP(L$5,'Consolidado Drenagem'!$A$15:$AE$21,6,0)),0),2) -> 0 | M28: =ROUND(IFERROR(IF(VLOOKUP(M$5,'Consolidado Drenagem'!$A$15:$AE$21,6,0)=0,0,VLOOKUP(M$5,'Consolidado Drenagem'!$A$15:$AE$21,6,0)),0),2) -> 0 | N28: =ROUND(IFERROR(IF(VLOOKUP(N$5,'Consolidado Drenagem'!$A$15:$AE$21,6,0)=0,0,VLOOKUP(N$5,'Consolidado Drenagem'!$A$15:$AE$21,6,0)),0),2) -> 0 | O28: =ROUND(IFERROR(IF(VLOOKUP(O$5,'Consolidado Drenagem'!$A$15:$AE$21,6,0)=0,0,VLOOKUP(O$5,'Consolidado Drenagem'!$A$15:$AE$21,6,0)),0),2) -> 0 | P28: ='Consolidado Drenagem'!F21 -> 155 | Q28: 0 | R28: =#REF! ->  | V28: =F28-#REF! -> 
A29: 5.5 | B29: 2003830 | C29: SICRO3 | D29: Tubo de concreto PA1 comercial para drenagem - D = 1,00 m - fornecimento e instalação | E29: m | F29: 563 | G29: Comprimento Total Tubo PA1 - D = 1,00 m => | H29: =G29&$S$3&$U$3&" "&I29&$W$3&J29&$W$3&K29&$W$3&L29&$W$3&M29&$W$3&N29&$W$3&O29&$T$3&$S$3&" "&F29 -> Comprimento Total Tubo PA1 - D = 1,00 m => = ( 39+373+74+51+26+0+0) = 563 | I29: =ROUND(IFERROR(IF(VLOOKUP(I$5,'Consolidado Drenagem'!$A$15:$AE$21,7,0)=0,0,VLOOKUP(I$5,'Consolidado Drenagem'!$A$15:$AE$21,7,0)),0),2) -> 39 | J29: =ROUND(IFERROR(IF(VLOOKUP(J$5,'Consolidado Drenagem'!$A$15:$AE$21,7,0)=0,0,VLOOKUP(J$5,'Consolidado Drenagem'!$A$15:$AE$21,7,0)),0),2) -> 373 | K29: =ROUND(IFERROR(IF(VLOOKUP(K$5,'Consolidado Drenagem'!$A$15:$AE$21,7,0)=0,0,VLOOKUP(K$5,'Consolidado Drenagem'!$A$15:$AE$21,7,0)),0),2) -> 74 | L29: =ROUND(IFERROR(IF(VLOOKUP(L$5,'Consolidado Drenagem'!$A$15:$AE$21,7,0)=0,0,VLOOKUP(L$5,'Consolidado Drenagem'!$A$15:$AE$21,7,0)),0),2) -> 51 | M29: =ROUND(IFERROR(IF(VLOOKUP(M$5,'Consolidado Drenagem'!$A$15:$AE$21,7,0)=0,0,VLOOKUP(M$5,'Consolidado Drenagem'!$A$15:$AE$21,7,0)),0),2) -> 26 | N29: =ROUND(IFERROR(IF(VLOOKUP(N$5,'Consolidado Drenagem'!$A$15:$AE$21,7,0)=0,0,VLOOKUP(N$5,'Consolidado Drenagem'!$A$15:$AE$21,7,0)),0),2) -> 0 | O29: =ROUND(IFERROR(IF(VLOOKUP(O$5,'Consolidado Drenagem'!$A$15:$AE$21,7,0)=0,0,VLOOKUP(O$5,'Consolidado Drenagem'!$A$15:$AE$21,7,0)),0),2) -> 0 | P29: ='Consolidado Drenagem'!G21 -> 563 | Q29: 0 | R29: =#REF! ->  | V29: =F29-#REF! -> 
A30: 5.6 | B30: 2003838 | C30: SICRO3 | D30: Tubo de concreto PA1 comercial para drenagem - D = 1,50 m - fornecimento e instalação | E30: m | F30: 84 | G30: Comprimento Total Tubo PA1 - D = 1,50 m => | H30: Comprimento Total Tubo PA1 - D = 1,50 m => = ( 0+84+0+0+0+0+0) = 84 | I30: =ROUND(IFERROR(IF(VLOOKUP(I$5,'Consolidado Drenagem'!$A$15:$AE$21,8,0)=0,0,VLOOKUP(I$5,'Consolidado Drenagem'!$A$15:$AE$21,8,0)),0),2) -> 0 | J30: =ROUND(IFERROR(IF(VLOOKUP(J$5,'Consolidado Drenagem'!$A$15:$AE$21,8,0)=0,0,VLOOKUP(J$5,'Consolidado Drenagem'!$A$15:$AE$21,8,0)),0),2) -> 84 | K30: =ROUND(IFERROR(IF(VLOOKUP(K$5,'Consolidado Drenagem'!$A$15:$AE$21,8,0)=0,0,VLOOKUP(K$5,'Consolidado Drenagem'!$A$15:$AE$21,8,0)),0),2) -> 0 | L30: =ROUND(IFERROR(IF(VLOOKUP(L$5,'Consolidado Drenagem'!$A$15:$AE$21,8,0)=0,0,VLOOKUP(L$5,'Consolidado Drenagem'!$A$15:$AE$21,8,0)),0),2) -> 0 | M30: =ROUND(IFERROR(IF(VLOOKUP(M$5,'Consolidado Drenagem'!$A$15:$AE$21,8,0)=0,0,VLOOKUP(M$5,'Consolidado Drenagem'!$A$15:$AE$21,8,0)),0),2) -> 0 | N30: =ROUND(IFERROR(IF(VLOOKUP(N$5,'Consolidado Drenagem'!$A$15:$AE$21,8,0)=0,0,VLOOKUP(N$5,'Consolidado Drenagem'!$A$15:$AE$21,8,0)),0),2) -> 0 | O30: =ROUND(IFERROR(IF(VLOOKUP(O$5,'Consolidado Drenagem'!$A$15:$AE$21,8,0)=0,0,VLOOKUP(O$5,'Consolidado Drenagem'!$A$15:$AE$21,8,0)),0),2) -> 0 | P30: ='Consolidado Drenagem'!H21 -> 84 | Q30: 0 | R30: =#REF! ->  | V30: =F30-#REF! -> 
A31: 5.7 | B31: 705388 | C31: SICRO3 | D31: Corpo de BTCC 3,00 x 3,00 m - moldado no local - altura do aterro 0,00 a 1,00 m - areia e brita comerciais | E31: m | F31: 19 | G31: Comprimento Corpo BTCC 3,0 x 3,0 m => | H31: Comprimento Corpo BTCC 3,0 x 3,0 m => = ( 0+19+0+0+0+0+0) = 19 | I31: =ROUND(IFERROR(IF(VLOOKUP(I$5,'Consolidado Drenagem'!$A$15:$AE$21,29,0)=0,0,VLOOKUP(I$5,'Consolidado Drenagem'!$A$15:$AE$21,29,0)),0),2) -> 0 | J31: =ROUND(IFERROR(IF(VLOOKUP(J$5,'Consolidado Drenagem'!$A$15:$AE$21,29,0)=0,0,VLOOKUP(J$5,'Consolidado Drenagem'!$A$15:$AE$21,29,0)),0),2) -> 19 | K31: =ROUND(IFERROR(IF(VLOOKUP(K$5,'Consolidado Drenagem'!$A$15:$AE$21,29,0)=0,0,VLOOKUP(K$5,'Consolidado Drenagem'!$A$15:$AE$21,29,0)),0),2) -> 0 | L31: =ROUND(IFERROR(IF(VLOOKUP(L$5,'Consolidado Drenagem'!$A$15:$AE$21,29,0)=0,0,VLOOKUP(L$5,'Consolidado Drenagem'!$A$15:$AE$21,29,0)),0),2) -> 0 | M31: =ROUND(IFERROR(IF(VLOOKUP(M$5,'Consolidado Drenagem'!$A$15:$AE$21,29,0)=0,0,VLOOKUP(M$5,'Consolidado Drenagem'!$A$15:$AE$21,29,0)),0),2) -> 0 | N31: =ROUND(IFERROR(IF(VLOOKUP(N$5,'Consolidado Drenagem'!$A$15:$AE$21,29,0)=0,0,VLOOKUP(N$5,'Consolidado Drenagem'!$A$15:$AE$21,29,0)),0),2) -> 0 | O31: =ROUND(IFERROR(IF(VLOOKUP(O$5,'Consolidado Drenagem'!$A$15:$AE$21,29,0)=0,0,VLOOKUP(O$5,'Consolidado Drenagem'!$A$15:$AE$21,29,0)),0),2) -> 0 | P31: ='Consolidado Drenagem'!AC21 -> 19 | Q31: 0 | R31: =#REF! -> 
A32: 5.8 | B32: 804101 | C32: SICRO3 | D32: Boca de BSTC D = 0,80 m - esconsidade 0° - areia e brita comerciais - alas retas | E32: un | F32: 6 | G32: Quantidade BSTC D = 0,80 m (Und.) | H32: Quantidade BSTC D = 0,80 m (Und.) = ( 0+4+2+0+0+0+0) = 6 | I32: =ROUND(IFERROR(IF(VLOOKUP(I$5,'Consolidado Drenagem'!$A$15:$AE$21,12,0)=0,0,VLOOKUP(I$5,'Consolidado Drenagem'!$A$15:$AE$21,12,0)),0),2) -> 0 | J32: =ROUND(IFERROR(IF(VLOOKUP(J$5,'Consolidado Drenagem'!$A$15:$AE$21,12,0)=0,0,VLOOKUP(J$5,'Consolidado Drenagem'!$A$15:$AE$21,12,0)),0),2) -> 4 | K32: =ROUND(IFERROR(IF(VLOOKUP(K$5,'Consolidado Drenagem'!$A$15:$AE$21,12,0)=0,0,VLOOKUP(K$5,'Consolidado Drenagem'!$A$15:$AE$21,12,0)),0),2) -> 2 | L32: =ROUND(IFERROR(IF(VLOOKUP(L$5,'Consolidado Drenagem'!$A$15:$AE$21,12,0)=0,0,VLOOKUP(L$5,'Consolidado Drenagem'!$A$15:$AE$21,12,0)),0),2) -> 0 | M32: =ROUND(IFERROR(IF(VLOOKUP(M$5,'Consolidado Drenagem'!$A$15:$AE$21,12,0)=0,0,VLOOKUP(M$5,'Consolidado Drenagem'!$A$15:$AE$21,12,0)),0),2) -> 0 | N32: =ROUND(IFERROR(IF(VLOOKUP(N$5,'Consolidado Drenagem'!$A$15:$AE$21,12,0)=0,0,VLOOKUP(N$5,'Consolidado Drenagem'!$A$15:$AE$21,12,0)),0),2) -> 0 | O32: =ROUND(IFERROR(IF(VLOOKUP(O$5,'Consolidado Drenagem'!$A$15:$AE$21,12,0)=0,0,VLOOKUP(O$5,'Consolidado Drenagem'!$A$15:$AE$21,12,0)),0),2) -> 0 | P32: ='Consolidado Drenagem'!L21 -> 6 | Q32: 0 | R32: =#REF! ->  | V32: =F32-#REF! -> 
A33: 5.9 | B33: 804393 | C33: SICRO3 | D33: Boca de BSTC D = 1,00 m - esconsidade 0° - areia e brita comerciais - alas esconsas | E33: un | F33: 30 | G33: Quantidade BSTC D = 1,00 m (Und.) | H33: Quantidade BSTC D = 1,00 m (Und.) = ( 2+14+7+5+2+0+0) = 30 | I33: =ROUND(IFERROR(IF(VLOOKUP(I$5,'Consolidado Drenagem'!$A$15:$AE$21,13,0)=0,0,VLOOKUP(I$5,'Consolidado Drenagem'!$A$15:$AE$21,13,0)),0),2) -> 2 | J33: =ROUND(IFERROR(IF(VLOOKUP(J$5,'Consolidado Drenagem'!$A$15:$AE$21,13,0)=0,0,VLOOKUP(J$5,'Consolidado Drenagem'!$A$15:$AE$21,13,0)),0),2) -> 14 | K33: =ROUND(IFERROR(IF(VLOOKUP(K$5,'Consolidado Drenagem'!$A$15:$AE$21,13,0)=0,0,VLOOKUP(K$5,'Consolidado Drenagem'!$A$15:$AE$21,13,0)),0),2) -> 7 | L33: =ROUND(IFERROR(IF(VLOOKUP(L$5,'Consolidado Drenagem'!$A$15:$AE$21,13,0)=0,0,VLOOKUP(L$5,'Consolidado Drenagem'!$A$15:$AE$21,13,0)),0),2) -> 5 | M33: =ROUND(IFERROR(IF(VLOOKUP(M$5,'Consolidado Drenagem'!$A$15:$AE$21,13,0)=0,0,VLOOKUP(M$5,'Consolidado Drenagem'!$A$15:$AE$21,13,0)),0),2) -> 2 | N33: =ROUND(IFERROR(IF(VLOOKUP(N$5,'Consolidado Drenagem'!$A$15:$AE$21,13,0)=0,0,VLOOKUP(N$5,'Consolidado Drenagem'!$A$15:$AE$21,13,0)),0),2) -> 0 | O33: =ROUND(IFERROR(IF(VLOOKUP(O$5,'Consolidado Drenagem'!$A$15:$AE$21,13,0)=0,0,VLOOKUP(O$5,'Consolidado Drenagem'!$A$15:$AE$21,13,0)),0),2) -> 0 | P33: ='Consolidado Drenagem'!M21 -> 30 | Q33: 0 | R33: =#REF! ->  | V33: =F33-#REF! -> 
A34: 5.10 | B34: 804417 | C34: SICRO3 | D34: Boca de BDTC D = 1,00 m - esconsidade 0° - areia e brita comerciais - alas esconsas | E34: un | F34: 6 | G34: Quantidade BDTC D = 1,00 m (Und.) | H34: Quantidade BDTC D = 1,00 m (Und.) = ( 0+6+0+0+0+0+0) = 6 | I34: =ROUND(IFERROR(IF(VLOOKUP(I$5,'Consolidado Drenagem'!$A$15:$AE$21,14,0)=0,0,VLOOKUP(I$5,'Consolidado Drenagem'!$A$15:$AE$21,14,0)),0),2) -> 0 | J34: =ROUND(IFERROR(IF(VLOOKUP(J$5,'Consolidado Drenagem'!$A$15:$AE$21,14,0)=0,0,VLOOKUP(J$5,'Consolidado Drenagem'!$A$15:$AE$21,14,0)),0),2) -> 6 | K34: =ROUND(IFERROR(IF(VLOOKUP(K$5,'Consolidado Drenagem'!$A$15:$AE$21,14,0)=0,0,VLOOKUP(K$5,'Consolidado Drenagem'!$A$15:$AE$21,14,0)),0),2) -> 0 | L34: =ROUND(IFERROR(IF(VLOOKUP(L$5,'Consolidado Drenagem'!$A$15:$AE$21,14,0)=0,0,VLOOKUP(L$5,'Consolidado Drenagem'!$A$15:$AE$21,14,0)),0),2) -> 0 | M34: =ROUND(IFERROR(IF(VLOOKUP(M$5,'Consolidado Drenagem'!$A$15:$AE$21,14,0)=0,0,VLOOKUP(M$5,'Consolidado Drenagem'!$A$15:$AE$21,14,0)),0),2) -> 0 | N34: =ROUND(IFERROR(IF(VLOOKUP(N$5,'Consolidado Drenagem'!$A$15:$AE$21,14,0)=0,0,VLOOKUP(N$5,'Consolidado Drenagem'!$A$15:$AE$21,14,0)),0),2) -> 0 | O34: =ROUND(IFERROR(IF(VLOOKUP(O$5,'Consolidado Drenagem'!$A$15:$AE$21,14,0)=0,0,VLOOKUP(O$5,'Consolidado Drenagem'!$A$15:$AE$21,14,0)),0),2) -> 0 | P34: ='Consolidado Drenagem'!N21 -> 6 | Q34: 0 | R34: =#REF! ->  | V34: =F34-#REF! -> 
A35: 5.11 | B35: 804457 | C35: SICRO3 | D35: Boca de BTTC D = 1,50 m - esconsidade 0° - areia e brita comerciais - alas esconsas | E35: un | F35: 2 | G35: Quantidade BTTC D = 1,50 m (Und.) | H35: Quantidade BTTC D = 1,50 m (Und.) = ( 0+2+0+0+0+0+0) = 2 | I35: =ROUND(IFERROR(IF(VLOOKUP(I$5,'Consolidado Drenagem'!$A$15:$AE$21,16,0)=0,0,VLOOKUP(I$5,'Consolidado Drenagem'!$A$15:$AE$21,16,0)),0),2) -> 0 | J35: =ROUND(IFERROR(IF(VLOOKUP(J$5,'Consolidado Drenagem'!$A$15:$AE$21,16,0)=0,0,VLOOKUP(J$5,'Consolidado Drenagem'!$A$15:$AE$21,16,0)),0),2) -> 2 | K35: =ROUND(IFERROR(IF(VLOOKUP(K$5,'Consolidado Drenagem'!$A$15:$AE$21,16,0)=0,0,VLOOKUP(K$5,'Consolidado Drenagem'!$A$15:$AE$21,16,0)),0),2) -> 0 | L35: =ROUND(IFERROR(IF(VLOOKUP(L$5,'Consolidado Drenagem'!$A$15:$AE$21,16,0)=0,0,VLOOKUP(L$5,'Consolidado Drenagem'!$A$15:$AE$21,16,0)),0),2) -> 0 | M35: =ROUND(IFERROR(IF(VLOOKUP(M$5,'Consolidado Drenagem'!$A$15:$AE$21,16,0)=0,0,VLOOKUP(M$5,'Consolidado Drenagem'!$A$15:$AE$21,16,0)),0),2) -> 0 | N35: =ROUND(IFERROR(IF(VLOOKUP(N$5,'Consolidado Drenagem'!$A$15:$AE$21,16,0)=0,0,VLOOKUP(N$5,'Consolidado Drenagem'!$A$15:$AE$21,16,0)),0),2) -> 0 | O35: =ROUND(IFERROR(IF(VLOOKUP(O$5,'Consolidado Drenagem'!$A$15:$AE$21,16,0)=0,0,VLOOKUP(O$5,'Consolidado Drenagem'!$A$15:$AE$21,16,0)),0),2) -> 0 | P35: ='Consolidado Drenagem'!P21 -> 2 | Q35: 0 | R35: =#REF! ->  | V35: =F35-#REF! -> 
A36: 5.12 | B36: 705427 | C36: SICRO3 | D36: Boca de BTCC 3,00 x 3,00 m - esconsidade 0° - areia e brita comerciais | E36: un | F36: 2 | G36: Quantidade BTCC D = 3,0 x 3,0 m (Und.) | H36: Quantidade BTCC D = 3,0 x 3,0 m (Und.) = ( 0+2+0+0+0+0+0) = 2 | I36: =ROUND(IFERROR(IF(VLOOKUP(I$5,'Consolidado Drenagem'!$A$15:$AE$21,28,0)=0,0,VLOOKUP(I$5,'Consolidado Drenagem'!$A$15:$AE$21,28,0)),0),2) -> 0 | J36: =ROUND(IFERROR(IF(VLOOKUP(J$5,'Consolidado Drenagem'!$A$15:$AE$21,28,0)=0,0,VLOOKUP(J$5,'Consolidado Drenagem'!$A$15:$AE$21,28,0)),0),2) -> 2 | K36: =ROUND(IFERROR(IF(VLOOKUP(K$5,'Consolidado Drenagem'!$A$15:$AE$21,28,0)=0,0,VLOOKUP(K$5,'Consolidado Drenagem'!$A$15:$AE$21,28,0)),0),2) -> 0 | L36: =ROUND(IFERROR(IF(VLOOKUP(L$5,'Consolidado Drenagem'!$A$15:$AE$21,28,0)=0,0,VLOOKUP(L$5,'Consolidado Drenagem'!$A$15:$AE$21,28,0)),0),2) -> 0 | M36: =ROUND(IFERROR(IF(VLOOKUP(M$5,'Consolidado Drenagem'!$A$15:$AE$21,28,0)=0,0,VLOOKUP(M$5,'Consolidado Drenagem'!$A$15:$AE$21,28,0)),0),2) -> 0 | N36: =ROUND(IFERROR(IF(VLOOKUP(N$5,'Consolidado Drenagem'!$A$15:$AE$21,28,0)=0,0,VLOOKUP(N$5,'Consolidado Drenagem'!$A$15:$AE$21,28,0)),0),2) -> 0 | O36: =ROUND(IFERROR(IF(VLOOKUP(O$5,'Consolidado Drenagem'!$A$15:$AE$21,28,0)=0,0,VLOOKUP(O$5,'Consolidado Drenagem'!$A$15:$AE$21,28,0)),0),2) -> 0 | P36: ='Consolidado Drenagem'!AB21 -> 2 | Q36: 0 | R36: =#REF! -> 
A37: 5.13 | B37: 2003682 | C37: SICRO3 | D37: Poço de visita - PVI 03 - areia e brita comerciais | E37: un | F37: 3 | G37: Quantidade PVI 03 (Und.) | H37: Quantidade PVI 03 (Und.) = ( 0+2+1+0+0+0+0) = 3 | I37: =ROUND(IFERROR(IF(VLOOKUP(I$5,'Consolidado Drenagem'!$A$15:$AE$21,17,0)=0,0,VLOOKUP(I$5,'Consolidado Drenagem'!$A$15:$AE$21,17,0)),0),2) -> 0 | J37: =ROUND(IFERROR(IF(VLOOKUP(J$5,'Consolidado Drenagem'!$A$15:$AE$21,17,0)=0,0,VLOOKUP(J$5,'Consolidado Drenagem'!$A$15:$AE$21,17,0)),0),2) -> 2 | K37: =ROUND(IFERROR(IF(VLOOKUP(K$5,'Consolidado Drenagem'!$A$15:$AE$21,17,0)=0,0,VLOOKUP(K$5,'Consolidado Drenagem'!$A$15:$AE$21,17,0)),0),2) -> 1 | L37: =ROUND(IFERROR(IF(VLOOKUP(L$5,'Consolidado Drenagem'!$A$15:$AE$21,17,0)=0,0,VLOOKUP(L$5,'Consolidado Drenagem'!$A$15:$AE$21,17,0)),0),2) -> 0 | M37: =ROUND(IFERROR(IF(VLOOKUP(M$5,'Consolidado Drenagem'!$A$15:$AE$21,17,0)=0,0,VLOOKUP(M$5,'Consolidado Drenagem'!$A$15:$AE$21,17,0)),0),2) -> 0 | N37: =ROUND(IFERROR(IF(VLOOKUP(N$5,'Consolidado Drenagem'!$A$15:$AE$21,17,0)=0,0,VLOOKUP(N$5,'Consolidado Drenagem'!$A$15:$AE$21,17,0)),0),2) -> 0 | O37: =ROUND(IFERROR(IF(VLOOKUP(O$5,'Consolidado Drenagem'!$A$15:$AE$21,17,0)=0,0,VLOOKUP(O$5,'Consolidado Drenagem'!$A$15:$AE$21,17,0)),0),2) -> 0 | P37: ='Consolidado Drenagem'!Q21 -> 3 | Q37: 0 | R37: =#REF! ->  | V37: =F37-#REF! -> 
A38: 5.14 | B38: 2003714 | C38: SICRO3 | D38: Chaminé dos poços de visita - CPV 01 - areia e brita comerciais | E38: un | F38: 3 | G38: Quantidade CPV 01 (Und.) | H38: Quantidade CPV 01 (Und.) = ( 0+2+1+0+0+0+0) = 3 | I38: =I37 -> 0 | J38: =J37 -> 2 | K38: 1 | L38: 0 | M38: 0 | N38: 0 | O38: 0 | P38: =P37 -> 3 | Q38: 0 | R38: =#REF! ->  | V38: =F38-#REF! -> 
A39: 5.15 | B39: 2003919 | C39: SICRO3 | D39: Boca de saída para dreno longitudinal profundo - BSD 01 - tubo de PEAD - areia e brita comerciais | E39: un | F39: 24 | G39: Quantidade BSD 01 (Und.) | H39: Quantidade BSD 01 (Und.) = ( 0+24+0+0+0+0+0) = 24 | I39: =ROUND(IFERROR(IF(VLOOKUP(I$5,'Consolidado Drenagem'!$A$15:$AE$21,27,0)=0,0,VLOOKUP(I$5,'Consolidado Drenagem'!$A$15:$AE$21,27,0)),0),2) -> 0 | J39: =ROUND(IFERROR(IF(VLOOKUP(J$5,'Consolidado Drenagem'!$A$15:$AE$21,27,0)=0,0,VLOOKUP(J$5,'Consolidado Drenagem'!$A$15:$AE$21,27,0)),0),2) -> 24 | K39: =ROUND(IFERROR(IF(VLOOKUP(K$5,'Consolidado Drenagem'!$A$15:$AE$21,27,0)=0,0,VLOOKUP(K$5,'Consolidado Drenagem'!$A$15:$AE$21,27,0)),0),2) -> 0 | L39: =ROUND(IFERROR(IF(VLOOKUP(L$5,'Consolidado Drenagem'!$A$15:$AE$21,27,0)=0,0,VLOOKUP(L$5,'Consolidado Drenagem'!$A$15:$AE$21,27,0)),0),2) -> 0 | M39: =ROUND(IFERROR(IF(VLOOKUP(M$5,'Consolidado Drenagem'!$A$15:$AE$21,27,0)=0,0,VLOOKUP(M$5,'Consolidado Drenagem'!$A$15:$AE$21,27,0)),0),2) -> 0 | N39: =ROUND(IFERROR(IF(VLOOKUP(N$5,'Consolidado Drenagem'!$A$15:$AE$21,27,0)=0,0,VLOOKUP(N$5,'Consolidado Drenagem'!$A$15:$AE$21,27,0)),0),2) -> 0 | O39: =ROUND(IFERROR(IF(VLOOKUP(O$5,'Consolidado Drenagem'!$A$15:$AE$21,27,0)=0,0,VLOOKUP(O$5,'Consolidado Drenagem'!$A$15:$AE$21,27,0)),0),2) -> 0 | P39: ='Consolidado Drenagem'!AA21 -> 24 | Q39: 0 | R39: =#REF! ->  | V39: =F39-#REF! -> 
A40: 5.16 | B40: 2003573 | C40: SICRO3 | D40: Dreno longitudinal profundo para corte em solo - DPS 02 - tubo PEAD e areia comercial | E40: m | F40: 1341.15 | G40: Comprimento Total DPS 02 (m) => | H40: Comprimento Total DPS 02 (m) => = ( 0+1341,15+0+0+0+0+0) = 1341,15 | I40: =ROUND(IFERROR(IF(VLOOKUP(I$5,'Consolidado Drenagem'!$A$15:$AE$21,26,0)=0,0,VLOOKUP(I$5,'Consolidado Drenagem'!$A$15:$AE$21,26,0)),0),2) -> 0 | J40: =ROUND(IFERROR(IF(VLOOKUP(J$5,'Consolidado Drenagem'!$A$15:$AE$21,26,0)=0,0,VLOOKUP(J$5,'Consolidado Drenagem'!$A$15:$AE$21,26,0)),0),2) -> 1341.15 | K40: =ROUND(IFERROR(IF(VLOOKUP(K$5,'Consolidado Drenagem'!$A$15:$AE$21,26,0)=0,0,VLOOKUP(K$5,'Consolidado Drenagem'!$A$15:$AE$21,26,0)),0),2) -> 0 | L40: =ROUND(IFERROR(IF(VLOOKUP(L$5,'Consolidado Drenagem'!$A$15:$AE$21,26,0)=0,0,VLOOKUP(L$5,'Consolidado Drenagem'!$A$15:$AE$21,26,0)),0),2) -> 0 | M40: =ROUND(IFERROR(IF(VLOOKUP(M$5,'Consolidado Drenagem'!$A$15:$AE$21,26,0)=0,0,VLOOKUP(M$5,'Consolidado Drenagem'!$A$15:$AE$21,26,0)),0),2) -> 0 | N40: =ROUND(IFERROR(IF(VLOOKUP(N$5,'Consolidado Drenagem'!$A$15:$AE$21,26,0)=0,0,VLOOKUP(N$5,'Consolidado Drenagem'!$A$15:$AE$21,26,0)),0),2) -> 0 | O40: =ROUND(IFERROR(IF(VLOOKUP(O$5,'Consolidado Drenagem'!$A$15:$AE$21,26,0)=0,0,VLOOKUP(O$5,'Consolidado Drenagem'!$A$15:$AE$21,26,0)),0),2) -> 0 | P40: ='Consolidado Drenagem'!Z21 -> 1341.15 | Q40: 0 | R40: =#REF! ->  | V40: =F40-#REF! -> 
A41: 5.17 | B41: 4815671 | C41: SICRO3 | D41: Reaterro e compactação com soquete vibratório | E41: m³ | F41: =ROUND((SUM(I41:O41)),2) -> 971.6 | G41: Volume aterro das valas(m³) | H41: =G41&$S$3&$U$3&" "&I41&$W$3&J41&$W$3&K41&$W$3&L41&$W$3&M41&$W$3&N41&$W$3&O41&$T$3&$S$3&" "&F41 -> Volume aterro das valas(m³) = ( 21,26+708,48+151,65+59,36+30,85+0+0) = 971,6 | I41: =ROUND(IFERROR(IF(VLOOKUP(I$5,'Consolidado Drenagem'!$A$15:$AE$21,10,0)=0,0,VLOOKUP(I$5,'Consolidado Drenagem'!$A$15:$AE$21,10,0)),0),2) -> 21.26 | J41: =ROUND(IFERROR(IF(VLOOKUP(J$5,'Consolidado Drenagem'!$A$15:$AE$21,10,0)=0,0,VLOOKUP(J$5,'Consolidado Drenagem'!$A$15:$AE$21,10,0)),0),2) -> 708.48 | K41: =ROUND(IFERROR(IF(VLOOKUP(K$5,'Consolidado Drenagem'!$A$15:$AE$21,10,0)=0,0,VLOOKUP(K$5,'Consolidado Drenagem'!$A$15:$AE$21,10,0)),0),2) -> 151.65 | L41: =ROUND(IFERROR(IF(VLOOKUP(L$5,'Consolidado Drenagem'!$A$15:$AE$21,10,0)=0,0,VLOOKUP(L$5,'Consolidado Drenagem'!$A$15:$AE$21,10,0)),0),2) -> 59.36 | M41: =ROUND(IFERROR(IF(VLOOKUP(M$5,'Consolidado Drenagem'!$A$15:$AE$21,10,0)=0,0,VLOOKUP(M$5,'Consolidado Drenagem'!$A$15:$AE$21,10,0)),0),2) -> 30.85 | N41: =ROUND(IFERROR(IF(VLOOKUP(N$5,'Consolidado Drenagem'!$A$15:$AE$21,10,0)=0,0,VLOOKUP(N$5,'Consolidado Drenagem'!$A$15:$AE$21,10,0)),0),2) -> 0 | O41: =ROUND(IFERROR(IF(VLOOKUP(O$5,'Consolidado Drenagem'!$A$15:$AE$21,10,0)=0,0,VLOOKUP(O$5,'Consolidado Drenagem'!$A$15:$AE$21,10,0)),0),2) -> 0 | P41: ='Consolidado Drenagem'!J21 -> 971.6 | Q41: 0 | R41: =#REF! ->  | V41: =F41-#REF! -> 
A42: 6 | D42: PAVIMENTAÇÃO | Q42: 0
A43: 6.1 | D43: SUB-BASE | Q43: 0
A44: 6.1.1 | B44: 4011227 | C44: SICRO3 | D44: Sub-base de solo estabilizado granulometricamente sem mistura com material de jazida - 100% Proctor intermediário | E44: m³ | F44: =ROUND(SUM(I44:O44),2) -> 12937.37 | G44: Volume total de SubBase (m³) | H44: =G44&$S$3&$U$3&" "&I44&$W$3&J44&$W$3&K44&$W$3&L44&$W$3&M44&$W$3&N44&$W$3&O44&$T$3&$S$3&" "&F44 -> Volume total de SubBase (m³) = ( 445,96+7556,97+2890,6+1012,15+821,43+103,4+106,86) = 12937,37 | I44: =ROUND((VLOOKUP(I$5,'Consolidado Pavimentação'!$A$15:$AK$23,7,0)),2) -> 445.96 | J44: =ROUND((VLOOKUP(J$5,'Consolidado Pavimentação'!$A$15:$AK$23,7,0)),2) -> 7556.97 | K44: =ROUND((VLOOKUP(K$5,'Consolidado Pavimentação'!$A$15:$AK$23,7,0)),2) -> 2890.6 | L44: =ROUND((VLOOKUP(L$5,'Consolidado Pavimentação'!$A$15:$AK$23,7,0)),2) -> 1012.15 | M44: =ROUND((VLOOKUP(M$5,'Consolidado Pavimentação'!$A$15:$AK$23,7,0)),2) -> 821.43 | N44: =ROUND((VLOOKUP(N$5,'Consolidado Pavimentação'!$A$15:$AK$23,7,0)),2) -> 103.4 | O44: =ROUND((VLOOKUP(O$5,'Consolidado Pavimentação'!$A$15:$AK$23,7,0)),2) -> 106.86 | P44: ='Consolidado Pavimentação'!G23 -> 12937.37 | Q44: 0 | R44: =#REF! ->  | V44: =F44-#REF! -> 
A45: 6.2 | D45: BASE | E45: 0 | Q45: 0
A46: 6.2.1 | B46: 4011287 | C46: Próprio | D46: Base de solo melhorado com 30% de areia e 2% de cimento e mistura na pista com material de jazida. SICRO (4011287/6416153) | E46: m³ | F46: =SUM(I46:O46) -> 12937.38 | G46: Volume total de Base (m³) | H46: =G46&$S$3&$U$3&" "&I46&$W$3&J46&$W$3&K46&$W$3&L46&$W$3&M46&$W$3&N46&$W$3&O46&$T$3&$S$3&" "&F46 -> Volume total de Base (m³) = ( 445,96+7556,98+2890,6+1012,15+821,43+103,4+106,86) = 12937,38 | I46: =ROUND((VLOOKUP(I$5,'Consolidado Pavimentação'!$A$15:$AK$23,6,0)),2) -> 445.96 | J46: =ROUND((VLOOKUP(J$5,'Consolidado Pavimentação'!$A$15:$AK$23,6,0)),2) -> 7556.98 | K46: =ROUND((VLOOKUP(K$5,'Consolidado Pavimentação'!$A$15:$AK$23,6,0)),2) -> 2890.6 | L46: =ROUND((VLOOKUP(L$5,'Consolidado Pavimentação'!$A$15:$AK$23,6,0)),2) -> 1012.15 | M46: =ROUND((VLOOKUP(M$5,'Consolidado Pavimentação'!$A$15:$AK$23,6,0)),2) -> 821.43 | N46: =ROUND((VLOOKUP(N$5,'Consolidado Pavimentação'!$A$15:$AK$23,6,0)),2) -> 103.4 | O46: =ROUND((VLOOKUP(O$5,'Consolidado Pavimentação'!$A$15:$AK$23,6,0)),2) -> 106.86 | P46: ='Consolidado Pavimentação'!F23 -> 12937.38 | Q46: 0 | R46: =#REF! ->  | V46: =F46-#REF! -> 
A47: 6.3 | D47: CBUQ | E47: 0 | Q47: 0
A48: 6.3.1 | B48: 4011352 | C48: SICRO3 | D48: Imprimação com emulsão asfáltica | E48: m² | F48: =SUM(I48:O48) -> 87748.01 | G48: Área Total de Pavimentação + Área Total de Acostamento(m²) | H48: =G48&$S$3&$U$3&" "&I48&$W$3&J48&$W$3&K48&$W$3&L48&$W$3&M48&$W$3&N48&$W$3&O48&$T$3&$S$3&" "&F48 -> Área Total de Pavimentação + Área Total de Acostamento(m²) = ( 4471,4+50380,07+19270,8+6747,67+5476,27+689,4+712,4) = 87748,01 | I48: =ROUND((VLOOKUP(I$5,'Consolidado Pavimentação'!$A$15:$AK$23,2,0)+(VLOOKUP(I$5,'Consolidado Pavimentação'!$A$15:$AK$23,3,0))),2) -> 4471.4 | J48: =ROUND((VLOOKUP(J$5,'Consolidado Pavimentação'!$A$15:$AK$23,2,0)+(VLOOKUP(J$5,'Consolidado Pavimentação'!$A$15:$AK$23,3,0))),2) -> 50380.07 | K48: =ROUND((VLOOKUP(K$5,'Consolidado Pavimentação'!$A$15:$AK$23,2,0)+(VLOOKUP(K$5,'Consolidado Pavimentação'!$A$15:$AK$23,3,0))),2) -> 19270.8 | L48: =ROUND((VLOOKUP(L$5,'Consolidado Pavimentação'!$A$15:$AK$23,2,0)+(VLOOKUP(L$5,'Consolidado Pavimentação'!$A$15:$AK$23,3,0))),2) -> 6747.67 | M48: =ROUND((VLOOKUP(M$5,'Consolidado Pavimentação'!$A$15:$AK$23,2,0)+(VLOOKUP(M$5,'Consolidado Pavimentação'!$A$15:$AK$23,3,0))),2) -> 5476.27 | N48: =ROUND((VLOOKUP(N$5,'Consolidado Pavimentação'!$A$15:$AK$23,2,0)+(VLOOKUP(N$5,'Consolidado Pavimentação'!$A$15:$AK$23,3,0))),2) -> 689.4 | O48: =ROUND((VLOOKUP(O$5,'Consolidado Pavimentação'!$A$15:$AK$23,2,0)+(VLOOKUP(O$5,'Consolidado Pavimentação'!$A$15:$AK$23,3,0))),2) -> 712.4 | P48: ='Consolidado Pavimentação'!B23+'Consolidado Pavimentação'!C23 -> 87748 | Q48: -0.01000000001 | R48: =#REF! ->  | V48: =F48-#REF! -> 
A49: 6.3.2 | B49: EAI - 01.2026 | C49: Próprio | D49: EMULSÃO ASFÁLTICA PARA IMPRIMAÇÃO (EAI) | E49: kg | F49: =ROUND((SUM(I49:O49))*1.3,2) -> 114072.41 | G49: Carga total=>Peso(Kg) = 1,2 kg x área imprimada | H49: =G49&$S$3&$U$3&" "&I49&$W$3&J49&$W$3&K49&$W$3&L49&$W$3&M49&$W$3&N49&$W$3&O49&$T$3&$V$3&1.3&$S$3&" "&F49 -> Carga total=>Peso(Kg) = 1,2 kg x área imprimada = ( 4471,4+50380,07+19270,8+6747,67+5476,27+689,4+712,4) x 1,3 = 114072,41 | I49: =I48 -> 4471.4 | J49: =J48 -> 50380.07 | K49: 19270.8 | L49: 6747.67 | M49: 5476.27 | N49: 689.4 | O49: 712.4 | R49: =#REF! ->  | V49: =F49-#REF! -> 
A50: 6.3.3 | B50: 5914622 | C50: SICRO3 | D50: Transporte de material betuminoso com caminhão tanque distribuidor - rodovia pavimentada | E50: tkm | F50: =ROUND(((SUM(I50:O50)*1.2)/1000)*'DMT ADOTADAS '!$H$14,2) -> 1254.09 | G50: Transporte com Caminhão = Peso(Kg) = 1,2 kg x área imprimada =>Carga total/1000Kg/t x DMT (Usina ao Trecho) | H50: =G50&$S$3&$U$3&" "&I50&$W$3&J50&$W$3&K50&$W$3&L50&$W$3&M50&$W$3&N50&$W$3&O50&$T$3&$V$3&1.2&$Y$3&1000&$V$3&'DMT ADOTADAS '!$H$14&$S$3&" "&F50 -> Transporte com Caminhão = Peso(Kg) = 1,2 kg x área imprimada =>Carga total/1000Kg/t x DMT (Usina ao Trecho) = ( 4471,4+50380,07+19270,8+6747,67+5476,27+689,4+712,4) x 1,2/1000 x 11,91 = 1254,09 | I50: =I48 -> 4471.4 | J50: =J48 -> 50380.07 | K50: 19270.8 | L50: 6747.67 | M50: 5476.27 | N50: 689.4 | O50: 712.4 | P50: =(P48/1000)*1.2*'DMT ADOTADAS '!$H$14 -> 1254.094416 | Q50: 0.004416 | R50: =#REF! ->  | V50: =F50-#REF! -> 
A51: 6.3.4 | B51: 4011353 | C51: SICRO3 | D51: Pintura de ligação | E51: m² | F51: =SUM(I51:O51) -> 87748.01 | G51: Área Total de Pavimentação + Área Total de Acostamento(m²) | H51: =G51&$S$3&$U$3&" "&I51&$W$3&J51&$W$3&K51&$W$3&L51&$W$3&M51&$W$3&N51&$W$3&O51&$T$3&$S$3&" "&F51 -> Área Total de Pavimentação + Área Total de Acostamento(m²) = ( 4471,4+50380,07+19270,8+6747,67+5476,27+689,4+712,4) = 87748,01 | I51: =ROUND((VLOOKUP(I$5,'Consolidado Pavimentação'!$A$15:$AK$23,2,0)+(VLOOKUP(I$5,'Consolidado Pavimentação'!$A$15:$AK$23,3,0))),2) -> 4471.4 | J51: =ROUND((VLOOKUP(J$5,'Consolidado Pavimentação'!$A$15:$AK$23,2,0)+(VLOOKUP(J$5,'Consolidado Pavimentação'!$A$15:$AK$23,3,0))),2) -> 50380.07 | K51: =ROUND((VLOOKUP(K$5,'Consolidado Pavimentação'!$A$15:$AK$23,2,0)+(VLOOKUP(K$5,'Consolidado Pavimentação'!$A$15:$AK$23,3,0))),2) -> 19270.8 | L51: =ROUND((VLOOKUP(L$5,'Consolidado Pavimentação'!$A$15:$AK$23,2,0)+(VLOOKUP(L$5,'Consolidado Pavimentação'!$A$15:$AK$23,3,0))),2) -> 6747.67 | M51: =ROUND((VLOOKUP(M$5,'Consolidado Pavimentação'!$A$15:$AK$23,2,0)+(VLOOKUP(M$5,'Consolidado Pavimentação'!$A$15:$AK$23,3,0))),2) -> 5476.27 | N51: =ROUND((VLOOKUP(N$5,'Consolidado Pavimentação'!$A$15:$AK$23,2,0)+(VLOOKUP(N$5,'Consolidado Pavimentação'!$A$15:$AK$23,3,0))),2) -> 689.4 | O51: =ROUND((VLOOKUP(O$5,'Consolidado Pavimentação'!$A$15:$AK$23,2,0)+(VLOOKUP(O$5,'Consolidado Pavimentação'!$A$15:$AK$23,3,0))),2) -> 712.4 | P51: =P48 -> 87748 | Q51: -0.01000000001 | R51: =#REF! ->  | V51: =F51-#REF! -> 
A52: 6.3.5 | B52: RR 2C - 01.2026 | C52: Próprio | D52: EMULSÕES ASFÁLTICAS RR-2C | E52: kg | F52: =ROUND((SUM(I52:O52))*0.45,2) -> 39486.6 | G52: Carga total=>Peso(Kg) = 0,45 kg x área imprimada | H52: =G52&$S$3&$U$3&" "&I52&$W$3&J52&$W$3&K52&$W$3&L52&$W$3&M52&$W$3&N52&$W$3&O52&$T$3&$V$3&0.45&$S$3&" "&F52 -> Carga total=>Peso(Kg) = 0,45 kg x área imprimada = ( 4471,4+50380,07+19270,8+6747,67+5476,27+689,4+712,4) x 0,45 = 39486,6 | I52: =I51 -> 4471.4 | J52: =J51 -> 50380.07 | K52: 19270.8 | L52: 6747.67 | M52: 5476.27 | N52: 689.4 | O52: 712.4 | R52: =#REF! ->  | V52: =F52-#REF! -> 
A53: 6.3.6 | B53: 5914622 | C53: SICRO3 | D53: Transporte de material betuminoso com caminhão tanque distribuidor - rodovia pavimentada | E53: tkm | F53: =ROUND(((SUM(I53:O53)*0.45)/1000)*'DMT ADOTADAS '!$H$14,2) -> 470.29 | G53: Transporte com Caminhão => Peso(Kg) = 0,45 kg x área imprimada => Carga total/1000Kg/t x DMT (Usina ao Trecho) | H53: =G53&$S$3&$U$3&" "&I53&$W$3&J53&$W$3&K53&$W$3&L53&$W$3&M53&$W$3&N53&$W$3&O53&$T$3&$V$3&0.45&$Y$3&1000&$V$3&'DMT ADOTADAS '!$H$14&$S$3&" "&F53 -> Transporte com Caminhão => Peso(Kg) = 0,45 kg x área imprimada => Carga total/1000Kg/t x DMT (Usina ao Trecho) = ( 4471,4+50380,07+19270,8+6747,67+5476,27+689,4+712,4) x 0,45/1000 x 11,91 = 470,29 | I53: =I51 -> 4471.4 | J53: =J51 -> 50380.07 | K53: 19270.8 | L53: 6747.67 | M53: 5476.27 | N53: 689.4 | O53: 712.4 | P53: =(P51/1000)*0.45*'DMT ADOTADAS '!$H$14 -> 470.285406 | Q53: -0.004594 | R53: =#REF! ->  | V53: =F53-#REF! -> 
A54: 6.3.7 | B54: 4011463 | C54: SICRO3 | D54: Concreto asfáltico - faixa C-12,5 - areia e brita comerciais | E54: t | F54: =ROUND((SUM(I54:O54))*2.5548,2) -> 9890.93 | G54: (Volume da Pavimentação (m³) + Volume da Acostamento (m³)) x dens. 2,5548 ton/m³ com Transporte variando DMT por material (Areia, Britas e CAL) | H54: =G54&$S$3&$U$3&" "&I54&$W$3&J54&$W$3&K54&$W$3&L54&$W$3&M54&$W$3&N54&$W$3&O54&$T$3&$V$3&2.5548&$S$3&" "&F54 -> (Volume da Pavimentação (m³) + Volume da Acostamento (m³)) x dens. 2,5548 ton/m³ com Transporte variando DMT por material (Areia, Britas e CAL) = ( 204,74+2217,6+846,18+301,83+239,67+30,2+31,29) x 2,5548 = 9890,93 | I54: =ROUND((VLOOKUP(I$5,'Consolidado Pavimentação'!$A$15:$AK$23,8,0)+(VLOOKUP(I$5,'Consolidado Pavimentação'!$A$15:$AK$23,9,0))),2) -> 204.74 | J54: =ROUND((VLOOKUP(J$5,'Consolidado Pavimentação'!$A$15:$AK$23,8,0)+(VLOOKUP(J$5,'Consolidado Pavimentação'!$A$15:$AK$23,9,0))),2) -> 2217.6 | K54: =ROUND((VLOOKUP(K$5,'Consolidado Pavimentação'!$A$15:$AK$23,8,0)+(VLOOKUP(K$5,'Consolidado Pavimentação'!$A$15:$AK$23,9,0))),2) -> 846.18 | L54: =ROUND((VLOOKUP(L$5,'Consolidado Pavimentação'!$A$15:$AK$23,8,0)+(VLOOKUP(L$5,'Consolidado Pavimentação'!$A$15:$AK$23,9,0))),2) -> 301.83 | M54: =ROUND((VLOOKUP(M$5,'Consolidado Pavimentação'!$A$15:$AK$23,8,0)+(VLOOKUP(M$5,'Consolidado Pavimentação'!$A$15:$AK$23,9,0))),2) -> 239.67 | N54: =ROUND((VLOOKUP(N$5,'Consolidado Pavimentação'!$A$15:$AK$23,8,0)+(VLOOKUP(N$5,'Consolidado Pavimentação'!$A$15:$AK$23,9,0))),2) -> 30.2 | O54: =ROUND((VLOOKUP(O$5,'Consolidado Pavimentação'!$A$15:$AK$23,8,0)+(VLOOKUP(O$5,'Consolidado Pavimentação'!$A$15:$AK$23,9,0))),2) -> 31.29 | P54: =('Consolidado Pavimentação'!H23+'Consolidado Pavimentação'!I23)*2.5548 -> 9890.933748 | Q54: 0.003747999997 | R54: =#REF! ->  | V54: =F54-#REF! -> 
A55: 6.3.8 | B55: CAP 50/70 - 01.2026 | C55: Próprio | D55: CIMENTOS ASFÁLTICOS CAP-50-70 | E55: T | F55: =ROUND((SUM(I55:O55))*0.05545,2) -> 548.45 | G55: Peso(Kg) = 0,05545 t/m³ x Volume m³ | H55: =G55&$S$3&$U$3&" "&I55&$W$3&J55&$W$3&K55&$W$3&L55&$W$3&M55&$W$3&N55&$W$3&O55&$T$3&$V$3&0.05545&$S$3&" "&F55 -> Peso(Kg) = 0,05545 t/m³ x Volume m³ = ( 523,07+5665,52+2161,82+771,12+612,31+77,15+79,94) x 0,05545 = 548,45 | I55: =ROUND(I54*2.5548,2) -> 523.07 | J55: =ROUND(J54*2.5548,2) -> 5665.52 | K55: 2161.82 | L55: 771.12 | M55: 612.31 | N55: 77.15 | O55: 79.94 | P55: =SUM(I55:O55)*0.05545 -> 548.4520685 | Q55: 0.0020685 | R55: =#REF! ->  | V55: =F55-#REF! -> 
A56: 6.3.9 | B56: 5915321 | C56: SICRO3 | D56: Transporte com caminhão basculante de 14 m³ - rodovia pavimentada | E56: tkm | F56: =ROUND((SUM(I56:O56))*'DMT ADOTADAS '!$H$14,2) -> 6531.92 | G56: Transporte com Caminhão => Peso(t)x DMT (Usina ao Trecho) | H56: =G56&$S$3&$U$3&" "&I56&$W$3&J56&$W$3&K56&$W$3&L56&$W$3&M56&$W$3&N56&$W$3&O56&$T$3&$V$3&'DMT ADOTADAS '!$H$14&$S$3&" "&F56 -> Transporte com Caminhão => Peso(t)x DMT (Usina ao Trecho) = ( 29+314,15+119,87+42,76+33,95+4,28+4,43) x 11,91 = 6531,92 | I56: =ROUND(I55*0.05545,2) -> 29 | J56: =ROUND(J55*0.05545,2) -> 314.15 | K56: 119.87 | L56: 42.76 | M56: 33.95 | N56: 4.28 | O56: 4.43 | P56: =ROUND((SUM(I56:O56))*'DMT ADOTADAS '!$H$14,2) -> 6531.92 | Q56: 0 | R56: =#REF! ->  | V56: =F56-#REF! -> 
A57: 7 | D57: DEMOLIÇÃO
A58: 7.1 | D58: DEMOLIÇÃO PAVIMENTO
A59: 7.1.1 | B59: 97636 | C59: SINAPI | D59: DEMOLIÇÃO PARCIAL DE PAVIMENTO ASFÁLTICO, DE FORMA MECANIZADA, SEM REAPROVEITAMENTO. AF_09/2023 | E59: m² | F59: =SUM(I59:O59) -> 1952.16 | G59: Área Total de Pavimentação para Demolição - AP010-020 | H59: =G59&$S$3&$U$3&" "&I59&$W$3&J59&$W$3&K59&$W$3&L59&$W$3&M59&$W$3&N59&$W$3&O59&$T$3&$S$3&" "&F59 -> Área Total de Pavimentação para Demolição - AP010-020 = ( 1952,16+0+0+0+0+0+0) = 1952,16 | I59: =ROUND((VLOOKUP(I$5,'Consolidado Pavimentação'!$A$15:$AK$23,10,0)),2) -> 1952.16 | J59: =ROUND((VLOOKUP(J$5,'Consolidado Pavimentação'!$A$15:$AK$23,10,0)),2) -> 0 | K59: =ROUND((VLOOKUP(K$5,'Consolidado Pavimentação'!$A$15:$AK$23,10,0)),2) -> 0 | L59: =ROUND((VLOOKUP(L$5,'Consolidado Pavimentação'!$A$15:$AK$23,10,0)),2) -> 0 | M59: =ROUND((VLOOKUP(M$5,'Consolidado Pavimentação'!$A$15:$AK$23,10,0)),2) -> 0 | N59: =ROUND((VLOOKUP(N$5,'Consolidado Pavimentação'!$A$15:$AK$23,10,0)),2) -> 0 | O59: =ROUND((VLOOKUP(O$5,'Consolidado Pavimentação'!$A$15:$AK$23,10,0)),2) -> 0 | P59: ='Consolidado Pavimentação'!J23 -> 1952.16 | Q59: 0 | R59: =#REF! ->  | V59: =F59-#REF! -> 
A60: 7.1.2 | B60: 5915433 | C60: SICRO3 | D60: Carga, manobra e descarga de material demolido em caminhão basculante de 6 m³ - carga manual e descarga livre | E60: t | F60: =SUM(I60:O60)*0.05*2.5 -> 244.02 | G60: Carga Total (m³) = ((Área de Demolição de Pavimento x 0,05 altura)) x Densidade (2,50 t/m³) | H60: =G60&$S$3&$U$3&" "&I60&$W$3&J60&$W$3&K60&$W$3&L60&$W$3&M60&$W$3&N60&$W$3&O60&$T$3&$V$3&0.05&$V$3&2.5&$S$3&" "&F60 -> Carga Total (m³) = ((Área de Demolição de Pavimento x 0,05 altura)) x Densidade (2,50 t/m³) = ( 1952,16+0+0+0+0+0+0) x 0,05 x 2,5 = 244,02 | I60: =I59 -> 1952.16 | J60: =J59 -> 0 | K60: 0 | L60: 0 | M60: 0 | N60: 0 | O60: 0 | P60: =P59*0.05*2.5 -> 244.02 | Q60: 0 | R60: =#REF! ->  | V60: =F60-#REF! -> 
A61: 7.1.3 | B61: 5914344 | C61: SICRO3 | D61: Transporte com caminhão basculante de 6 m³ - rodovia pavimentada | E61: tkm | F61: =ROUND(SUM(I61:O61)*'DMT ADOTADAS '!$F$18,2) -> 7906.25 | G61: Transporte com Caminhão = Carga total (T) x DMT (Trecho ao Bota fora) | H61: =G61&$S$3&$U$3&" "&I61&$W$3&J61&$W$3&K61&$W$3&L61&$W$3&M61&$W$3&N61&$W$3&O61&$T$3&$V$3&'DMT ADOTADAS '!F18&$S$3&" "&F61 -> Transporte com Caminhão = Carga total (T) x DMT (Trecho ao Bota fora) = ( 244,02++0+0+0+0+0) x 32,4 = 7906,25 | I61: =I60*0.05*2.5 -> 244.02 | K61: =ROUND(K60*1.2*0.05*2.5,2) -> 0 | L61: 0 | M61: 0 | N61: 0 | O61: 0 | P61: =ROUND(I61*'DMT ADOTADAS '!F18,2) -> 7906.25 | Q61: 0 | R61: =#REF! ->  | V61: =F61-#REF! -> 
A62: 7.1.4 | B62: RES - 01 | C62: Próprio | D62: Resíduo Inerte - | E62: T | F62: =ROUND(SUM(I62:O62)*2.5,2) -> 244.03 | G62: Volume Total (m³) = (Carga total) x 2,50 t/m³ | H62: =G62&$S$3&$U$3&" "&I62&$W$3&J62&$W$3&K62&$W$3&L62&$W$3&M62&$W$3&N62&$W$3&O62&$T$3&$V$3&2.5&$S$3&" "&F62 -> Volume Total (m³) = (Carga total) x 2,50 t/m³ = ( 97,61++0+0+0+0+0) x 2,5 = 244,03 | I62: =ROUND(I60*0.05,2) -> 97.61 | K62: =K61 -> 0 | L62: 0 | M62: 0 | N62: 0 | O62: 0 | P62: =ROUND(P59*0.05*2.5,2) -> 244.02 | Q62: -0.01 | R62: =#REF! ->  | V62: =F62-#REF! -> 
A63: 7.2 | D63: DEMOLIÇÃO EDIFICAÇÃO | Q63: 0
A64: 7.2.1 | B64: 1600896 | C64: SICRO3 | D64: Demolição mecânica de alvenaria com escavadeira hidráulica | E64: m² | F64: =SUM(I64:O64) -> 1778.4 | G64: Área Total de edificação em alvenaria para Demolição (m²) | H64: =G64&$S$3&$U$3&" "&I64&$W$3&J64&$W$3&K64&$W$3&L64&$W$3&M64&$W$3&N64&$W$3&O64&$T$3&$S$3&" "&F64 -> Área Total de edificação em alvenaria para Demolição (m²) = ( 0+1778,4+0+0+0+0+0) = 1778,4 | I64: =ROUND((VLOOKUP(I$5,'Consolidado Pavimentação'!$A$15:$AK$23,16,0)),2) -> 0 | J64: =ROUND((VLOOKUP(J$5,'Consolidado Pavimentação'!$A$15:$AK$23,17,0)),2) -> 1778.4 | K64: =ROUND((VLOOKUP(K$5,'Consolidado Pavimentação'!$A$15:$AK$23,16,0)),2) -> 0 | L64: =ROUND((VLOOKUP(L$5,'Consolidado Pavimentação'!$A$15:$AK$23,16,0)),2) -> 0 | M64: =ROUND((VLOOKUP(M$5,'Consolidado Pavimentação'!$A$15:$AK$23,16,0)),2) -> 0 | N64: =ROUND((VLOOKUP(N$5,'Consolidado Pavimentação'!$A$15:$AK$23,16,0)),2) -> 0 | O64: =ROUND((VLOOKUP(O$5,'Consolidado Pavimentação'!$A$15:$AK$23,16,0)),2) -> 0 | P64: ='Consolidado Pavimentação'!Q23 -> 1778.4 | Q64: 0 | R64: =#REF! ->  | V64: =F64-#REF! -> 
A65: 7.2.2 | B65: 1600895 | C65: SICRO3 | D65: Demolição manual de construções provisórias de madeira - sem reaproveitamento | E65: m² | F65: 1336.52 | G65: Área Total de edificação em madeira para Demolição (m²) | H65: Área Total de edificação em madeira para Demolição (m²) = ( 0+1336,52+0+0+0+0+0) = 1336,52 | I65: =ROUND((VLOOKUP(I$5,'Consolidado Pavimentação'!$A$15:$AK$23,16,0)),2) -> 0 | J65: =ROUND((VLOOKUP(J$5,'Consolidado Pavimentação'!$A$15:$AK$23,18,0)),2) -> 1336.52 | K65: =ROUND((VLOOKUP(K$5,'Consolidado Pavimentação'!$A$15:$AK$23,16,0)),2) -> 0 | L65: =ROUND((VLOOKUP(L$5,'Consolidado Pavimentação'!$A$15:$AK$23,16,0)),2) -> 0 | M65: =ROUND((VLOOKUP(M$5,'Consolidado Pavimentação'!$A$15:$AK$23,16,0)),2) -> 0 | N65: =ROUND((VLOOKUP(N$5,'Consolidado Pavimentação'!$A$15:$AK$23,16,0)),2) -> 0 | O65: =ROUND((VLOOKUP(O$5,'Consolidado Pavimentação'!$A$15:$AK$23,16,0)),2) -> 0 | P65: ='Consolidado Pavimentação'!R23 -> 1336.52 | Q65: 0 | R65: =#REF! ->  | V65: =F65-#REF! -> 
A66: 7.2.3 | B66: 5915433 | C66: SICRO3 | D66: Carga, manobra e descarga de material demolido em caminhão basculante de 6 m³ - carga manual e descarga livre | E66: t | F66: =SUM(I66:O66) -> 4337.98 | G66: Carga Total (m³) = ((Área de Demolição de edificação x 1/3 da altura do pé direito para alvenariax Densidade para alvenaria (1,5 t/m³) x((Área de Demolição de edificação x 1/5 para madeira x Densidade para madeira (0,75 t/m³) | H66: Carga Total (m³) = ((Área de Demolição de edificação x 1/3 da altura do pé direito para alvenariax Densidade para alvenaria (1,5 t/m³) x((Área de Demolição de edificação x 1/5 para madeira x Densidade para madeira (0,75 t/m³) = ( 0+4337,98+0+0+0+0+0) = 4337,98 | I66: =ROUND((VLOOKUP(I$5,'Consolidado Pavimentação'!$A$15:$AK$23,19,0))*1.5,2)+ROUND((VLOOKUP(I$5,'Consolidado Pavimentação'!$A$15:$AK$23,20,0))*1.15,2) -> 0 | J66: =ROUND((VLOOKUP(J$5,'Consolidado Pavimentação'!$A$15:$AK$23,19,0))*1.5,2)+ROUND((VLOOKUP(J$5,'Consolidado Pavimentação'!$A$15:$AK$23,20,0))*0.75,2) -> 4337.98 | K66: =ROUND((VLOOKUP(K$5,'Consolidado Pavimentação'!$A$15:$AK$23,19,0))*1.5,2)+ROUND((VLOOKUP(K$5,'Consolidado Pavimentação'!$A$15:$AK$23,20,0))*1.15,2) -> 0 | L66: =ROUND((VLOOKUP(L$5,'Consolidado Pavimentação'!$A$15:$AK$23,19,0))*1.5,2)+ROUND((VLOOKUP(L$5,'Consolidado Pavimentação'!$A$15:$AK$23,20,0))*1.15,2) -> 0 | M66: =ROUND((VLOOKUP(M$5,'Consolidado Pavimentação'!$A$15:$AK$23,19,0))*1.5,2)+ROUND((VLOOKUP(M$5,'Consolidado Pavimentação'!$A$15:$AK$23,20,0))*1.15,2) -> 0 | N66: =ROUND((VLOOKUP(N$5,'Consolidado Pavimentação'!$A$15:$AK$23,19,0))*1.5,2)+ROUND((VLOOKUP(N$5,'Consolidado Pavimentação'!$A$15:$AK$23,20,0))*1.15,2) -> 0 | O66: =ROUND((VLOOKUP(O$5,'Consolidado Pavimentação'!$A$15:$AK$23,19,0))*1.5,2)+ROUND((VLOOKUP(O$5,'Consolidado Pavimentação'!$A$15:$AK$23,20,0))*1.15,2) -> 0 | P66: ='Consolidado Pavimentação'!S23*1.5+'Consolidado Pavimentação'!T23*0.75 -> 4337.98625 | Q66: 0.006249999999 | R66: =#REF! ->  | V66: =F66-#REF! -> 
A67: 7.2.4 | B67: 5914344 | C67: SICRO3 | D67: Transporte com caminhão basculante de 6 m³ - rodovia pavimentada | E67: tkm | F67: =ROUND(SUM(I67:O67)*'DMT ADOTADAS '!$F$18,2) -> 140550.55 | G67: Transporte com Caminhão = Carga total/m³x (Densidade para alvenaria (1,5 t/m³) e Densidade para madeira (0,75 t/m³)x DMT (Trecho ao Bota fora) | H67: =G67&$S$3&$U$3&" "&I67&$W$3&J67&$W$3&K67&$W$3&L67&$W$3&M67&$W$3&N67&$W$3&O67&$T$3&$V$3&'DMT ADOTADAS '!F18&$S$3&" "&F67 -> Transporte com Caminhão = Carga total/m³x (Densidade para alvenaria (1,5 t/m³) e Densidade para madeira (0,75 t/m³)x DMT (Trecho ao Bota fora) = ( 0+4337,98+0+0+0+0+0) x 32,4 = 140550,55 | I67: =ROUND((VLOOKUP(I$5,'Consolidado Pavimentação'!$A$15:$AK$23,19,0))*1.5*1.5,2)+ROUND((VLOOKUP(I$5,'Consolidado Pavimentação'!$A$15:$AK$23,20,0))*1.15*0.75,2) -> 0 | J67: =ROUND((VLOOKUP(J$5,'Consolidado Pavimentação'!$A$15:$AK$23,19,0))*1.5,2)+ROUND((VLOOKUP(J$5,'Consolidado Pavimentação'!$A$15:$AK$23,20,0))*0.75,2) -> 4337.98 | K67: =ROUND((VLOOKUP(K$5,'Consolidado Pavimentação'!$A$15:$AK$23,19,0))*1.5*1.5,2)+ROUND((VLOOKUP(K$5,'Consolidado Pavimentação'!$A$15:$AK$23,20,0))*1.15*0.75,2) -> 0 | L67: =ROUND((VLOOKUP(L$5,'Consolidado Pavimentação'!$A$15:$AK$23,19,0))*1.5*1.5,2)+ROUND((VLOOKUP(L$5,'Consolidado Pavimentação'!$A$15:$AK$23,20,0))*1.15*0.75,2) -> 0 | M67: =ROUND((VLOOKUP(M$5,'Consolidado Pavimentação'!$A$15:$AK$23,19,0))*1.5*1.5,2)+ROUND((VLOOKUP(M$5,'Consolidado Pavimentação'!$A$15:$AK$23,20,0))*1.15*0.75,2) -> 0 | N67: =ROUND((VLOOKUP(N$5,'Consolidado Pavimentação'!$A$15:$AK$23,19,0))*1.5*1.5,2)+ROUND((VLOOKUP(N$5,'Consolidado Pavimentação'!$A$15:$AK$23,20,0))*1.15*0.75,2) -> 0 | O67: =ROUND((VLOOKUP(O$5,'Consolidado Pavimentação'!$A$15:$AK$23,19,0))*1.5*1.5,2)+ROUND((VLOOKUP(O$5,'Consolidado Pavimentação'!$A$15:$AK$23,20,0))*1.15*0.75,2) -> 0 | P67: =J67*32.4 -> 140550.552 | Q67: 0.001999999979 | R67: =#REF! ->  | V67: =F67-#REF! -> 
A68: 7.2.5 | B68: RES - 01 | C68: Próprio | D68: Resíduo Inerte - | E68: T | F68: 4337.98 | G68: Volume Total (m³) = (Carga total de Alvenaria) x 1,50 t/m³+(Carga total de Madeira) x 0,75 t/m³ | H68: Volume Total (m³) = (Carga total de Alvenaria) x 1,50 t/m³+(Carga total de Madeira) x 0,75 t/m³ = ( 0+4337,98+0+0+0+0+0) = 4337,98 | I68: =ROUND((VLOOKUP(I$5,'Consolidado Pavimentação'!$A$15:$AK$23,19,0))*1.5*1.5,2)+ROUND((VLOOKUP(I$5,'Consolidado Pavimentação'!$A$15:$AK$23,20,0))*1.15*0.75,2) -> 0 | J68: =ROUND((VLOOKUP(J$5,'Consolidado Pavimentação'!$A$15:$AK$23,19,0))*1.5,2)+ROUND((VLOOKUP(J$5,'Consolidado Pavimentação'!$A$15:$AK$23,20,0))*0.75,2) -> 4337.98 | K68: =ROUND((VLOOKUP(K$5,'Consolidado Pavimentação'!$A$15:$AK$23,19,0))*1.5*1.5,2)+ROUND((VLOOKUP(K$5,'Consolidado Pavimentação'!$A$15:$AK$23,20,0))*1.15*0.75,2) -> 0 | L68: =ROUND((VLOOKUP(L$5,'Consolidado Pavimentação'!$A$15:$AK$23,19,0))*1.5*1.5,2)+ROUND((VLOOKUP(L$5,'Consolidado Pavimentação'!$A$15:$AK$23,20,0))*1.15*0.75,2) -> 0 | M68: =ROUND((VLOOKUP(M$5,'Consolidado Pavimentação'!$A$15:$AK$23,19,0))*1.5*1.5,2)+ROUND((VLOOKUP(M$5,'Consolidado Pavimentação'!$A$15:$AK$23,20,0))*1.15*0.75,2) -> 0 | N68: =ROUND((VLOOKUP(N$5,'Consolidado Pavimentação'!$A$15:$AK$23,19,0))*1.5*1.5,2)+ROUND((VLOOKUP(N$5,'Consolidado Pavimentação'!$A$15:$AK$23,20,0))*1.15*0.75,2) -> 0 | O68: =ROUND((VLOOKUP(O$5,'Consolidado Pavimentação'!$A$15:$AK$23,19,0))*1.5*1.5,2)+ROUND((VLOOKUP(O$5,'Consolidado Pavimentação'!$A$15:$AK$23,20,0))*1.15*0.75,2) -> 0 | P68: =J68 -> 4337.98 | Q68: 0 | R68: =#REF! ->  | V68: =F68-#REF! -> 
A69: 8 | D69: DRENAGEM SUPERFICIAL
A70: 8.1 | B70: 2003377 | C70: SICRO3 | D70: Meio-fio de concreto - MFC 05 - areia e brita comerciais - fôrma de madeira | E70: m | F70: =ROUND((SUM(I70:O70)),2) -> 1771.27 | G70: Comprimento Total do Meio Fio - MFC-05(m) - Desconto de Comprimento EDA 02 (trecho 1 - 3,1m) | H70: =G70&$S$3&$U$3&" "&I70&$W$3&J70&$W$3&K70&$W$3&L70&$W$3&M70&$W$3&N70&$W$3&O70&$T$3&$S$3&" "&F70 -> Comprimento Total do Meio Fio - MFC-05(m) - Desconto de Comprimento EDA 02 (trecho 1 - 3,1m) = ( 120+1078,38+432,41+40+100,48+0+0) = 1771,27 | I70: =ROUND(IFERROR(IF(VLOOKUP(I$5,'Consolidado Drenagem'!$A$15:$AE$21,2,0)=0,0,VLOOKUP(I$5,'Consolidado Drenagem'!$A$15:$AE$21,2,0)),0),2) -> 120 | J70: =ROUND(IFERROR(IF(VLOOKUP(J$5,'Consolidado Drenagem'!$A$15:$AE$21,2,0)=0,0,VLOOKUP(J$5,'Consolidado Drenagem'!$A$15:$AE$21,2,0)),0),2) -> 1078.38 | K70: =ROUND(IFERROR(IF(VLOOKUP(K$5,'Consolidado Drenagem'!$A$15:$AE$21,2,0)=0,0,VLOOKUP(K$5,'Consolidado Drenagem'!$A$15:$AE$21,2,0)),0),2) -> 432.41 | L70: =ROUND(IFERROR(IF(VLOOKUP(L$5,'Consolidado Drenagem'!$A$15:$AE$21,2,0)=0,0,VLOOKUP(L$5,'Consolidado Drenagem'!$A$15:$AE$21,2,0)),0),2) -> 40 | M70: =ROUND(IFERROR(IF(VLOOKUP(M$5,'Consolidado Drenagem'!$A$15:$AE$21,2,0)=0,0,VLOOKUP(M$5,'Consolidado Drenagem'!$A$15:$AE$21,2,0)),0),2) -> 100.48 | N70: =ROUND(IFERROR(IF(VLOOKUP(N$5,'Consolidado Drenagem'!$A$15:$AE$21,2,0)=0,0,VLOOKUP(N$5,'Consolidado Drenagem'!$A$15:$AE$21,2,0)) - IF(VLOOKUP(N$5,'Consolidado Drenagem'!$A$15:$AE$21,3,0)=0,0,VLOOKUP(N$5,'Consolidado Drenagem'!$A$15:$AE$21,3,0)),0),2) -> 0 | O70: =ROUND(IFERROR(IF(VLOOKUP(O$5,'Consolidado Drenagem'!$A$15:$AE$21,2,0)=0,0,VLOOKUP(O$5,'Consolidado Drenagem'!$A$15:$AE$21,2,0)) - IF(VLOOKUP(O$5,'Consolidado Drenagem'!$A$15:$AE$21,3,0)=0,0,VLOOKUP(O$5,'Consolidado Drenagem'!$A$15:$AE$21,3,0)),0),2) -> 0 | P70: ='Consolidado Drenagem'!B21 -> 1771.26 | Q70: -0.01 | R70: =#REF! ->  | V70: =F70-#REF! -> 
A71: 8.2 | B71: 4016096 | C71: SICRO3 | D71: Escavação e carga de material de jazida com escavadeira hidráulica de 1,56 m³ | E71: m³ | F71: =ROUND((SUM(I71:O71)),2) -> 265.69 | G71: (Volume de Escavação Meio Fio MFC-05) x 0,3 x 0,5 => | H71: =G71&$S$3&$U$3&" "&I71&$W$3&J71&$W$3&K71&$W$3&L71&$W$3&M71&$W$3&N71&$W$3&O71&$T$3&$S$3&" "&F71 -> (Volume de Escavação Meio Fio MFC-05) x 0,3 x 0,5 => = ( 18+161,76+64,86+6+15,07+0+0) = 265,69 | I71: =ROUND(IFERROR(IF(VLOOKUP(I$5,'Consolidado Drenagem'!$A$15:$AE$21,4,0)=0,0,VLOOKUP(I$5,'Consolidado Drenagem'!$A$15:$AE$21,4,0)),0),2) -> 18 | J71: =ROUND(IFERROR(IF(VLOOKUP(J$5,'Consolidado Drenagem'!$A$15:$AE$21,4,0)=0,0,VLOOKUP(J$5,'Consolidado Drenagem'!$A$15:$AE$21,4,0)),0),2) -> 161.76 | K71: =ROUND(IFERROR(IF(VLOOKUP(K$5,'Consolidado Drenagem'!$A$15:$AE$21,4,0)=0,0,VLOOKUP(K$5,'Consolidado Drenagem'!$A$15:$AE$21,4,0)),0),2) -> 64.86 | L71: =ROUND(IFERROR(IF(VLOOKUP(L$5,'Consolidado Drenagem'!$A$15:$AE$21,4,0)=0,0,VLOOKUP(L$5,'Consolidado Drenagem'!$A$15:$AE$21,4,0)),0),2) -> 6 | M71: =ROUND(IFERROR(IF(VLOOKUP(M$5,'Consolidado Drenagem'!$A$15:$AE$21,4,0)=0,0,VLOOKUP(M$5,'Consolidado Drenagem'!$A$15:$AE$21,4,0)),0),2) -> 15.07 | N71: =ROUND(IFERROR(IF(VLOOKUP(N$5,'Consolidado Drenagem'!$A$15:$AE$21,4,0)=0,0,VLOOKUP(N$5,'Consolidado Drenagem'!$A$15:$AE$21,4,0)),0),2) -> 0 | O71: =ROUND(IFERROR(IF(VLOOKUP(O$5,'Consolidado Drenagem'!$A$15:$AE$21,4,0)=0,0,VLOOKUP(O$5,'Consolidado Drenagem'!$A$15:$AE$21,4,0)),0),2) -> 0 | P71: ='Consolidado Drenagem'!D21 -> 265.689 | Q71: -0.001 | R71: =#REF! ->  | V71: =F71-#REF! -> 
A72: 8.3 | B72: 5901638 | C72: SICRO3 | D72: Transporte com caminhão basculante com caçamba estanque com capacidade de 14 m³ - rodovia em revestimento primário | E72: tkm | F72: =ROUND(SUM(I72:O72)*1.3*'DMT ADOTADAS '!$J$14,2) -> 891.12 | G72: Volume Total (m³)=(Volume de Compactação Meio Fio MFC-05) x (1,3 t/m³) de Desnidade do solo X DMT | H72: =G72&$S$3&$U$3&" "&I72&$W$3&J72&$W$3&K72&$W$3&L72&$W$3&M72&$W$3&N72&$W$3&O72&$T$3&$V$3&1.3&$V$3&'DMT ADOTADAS '!J14&$S$3&" "&F72 -> Volume Total (m³)=(Volume de Compactação Meio Fio MFC-05) x (1,3 t/m³) de Desnidade do solo X DMT = ( 18+161,76+64,86+6+15,07+0+0) x 1,3 x 2,58 = 891,12 | I72: =I71 -> 18 | J72: =J71 -> 161.76 | K72: =K71 -> 64.86 | L72: =L71 -> 6 | M72: =M71 -> 15.07 | N72: =ROUND(IFERROR(IF(VLOOKUP(N$5,'Consolidado Drenagem'!$A$15:$AE$21,2,0)=0,0,VLOOKUP(N$5,'Consolidado Drenagem'!$A$15:$AE$21,2,0)) + IF(VLOOKUP(N$5,'Consolidado Drenagem'!$A$15:$AE$21,3,0)=0,0,VLOOKUP(N$5,'Consolidado Drenagem'!$A$15:$AE$21,3,0)),0),2) -> 0 | O72: =O71 -> 0 | P72: ='Consolidado Drenagem'!D21*1.3*'DMT ADOTADAS '!$J$14 -> 891.120906 | Q72: 0.000906 | R72: =#REF! ->  | V72: =F72-#REF! -> 
A73: 8.4 | B73: 4805754 | C73: SICRO3 | D73: Compactação manual com soquete vibratório | E73: m³ | F73: =ROUND((SUM(I73:O73)),2) -> 295.59 | G73: Volume Total (m³)=(Volume de Compactação Meio Fio MFC-05) + Volume de Aterro Manual | H73: =G73&$S$3&$U$3&" "&I73&$W$3&J73&$W$3&K73&$W$3&L73&$W$3&M73&$W$3&N73&$W$3&O73&$T$3&$S$3&" "&F73 -> Volume Total (m³)=(Volume de Compactação Meio Fio MFC-05) + Volume de Aterro Manual = ( 20,03+179,95+72,16+6,68+16,77+0+0) = 295,59 | I73: =ROUND(IFERROR(IF(VLOOKUP(I$5,'Consolidado Drenagem'!$A$15:$AE$21,4,0)=0,0,VLOOKUP(I$5,'Consolidado Drenagem'!$A$15:$AE$21,4,0)) + IF(VLOOKUP(I$5,'Consolidado Drenagem'!$A$15:$AE$21,5,0)=0,0,VLOOKUP(I$5,'Consolidado Drenagem'!$A$15:$AE$21,5,0)),0),2) -> 20.03 | J73: =ROUND(IFERROR(IF(VLOOKUP(J$5,'Consolidado Drenagem'!$A$15:$AE$21,4,0)=0,0,VLOOKUP(J$5,'Consolidado Drenagem'!$A$15:$AE$21,4,0)) + IF(VLOOKUP(J$5,'Consolidado Drenagem'!$A$15:$AE$21,5,0)=0,0,VLOOKUP(J$5,'Consolidado Drenagem'!$A$15:$AE$21,5,0)),0),2) -> 179.95 | K73: =ROUND(IFERROR(IF(VLOOKUP(K$5,'Consolidado Drenagem'!$A$15:$AE$21,4,0)=0,0,VLOOKUP(K$5,'Consolidado Drenagem'!$A$15:$AE$21,4,0)) + IF(VLOOKUP(K$5,'Consolidado Drenagem'!$A$15:$AE$21,5,0)=0,0,VLOOKUP(K$5,'Consolidado Drenagem'!$A$15:$AE$21,5,0)),0),2) -> 72.16 | L73: =ROUND(IFERROR(IF(VLOOKUP(L$5,'Consolidado Drenagem'!$A$15:$AE$21,4,0)=0,0,VLOOKUP(L$5,'Consolidado Drenagem'!$A$15:$AE$21,4,0)) + IF(VLOOKUP(L$5,'Consolidado Drenagem'!$A$15:$AE$21,5,0)=0,0,VLOOKUP(L$5,'Consolidado Drenagem'!$A$15:$AE$21,5,0)),0),2) -> 6.68 | M73: =ROUND(IFERROR(IF(VLOOKUP(M$5,'Consolidado Drenagem'!$A$15:$AE$21,4,0)=0,0,VLOOKUP(M$5,'Consolidado Drenagem'!$A$15:$AE$21,4,0)) + IF(VLOOKUP(M$5,'Consolidado Drenagem'!$A$15:$AE$21,5,0)=0,0,VLOOKUP(M$5,'Consolidado Drenagem'!$A$15:$AE$21,5,0)),0),2) -> 16.77 | N73: =ROUND(IFERROR(IF(VLOOKUP(N$5,'Consolidado Drenagem'!$A$15:$AE$21,4,0)=0,0,VLOOKUP(N$5,'Consolidado Drenagem'!$A$15:$AE$21,4,0)) + IF(VLOOKUP(N$5,'Consolidado Drenagem'!$A$15:$AE$21,5,0)=0,0,VLOOKUP(N$5,'Consolidado Drenagem'!$A$15:$AE$21,5,0)),0),2) -> 0 | O73: =ROUND(IFERROR(IF(VLOOKUP(O$5,'Consolidado Drenagem'!$A$15:$AE$21,4,0)=0,0,VLOOKUP(O$5,'Consolidado Drenagem'!$A$15:$AE$21,4,0)) + IF(VLOOKUP(O$5,'Consolidado Drenagem'!$A$15:$AE$21,5,0)=0,0,VLOOKUP(O$5,'Consolidado Drenagem'!$A$15:$AE$21,5,0)),0),2) -> 0 | P73: ='Consolidado Drenagem'!D21+'Consolidado Drenagem'!E21 -> 295.5790125 | Q73: -0.0109875 | R73: =#REF! ->  | V73: =F73-#REF! -> 
A74: 8.5 | B74: 2003177 | C74: SICRO3 | D74: Dissipador de energia - DED 02 A - areia, brita e pedra de mão comerciais | E74: un | F74: 23 | G74: Quantidade DED 02 A (Und.) | H74: =G74&$S$3&$U$3&" "&I74&$W$3&J74&$W$3&K74&$W$3&L74&$W$3&M74&$W$3&N74&$W$3&O74&$T$3&$S$3&" "&F74 -> Quantidade DED 02 A (Und.) = ( 1+16+4+1+1+0+0) = 23 | I74: =ROUND(IFERROR(IF(VLOOKUP(I$5,'Consolidado Drenagem'!$A$15:$AE$21,19,0)=0,0,VLOOKUP(I$5,'Consolidado Drenagem'!$A$15:$AE$21,19,0)),0),2) -> 1 | J74: =ROUND(IFERROR(IF(VLOOKUP(J$5,'Consolidado Drenagem'!$A$15:$AE$21,19,0)=0,0,VLOOKUP(J$5,'Consolidado Drenagem'!$A$15:$AE$21,19,0)),0),2) -> 16 | K74: =ROUND(IFERROR(IF(VLOOKUP(K$5,'Consolidado Drenagem'!$A$15:$AE$21,19,0)=0,0,VLOOKUP(K$5,'Consolidado Drenagem'!$A$15:$AE$21,19,0)),0),2) -> 4 | L74: =ROUND(IFERROR(IF(VLOOKUP(L$5,'Consolidado Drenagem'!$A$15:$AE$21,19,0)=0,0,VLOOKUP(L$5,'Consolidado Drenagem'!$A$15:$AE$21,19,0)),0),2) -> 1 | M74: =ROUND(IFERROR(IF(VLOOKUP(M$5,'Consolidado Drenagem'!$A$15:$AE$21,19,0)=0,0,VLOOKUP(M$5,'Consolidado Drenagem'!$A$15:$AE$21,19,0)),0),2) -> 1 | N74: =ROUND(IFERROR(IF(VLOOKUP(N$5,'Consolidado Drenagem'!$A$15:$AE$21,19,0)=0,0,VLOOKUP(N$5,'Consolidado Drenagem'!$A$15:$AE$21,19,0)),0),2) -> 0 | O74: =ROUND(IFERROR(IF(VLOOKUP(O$5,'Consolidado Drenagem'!$A$15:$AE$21,19,0)=0,0,VLOOKUP(O$5,'Consolidado Drenagem'!$A$15:$AE$21,19,0)),0),2) -> 0 | P74: ='Consolidado Drenagem'!S21 -> 23 | Q74: 0 | R74: =#REF! ->  | V74: =F74-#REF! -> 
A75: 8.6 | B75: 2003115 | C75: SICRO3 | D75: Entrada para descida d'água - EDA 01 B - areia e brita comerciais | E75: un | F75: 13 | G75: Quantidade EDA 01 B (Und.) | H75: Quantidade EDA 01 B (Und.) = ( 0+8+4+0+1+0+0) = 13 | I75: =ROUND(IFERROR(IF(VLOOKUP(I$5,'Consolidado Drenagem'!$A$15:$AE$21,20,0)=0,0,VLOOKUP(I$5,'Consolidado Drenagem'!$A$15:$AE$21,20,0)),0),2) -> 0 | J75: =ROUND(IFERROR(IF(VLOOKUP(J$5,'Consolidado Drenagem'!$A$15:$AE$21,20,0)=0,0,VLOOKUP(J$5,'Consolidado Drenagem'!$A$15:$AE$21,20,0)),0),2) -> 8 | K75: =ROUND(IFERROR(IF(VLOOKUP(K$5,'Consolidado Drenagem'!$A$15:$AE$21,20,0)=0,0,VLOOKUP(K$5,'Consolidado Drenagem'!$A$15:$AE$21,20,0)),0),2) -> 4 | L75: =ROUND(IFERROR(IF(VLOOKUP(L$5,'Consolidado Drenagem'!$A$15:$AE$21,20,0)=0,0,VLOOKUP(L$5,'Consolidado Drenagem'!$A$15:$AE$21,20,0)),0),2) -> 0 | M75: =ROUND(IFERROR(IF(VLOOKUP(M$5,'Consolidado Drenagem'!$A$15:$AE$21,20,0)=0,0,VLOOKUP(M$5,'Consolidado Drenagem'!$A$15:$AE$21,20,0)),0),2) -> 1 | N75: =ROUND(IFERROR(IF(VLOOKUP(N$5,'Consolidado Drenagem'!$A$15:$AE$21,20,0)=0,0,VLOOKUP(N$5,'Consolidado Drenagem'!$A$15:$AE$21,20,0)),0),2) -> 0 | O75: =ROUND(IFERROR(IF(VLOOKUP(O$5,'Consolidado Drenagem'!$A$15:$AE$21,20,0)=0,0,VLOOKUP(O$5,'Consolidado Drenagem'!$A$15:$AE$21,20,0)),0),2) -> 0 | P75: ='Consolidado Drenagem'!T21 -> 13 | Q75: 0 | R75: =#REF! ->  | V75: =F75-#REF! -> 
A76: 8.7 | B76: 2003103 | C76: SICRO3 | D76: Entrada para descida d'água - EDA 01 A - areia e brita comerciais | E76: un | F76: 23 | G76: Quantidade EDA 01 A (Und.) | H76: Quantidade EDA 01 A (Und.) = ( 1+16+4+1+1+0+0) = 23 | I76: =ROUND(IFERROR(IF(VLOOKUP(I$5,'Consolidado Drenagem'!$A$15:$AE$21,21,0)=0,0,VLOOKUP(I$5,'Consolidado Drenagem'!$A$15:$AE$21,21,0)),0),2) -> 1 | J76: =ROUND(IFERROR(IF(VLOOKUP(J$5,'Consolidado Drenagem'!$A$15:$AE$21,21,0)=0,0,VLOOKUP(J$5,'Consolidado Drenagem'!$A$15:$AE$21,21,0)),0),2) -> 16 | K76: =ROUND(IFERROR(IF(VLOOKUP(K$5,'Consolidado Drenagem'!$A$15:$AE$21,21,0)=0,0,VLOOKUP(K$5,'Consolidado Drenagem'!$A$15:$AE$21,21,0)),0),2) -> 4 | L76: =ROUND(IFERROR(IF(VLOOKUP(L$5,'Consolidado Drenagem'!$A$15:$AE$21,21,0)=0,0,VLOOKUP(L$5,'Consolidado Drenagem'!$A$15:$AE$21,21,0)),0),2) -> 1 | M76: =ROUND(IFERROR(IF(VLOOKUP(M$5,'Consolidado Drenagem'!$A$15:$AE$21,21,0)=0,0,VLOOKUP(M$5,'Consolidado Drenagem'!$A$15:$AE$21,21,0)),0),2) -> 1 | N76: =ROUND(IFERROR(IF(VLOOKUP(N$5,'Consolidado Drenagem'!$A$15:$AE$21,21,0)=0,0,VLOOKUP(N$5,'Consolidado Drenagem'!$A$15:$AE$21,21,0)),0),2) -> 0 | O76: =ROUND(IFERROR(IF(VLOOKUP(O$5,'Consolidado Drenagem'!$A$15:$AE$21,21,0)=0,0,VLOOKUP(O$5,'Consolidado Drenagem'!$A$15:$AE$21,21,0)),0),2) -> 0 | P76: ='Consolidado Drenagem'!U21 -> 23 | Q76: 0 | R76: =#REF! ->  | V76: =F76-#REF! -> 
A77: 8.8 | B77: 2003455 | C77: SICRO3 | D77: Dissipador de energia - DEB 240-316 - areia, brita e pedra de mão comerciais | E77: un | F77: 2 | G77: Quantidade DEB 240-316 (Und.) | H77: Quantidade DEB 240-316 (Und.) = ( 0+1+1+0+0+0+0) = 2 | I77: =ROUND(IFERROR(IF(VLOOKUP(I$5,'Consolidado Drenagem'!$A$15:$AE$21,22,0)=0,0,VLOOKUP(I$5,'Consolidado Drenagem'!$A$15:$AE$21,22,0)),0),2) -> 0 | J77: =ROUND(IFERROR(IF(VLOOKUP(J$5,'Consolidado Drenagem'!$A$15:$AE$21,22,0)=0,0,VLOOKUP(J$5,'Consolidado Drenagem'!$A$15:$AE$21,22,0)),0),2) -> 1 | K77: =ROUND(IFERROR(IF(VLOOKUP(K$5,'Consolidado Drenagem'!$A$15:$AE$21,22,0)=0,0,VLOOKUP(K$5,'Consolidado Drenagem'!$A$15:$AE$21,22,0)),0),2) -> 1 | L77: =ROUND(IFERROR(IF(VLOOKUP(L$5,'Consolidado Drenagem'!$A$15:$AE$21,22,0)=0,0,VLOOKUP(L$5,'Consolidado Drenagem'!$A$15:$AE$21,22,0)),0),2) -> 0 | M77: =ROUND(IFERROR(IF(VLOOKUP(M$5,'Consolidado Drenagem'!$A$15:$AE$21,22,0)=0,0,VLOOKUP(M$5,'Consolidado Drenagem'!$A$15:$AE$21,22,0)),0),2) -> 0 | N77: =ROUND(IFERROR(IF(VLOOKUP(N$5,'Consolidado Drenagem'!$A$15:$AE$21,22,0)=0,0,VLOOKUP(N$5,'Consolidado Drenagem'!$A$15:$AE$21,22,0)),0),2) -> 0 | O77: =ROUND(IFERROR(IF(VLOOKUP(O$5,'Consolidado Drenagem'!$A$15:$AE$21,22,0)=0,0,VLOOKUP(O$5,'Consolidado Drenagem'!$A$15:$AE$21,22,0)),0),2) -> 0 | P77: ='Consolidado Drenagem'!V21 -> 2 | Q77: 0 | R77: =#REF! ->  | V77: =F77-#REF! -> 
A78: 8.9 | B78: 2003457 | C78: SICRO3 | D78: Dissipador de energia - DEB 300-366 - areia, brita e pedra de mão comerciais | E78: un | F78: 16 | G78: Quantidade DEB 300-366 (Und.) | H78: Quantidade DEB 300-366 (Und.) = ( 1+8+3+3+1+0+0) = 16 | I78: =ROUND(IFERROR(IF(VLOOKUP(I$5,'Consolidado Drenagem'!$A$15:$AE$21,23,0)=0,0,VLOOKUP(I$5,'Consolidado Drenagem'!$A$15:$AE$21,23,0)),0),2) -> 1 | J78: =ROUND(IFERROR(IF(VLOOKUP(J$5,'Consolidado Drenagem'!$A$15:$AE$21,23,0)=0,0,VLOOKUP(J$5,'Consolidado Drenagem'!$A$15:$AE$21,23,0)),0),2) -> 8 | K78: =ROUND(IFERROR(IF(VLOOKUP(K$5,'Consolidado Drenagem'!$A$15:$AE$21,23,0)=0,0,VLOOKUP(K$5,'Consolidado Drenagem'!$A$15:$AE$21,23,0)),0),2) -> 3 | L78: =ROUND(IFERROR(IF(VLOOKUP(L$5,'Consolidado Drenagem'!$A$15:$AE$21,23,0)=0,0,VLOOKUP(L$5,'Consolidado Drenagem'!$A$15:$AE$21,23,0)),0),2) -> 3 | M78: =ROUND(IFERROR(IF(VLOOKUP(M$5,'Consolidado Drenagem'!$A$15:$AE$21,23,0)=0,0,VLOOKUP(M$5,'Consolidado Drenagem'!$A$15:$AE$21,23,0)),0),2) -> 1 | N78: =ROUND(IFERROR(IF(VLOOKUP(N$5,'Consolidado Drenagem'!$A$15:$AE$21,23,0)=0,0,VLOOKUP(N$5,'Consolidado Drenagem'!$A$15:$AE$21,23,0)),0),2) -> 0 | O78: =ROUND(IFERROR(IF(VLOOKUP(O$5,'Consolidado Drenagem'!$A$15:$AE$21,23,0)=0,0,VLOOKUP(O$5,'Consolidado Drenagem'!$A$15:$AE$21,23,0)),0),2) -> 0 | P78: ='Consolidado Drenagem'!W21 -> 16 | Q78: 0 | R78: =#REF! ->  | V78: =F78-#REF! -> 
A79: 8.10 | B79: 2003463 | C79: SICRO3 | D79: Dissipador de energia - DEB 300-511 - areia, brita e pedra de mão comerciais | E79: un | F79: 3 | G79: Quantidade DEB 300-511 (Und.) | H79: Quantidade DEB 300-511 (Und.) = ( 0+3+0+0+0+0+0) = 3 | I79: =ROUND(IFERROR(IF(VLOOKUP(I$5,'Consolidado Drenagem'!$A$15:$AE$21,24,0)=0,0,VLOOKUP(I$5,'Consolidado Drenagem'!$A$15:$AE$21,24,0)),0),2) -> 0 | J79: =ROUND(IFERROR(IF(VLOOKUP(J$5,'Consolidado Drenagem'!$A$15:$AE$21,24,0)=0,0,VLOOKUP(J$5,'Consolidado Drenagem'!$A$15:$AE$21,24,0)),0),2) -> 3 | K79: =ROUND(IFERROR(IF(VLOOKUP(K$5,'Consolidado Drenagem'!$A$15:$AE$21,24,0)=0,0,VLOOKUP(K$5,'Consolidado Drenagem'!$A$15:$AE$21,24,0)),0),2) -> 0 | L79: =ROUND(IFERROR(IF(VLOOKUP(L$5,'Consolidado Drenagem'!$A$15:$AE$21,24,0)=0,0,VLOOKUP(L$5,'Consolidado Drenagem'!$A$15:$AE$21,24,0)),0),2) -> 0 | M79: =ROUND(IFERROR(IF(VLOOKUP(M$5,'Consolidado Drenagem'!$A$15:$AE$21,24,0)=0,0,VLOOKUP(M$5,'Consolidado Drenagem'!$A$15:$AE$21,24,0)),0),2) -> 0 | N79: =ROUND(IFERROR(IF(VLOOKUP(N$5,'Consolidado Drenagem'!$A$15:$AE$21,24,0)=0,0,VLOOKUP(N$5,'Consolidado Drenagem'!$A$15:$AE$21,24,0)),0),2) -> 0 | O79: =ROUND(IFERROR(IF(VLOOKUP(O$5,'Consolidado Drenagem'!$A$15:$AE$21,24,0)=0,0,VLOOKUP(O$5,'Consolidado Drenagem'!$A$15:$AE$21,24,0)),0),2) -> 0 | P79: ='Consolidado Drenagem'!X21 -> 3 | Q79: 0 | R79: =#REF! ->  | V79: =F79-#REF! -> 
A80: 8.11 | B80: 2003473 | C80: SICRO3 | D80: Dissipador de energia - DEB 450-956 - areia, brita e pedra de mão comerciais | E80: un | F80: 1 | G80: Quantidade DEB 450-956 (Und.) | H80: Quantidade DEB 450-956 (Und.) = ( 0+1+0+0+0+0+0) = 1 | I80: =ROUND(IFERROR(IF(VLOOKUP(I$5,'Consolidado Drenagem'!$A$15:$AE$21,25,0)=0,0,VLOOKUP(I$5,'Consolidado Drenagem'!$A$15:$AE$21,25,0)),0),2) -> 0 | J80: =ROUND(IFERROR(IF(VLOOKUP(J$5,'Consolidado Drenagem'!$A$15:$AE$21,25,0)=0,0,VLOOKUP(J$5,'Consolidado Drenagem'!$A$15:$AE$21,25,0)),0),2) -> 1 | K80: =ROUND(IFERROR(IF(VLOOKUP(K$5,'Consolidado Drenagem'!$A$15:$AE$21,25,0)=0,0,VLOOKUP(K$5,'Consolidado Drenagem'!$A$15:$AE$21,25,0)),0),2) -> 0 | L80: =ROUND(IFERROR(IF(VLOOKUP(L$5,'Consolidado Drenagem'!$A$15:$AE$21,25,0)=0,0,VLOOKUP(L$5,'Consolidado Drenagem'!$A$15:$AE$21,25,0)),0),2) -> 0 | M80: =ROUND(IFERROR(IF(VLOOKUP(M$5,'Consolidado Drenagem'!$A$15:$AE$21,25,0)=0,0,VLOOKUP(M$5,'Consolidado Drenagem'!$A$15:$AE$21,25,0)),0),2) -> 0 | N80: =ROUND(IFERROR(IF(VLOOKUP(N$5,'Consolidado Drenagem'!$A$15:$AE$21,25,0)=0,0,VLOOKUP(N$5,'Consolidado Drenagem'!$A$15:$AE$21,25,0)),0),2) -> 0 | O80: =ROUND(IFERROR(IF(VLOOKUP(O$5,'Consolidado Drenagem'!$A$15:$AE$21,25,0)=0,0,VLOOKUP(O$5,'Consolidado Drenagem'!$A$15:$AE$21,25,0)),0),2) -> 0 | P80: ='Consolidado Drenagem'!Y21 -> 1 | Q80: 0 | R80: =#REF! ->  | V80: =F80-#REF! -> 
A81: 8.12 | B81: 2003389 | C81: SICRO3 | D81: Descida d'água de aterros tipo rápido - DAR 40-20 - areia e brita comerciais | E81: m | F81: 91.61 | G81: Comprimento DAR 40-20(m) | H81: =G81&$S$3&$U$3&" "&I81&$W$3&J81&$W$3&K81&$W$3&L81&$W$3&M81&$W$3&N81&$W$3&O81&$T$3&$S$3&" "&F81 -> Comprimento DAR 40-20(m) = ( 2,13+58,9+22,57+3,45+4,56+0+0) = 91,61 | I81: =ROUND(IFERROR(IF(VLOOKUP(I$5,'Consolidado Drenagem'!$A$15:$AE$21,18,0)=0,0,VLOOKUP(I$5,'Consolidado Drenagem'!$A$15:$AE$21,18,0)),0),2) -> 2.13 | J81: =ROUND(IFERROR(IF(VLOOKUP(J$5,'Consolidado Drenagem'!$A$15:$AE$21,18,0)=0,0,VLOOKUP(J$5,'Consolidado Drenagem'!$A$15:$AE$21,18,0)),0),2) -> 58.9 | K81: =ROUND(IFERROR(IF(VLOOKUP(K$5,'Consolidado Drenagem'!$A$15:$AE$21,18,0)=0,0,VLOOKUP(K$5,'Consolidado Drenagem'!$A$15:$AE$21,18,0)),0),2) -> 22.57 | L81: =ROUND(IFERROR(IF(VLOOKUP(L$5,'Consolidado Drenagem'!$A$15:$AE$21,18,0)=0,0,VLOOKUP(L$5,'Consolidado Drenagem'!$A$15:$AE$21,18,0)),0),2) -> 3.45 | M81: =ROUND(IFERROR(IF(VLOOKUP(M$5,'Consolidado Drenagem'!$A$15:$AE$21,18,0)=0,0,VLOOKUP(M$5,'Consolidado Drenagem'!$A$15:$AE$21,18,0)),0),2) -> 4.56 | N81: =ROUND(IFERROR(IF(VLOOKUP(N$5,'Consolidado Drenagem'!$A$15:$AE$21,18,0)=0,0,VLOOKUP(N$5,'Consolidado Drenagem'!$A$15:$AE$21,18,0)),0),2) -> 0 | O81: =ROUND(IFERROR(IF(VLOOKUP(O$5,'Consolidado Drenagem'!$A$15:$AE$21,18,0)=0,0,VLOOKUP(O$5,'Consolidado Drenagem'!$A$15:$AE$21,18,0)),0),2) -> 0 | P81: ='Consolidado Drenagem'!R21 -> 91.61 | Q81: 0 | R81: =#REF! ->  | V81: =F81-#REF! -> 
A82: 9 | D82: SINALIZAÇÃO | Q82: 0
A83: 9.1 | B83: 5213417 | C83: SICRO3 | D83: Placa em aço nº 16 galvanizado com película retrorrefletiva tipo I + III - confecção | E83: m² | F83: =ROUND((SUM(I83:O83)),2) -> 91.93 | G83: Área de placas Placa Indicativa (UN x 1,0 x 0,5)+ Placa de Regulamentação (UN x (3,1416 x 0,5^2))+ Placa de Advertência (UN x 1,0 x 1,0) Placa dê Preferência ((√3/4)x 1,0²) | H83: =G83&$S$3&$U$3&" "&I83&$W$3&J83&$W$3&L83&$W$3&M83&$W$3&N83&$W$3&O83&$W$3&K83&$T$3&$S$3&" "&F83 -> Área de placas Placa Indicativa (UN x 1,0 x 0,5)+ Placa de Regulamentação (UN x (3,1416 x 0,5^2))+ Placa de Advertência (UN x 1,0 x 1,0) Placa dê Preferência ((√3/4)x 1,0²) = ( 4,14+52,93+10,5+2,07+3,57+3,57+15,15) = 91,93 | I83: =ROUND((((IFERROR(VLOOKUP(I$5,'Consolidado Sinalização'!$A$15:$AK$25,2,0),0)))*1*0.5)+(((IFERROR(VLOOKUP(I$5,'Consolidado Sinalização'!$A$15:$AK$25,3,0),0)))*(3.1416*(0.5^2)))+(((IFERROR(VLOOKUP(I$5,'Consolidado Sinalização'!$A$15:$AK$25,5,0),0)))*(1*1))+(((IFERROR(VLOOKUP(I$5,'Consolidado Sinalização'!$A$15:$AK$25,4,0),0)))*(SQRT(3)/4)*1^2),2) -> 4.14 | J83: =ROUND((((IFERROR(VLOOKUP(J$5,'Consolidado Sinalização'!$A$15:$AK$25,2,0),0)))*1*0.5)+(((IFERROR(VLOOKUP(J$5,'Consolidado Sinalização'!$A$15:$AK$25,3,0),0)))*(3.1416*(0.5^2)))+(((IFERROR(VLOOKUP(J$5,'Consolidado Sinalização'!$A$15:$AK$25,5,0),0)))*(1*1))+(((IFERROR(VLOOKUP(J$5,'Consolidado Sinalização'!$A$15:$AK$25,4,0),0)))*(SQRT(3)/4)*1^2),2) -> 52.93 | K83: =ROUND((((IFERROR(VLOOKUP(K$5,'Consolidado Sinalização'!$A$15:$AK$25,2,0),0)))*1*0.5)+(((IFERROR(VLOOKUP(K$5,'Consolidado Sinalização'!$A$15:$AK$25,3,0),0)))*(3.1416*(0.5^2)))+(((IFERROR(VLOOKUP(K$5,'Consolidado Sinalização'!$A$15:$AK$25,5,0),0)))*(1*1))+(((IFERROR(VLOOKUP(K$5,'Consolidado Sinalização'!$A$15:$AK$25,4,0),0)))*(SQRT(3)/4)*1^2),2) -> 15.15 | L83: =ROUND((((IFERROR(VLOOKUP(L$5,'Consolidado Sinalização'!$A$15:$AK$25,2,0),0)))*1*0.5)+(((IFERROR(VLOOKUP(L$5,'Consolidado Sinalização'!$A$15:$AK$25,3,0),0)))*(3.1416*(0.5^2)))+(((IFERROR(VLOOKUP(L$5,'Consolidado Sinalização'!$A$15:$AK$25,5,0),0)))*(1*1))+(((IFERROR(VLOOKUP(L$5,'Consolidado Sinalização'!$A$15:$AK$25,4,0),0)))*(SQRT(3)/4)*1^2),2) -> 10.5 | M83: =ROUND((((IFERROR(VLOOKUP(M$5,'Consolidado Sinalização'!$A$15:$AK$25,2,0),0)))*1*0.5)+(((IFERROR(VLOOKUP(M$5,'Consolidado Sinalização'!$A$15:$AK$25,3,0),0)))*(3.1416*(0.5^2)))+(((IFERROR(VLOOKUP(M$5,'Consolidado Sinalização'!$A$15:$AK$25,5,0),0)))*(1*1))+(((IFERROR(VLOOKUP(M$5,'Consolidado Sinalização'!$A$15:$AK$25,4,0),0)))*(SQRT(3)/4)*1^2),2) -> 2.07 | N83: =ROUND((((IFERROR(VLOOKUP(N$5,'Consolidado Sinalização'!$A$15:$AK$25,2,0),0)))*1*0.5)+(((IFERROR(VLOOKUP(N$5,'Consolidado Sinalização'!$A$15:$AK$25,3,0),0)))*(3.1416*(0.5^2)))+(((IFERROR(VLOOKUP(N$5,'Consolidado Sinalização'!$A$15:$AK$25,5,0),0)))*(1*1))+(((IFERROR(VLOOKUP(N$5,'Consolidado Sinalização'!$A$15:$AK$25,4,0),0)))*(SQRT(3)/4)*1^2),2) -> 3.57 | O83: =ROUND((((IFERROR(VLOOKUP(O$5,'Consolidado Sinalização'!$A$15:$AK$25,2,0),0)))*1*0.5)+(((IFERROR(VLOOKUP(O$5,'Consolidado Sinalização'!$A$15:$AK$25,3,0),0)))*(3.1416*(0.5^2)))+(((IFERROR(VLOOKUP(O$5,'Consolidado Sinalização'!$A$15:$AK$25,5,0),0)))*(1*1))+(((IFERROR(VLOOKUP(O$5,'Consolidado Sinalização'!$A$15:$AK$25,4,0),0)))*(SQRT(3)/4)*1^2),2) -> 3.57 | P83: =('Consolidado Sinalização'!B23)*1*0.5+('Consolidado Sinalização'!C23*(3.1416*(0.5^2))+('Consolidado Sinalização'!E23)*1*1+('Consolidado Sinalização'!D23)*(SQRT((3))/4)*1^2) -> 91.94371432 | Q83: 0.01371431703 | R83: =#REF! ->  | V83: =F83-#REF! -> 
A84: 9.2 | B84: 5213351 | C84: SICRO3 | D84: Suporte polimérico ecológico maciço colapsível D = 6,5 cm para placa de sinalização - fornecimento e implantação | E84: un | F84: =ROUND((SUM(I84:O84)),2) -> 132 | G84: Quantitativos das placas Placa Indicativa (UN)+ Placa de Regulamentação (UN)+ Placa de Advertência (UN)+ Placa de Preferência (UN) | H84: =G84&$S$3&$U$3&" "&I84&$W$3&J84&$W$3&L84&$W$3&M84&$W$3&N84&$W$3&O84&$W$3&K84&$T$3&$S$3&" "&F84 -> Quantitativos das placas Placa Indicativa (UN)+ Placa de Regulamentação (UN)+ Placa de Advertência (UN)+ Placa de Preferência (UN) = ( 8+73+16+4+5+5+21) = 132 | I84: =ROUND((((IFERROR(VLOOKUP(I$5,'Consolidado Sinalização'!$A$15:$AK$25,2,0)*2,0))))+(((IFERROR(VLOOKUP(I$5,'Consolidado Sinalização'!$A$15:$AK$25,3,0),0))))+(((IFERROR(VLOOKUP(I$5,'Consolidado Sinalização'!$A$15:$AK$25,4,0),0))))+(((IFERROR(VLOOKUP(I$5,'Consolidado Sinalização'!$A$15:$AK$25,5,0),0)))),2) -> 8 | J84: =ROUND((((IFERROR(VLOOKUP(J$5,'Consolidado Sinalização'!$A$15:$AK$25,2,0)*2,0))))+(((IFERROR(VLOOKUP(J$5,'Consolidado Sinalização'!$A$15:$AK$25,3,0),0))))+(((IFERROR(VLOOKUP(J$5,'Consolidado Sinalização'!$A$15:$AK$25,4,0),0))))+(((IFERROR(VLOOKUP(J$5,'Consolidado Sinalização'!$A$15:$AK$25,5,0),0)))),2) -> 73 | K84: =ROUND((((IFERROR(VLOOKUP(K$5,'Consolidado Sinalização'!$A$15:$AK$25,2,0)*2,0))))+(((IFERROR(VLOOKUP(K$5,'Consolidado Sinalização'!$A$15:$AK$25,3,0),0))))+(((IFERROR(VLOOKUP(K$5,'Consolidado Sinalização'!$A$15:$AK$25,4,0),0))))+(((IFERROR(VLOOKUP(K$5,'Consolidado Sinalização'!$A$15:$AK$25,5,0),0)))),2) -> 21 | L84: =ROUND((((IFERROR(VLOOKUP(L$5,'Consolidado Sinalização'!$A$15:$AK$25,2,0)*2,0))))+(((IFERROR(VLOOKUP(L$5,'Consolidado Sinalização'!$A$15:$AK$25,3,0),0))))+(((IFERROR(VLOOKUP(L$5,'Consolidado Sinalização'!$A$15:$AK$25,4,0),0))))+(((IFERROR(VLOOKUP(L$5,'Consolidado Sinalização'!$A$15:$AK$25,5,0),0)))),2) -> 16 | M84: =ROUND((((IFERROR(VLOOKUP(M$5,'Consolidado Sinalização'!$A$15:$AK$25,2,0)*2,0))))+(((IFERROR(VLOOKUP(M$5,'Consolidado Sinalização'!$A$15:$AK$25,3,0),0))))+(((IFERROR(VLOOKUP(M$5,'Consolidado Sinalização'!$A$15:$AK$25,4,0),0))))+(((IFERROR(VLOOKUP(M$5,'Consolidado Sinalização'!$A$15:$AK$25,5,0),0)))),2) -> 4 | N84: =ROUND((((IFERROR(VLOOKUP(N$5,'Consolidado Sinalização'!$A$15:$AK$25,2,0)*2,0))))+(((IFERROR(VLOOKUP(N$5,'Consolidado Sinalização'!$A$15:$AK$25,3,0),0))))+(((IFERROR(VLOOKUP(N$5,'Consolidado Sinalização'!$A$15:$AK$25,4,0),0))))+(((IFERROR(VLOOKUP(N$5,'Consolidado Sinalização'!$A$15:$AK$25,5,0),0)))),2) -> 5 | O84: =ROUND((((IFERROR(VLOOKUP(O$5,'Consolidado Sinalização'!$A$15:$AK$25,2,0)*2,0))))+(((IFERROR(VLOOKUP(O$5,'Consolidado Sinalização'!$A$15:$AK$25,3,0),0))))+(((IFERROR(VLOOKUP(O$5,'Consolidado Sinalização'!$A$15:$AK$25,4,0),0))))+(((IFERROR(VLOOKUP(O$5,'Consolidado Sinalização'!$A$15:$AK$25,5,0),0)))),2) -> 5 | P84: ='Consolidado Sinalização'!F23 -> 132 | Q84: 0 | R84: =#REF! ->  | V84: =F84-#REF! -> 
A85: 9.3 | B85: 5213403 | C85: SICRO3 | D85: Pintura de faixa com tinta acrílica emulsionada em água - espessura de 0,5 mm | E85: m² | F85: =ROUND((SUM(I85:O85)),2) -> 2512.36 | G85: Área total de Pintura(m²) = LINHA SIMPLES - Comprimento das linhas x 0,10 m + LINHA SIMPLES TRACEJADA 1/3 - Comprimento das linhas/3 x 0,10 m | H85: =G85&$S$3&$U$3&" "&I85&$W$3&J85&$W$3&L85&$W$3&M85&$W$3&N85&$W$3&O85&$W$3&K85&$T$3&$S$3&" "&F85 -> Área total de Pintura(m²) = LINHA SIMPLES - Comprimento das linhas x 0,10 m + LINHA SIMPLES TRACEJADA 1/3 - Comprimento das linhas/3 x 0,10 m = ( 44,55+1347,07+189,26+183,51+10,55+10,58+726,84) = 2512,36 | I85: =ROUND((((IFERROR((VLOOKUP(I$5,'Consolidado Sinalização'!$A$15:$AK$25,7,0)/3)*0.1,0))))+(((IFERROR(VLOOKUP(I$5,'Consolidado Sinalização'!$A$15:$AK$25,8,0)*0.1,0)))),2) -> 44.55 | J85: =ROUND((((IFERROR((VLOOKUP(J$5,'Consolidado Sinalização'!$A$15:$AK$25,7,0)/3)*0.1,0))))+(((IFERROR(VLOOKUP(J$5,'Consolidado Sinalização'!$A$15:$AK$25,8,0)*0.1,0)))),2) -> 1347.07 | K85: =ROUND((((IFERROR((VLOOKUP(K$5,'Consolidado Sinalização'!$A$15:$AK$25,7,0)/3)*0.1,0))))+(((IFERROR(VLOOKUP(K$5,'Consolidado Sinalização'!$A$15:$AK$25,8,0)*0.1,0)))),2) -> 726.84 | L85: =ROUND((((IFERROR((VLOOKUP(L$5,'Consolidado Sinalização'!$A$15:$AK$25,7,0)/3)*0.1,0))))+(((IFERROR(VLOOKUP(L$5,'Consolidado Sinalização'!$A$15:$AK$25,8,0)*0.1,0)))),2) -> 189.26 | M85: =ROUND((((IFERROR((VLOOKUP(M$5,'Consolidado Sinalização'!$A$15:$AK$25,7,0)/3)*0.1,0))))+(((IFERROR(VLOOKUP(M$5,'Consolidado Sinalização'!$A$15:$AK$25,8,0)*0.1,0)))),2) -> 183.51 | N85: =ROUND((((IFERROR((VLOOKUP(N$5,'Consolidado Sinalização'!$A$15:$AK$25,7,0)/3)*0.1,0))))+(((IFERROR(VLOOKUP(N$5,'Consolidado Sinalização'!$A$15:$AK$25,8,0)*0.1,0)))),2) -> 10.55 | O85: =ROUND((((IFERROR((VLOOKUP(O$5,'Consolidado Sinalização'!$A$15:$AK$25,7,0)/3)*0.1,0))))+(((IFERROR(VLOOKUP(O$5,'Consolidado Sinalização'!$A$15:$AK$25,8,0)*0.1,0)))),2) -> 10.58 | P85: =('Consolidado Sinalização'!H23)*0.1+(('Consolidado Sinalização'!G23)/3)*0.1 -> 2512.36 | Q85: 0 | R85: =#REF! ->  | V85: =F85-#REF! -> 
A86: 9.4 | B86: 5213407 | C86: SICRO3 | D86: Pintura de setas e zebrados com tinta acrílica emulsionada em água - espessura de 0,5 mm | E86: m² | F86: =ROUND((SUM(I86:O86)),2) -> 392.2 | G86: Área de setas e zebrados (m²) = | H86: =G86&$S$3&$U$3&" "&I86&$W$3&J86&$W$3&L86&$W$3&M86&$W$3&N86&$W$3&O86&$W$3&K86&$T$3&$S$3&" "&F86 -> Área de setas e zebrados (m²) = = ( 0+132,12+0+114,6+0+0+145,48) = 392,2 | I86: =ROUND((((IFERROR(VLOOKUP(I$5,'Consolidado Sinalização'!$A$15:$AK$25,9,0),0)))),2) -> 0 | J86: =ROUND((((IFERROR(VLOOKUP(J$5,'Consolidado Sinalização'!$A$15:$AK$25,9,0),0)))),2) -> 132.12 | K86: =ROUND((((IFERROR(VLOOKUP(K$5,'Consolidado Sinalização'!$A$15:$AK$25,9,0),0)))),2) -> 145.48 | L86: =ROUND((((IFERROR(VLOOKUP(L$5,'Consolidado Sinalização'!$A$15:$AK$25,9,0),0)))),2) -> 0 | M86: =ROUND((((IFERROR(VLOOKUP(M$5,'Consolidado Sinalização'!$A$15:$AK$25,9,0),0)))),2) -> 114.6 | N86: =ROUND((((IFERROR(VLOOKUP(N$5,'Consolidado Sinalização'!$A$15:$AK$25,9,0),0)))),2) -> 0 | O86: =ROUND((((IFERROR(VLOOKUP(O$5,'Consolidado Sinalização'!$A$15:$AK$25,9,0),0)))),2) -> 0 | P86: ='Consolidado Sinalização'!I23 -> 392.196 | Q86: -0.004 | R86: =#REF! ->  | V86: =F86-#REF! -> 
A87: 10 | D87: ILUMINAÇÃO DO RAMAL DA TOTÓIA | Q87: 0
A88: 10.1 | D88: REALOÇÃO DOS POSTES
A89: 10.1.1 | B89: 22969 | C89: SBC | D89: REMOCAO POSTE CONCRETO ENGAT.CONC.10A13M C/E S/REAPROVEIT. | E89: UN | F89: =ROUND((SUM(I89:O89)),2) -> 20 | G89: Quant. de Poste a serem removidos (Und) = | H89: =G89&$S$3&$U$3&" "&I89&$W$3&J89&$W$3&L89&$W$3&M89&$W$3&N89&$W$3&O89&$W$3&K89&$T$3&$S$3&" "&F89 -> Quant. de Poste a serem removidos (Und) = = ( +20+0+0+0+0+0) = 20 | J89: 20 | K89: =ROUND((VLOOKUP(K$5,'Consolidado Pavimentação'!$A$15:$AK$23,16,0)),2) -> 0 | L89: =ROUND((VLOOKUP(L$5,'Consolidado Pavimentação'!$A$15:$AK$23,16,0)),2) -> 0 | M89: =ROUND((VLOOKUP(M$5,'Consolidado Pavimentação'!$A$15:$AK$23,16,0)),2) -> 0 | N89: =ROUND((VLOOKUP(N$5,'Consolidado Pavimentação'!$A$15:$AK$23,16,0)),2) -> 0 | O89: =ROUND((VLOOKUP(O$5,'Consolidado Pavimentação'!$A$15:$AK$23,16,0)),2) -> 0
A90: 10.1.2 | B90: 100585 | C90: SINAPI | D90: ASSENTAMENTO DE POSTE DE CONCRETO COM COMPRIMENTO NOMINAL DE 12 M, CARGA NOMINAL MENOR OU IGUAL A 1000 DAN, ENGASTAMENTO SIMPLES COM 1,8 M DE SOLO (NÃO INCLUI FORNECIMENTO). AF_04/2025 | E90: UN | F90: =ROUND((SUM(I90:O90)),2) -> 20 | G90: Quant. De de Assentamento de Poste substítuidos (Und) = | H90: =G90&$S$3&$U$3&" "&I90&$W$3&J90&$W$3&L90&$W$3&M90&$W$3&N90&$W$3&O90&$W$3&K90&$T$3&$S$3&" "&F90 -> Quant. De de Assentamento de Poste substítuidos (Und) = = ( +20+0+0+0+0+0) = 20 | J90: =J89 -> 20 | K90: =ROUND((VLOOKUP(K$5,'Consolidado Pavimentação'!$A$15:$AK$23,16,0)),2) -> 0 | L90: =ROUND((VLOOKUP(L$5,'Consolidado Pavimentação'!$A$15:$AK$23,16,0)),2) -> 0 | M90: =ROUND((VLOOKUP(M$5,'Consolidado Pavimentação'!$A$15:$AK$23,16,0)),2) -> 0 | N90: =ROUND((VLOOKUP(N$5,'Consolidado Pavimentação'!$A$15:$AK$23,16,0)),2) -> 0 | O90: =ROUND((VLOOKUP(O$5,'Consolidado Pavimentação'!$A$15:$AK$23,16,0)),2) -> 0
A91: 10.1.3 | B91: 41215 | C91: SINAPI | D91: POSTE DE CONCRETO ARMADO DE SECAO DUPLO T, EXTENSAO DE 13,00 M, RESISTENCIA DE 600 DAN, TIPO B | E91: UN | F91: =ROUND((SUM(I91:O91)),2) -> 20 | G91: Quant. de Poste substítuidos (Und) = | H91: =G91&$S$3&$U$3&" "&I91&$W$3&J91&$W$3&L91&$W$3&M91&$W$3&N91&$W$3&O91&$W$3&K91&$T$3&$S$3&" "&F91 -> Quant. de Poste substítuidos (Und) = = ( +20+0+0+0+0+0) = 20 | J91: =J90 -> 20 | K91: =ROUND((VLOOKUP(K$5,'Consolidado Pavimentação'!$A$15:$AK$23,16,0)),2) -> 0 | L91: =ROUND((VLOOKUP(L$5,'Consolidado Pavimentação'!$A$15:$AK$23,16,0)),2) -> 0 | M91: =ROUND((VLOOKUP(M$5,'Consolidado Pavimentação'!$A$15:$AK$23,16,0)),2) -> 0 | N91: =ROUND((VLOOKUP(N$5,'Consolidado Pavimentação'!$A$15:$AK$23,16,0)),2) -> 0 | O91: =ROUND((VLOOKUP(O$5,'Consolidado Pavimentação'!$A$15:$AK$23,16,0)),2) -> 0
A92: 10.1.4 | B92: 5915014 | C92: SICRO3 | D92: Transporte com caminhão carroceria com capacidade de 11,5 t e com guindauto com capacidade de elevação de 11,9 t - rodovia pavimentada | E92: tkm | F92: =ROUND((SUM(I92:O92)*'DMT ADOTADAS '!$F$14),2) -> 963.2 | G92: Transporte com Caminhão = Carga total/T( Quant. poste de 13m x 1,6 t/und)x DMT (comércio para Obra) | H92: =G92&$S$3&$U$3&" "&I92&$W$3&J92&$W$3&K92&$W$3&L92&$W$3&M92&$W$3&N92&$W$3&O92&$T$3&$V$3&'DMT ADOTADAS '!$F$14&$S$3&" "&F92 -> Transporte com Caminhão = Carga total/T( Quant. poste de 13m x 1,6 t/und)x DMT (comércio para Obra) = ( 0+32+0+0+0+0+0) x 30,1 = 963,2 | I92: 0 | J92: =ROUND(J89*1.6,2) -> 32 | K92: 0 | L92: 0 | M92: 0 | N92: =ROUND((((IFERROR(VLOOKUP(N$5,'Consolidado Sinalização'!$A$15:$AK$25,9,0)*0.4,0)))),2) -> 0 | O92: =ROUND((((IFERROR(VLOOKUP(O$5,'Consolidado Sinalização'!$A$15:$AK$25,9,0)*0.4,0)))),2) -> 0
A93: 10.1.5 | B93: 5915014 | C93: SICRO3 | D93: Transporte com caminhão carroceria com capacidade de 11,5 t e com guindauto com capacidade de elevação de 11,9 t - rodovia pavimentada | E93: tkm | F93: =ROUND((SUM(I93:O93)*'DMT ADOTADAS '!$F$18),2) -> 1036.8 | G93: Transporte com Caminhão = Carga total/T( Quant. poste de 13m x 1,6 t/und)x DMT (para | H93: =G93&$S$3&$U$3&" "&I93&$W$3&J93&$W$3&K93&$W$3&L93&$W$3&M93&$W$3&N93&$W$3&O93&$T$3&$V$3&'DMT ADOTADAS '!$F$18&$S$3&" "&F93 -> Transporte com Caminhão = Carga total/T( Quant. poste de 13m x 1,6 t/und)x DMT (para = ( 0+32+0+0+0+0+0) x 32,4 = 1036,8 | I93: 0 | J93: =ROUND(J90*1.6,2) -> 32 | K93: =ROUND((VLOOKUP(K$5,'Consolidado Pavimentação'!$A$15:$AK$23,16,0)),2) -> 0 | L93: =ROUND((VLOOKUP(L$5,'Consolidado Pavimentação'!$A$15:$AK$23,16,0)),2) -> 0 | M93: =ROUND((VLOOKUP(M$5,'Consolidado Pavimentação'!$A$15:$AK$23,16,0)),2) -> 0 | N93: =ROUND((VLOOKUP(N$5,'Consolidado Pavimentação'!$A$15:$AK$23,16,0)),2) -> 0 | O93: =ROUND((VLOOKUP(O$5,'Consolidado Pavimentação'!$A$15:$AK$23,16,0)),2) -> 0
A94: 10.1.6 | B94: RES - 01 | C94: Próprio | D94: Resíduo Inerte - | E94: T | F94: =ROUND((SUM(I94:O94)),2) -> 32 | G94: Volume Total (t) = (Quant. de Poste substítuidos (Und)) x 1,60 t/unid. (obra para | H94: Volume Total (m³) = (Carga total de Alvenaria) x 1,50 t/m³+(Carga total de Madeira) x 0,75 t/m³ = ( 0+4337,98+0+0+0+0+0) = 4337,98 | I94: 0 | J94: =ROUND(J91*1.6,2) -> 32 | K94: =ROUND((VLOOKUP(K$5,'Consolidado Pavimentação'!$A$15:$AK$23,16,0)),2) -> 0 | L94: =ROUND((VLOOKUP(L$5,'Consolidado Pavimentação'!$A$15:$AK$23,16,0)),2) -> 0 | M94: =ROUND((VLOOKUP(M$5,'Consolidado Pavimentação'!$A$15:$AK$23,16,0)),2) -> 0 | N94: =ROUND((VLOOKUP(N$5,'Consolidado Pavimentação'!$A$15:$AK$23,16,0)),2) -> 0 | O94: =ROUND((VLOOKUP(O$5,'Consolidado Pavimentação'!$A$15:$AK$23,16,0)),2) -> 0
A95: 10.2 | D95: SUBESTAÇÃO | Q95: =P95-F95 -> 0
A96: 10.2.1 | B96: 101553 | C96: SINAPI | D96: ALÇA PREFORMADA DE DISTRIBUIÇÃO, EM AÇO GALVANIZADO, AWG 1 - FORNECIMENTO E INSTALAÇÃO. AF_07/2020 | E96: UN | F96: =ROUND((SUM(I96:O96)),2) -> 2 | G96: Quant. de materiais para subestação (Und) = | H96: =G96&$S$3&$U$3&" "&I96&$W$3&J96&$W$3&L96&$W$3&M96&$W$3&N96&$W$3&O96&$W$3&K96&$T$3&$S$3&" "&F96 -> Quant. de materiais para subestação (Und) = = ( 0+2+0+0+0+0+0) = 2 | I96: =ROUND((((IFERROR(VLOOKUP(I$5,'Consolidado Sinalização'!$A$15:$AK$25,9,0)*0.4,0)))),2) -> 0 | J96: =IFERROR(VLOOKUP(A96,'BASE DE DADOS ILUMINAÇÃO'!$A$2:$E$103,5,0),0) -> 2 | K96: 0 | L96: 0 | M96: 0 | N96: =ROUND((((IFERROR(VLOOKUP(N$5,'Consolidado Sinalização'!$A$15:$AK$25,9,0)*0.4,0)))),2) -> 0 | O96: =ROUND((((IFERROR(VLOOKUP(O$5,'Consolidado Sinalização'!$A$15:$AK$25,9,0)*0.4,0)))),2) -> 0 | P96: ='BASE DE DADOS ILUMINAÇÃO'!E3 -> 2 | Q96: 0 | R96: =#REF! ->  | V96: =F96-#REF! -> 
A97: 10.2.2 | B97: 78564 | C97: SBC | D97: ISOLADOR EM PORCELANA, TIPO PILAR, PARA TENSAO 15 KV GERMER | E97: UN | F97: 2 | G97: Quant. de materiais para subestação (Und) = | H97: Quant. de materiais para subestação (Und) = = ( 0+2+0+0+0+0+0) = 2 | I97: =ROUND((((IFERROR(VLOOKUP(I$5,'Consolidado Sinalização'!$A$15:$AK$25,9,0)*0.4,0)))),2) -> 0 | J97: =IFERROR(VLOOKUP(A97,'BASE DE DADOS ILUMINAÇÃO'!$A$2:$E$103,5,0),0) -> 2 | K97: 0 | L97: 0 | M97: 0 | N97: =ROUND((((IFERROR(VLOOKUP(N$5,'Consolidado Sinalização'!$A$15:$AK$25,9,0)*0.4,0)))),2) -> 0 | O97: =ROUND((((IFERROR(VLOOKUP(O$5,'Consolidado Sinalização'!$A$15:$AK$25,9,0)*0.4,0)))),2) -> 0 | P97: ='BASE DE DADOS ILUMINAÇÃO'!E4 -> 2 | Q97: 0 | R97: =#REF! ->  | V97: =F97-#REF! -> 
A98: 10.2.3 | B98: 444 | C98: SINAPI | D98: PINO ROSCA EXTERNA, EM ACO GALVANIZADO, PARA ISOLADOR DE 15KV, DIAMETRO 25 MM, COMPRIMENTO *290* MM | E98: UN | F98: 2 | G98: Quant. de materiais para subestação (Und) = | H98: Quant. de materiais para subestação (Und) = = ( 0+2+0+0+0+0+0) = 2 | I98: =ROUND((((IFERROR(VLOOKUP(I$5,'Consolidado Sinalização'!$A$15:$AK$25,9,0)*0.4,0)))),2) -> 0 | J98: =IFERROR(VLOOKUP(A98,'BASE DE DADOS ILUMINAÇÃO'!$A$2:$E$103,5,0),0) -> 2 | K98: 0 | L98: 0 | M98: 0 | N98: =ROUND((((IFERROR(VLOOKUP(N$5,'Consolidado Sinalização'!$A$15:$AK$25,9,0)*0.4,0)))),2) -> 0 | O98: =ROUND((((IFERROR(VLOOKUP(O$5,'Consolidado Sinalização'!$A$15:$AK$25,9,0)*0.4,0)))),2) -> 0 | P98: ='BASE DE DADOS ILUMINAÇÃO'!E5 -> 2 | Q98: 0 | R98: =#REF! ->  | V98: =F98-#REF! -> 
A99: 10.2.4 | B99: 78630 | C99: SBC | D99: CRUZETA POLIMERICA 90x112,5x2400mm | E99: UN | F99: 2 | G99: Quant. de materiais para subestação (Und) = | H99: Quant. de materiais para subestação (Und) = = ( 0+2+0+0+0+0+0) = 2 | I99: =ROUND((((IFERROR(VLOOKUP(I$5,'Consolidado Sinalização'!$A$15:$AK$25,9,0)*0.4,0)))),2) -> 0 | J99: =IFERROR(VLOOKUP(A99,'BASE DE DADOS ILUMINAÇÃO'!$A$2:$E$103,5,0),0) -> 2 | K99: 0 | L99: 0 | M99: 0 | N99: =ROUND((((IFERROR(VLOOKUP(N$5,'Consolidado Sinalização'!$A$15:$AK$25,9,0)*0.4,0)))),2) -> 0 | O99: =ROUND((((IFERROR(VLOOKUP(O$5,'Consolidado Sinalização'!$A$15:$AK$25,9,0)*0.4,0)))),2) -> 0 | P99: ='BASE DE DADOS ILUMINAÇÃO'!E6 -> 2 | Q99: 0 | R99: =#REF! ->  | V99: =F99-#REF! -> 
A100: 10.2.5 | B100: 433 | C100: SINAPI | D100: PARAFUSO M16 EM ACO GALVANIZADO, COMPRIMENTO = 350 MM, DIAMETRO = 16 MM, ROSCA MAQUINA, CABECA QUADRADA | E100: UN | F100: 4 | G100: Quant. de materiais para subestação (Und) = | H100: Quant. de materiais para subestação (Und) = = ( 0+4+0+0+0+0+0) = 4 | I100: =ROUND((((IFERROR(VLOOKUP(I$5,'Consolidado Sinalização'!$A$15:$AK$25,9,0)*0.4,0)))),2) -> 0 | J100: =IFERROR(VLOOKUP(A100,'BASE DE DADOS ILUMINAÇÃO'!$A$2:$E$103,5,0),0) -> 4 | K100: 0 | L100: 0 | M100: 0 | N100: =ROUND((((IFERROR(VLOOKUP(N$5,'Consolidado Sinalização'!$A$15:$AK$25,9,0)*0.4,0)))),2) -> 0 | O100: =ROUND((((IFERROR(VLOOKUP(O$5,'Consolidado Sinalização'!$A$15:$AK$25,9,0)*0.4,0)))),2) -> 0 | P100: ='BASE DE DADOS ILUMINAÇÃO'!E7 -> 4 | Q100: 0 | R100: =#REF! ->  | V100: =F100-#REF! -> 
A101: 10.2.6 | B101: 47762 | C101: SBC | D101: SELA EM ACO GALVANIZADO PARA CRUZETA | E101: UN | F101: 2 | G101: Quant. de materiais para subestação (Und) = | H101: Quant. de materiais para subestação (Und) = = ( 0+2+0+0+0+0+0) = 2 | I101: =ROUND((((IFERROR(VLOOKUP(I$5,'Consolidado Sinalização'!$A$15:$AK$25,9,0)*0.4,0)))),2) -> 0 | J101: =IFERROR(VLOOKUP(A101,'BASE DE DADOS ILUMINAÇÃO'!$A$2:$E$103,5,0),0) -> 2 | K101: 0 | L101: 0 | M101: 0 | N101: =ROUND((((IFERROR(VLOOKUP(N$5,'Consolidado Sinalização'!$A$15:$AK$25,9,0)*0.4,0)))),2) -> 0 | O101: =ROUND((((IFERROR(VLOOKUP(O$5,'Consolidado Sinalização'!$A$15:$AK$25,9,0)*0.4,0)))),2) -> 0 | P101: ='BASE DE DADOS ILUMINAÇÃO'!E8 -> 2 | Q101: 0 | R101: =#REF! ->  | V101: =F101-#REF! -> 
A102: 10.2.7 | B102: 436 | C102: SINAPI | D102: PARAFUSO FRANCES M16 EM ACO GALVANIZADO, COMPRIMENTO = 150 MM, DIAMETRO = 16 MM, CABECA ABAULADA | E102: UN | F102: 10 | G102: Quant. de materiais para subestação (Und) = | H102: Quant. de materiais para subestação (Und) = = ( 0+10+0+0+0+0+0) = 10 | I102: =ROUND((((IFERROR(VLOOKUP(I$5,'Consolidado Sinalização'!$A$15:$AK$25,9,0)*0.4,0)))),2) -> 0 | J102: =IFERROR(VLOOKUP(A102,'BASE DE DADOS ILUMINAÇÃO'!$A$2:$E$103,5,0),0) -> 10 | K102: 0 | L102: 0 | M102: 0 | N102: =ROUND((((IFERROR(VLOOKUP(N$5,'Consolidado Sinalização'!$A$15:$AK$25,9,0)*0.4,0)))),2) -> 0 | O102: =ROUND((((IFERROR(VLOOKUP(O$5,'Consolidado Sinalização'!$A$15:$AK$25,9,0)*0.4,0)))),2) -> 0 | P102: ='BASE DE DADOS ILUMINAÇÃO'!E9 -> 10 | Q102: 0 | R102: =#REF! ->  | V102: =F102-#REF! -> 
A103: 10.2.8 | B103: 379 | C103: SINAPI | D103: ARRUELA QUADRADA EM ACO GALVANIZADO, DIMENSAO = 38 MM, ESPESSURA = 3MM, DIAMETRO DO FURO= 18 MM | E103: UN | F103: 30 | G103: Quant. de materiais para subestação (Und) = | H103: Quant. de materiais para subestação (Und) = = ( 0+30+0+0+0+0+0) = 30 | I103: =ROUND((((IFERROR(VLOOKUP(I$5,'Consolidado Sinalização'!$A$15:$AK$25,9,0)*0.4,0)))),2) -> 0 | J103: =IFERROR(VLOOKUP(A103,'BASE DE DADOS ILUMINAÇÃO'!$A$2:$E$103,5,0),0) -> 30 | K103: 0 | L103: 0 | M103: 0 | N103: =ROUND((((IFERROR(VLOOKUP(N$5,'Consolidado Sinalização'!$A$15:$AK$25,9,0)*0.4,0)))),2) -> 0 | O103: =ROUND((((IFERROR(VLOOKUP(O$5,'Consolidado Sinalização'!$A$15:$AK$25,9,0)*0.4,0)))),2) -> 0 | P103: ='BASE DE DADOS ILUMINAÇÃO'!E10 -> 30 | Q103: 0 | R103: =#REF! ->  | V103: =F103-#REF! -> 
A104: 10.2.9 | B104: 1592 | C104: ORSE | D104: Mão francesa plana 619mm | E104: un | F104: 4 | G104: Quant. de materiais para subestação (Und) = | H104: Quant. de materiais para subestação (Und) = = ( 0+4+0+0+0+0+0) = 4 | I104: =ROUND((((IFERROR(VLOOKUP(I$5,'Consolidado Sinalização'!$A$15:$AK$25,9,0)*0.4,0)))),2) -> 0 | J104: =IFERROR(VLOOKUP(A104,'BASE DE DADOS ILUMINAÇÃO'!$A$2:$E$103,5,0),0) -> 4 | K104: 0 | L104: 0 | M104: 0 | N104: =ROUND((((IFERROR(VLOOKUP(N$5,'Consolidado Sinalização'!$A$15:$AK$25,9,0)*0.4,0)))),2) -> 0 | O104: =ROUND((((IFERROR(VLOOKUP(O$5,'Consolidado Sinalização'!$A$15:$AK$25,9,0)*0.4,0)))),2) -> 0 | P104: ='BASE DE DADOS ILUMINAÇÃO'!E11 -> 4 | Q104: 0 | R104: =#REF! ->  | V104: =F104-#REF! -> 
A105: 10.2.10 | B105: 430 | C105: SINAPI | D105: PARAFUSO M16 EM ACO GALVANIZADO, COMPRIMENTO = 125 MM, DIAMETRO = 16 MM, ROSCA MAQUINA, CABECA QUADRADA | E105: UN | F105: 4 | G105: Quant. de materiais para subestação (Und) = | H105: Quant. de materiais para subestação (Und) = = ( 0+4+0+0+0+0+0) = 4 | I105: =ROUND((((IFERROR(VLOOKUP(I$5,'Consolidado Sinalização'!$A$15:$AK$25,9,0)*0.4,0)))),2) -> 0 | J105: =IFERROR(VLOOKUP(A105,'BASE DE DADOS ILUMINAÇÃO'!$A$2:$E$103,5,0),0) -> 4 | K105: 0 | L105: 0 | M105: 0 | N105: =ROUND((((IFERROR(VLOOKUP(N$5,'Consolidado Sinalização'!$A$15:$AK$25,9,0)*0.4,0)))),2) -> 0 | O105: =ROUND((((IFERROR(VLOOKUP(O$5,'Consolidado Sinalização'!$A$15:$AK$25,9,0)*0.4,0)))),2) -> 0 | P105: ='BASE DE DADOS ILUMINAÇÃO'!E12 -> 4 | Q105: 0 | R105: =#REF! ->  | V105: =F105-#REF! -> 
A106: 10.2.11 | B106: 442 | C106: SINAPI | D106: PARAFUSO FRANCES M16 EM ACO GALVANIZADO, COMPRIMENTO = 45 MM, DIAMETRO = 16 MM, CABECA ABAULADA | E106: UN | F106: 10 | G106: Quant. de materiais para subestação (Und) = | H106: Quant. de materiais para subestação (Und) = = ( 0+10+0+0+0+0+0) = 10 | I106: =ROUND((((IFERROR(VLOOKUP(I$5,'Consolidado Sinalização'!$A$15:$AK$25,9,0)*0.4,0)))),2) -> 0 | J106: =IFERROR(VLOOKUP(A106,'BASE DE DADOS ILUMINAÇÃO'!$A$2:$E$103,5,0),0) -> 10 | K106: 0 | L106: 0 | M106: 0 | N106: =ROUND((((IFERROR(VLOOKUP(N$5,'Consolidado Sinalização'!$A$15:$AK$25,9,0)*0.4,0)))),2) -> 0 | O106: =ROUND((((IFERROR(VLOOKUP(O$5,'Consolidado Sinalização'!$A$15:$AK$25,9,0)*0.4,0)))),2) -> 0 | P106: ='BASE DE DADOS ILUMINAÇÃO'!E13 -> 10 | Q106: 0 | R106: =#REF! ->  | V106: =F106-#REF! -> 
A107: 10.2.12 | B107: 8640 | C107: SBC | D107: PARAFUSO CABECA QUADRADA 18 x 450mm | E107: UN | F107: 2 | G107: Quant. de materiais para subestação (Und) = | H107: Quant. de materiais para subestação (Und) = = ( 0+2+0+0+0+0+0) = 2 | I107: =ROUND((((IFERROR(VLOOKUP(I$5,'Consolidado Sinalização'!$A$15:$AK$25,9,0)*0.4,0)))),2) -> 0 | J107: =IFERROR(VLOOKUP(A107,'BASE DE DADOS ILUMINAÇÃO'!$A$2:$E$103,5,0),0) -> 2 | K107: 0 | L107: 0 | M107: 0 | N107: =ROUND((((IFERROR(VLOOKUP(N$5,'Consolidado Sinalização'!$A$15:$AK$25,9,0)*0.4,0)))),2) -> 0 | O107: =ROUND((((IFERROR(VLOOKUP(O$5,'Consolidado Sinalização'!$A$15:$AK$25,9,0)*0.4,0)))),2) -> 0 | P107: ='BASE DE DADOS ILUMINAÇÃO'!E14 -> 2 | Q107: 0 | R107: =#REF! ->  | V107: =F107-#REF! -> 
A108: 10.2.13 | B108: 4341 | C108: SINAPI | D108: PORCA ZINCADA, QUADRADA, DIAMETRO 3/8" | E108: UN | F108: 20 | G108: Quant. de materiais para subestação (Und) = | H108: Quant. de materiais para subestação (Und) = = ( 0+20+0+0+0+0+0) = 20 | I108: =ROUND((((IFERROR(VLOOKUP(I$5,'Consolidado Sinalização'!$A$15:$AK$25,9,0)*0.4,0)))),2) -> 0 | J108: =IFERROR(VLOOKUP(A108,'BASE DE DADOS ILUMINAÇÃO'!$A$2:$E$103,5,0),0) -> 20 | K108: 0 | L108: 0 | M108: 0 | N108: =ROUND((((IFERROR(VLOOKUP(N$5,'Consolidado Sinalização'!$A$15:$AK$25,9,0)*0.4,0)))),2) -> 0 | O108: =ROUND((((IFERROR(VLOOKUP(O$5,'Consolidado Sinalização'!$A$15:$AK$25,9,0)*0.4,0)))),2) -> 0 | P108: ='BASE DE DADOS ILUMINAÇÃO'!E15 -> 20 | Q108: 0 | R108: =#REF! ->  | V108: =F108-#REF! -> 
A109: 10.2.14 | B109: 65100 | C109: SBC | D109: PARA RAIO POLIMERICO DE DISTRIBUICAO 15KV 10KA C/ FERRAGEM | E109: UN | F109: 2 | G109: Quant. de materiais para subestação (Und) = | H109: Quant. de materiais para subestação (Und) = = ( 0+2+0+0+0+0+0) = 2 | I109: =ROUND((((IFERROR(VLOOKUP(I$5,'Consolidado Sinalização'!$A$15:$AK$25,9,0)*0.4,0)))),2) -> 0 | J109: =IFERROR(VLOOKUP(A109,'BASE DE DADOS ILUMINAÇÃO'!$A$2:$E$103,5,0),0) -> 2 | K109: 0 | L109: 0 | M109: 0 | N109: =ROUND((((IFERROR(VLOOKUP(N$5,'Consolidado Sinalização'!$A$15:$AK$25,9,0)*0.4,0)))),2) -> 0 | O109: =ROUND((((IFERROR(VLOOKUP(O$5,'Consolidado Sinalização'!$A$15:$AK$25,9,0)*0.4,0)))),2) -> 0 | P109: ='BASE DE DADOS ILUMINAÇÃO'!E16 -> 2 | Q109: 0 | R109: =#REF! ->  | V109: =F109-#REF! -> 
A110: 10.2.15 | B110: 78037 | C110: SBC | D110: CONECTOR PARALELO BRONZE 50mm PARA ATERRAMENTO | E110: UN | F110: 4 | G110: Quant. de materiais para subestação (Und) = | H110: Quant. de materiais para subestação (Und) = = ( 0+4+0+0+0+0+0) = 4 | I110: =ROUND((((IFERROR(VLOOKUP(I$5,'Consolidado Sinalização'!$A$15:$AK$25,9,0)*0.4,0)))),2) -> 0 | J110: =IFERROR(VLOOKUP(A110,'BASE DE DADOS ILUMINAÇÃO'!$A$2:$E$103,5,0),0) -> 4 | K110: 0 | L110: 0 | M110: 0 | N110: =ROUND((((IFERROR(VLOOKUP(N$5,'Consolidado Sinalização'!$A$15:$AK$25,9,0)*0.4,0)))),2) -> 0 | O110: =ROUND((((IFERROR(VLOOKUP(O$5,'Consolidado Sinalização'!$A$15:$AK$25,9,0)*0.4,0)))),2) -> 0 | P110: ='BASE DE DADOS ILUMINAÇÃO'!E17 -> 4 | Q110: 0 | R110: =#REF! ->  | V110: =F110-#REF! -> 
A111: 10.2.16 | B111: 63439 | C111: SBC | D111: CABO SINGELO 0,6/1KV 2AWG - 25mm2 | E111: M | F111: 10 | G111: Comp. total para subestação (m) = | H111: Comp. total para subestação (m) = = ( 0+10+0+0+0+0+0) = 10 | I111: =ROUND((((IFERROR(VLOOKUP(I$5,'Consolidado Sinalização'!$A$15:$AK$25,9,0)*0.4,0)))),2) -> 0 | J111: =IFERROR(VLOOKUP(A111,'BASE DE DADOS ILUMINAÇÃO'!$A$2:$E$103,5,0),0) -> 10 | K111: 0 | L111: 0 | M111: 0 | N111: =ROUND((((IFERROR(VLOOKUP(N$5,'Consolidado Sinalização'!$A$15:$AK$25,9,0)*0.4,0)))),2) -> 0 | O111: =ROUND((((IFERROR(VLOOKUP(O$5,'Consolidado Sinalização'!$A$15:$AK$25,9,0)*0.4,0)))),2) -> 0 | P111: ='BASE DE DADOS ILUMINAÇÃO'!E18 -> 10 | Q111: 0 | R111: =#REF! ->  | V111: =F111-#REF! -> 
A112: 10.2.17 | B112: 61905 | C112: SBC | D112: CONDUTOR COBRE NU CORDOALHA 7 FIOS P/PARA-RAIOS,COM SUPORTES | E112: M | F112: 12 | G112: Comp. total para subestação (m) = | H112: Comp. total para subestação (m) = = ( 0+12+0+0+0+0+0) = 12 | I112: =ROUND((((IFERROR(VLOOKUP(I$5,'Consolidado Sinalização'!$A$15:$AK$25,9,0)*0.4,0)))),2) -> 0 | J112: =IFERROR(VLOOKUP(A112,'BASE DE DADOS ILUMINAÇÃO'!$A$2:$E$103,5,0),0) -> 12 | K112: 0 | L112: 0 | M112: 0 | N112: =ROUND((((IFERROR(VLOOKUP(N$5,'Consolidado Sinalização'!$A$15:$AK$25,9,0)*0.4,0)))),2) -> 0 | O112: =ROUND((((IFERROR(VLOOKUP(O$5,'Consolidado Sinalização'!$A$15:$AK$25,9,0)*0.4,0)))),2) -> 0 | P112: ='BASE DE DADOS ILUMINAÇÃO'!E19 -> 12 | Q112: 0 | R112: =#REF! ->  | V112: =F112-#REF! -> 
A113: 10.2.18 | B113: 78042 | C113: SBC | D113: CONECTOR PARAFUSO FENDIDO SPLIT BOLD 1"" CABO 16mm2 | E113: UN | F113: 2 | G113: Quant. de materiais para subestação (Und) = | H113: Quant. de materiais para subestação (Und) = = ( 0+2+0+0+0+0+0) = 2 | I113: =ROUND((((IFERROR(VLOOKUP(I$5,'Consolidado Sinalização'!$A$15:$AK$25,9,0)*0.4,0)))),2) -> 0 | J113: =IFERROR(VLOOKUP(A113,'BASE DE DADOS ILUMINAÇÃO'!$A$2:$E$103,5,0),0) -> 2 | K113: 0 | L113: 0 | M113: 0 | N113: =ROUND((((IFERROR(VLOOKUP(N$5,'Consolidado Sinalização'!$A$15:$AK$25,9,0)*0.4,0)))),2) -> 0 | O113: =ROUND((((IFERROR(VLOOKUP(O$5,'Consolidado Sinalização'!$A$15:$AK$25,9,0)*0.4,0)))),2) -> 0 | P113: ='BASE DE DADOS ILUMINAÇÃO'!E20 -> 2 | Q113: 0 | R113: =#REF! ->  | V113: =F113-#REF! -> 
A114: 10.2.19 | B114: 61905 | C114: SBC | D114: CONDUTOR COBRE NU CORDOALHA 7 FIOS P/PARA-RAIOS,COM SUPORTES | E114: M | F114: 5 | G114: Comp. total para subestação (m) = | H114: Comp. total para subestação (m) = = ( 0+5+0+0+0+0+0) = 5 | I114: =ROUND((((IFERROR(VLOOKUP(I$5,'Consolidado Sinalização'!$A$15:$AK$25,9,0)*0.4,0)))),2) -> 0 | J114: =IFERROR(VLOOKUP(A114,'BASE DE DADOS ILUMINAÇÃO'!$A$2:$E$103,5,0),0) -> 5 | K114: 0 | L114: 0 | M114: 0 | N114: =ROUND((((IFERROR(VLOOKUP(N$5,'Consolidado Sinalização'!$A$15:$AK$25,9,0)*0.4,0)))),2) -> 0 | O114: =ROUND((((IFERROR(VLOOKUP(O$5,'Consolidado Sinalização'!$A$15:$AK$25,9,0)*0.4,0)))),2) -> 0 | P114: ='BASE DE DADOS ILUMINAÇÃO'!E21 -> 5 | Q114: 0 | R114: =#REF! ->  | V114: =F114-#REF! -> 
A115: 10.2.20 | B115: 59230 | C115: SBC | D115: HASTE ATERRAMENTO COBREADA 5/8"" x 2,40m NORMATIZADA INTELLI | E115: UN | F115: 3 | G115: Quant. de materiais para subestação (Und) = | H115: Quant. de materiais para subestação (Und) = = ( 0+3+0+0+0+0+0) = 3 | I115: =ROUND((((IFERROR(VLOOKUP(I$5,'Consolidado Sinalização'!$A$15:$AK$25,9,0)*0.4,0)))),2) -> 0 | J115: =IFERROR(VLOOKUP(A115,'BASE DE DADOS ILUMINAÇÃO'!$A$2:$E$103,5,0),0) -> 3 | K115: 0 | L115: 0 | M115: 0 | N115: =ROUND((((IFERROR(VLOOKUP(N$5,'Consolidado Sinalização'!$A$15:$AK$25,9,0)*0.4,0)))),2) -> 0 | O115: =ROUND((((IFERROR(VLOOKUP(O$5,'Consolidado Sinalização'!$A$15:$AK$25,9,0)*0.4,0)))),2) -> 0 | P115: ='BASE DE DADOS ILUMINAÇÃO'!E22 -> 3 | Q115: 0 | R115: =#REF! ->  | V115: =F115-#REF! -> 
A116: 10.2.21 | B116: 10433 | C116: ORSE | D116: Fornecimento e instalação de chave seccionadora tripolar 15kv - 400a, com porta fusivel HH incorporado | E116: un | F116: 2 | G116: Quant. de materiais para subestação (Und) = | H116: Quant. de materiais para subestação (Und) = = ( 0+2+0+0+0+0+0) = 2 | I116: =ROUND((((IFERROR(VLOOKUP(I$5,'Consolidado Sinalização'!$A$15:$AK$25,9,0)*0.4,0)))),2) -> 0 | J116: =IFERROR(VLOOKUP(A116,'BASE DE DADOS ILUMINAÇÃO'!$A$2:$E$103,5,0),0) -> 2 | K116: 0 | L116: 0 | M116: 0 | N116: =ROUND((((IFERROR(VLOOKUP(N$5,'Consolidado Sinalização'!$A$15:$AK$25,9,0)*0.4,0)))),2) -> 0 | O116: =ROUND((((IFERROR(VLOOKUP(O$5,'Consolidado Sinalização'!$A$15:$AK$25,9,0)*0.4,0)))),2) -> 0 | P116: ='BASE DE DADOS ILUMINAÇÃO'!E23 -> 2 | Q116: 0 | R116: =#REF! ->  | V116: =F116-#REF! -> 
A117: 10.2.22 | B117: 65433 | C117: SBC | D117: TRANSFORMADOR TRIFASICO 13,2KV 45 KVA | E117: UN | F117: 1 | G117: Quant. de materiais para subestação (Und) = | H117: Quant. de materiais para subestação (Und) = = ( 0+1+0+0+0+0+0) = 1 | I117: =ROUND((((IFERROR(VLOOKUP(I$5,'Consolidado Sinalização'!$A$15:$AK$25,9,0)*0.4,0)))),2) -> 0 | J117: =IFERROR(VLOOKUP(A117,'BASE DE DADOS ILUMINAÇÃO'!$A$2:$E$103,5,0),0) -> 1 | K117: 0 | L117: 0 | M117: 0 | N117: =ROUND((((IFERROR(VLOOKUP(N$5,'Consolidado Sinalização'!$A$15:$AK$25,9,0)*0.4,0)))),2) -> 0 | O117: =ROUND((((IFERROR(VLOOKUP(O$5,'Consolidado Sinalização'!$A$15:$AK$25,9,0)*0.4,0)))),2) -> 0 | P117: ='BASE DE DADOS ILUMINAÇÃO'!E25 -> 1 | Q117: 0 | R117: =#REF! ->  | V117: =F117-#REF! -> 
A118: 10.2.23 | B118: 102110 | C118: SINAPI | D118: SUPORTE PARA TRANSFORMADOR EM POSTE DE CONCRETO DUPLO T - FORNECIMENTO E INSTALAÇÃO. AF_12/2020 | E118: UN | F118: 2 | G118: Quant. de materiais para subestação (Und) = | H118: Quant. de materiais para subestação (Und) = = ( 0+2+0+0+0+0+0) = 2 | I118: =ROUND((((IFERROR(VLOOKUP(I$5,'Consolidado Sinalização'!$A$15:$AK$25,9,0)*0.4,0)))),2) -> 0 | J118: =IFERROR(VLOOKUP(A118,'BASE DE DADOS ILUMINAÇÃO'!$A$2:$E$103,5,0),0) -> 2 | K118: 0 | L118: 0 | M118: 0 | N118: =ROUND((((IFERROR(VLOOKUP(N$5,'Consolidado Sinalização'!$A$15:$AK$25,9,0)*0.4,0)))),2) -> 0 | O118: =ROUND((((IFERROR(VLOOKUP(O$5,'Consolidado Sinalização'!$A$15:$AK$25,9,0)*0.4,0)))),2) -> 0 | P118: ='BASE DE DADOS ILUMINAÇÃO'!E26 -> 2 | Q118: 0 | R118: =#REF! ->  | V118: =F118-#REF! -> 
A119: 10.2.24 | B119: 101542 | C119: SINAPI | D119: ARMAÇÃO SECUNDÁRIA, COM 1 ESTRIBO, SEM ISOLADOR - FORNECIMENTO E INSTALAÇÃO. AF_07/2020 | E119: UN | F119: 2 | G119: Quant. de materiais para subestação (Und) = | H119: Quant. de materiais para subestação (Und) = = ( 0+2+0+0+0+0+0) = 2 | I119: =ROUND((((IFERROR(VLOOKUP(I$5,'Consolidado Sinalização'!$A$15:$AK$25,9,0)*0.4,0)))),2) -> 0 | J119: =IFERROR(VLOOKUP(A119,'BASE DE DADOS ILUMINAÇÃO'!$A$2:$E$103,5,0),0) -> 2 | K119: 0 | L119: 0 | M119: 0 | N119: =ROUND((((IFERROR(VLOOKUP(N$5,'Consolidado Sinalização'!$A$15:$AK$25,9,0)*0.4,0)))),2) -> 0 | O119: =ROUND((((IFERROR(VLOOKUP(O$5,'Consolidado Sinalização'!$A$15:$AK$25,9,0)*0.4,0)))),2) -> 0 | P119: ='BASE DE DADOS ILUMINAÇÃO'!E27 -> 2 | Q119: 0 | R119: =#REF! ->  | V119: =F119-#REF! -> 
A120: 10.2.25 | B120: 78655 | C120: SBC | D120: ISOLADOR PARA PARA-RAIOS TIPO ROLDANA | E120: UN | F120: 4 | G120: Quant. de materiais para subestação (Und) = | H120: Quant. de materiais para subestação (Und) = = ( 0+4+0+0+0+0+0) = 4 | I120: =ROUND((((IFERROR(VLOOKUP(I$5,'Consolidado Sinalização'!$A$15:$AK$25,9,0)*0.4,0)))),2) -> 0 | J120: =IFERROR(VLOOKUP(A120,'BASE DE DADOS ILUMINAÇÃO'!$A$2:$E$103,5,0),0) -> 4 | K120: 0 | L120: 0 | M120: 0 | N120: =ROUND((((IFERROR(VLOOKUP(N$5,'Consolidado Sinalização'!$A$15:$AK$25,9,0)*0.4,0)))),2) -> 0 | O120: =ROUND((((IFERROR(VLOOKUP(O$5,'Consolidado Sinalização'!$A$15:$AK$25,9,0)*0.4,0)))),2) -> 0 | P120: ='BASE DE DADOS ILUMINAÇÃO'!E28 -> 4 | Q120: 0 | R120: =#REF! ->  | V120: =F120-#REF! -> 
A121: 10.2.26 | B121: 104751 | C121: SINAPI | D121: CONECTOR GRAMPO PARALELO METÁLICO, PARA SPDA, PARA CABOS DE 6 A 50 MM2 - FORNECIMENTO E INSTALAÇÃO. AF_08/2023 | E121: UN | F121: 8 | G121: Quant. de materiais para subestação (Und) = | H121: Quant. de materiais para subestação (Und) = = ( 0+8+0+0+0+0+0) = 8 | I121: =ROUND((((IFERROR(VLOOKUP(I$5,'Consolidado Sinalização'!$A$15:$AK$25,9,0)*0.4,0)))),2) -> 0 | J121: =IFERROR(VLOOKUP(A121,'BASE DE DADOS ILUMINAÇÃO'!$A$2:$E$103,5,0),0) -> 8 | K121: 0 | L121: 0 | M121: 0 | N121: =ROUND((((IFERROR(VLOOKUP(N$5,'Consolidado Sinalização'!$A$15:$AK$25,9,0)*0.4,0)))),2) -> 0 | O121: =ROUND((((IFERROR(VLOOKUP(O$5,'Consolidado Sinalização'!$A$15:$AK$25,9,0)*0.4,0)))),2) -> 0 | P121: ='BASE DE DADOS ILUMINAÇÃO'!E29 -> 8 | Q121: 0 | R121: =#REF! ->  | V121: =F121-#REF! -> 
A122: 10.2.27 | B122: 78321 | C122: SBC | D122: CONDUTOR COBRE NU 70mm DE PARA-RAIOS COM SUPORTES | E122: M | F122: 15 | G122: Comp. total para subestação (m) = | H122: Comp. total para subestação (m) = = ( 0+15+0+0+0+0+0) = 15 | I122: =ROUND((((IFERROR(VLOOKUP(I$5,'Consolidado Sinalização'!$A$15:$AK$25,9,0)*0.4,0)))),2) -> 0 | J122: =IFERROR(VLOOKUP(A122,'BASE DE DADOS ILUMINAÇÃO'!$A$2:$E$103,5,0),0) -> 15 | K122: 0 | L122: 0 | M122: 0 | N122: =ROUND((((IFERROR(VLOOKUP(N$5,'Consolidado Sinalização'!$A$15:$AK$25,9,0)*0.4,0)))),2) -> 0 | O122: =ROUND((((IFERROR(VLOOKUP(O$5,'Consolidado Sinalização'!$A$15:$AK$25,9,0)*0.4,0)))),2) -> 0 | P122: ='BASE DE DADOS ILUMINAÇÃO'!E30 -> 15 | Q122: 0 | R122: =#REF! ->  | V122: =F122-#REF! -> 
A123: 10.2.28 | B123: 67010 | C123: SBC | D123: ELETRODUTO GALVANIZADO 3"" | E123: M | F123: 10 | G123: Comp. total para subestação (m) = | H123: Comp. total para subestação (m) = = ( 0+10+0+0+0+0+0) = 10 | I123: =ROUND((((IFERROR(VLOOKUP(I$5,'Consolidado Sinalização'!$A$15:$AK$25,9,0)*0.4,0)))),2) -> 0 | J123: =IFERROR(VLOOKUP(A123,'BASE DE DADOS ILUMINAÇÃO'!$A$2:$E$103,5,0),0) -> 10 | K123: 0 | L123: 0 | M123: 0 | N123: =ROUND((((IFERROR(VLOOKUP(N$5,'Consolidado Sinalização'!$A$15:$AK$25,9,0)*0.4,0)))),2) -> 0 | O123: =ROUND((((IFERROR(VLOOKUP(O$5,'Consolidado Sinalização'!$A$15:$AK$25,9,0)*0.4,0)))),2) -> 0 | P123: ='BASE DE DADOS ILUMINAÇÃO'!E31 -> 10 | Q123: 0 | R123: =#REF! ->  | V123: =F123-#REF! -> 
A124: 10.2.29 | B124: 2629 | C124: SINAPI | D124: CURVA 135 GRAUS PARA ELETRODUTO, EM ACO GALVANIZADO ELETROLITICO, COM ROSCA, DIAMETRO DE 80 MM (3") | E124: UN | F124: 1 | G124: Quant. de materiais para subestação (Und) = | H124: Quant. de materiais para subestação (Und) = = ( 0+1+0+0+0+0+0) = 1 | I124: =ROUND((((IFERROR(VLOOKUP(I$5,'Consolidado Sinalização'!$A$15:$AK$25,9,0)*0.4,0)))),2) -> 0 | J124: =IFERROR(VLOOKUP(A124,'BASE DE DADOS ILUMINAÇÃO'!$A$2:$E$103,5,0),0) -> 1 | K124: 0 | L124: 0 | M124: 0 | N124: =ROUND((((IFERROR(VLOOKUP(N$5,'Consolidado Sinalização'!$A$15:$AK$25,9,0)*0.4,0)))),2) -> 0 | O124: =ROUND((((IFERROR(VLOOKUP(O$5,'Consolidado Sinalização'!$A$15:$AK$25,9,0)*0.4,0)))),2) -> 0 | P124: ='BASE DE DADOS ILUMINAÇÃO'!E32 -> 1 | Q124: 0 | R124: =#REF! ->  | V124: =F124-#REF! -> 
A125: 10.2.30 | B125: 61452 | C125: SBC | D125: CAIXA DE MEDICAO TRIFASICA CM3P4 TP LIGHT TAF | E125: UN | F125: 1 | G125: Quant. de materiais para subestação (Und) = | H125: Quant. de materiais para subestação (Und) = = ( 0+1+0+0+0+0+0) = 1 | I125: =ROUND((((IFERROR(VLOOKUP(I$5,'Consolidado Sinalização'!$A$15:$AK$25,9,0)*0.4,0)))),2) -> 0 | J125: =IFERROR(VLOOKUP(A125,'BASE DE DADOS ILUMINAÇÃO'!$A$2:$E$103,5,0),0) -> 1 | K125: 0 | L125: 0 | M125: 0 | N125: =ROUND((((IFERROR(VLOOKUP(N$5,'Consolidado Sinalização'!$A$15:$AK$25,9,0)*0.4,0)))),2) -> 0 | O125: =ROUND((((IFERROR(VLOOKUP(O$5,'Consolidado Sinalização'!$A$15:$AK$25,9,0)*0.4,0)))),2) -> 0 | P125: ='BASE DE DADOS ILUMINAÇÃO'!E33 -> 1 | Q125: 0 | R125: =#REF! ->  | V125: =F125-#REF! -> 
A126: 10.2.31 | B126: 88264 | C126: SINAPI | D126: ELETRICISTA COM ENCARGOS COMPLEMENTARES | E126: H | F126: 16 | G126: Tempo de mão de obra para execução da subestação (H) = | H126: Tempo de mão de obra para execução da subestação (H) = = ( 0+16+0+0+0+0+0) = 16 | I126: =ROUND((((IFERROR(VLOOKUP(I$5,'Consolidado Sinalização'!$A$15:$AK$25,9,0)*0.4,0)))),2) -> 0 | J126: =IFERROR(VLOOKUP(A126,'BASE DE DADOS ILUMINAÇÃO'!$A$2:$E$103,5,0),0) -> 16 | K126: 0 | L126: 0 | M126: 0 | N126: =ROUND((((IFERROR(VLOOKUP(N$5,'Consolidado Sinalização'!$A$15:$AK$25,9,0)*0.4,0)))),2) -> 0 | O126: =ROUND((((IFERROR(VLOOKUP(O$5,'Consolidado Sinalização'!$A$15:$AK$25,9,0)*0.4,0)))),2) -> 0 | P126: ='BASE DE DADOS ILUMINAÇÃO'!E34 -> 16 | Q126: 0 | R126: =#REF! ->  | V126: =F126-#REF! -> 
A127: 10.2.32 | B127: 88266 | C127: SINAPI | D127: ELETROTÉCNICO COM ENCARGOS COMPLEMENTARES | E127: H | F127: 16 | G127: Tempo de mão de obra para execução da subestação (H) = | H127: Tempo de mão de obra para execução da subestação (H) = = ( 0+16+0+0+0+0+0) = 16 | I127: =ROUND((((IFERROR(VLOOKUP(I$5,'Consolidado Sinalização'!$A$15:$AK$25,9,0)*0.4,0)))),2) -> 0 | J127: =IFERROR(VLOOKUP(A127,'BASE DE DADOS ILUMINAÇÃO'!$A$2:$E$103,5,0),0) -> 16 | K127: 0 | L127: 0 | M127: 0 | N127: =ROUND((((IFERROR(VLOOKUP(N$5,'Consolidado Sinalização'!$A$15:$AK$25,9,0)*0.4,0)))),2) -> 0 | O127: =ROUND((((IFERROR(VLOOKUP(O$5,'Consolidado Sinalização'!$A$15:$AK$25,9,0)*0.4,0)))),2) -> 0 | P127: ='BASE DE DADOS ILUMINAÇÃO'!E35 -> 16 | Q127: 0 | R127: =#REF! ->  | V127: =F127-#REF! -> 
A128: 10.2.33 | B128: 88316 | C128: SINAPI | D128: SERVENTE COM ENCARGOS COMPLEMENTARES | E128: H | F128: 16 | G128: Tempo de mão de obra para execução da subestação (H) = | H128: Tempo de mão de obra para execução da subestação (H) = = ( 0+16+0+0+0+0+0) = 16 | I128: =ROUND((((IFERROR(VLOOKUP(I$5,'Consolidado Sinalização'!$A$15:$AK$25,9,0)*0.4,0)))),2) -> 0 | J128: =IFERROR(VLOOKUP(A128,'BASE DE DADOS ILUMINAÇÃO'!$A$2:$E$103,5,0),0) -> 16 | K128: 0 | L128: 0 | M128: 0 | N128: =ROUND((((IFERROR(VLOOKUP(N$5,'Consolidado Sinalização'!$A$15:$AK$25,9,0)*0.4,0)))),2) -> 0 | O128: =ROUND((((IFERROR(VLOOKUP(O$5,'Consolidado Sinalização'!$A$15:$AK$25,9,0)*0.4,0)))),2) -> 0 | P128: ='BASE DE DADOS ILUMINAÇÃO'!E36 -> 16 | Q128: 0 | R128: =#REF! ->  | V128: =F128-#REF! -> 
A129: 10.3 | D129: ILUMINAÇÃO | J129: =IFERROR(VLOOKUP(A129,'BASE DE DADOS ILUMINAÇÃO'!$A$2:$E$103,5,0),0) -> 0 | Q129: 0
A130: 10.3.1 | B130: 41208 | C130: SINAPI | D130: POSTE DE CONCRETO ARMADO DE SECAO DUPLO T, EXTENSAO DE 12,00 M, RESISTENCIA DE 150 DAN, TIPO D | E130: UN | F130: 158 | G130: Quant. de materiais para iluminação(Und) = | H130: Quant. de materiais para iluminação(Und) = = ( 0+158+0+0+0+0+0) = 158 | I130: =ROUND((((IFERROR(VLOOKUP(I$5,'Consolidado Sinalização'!$A$15:$AK$25,9,0)*0.4,0)))),2) -> 0 | J130: =IFERROR(VLOOKUP(A130,'BASE DE DADOS ILUMINAÇÃO'!$A$2:$E$103,5,0),0) -> 158 | K130: 0 | L130: 0 | M130: 0 | N130: =ROUND((((IFERROR(VLOOKUP(N$5,'Consolidado Sinalização'!$A$15:$AK$25,9,0)*0.4,0)))),2) -> 0 | O130: =ROUND((((IFERROR(VLOOKUP(O$5,'Consolidado Sinalização'!$A$15:$AK$25,9,0)*0.4,0)))),2) -> 0 | P130: ='BASE DE DADOS ILUMINAÇÃO'!E37 -> 158 | Q130: 0 | R130: =#REF! ->  | V130: =F130-#REF! -> 
A131: 10.3.2 | B131: 100585 | C131: SINAPI | D131: ASSENTAMENTO DE POSTE DE CONCRETO COM COMPRIMENTO NOMINAL DE 12 M, CARGA NOMINAL MENOR OU IGUAL A 1000 DAN, ENGASTAMENTO SIMPLES COM 1,8 M DE SOLO (NÃO INCLUI FORNECIMENTO). AF_04/2025 | E131: UN | F131: 158 | G131: Quant. de materiais para iluminação(Und) = | H131: Quant. de materiais para iluminação(Und) = = ( 0+158+0+0+0+0+0) = 158 | I131: =ROUND((((IFERROR(VLOOKUP(I$5,'Consolidado Sinalização'!$A$15:$AK$25,9,0)*0.4,0)))),2) -> 0 | J131: =IFERROR(VLOOKUP(A131,'BASE DE DADOS ILUMINAÇÃO'!$A$2:$E$103,5,0),0) -> 158 | K131: 0 | L131: 0 | M131: 0 | N131: =ROUND((((IFERROR(VLOOKUP(N$5,'Consolidado Sinalização'!$A$15:$AK$25,9,0)*0.4,0)))),2) -> 0 | O131: =ROUND((((IFERROR(VLOOKUP(O$5,'Consolidado Sinalização'!$A$15:$AK$25,9,0)*0.4,0)))),2) -> 0 | P131: ='BASE DE DADOS ILUMINAÇÃO'!E38 -> 158 | Q131: 0 | R131: =#REF! ->  | V131: =F131-#REF! -> 
A132: 10.3.3 | B132: 2560 | C132: ORSE | D132: Poste circular de concreto 12/ 200 para iluminação pública | E132: un | F132: 3 | G132: Quant. de materiais para iluminação(Und) = | H132: Quant. de materiais para iluminação(Und) = = ( 0+3+0+0+0+0+0) = 3 | I132: =ROUND((((IFERROR(VLOOKUP(I$5,'Consolidado Sinalização'!$A$15:$AK$25,9,0)*0.4,0)))),2) -> 0 | J132: =IFERROR(VLOOKUP(A132,'BASE DE DADOS ILUMINAÇÃO'!$A$2:$E$103,5,0),0) -> 3 | K132: 0 | L132: 0 | M132: 0 | N132: =ROUND((((IFERROR(VLOOKUP(N$5,'Consolidado Sinalização'!$A$15:$AK$25,9,0)*0.4,0)))),2) -> 0 | O132: =ROUND((((IFERROR(VLOOKUP(O$5,'Consolidado Sinalização'!$A$15:$AK$25,9,0)*0.4,0)))),2) -> 0 | P132: ='BASE DE DADOS ILUMINAÇÃO'!E39 -> 3 | Q132: 0 | R132: =#REF! ->  | V132: =F132-#REF! -> 
A133: 10.3.4 | B133: 100585 | C133: SINAPI | D133: ASSENTAMENTO DE POSTE DE CONCRETO COM COMPRIMENTO NOMINAL DE 12 M, CARGA NOMINAL MENOR OU IGUAL A 1000 DAN, ENGASTAMENTO SIMPLES COM 1,8 M DE SOLO (NÃO INCLUI FORNECIMENTO). AF_04/2025 | E133: UN | F133: 3 | G133: Quant. de materiais para iluminação(Und) = | H133: Quant. de materiais para iluminação(Und) = = ( 0+3+0+0+0+0+0) = 3 | I133: =ROUND((((IFERROR(VLOOKUP(I$5,'Consolidado Sinalização'!$A$15:$AK$25,9,0)*0.4,0)))),2) -> 0 | J133: =IFERROR(VLOOKUP(A133,'BASE DE DADOS ILUMINAÇÃO'!$A$2:$E$103,5,0),0) -> 3 | K133: 0 | L133: 0 | M133: 0 | N133: =ROUND((((IFERROR(VLOOKUP(N$5,'Consolidado Sinalização'!$A$15:$AK$25,9,0)*0.4,0)))),2) -> 0 | O133: =ROUND((((IFERROR(VLOOKUP(O$5,'Consolidado Sinalização'!$A$15:$AK$25,9,0)*0.4,0)))),2) -> 0 | P133: ='BASE DE DADOS ILUMINAÇÃO'!E40 -> 3 | Q133: 0 | R133: =#REF! ->  | V133: =F133-#REF! -> 
A134: 10.3.5 | B134: 5915014 | C134: SICRO3 | D134: Transporte com caminhão carroceria com capacidade de 11,5 t e com guindauto com capacidade de elevação de 11,9 t - rodovia pavimentada | E134: tkm | F134: =ROUND((SUM(I134:O134)*'DMT ADOTADAS '!$F$14),2) -> 4995.4 | G134: Transporte com Caminhão = Carga total/T( Quant. poste de 12m x 1,040 t/und + Quant. poste de 12 m x0,548 t/und)x DMT | H134: =G134&$S$3&$U$3&" "&I134&$W$3&J134&$W$3&K134&$W$3&L134&$W$3&M134&$W$3&N134&$W$3&O134&$T$3&$V$3&'DMT ADOTADAS '!$F$14&$S$3&" "&F134 -> Transporte com Caminhão = Carga total/T( Quant. poste de 12m x 1,040 t/und + Quant. poste de 12 m x0,548 t/und)x DMT = ( 0+165,96+0+0+0+0+0) x 30,1 = 4995,4 | I134: =ROUND((((IFERROR(VLOOKUP(I$5,'Consolidado Sinalização'!$A$15:$AK$25,9,0)*0.4,0)))),2) -> 0 | J134: =ROUND(J130*1.04+J132*0.548,2) -> 165.96 | K134: 0 | L134: 0 | M134: 0 | N134: =ROUND((((IFERROR(VLOOKUP(N$5,'Consolidado Sinalização'!$A$15:$AK$25,9,0)*0.4,0)))),2) -> 0 | O134: =ROUND((((IFERROR(VLOOKUP(O$5,'Consolidado Sinalização'!$A$15:$AK$25,9,0)*0.4,0)))),2) -> 0 | P134: =J134*'DMT ADOTADAS '!$F$14 -> 4995.396 | Q134: -0.003999999999 | R134: =#REF! ->  | V134: =F134-#REF! -> 
A135: 10.3.6 | B135: 78655 | C135: SBC | D135: ISOLADOR PARA PARA-RAIOS TIPO ROLDANA | E135: UN | F135: 161 | G135: Quant. de materiais para iluminação(Und) = | H135: Quant. de materiais para iluminação(Und) = = ( 0+161+0+0+0+0+0) = 161 | I135: =ROUND((((IFERROR(VLOOKUP(I$5,'Consolidado Sinalização'!$A$15:$AK$25,9,0)*0.4,0)))),2) -> 0 | J135: =IFERROR(VLOOKUP(A135,'BASE DE DADOS ILUMINAÇÃO'!$A$2:$E$103,5,0),0) -> 161 | K135: 0 | L135: 0 | M135: 0 | N135: =ROUND((((IFERROR(VLOOKUP(N$5,'Consolidado Sinalização'!$A$15:$AK$25,9,0)*0.4,0)))),2) -> 0 | O135: =ROUND((((IFERROR(VLOOKUP(O$5,'Consolidado Sinalização'!$A$15:$AK$25,9,0)*0.4,0)))),2) -> 0 | P135: ='BASE DE DADOS ILUMINAÇÃO'!E41 -> 161 | Q135: 0 | R135: =#REF! ->  | V135: =F135-#REF! -> 
A136: 10.3.7 | B136: 61873 | C136: SBC | D136: CONECTOR METALICO TIPO PARAFUSO FENDIDO (SPLIT BOLT)120mm | E136: UN | F136: 340 | G136: Quant. de materiais para iluminação(Und) = | H136: Quant. de materiais para iluminação(Und) = = ( 0+340+0+0+0+0+0) = 340 | I136: =ROUND((((IFERROR(VLOOKUP(I$5,'Consolidado Sinalização'!$A$15:$AK$25,9,0)*0.4,0)))),2) -> 0 | J136: =IFERROR(VLOOKUP(A136,'BASE DE DADOS ILUMINAÇÃO'!$A$2:$E$103,5,0),0) -> 340 | K136: 0 | L136: 0 | M136: 0 | N136: =ROUND((((IFERROR(VLOOKUP(N$5,'Consolidado Sinalização'!$A$15:$AK$25,9,0)*0.4,0)))),2) -> 0 | O136: =ROUND((((IFERROR(VLOOKUP(O$5,'Consolidado Sinalização'!$A$15:$AK$25,9,0)*0.4,0)))),2) -> 0 | P136: ='BASE DE DADOS ILUMINAÇÃO'!E42 -> 340 | Q136: 0 | R136: =#REF! ->  | V136: =F136-#REF! -> 
A137: 10.3.8 | B137: 60881 | C137: SBC | D137: SUPORTE LUMINARIA ALTURA VARIAVEL 0,80m | E137: UN | F137: 340 | G137: Quant. de materiais para iluminação(Und) = | H137: Quant. de materiais para iluminação(Und) = = ( 0+340+0+0+0+0+0) = 340 | I137: =ROUND((((IFERROR(VLOOKUP(I$5,'Consolidado Sinalização'!$A$15:$AK$25,9,0)*0.4,0)))),2) -> 0 | J137: =IFERROR(VLOOKUP(A137,'BASE DE DADOS ILUMINAÇÃO'!$A$2:$E$103,5,0),0) -> 340 | K137: 0 | L137: 0 | M137: 0 | N137: =ROUND((((IFERROR(VLOOKUP(N$5,'Consolidado Sinalização'!$A$15:$AK$25,9,0)*0.4,0)))),2) -> 0 | O137: =ROUND((((IFERROR(VLOOKUP(O$5,'Consolidado Sinalização'!$A$15:$AK$25,9,0)*0.4,0)))),2) -> 0 | P137: ='BASE DE DADOS ILUMINAÇÃO'!E43 -> 340 | Q137: 0 | R137: =#REF! ->  | V137: =F137-#REF! -> 
A138: 10.3.9 | B138: 101659 | C138: SINAPI | D138: LUMINÁRIA DE LED PARA ILUMINAÇÃO PÚBLICA, DE 181 W ATÉ 239 W - FORNECIMENTO E INSTALAÇÃO. AF_02/2025_PS | E138: UN | F138: 170 | G138: Quant. de materiais para iluminação(Und) = | H138: Quant. de materiais para iluminação(Und) = = ( 0+170+0+0+0+0+0) = 170 | I138: =ROUND((((IFERROR(VLOOKUP(I$5,'Consolidado Sinalização'!$A$15:$AK$25,9,0)*0.4,0)))),2) -> 0 | J138: =IFERROR(VLOOKUP(A138,'BASE DE DADOS ILUMINAÇÃO'!$A$2:$E$103,5,0),0) -> 170 | K138: 0 | L138: 0 | M138: 0 | N138: =ROUND((((IFERROR(VLOOKUP(N$5,'Consolidado Sinalização'!$A$15:$AK$25,9,0)*0.4,0)))),2) -> 0 | O138: =ROUND((((IFERROR(VLOOKUP(O$5,'Consolidado Sinalização'!$A$15:$AK$25,9,0)*0.4,0)))),2) -> 0 | P138: ='BASE DE DADOS ILUMINAÇÃO'!E44 -> 170 | Q138: 0 | R138: =#REF! ->  | V138: =F138-#REF! -> 
A139: 10.3.10 | B139: 101636 | C139: SINAPI | D139: BRAÇO PARA ILUMINAÇÃO PÚBLICA, EM TUBO DE AÇO GALVANIZADO, COMPRIMENTO DE 1,50 M, PARA FIXAÇÃO EM POSTE DE CONCRETO - FORNECIMENTO E INSTALAÇÃO. AF_02/2025_PS | E139: UN | F139: 170 | G139: Quant. de materiais para iluminação(Und) = | H139: Quant. de materiais para iluminação(Und) = = ( 0+170+0+0+0+0+0) = 170 | I139: =ROUND((((IFERROR(VLOOKUP(I$5,'Consolidado Sinalização'!$A$15:$AK$25,9,0)*0.4,0)))),2) -> 0 | J139: =IFERROR(VLOOKUP(A139,'BASE DE DADOS ILUMINAÇÃO'!$A$2:$E$103,5,0),0) -> 170 | K139: 0 | L139: 0 | M139: 0 | N139: =ROUND((((IFERROR(VLOOKUP(N$5,'Consolidado Sinalização'!$A$15:$AK$25,9,0)*0.4,0)))),2) -> 0 | O139: =ROUND((((IFERROR(VLOOKUP(O$5,'Consolidado Sinalização'!$A$15:$AK$25,9,0)*0.4,0)))),2) -> 0 | P139: ='BASE DE DADOS ILUMINAÇÃO'!E45 -> 170 | Q139: 0 | R139: =#REF! ->  | V139: =F139-#REF! -> 
A140: 10.3.11 | B140: 101632 | C140: SINAPI | D140: RELÉ FOTOELÉTRICO PARA COMANDO DE ILUMINAÇÃO EXTERNA 1000 W - FORNECIMENTO E INSTALAÇÃO. AF_02/2025 | E140: UN | F140: 170 | G140: Quant. de materiais para iluminação(Und) = | H140: Quant. de materiais para iluminação(Und) = = ( 0+170+0+0+0+0+0) = 170 | I140: =ROUND((((IFERROR(VLOOKUP(I$5,'Consolidado Sinalização'!$A$15:$AK$25,9,0)*0.4,0)))),2) -> 0 | J140: =IFERROR(VLOOKUP(A140,'BASE DE DADOS ILUMINAÇÃO'!$A$2:$E$103,5,0),0) -> 170 | K140: 0 | L140: 0 | M140: 0 | N140: =ROUND((((IFERROR(VLOOKUP(N$5,'Consolidado Sinalização'!$A$15:$AK$25,9,0)*0.4,0)))),2) -> 0 | O140: =ROUND((((IFERROR(VLOOKUP(O$5,'Consolidado Sinalização'!$A$15:$AK$25,9,0)*0.4,0)))),2) -> 0 | P140: ='BASE DE DADOS ILUMINAÇÃO'!E46 -> 170 | Q140: 0 | R140: =#REF! ->  | V140: =F140-#REF! -> 
A141: 10.3.12 | B141: 96985 | C141: SINAPI | D141: HASTE DE ATERRAMENTO, DIÂMETRO 5/8", COM 3 METROS - FORNECIMENTO E INSTALAÇÃO. AF_08/2023 | E141: UN | F141: 32 | G141: Quant. de materiais para iluminação(Und) = | H141: Quant. de materiais para iluminação(Und) = = ( 0+32+0+0+0+0+0) = 32 | I141: =ROUND((((IFERROR(VLOOKUP(I$5,'Consolidado Sinalização'!$A$15:$AK$25,9,0)*0.4,0)))),2) -> 0 | J141: =IFERROR(VLOOKUP(A141,'BASE DE DADOS ILUMINAÇÃO'!$A$2:$E$103,5,0),0) -> 32 | K141: 0 | L141: 0 | M141: 0 | N141: =ROUND((((IFERROR(VLOOKUP(N$5,'Consolidado Sinalização'!$A$15:$AK$25,9,0)*0.4,0)))),2) -> 0 | O141: =ROUND((((IFERROR(VLOOKUP(O$5,'Consolidado Sinalização'!$A$15:$AK$25,9,0)*0.4,0)))),2) -> 0 | P141: ='BASE DE DADOS ILUMINAÇÃO'!E47 -> 32 | Q141: 0 | R141: =#REF! ->  | V141: =F141-#REF! -> 
A142: 10.3.13 | B142: 98111 | C142: SINAPI | D142: CAIXA DE INSPEÇÃO PARA ATERRAMENTO, CIRCULAR, EM POLIETILENO, DIÂMETRO INTERNO = 0,3 M. AF_12/2020 | E142: UN | F142: 32 | G142: Quant. de materiais para iluminação(Und) = | H142: Quant. de materiais para iluminação(Und) = = ( 0+32+0+0+0+0+0) = 32 | I142: =ROUND((((IFERROR(VLOOKUP(I$5,'Consolidado Sinalização'!$A$15:$AK$25,9,0)*0.4,0)))),2) -> 0 | J142: =IFERROR(VLOOKUP(A142,'BASE DE DADOS ILUMINAÇÃO'!$A$2:$E$103,5,0),0) -> 32 | K142: 0 | L142: 0 | M142: 0 | N142: =ROUND((((IFERROR(VLOOKUP(N$5,'Consolidado Sinalização'!$A$15:$AK$25,9,0)*0.4,0)))),2) -> 0 | O142: =ROUND((((IFERROR(VLOOKUP(O$5,'Consolidado Sinalização'!$A$15:$AK$25,9,0)*0.4,0)))),2) -> 0 | P142: ='BASE DE DADOS ILUMINAÇÃO'!E48 -> 32 | Q142: 0 | R142: =#REF! ->  | V142: =F142-#REF! -> 
A143: 10.3.14 | B143: 91930 | C143: SINAPI | D143: CABO DE COBRE FLEXÍVEL ISOLADO, 6 MM², ANTI-CHAMA 450/750 V, PARA CIRCUITOS TERMINAIS - FORNECIMENTO E INSTALAÇÃO. AF_03/2023 | E143: M | F143: 1405 | G143: Comp. total para iluminação (m) = | H143: Comp. total para iluminação (m) = = ( 0+1405+0+0+0+0+0) = 1405 | I143: =ROUND((((IFERROR(VLOOKUP(I$5,'Consolidado Sinalização'!$A$15:$AK$25,9,0)*0.4,0)))),2) -> 0 | J143: =IFERROR(VLOOKUP(A143,'BASE DE DADOS ILUMINAÇÃO'!$A$2:$E$103,5,0),0) -> 1405 | K143: 0 | L143: 0 | M143: 0 | N143: =ROUND((((IFERROR(VLOOKUP(N$5,'Consolidado Sinalização'!$A$15:$AK$25,9,0)*0.4,0)))),2) -> 0 | O143: =ROUND((((IFERROR(VLOOKUP(O$5,'Consolidado Sinalização'!$A$15:$AK$25,9,0)*0.4,0)))),2) -> 0 | P143: ='BASE DE DADOS ILUMINAÇÃO'!E49 -> 1405 | Q143: 0 | R143: =#REF! ->  | V143: =F143-#REF! -> 
A144: 10.3.15 | B144: 63408 | C144: SBC | D144: CABO FLEX CLASS 4 OU 5 450/750V 120mm2 | E144: M | F144: 6150 | G144: Comp. total para iluminação (m) = | H144: Comp. total para iluminação (m) = = ( 0+6150+0+0+0+0+0) = 6150 | I144: =ROUND((((IFERROR(VLOOKUP(I$5,'Consolidado Sinalização'!$A$15:$AK$25,9,0)*0.4,0)))),2) -> 0 | J144: =IFERROR(VLOOKUP(A144,'BASE DE DADOS ILUMINAÇÃO'!$A$2:$E$103,5,0),0) -> 6150 | K144: 0 | L144: 0 | M144: 0 | N144: =ROUND((((IFERROR(VLOOKUP(N$5,'Consolidado Sinalização'!$A$15:$AK$25,9,0)*0.4,0)))),2) -> 0 | O144: =ROUND((((IFERROR(VLOOKUP(O$5,'Consolidado Sinalização'!$A$15:$AK$25,9,0)*0.4,0)))),2) -> 0 | P144: ='BASE DE DADOS ILUMINAÇÃO'!E50 -> 6150 | Q144: 0 | R144: =#REF! ->  | V144: =F144-#REF! -> 
A145: 11 | D145: SERVIÇOS FINAIS | Q145: 0
A146: 11.1 | B146: 3713612 | C146: SICRO3 | D146: Cerca com 4 fios de arame farpado e mourão de concreto de seção triangular de 11 cm a cada 2,5 m e esticador de 15 cm a cada 50 m - areia e brita comerciais | E146: m | F146: 11602.51 | G146: Comp. total da cerca ao longo do trecho (m) = | H146: Comp. total da cerca ao longo do trecho (m) = = ( 0+11602,51+0+0+0+0+0) = 11602,51 | I146: =ROUND((VLOOKUP(I$5,'Consolidado Pavimentação'!$A$15:$AK$23,16,0)),2) -> 0 | J146: =ROUND((VLOOKUP(J$5,'Consolidado Pavimentação'!$A$15:$AK$23,16,0)),2) -> 11602.51 | K146: =ROUND((VLOOKUP(K$5,'Consolidado Pavimentação'!$A$15:$AK$23,16,0)),2) -> 0 | L146: =ROUND((VLOOKUP(L$5,'Consolidado Pavimentação'!$A$15:$AK$23,16,0)),2) -> 0 | M146: =ROUND((VLOOKUP(M$5,'Consolidado Pavimentação'!$A$15:$AK$23,16,0)),2) -> 0 | N146: =ROUND((VLOOKUP(N$5,'Consolidado Pavimentação'!$A$15:$AK$23,16,0)),2) -> 0 | O146: =ROUND((VLOOKUP(O$5,'Consolidado Pavimentação'!$A$15:$AK$23,16,0)),2) -> 0 | P146: ='Consolidado Pavimentação'!P23 -> 11602.51 | Q146: 0 | R146: =#REF! ->  | V146: =F146-#REF! -> 

Sheet Cronograma
B1: Obra | C1: Bancos | D1: ='Orçamento Sintético'!G1 -> BDI SERVIÇO | E1: 0.2338 | F1: Encargos Sociais
B2: CONTRATAÇÃO DE OBRAS DE PAVIMENTAÇÃO EM CONCRETO BETUMINOSO USINADO A QUENTE (CBUQ) NO RAMAL DA TOTOIA, NO MUNICÍPIO DE SANTANA/AP, NA ÁREA DE ATUAÇÃO DA 11ª SUPERINTENDÊNCIA REGIONAL DA CODEVASF, NO ESTADO DO AMAPÁ | C2: ='Orçamento Sintético'!E2 -> SINAPI - 01/2026 - Amapá SBC - 03/2026 - Amapá SICRO3 - 10/2025 - Amapá ORSE - 12/2025 - Sergipe | D2: ='Orçamento Sintético'!G2 -> BDI MATERIAL | E2: ='Orçamento Sintético'!H2 -> 0.1459 | F2: Não Desonerado
A3: Cronograma Físico e Financeiro
A4: Item | B4: Descrição | C4: Total Por Etapa | D4: 30 DIAS | E4: 60 DIAS | F4: 90 DIAS | G4: 120 DIAS | H4: 150 DIAS | I4: 180 DIAS | J4: 210 DIAS | K4: 240 DIAS | L4: 270 DIAS | M4: 300 DIAS | N4: 330 DIAS | O4: 360 DIAS | P4: 390 DIAS
A5: 1 | B5: SERVIÇOS PRELIMINARES | C5: =VLOOKUP(A5,'Resumo do Orçamento'!$A$5:$I$15,9,FALSE) -> 1475877.09 | D5: 50,00% 718.809,99 | E5: 50,00% 718.809,99
A6: 2 | B6: ADMINISTRAÇÃO LOCAL | C6: =VLOOKUP(A6,'Resumo do Orçamento'!$A$5:$I$15,9,FALSE) -> 1488815.38 | D6: 2,58% 38.318,73 | E6: 3,24% 48.121,19 | F6: 3,86% 57.329,57 | G6: 3,86% 57.329,57 | H6: 8,35% 124.016,03 | I6: 11,20% 166.344,86 | J6: 14,49% 215.208,66 | K6: 13,11% 194.712,59 | L6: 10,82% 160.701,01 | M6: 10,06% 149.413,33 | N6: 9,04% 134.264,06 | O6: 5,19% 77.083,02 | P6: 4,20% 62.379,32
A7: 3 | B7: MOBILIZAÇÃO E DESMOBIOLIZAÇÃO | C7: =VLOOKUP(A7,'Resumo do Orçamento'!$A$5:$I$15,9,FALSE) -> 21728.18 | D7: 50,00% 10.864,09 | P7: 50,00% 10.864,09
A8: 4 | B8: TERRAPLANAGEM | C8: =VLOOKUP(A8,'Resumo do Orçamento'!$A$5:$I$15,9,FALSE) -> 734886.89 | E8: 3,00% 22.046,61 | F8: 18,00% 132.279,64 | G8: 18,00% 132.279,64 | H8: 18,00% 132.279,64 | I8: 16,00% 117.581,90 | J8: 15,00% 110.233,03 | K8: 12,00% 88.186,43
A9: 5 | B9: DRENAGEM PROFUNDA | C9: =VLOOKUP(A9,'Resumo do Orçamento'!$A$5:$I$15,9,FALSE) -> 2146937.6 | F9: 15,00% 323.837,57 | G9: 15,00% 323.837,57 | H9: 15,00% 323.837,57 | I9: 15,00% 323.837,57 | J9: 15,00% 323.837,57 | K9: 15,00% 323.837,57 | L9: 10,00% 215.891,72
A10: 6 | B10: PAVIMENTAÇÃO | C10: =VLOOKUP(A10,'Resumo do Orçamento'!$A$5:$I$15,9,FALSE) -> 11880859.89 | H10: 10,00% 1.302.760,20 | I10: 10,00% 1.302.760,20 | J10: 15,00% 1.954.140,30 | K10: 15,00% 1.954.140,30 | L10: 15,00% 1.954.140,30 | M10: 15,00% 1.954.140,30 | N10: 10,00% 1.302.760,20 | O10: 5,00% 651.380,10 | P10: 5,00% 651.380,10
A11: 7 | B11: DEMOLIÇÃO | C11: =VLOOKUP(A11,'Resumo do Orçamento'!$A$5:$I$15,9,FALSE) -> 1107890.72 | E11: 10,00% 114.694,99 | F11: 30,00% 344.084,98 | G11: 30,00% 344.084,98 | N11: 20,00% 229.389,99 | O11: 10,00% 114.694,99
A12: 8 | B12: DRENAGEM SUPERFICIAL | C12: =VLOOKUP(A12,'Resumo do Orçamento'!$A$5:$I$15,9,FALSE) -> 320134.94 | J12: 10,00% 31.861,12 | K12: 20,00% 63.722,23 | L12: 20,00% 63.722,23 | M12: 20,00% 63.722,23 | N12: 10,00% 31.861,12 | O12: 10,00% 31.861,12 | P12: 10,00% 31.861,12
A13: 9 | B13: SINALIZAÇÃO | C13: =VLOOKUP(A13,'Resumo do Orçamento'!$A$5:$I$15,9,FALSE) -> 248653.13 | N13: 30,00% 76.951,55 | O13: 30,00% 76.951,55 | P13: 40,00% 102.602,06
A14: 10 | B14: ILUMINAÇÃO DO RAMAL DA TOTOIA | C14: =VLOOKUP(A14,'Resumo do Orçamento'!$A$5:$I$15,9,FALSE) -> 1777526.88 | D14: 6,30% 111.592,81 | I14: 33,70% 596.932,97 | J14: 30,00% 531.394,34 | K14: 30,00% 531.394,34
A15: 11 | B15: SERVIÇOS FINAIS | C15: =VLOOKUP(A15,'Resumo do Orçamento'!$A$5:$I$15,9,FALSE) -> 465028.6 | M15: 10,00% 45.238,19 | N15: 40,00% 180.952,74 | O15: 40,00% 180.952,74 | P15: 10,00% 45.238,19

Sheet Transporte Cap 50-70
C2: MEMÓRIA DE CÁLCULO
C7: REAJUSTE | F7: TIPOLOGIA DO MATERIAL | I7: CIMENTOS ASFÁLTICOS CAP-50-70 | M7: IMPOSTOS | N7: COFINS | O7: 0.0065 | P7: 0.0065
G8: ÍNDICE DE PAVIMENTAÇÃO DNIT | H8: 2014-07-01 | I8: ÍNDICE INICIAL | J8: 270.237 | N8: PIS | O8: 0.03 | P8: 0.03 | T8: LEGENDA | AC8: As empresas tributadas pelo Lucro Presumido pagam 0,65% de PIS e 3% de COFINS
H9: 2026-02-01 | I9: ÍNDICE FINAL | J9: 593.003 | N9: ICMS | O9: 0.18 | P9: 0.18 | Q9: 0.82 | R9: 0.82 | S9: 0.18 | T9: ENTRADA DE DADOS | AC9: As empresas tributadas pelo Lucro Real pagam 1,65% de PIS e 7,60% de COFINS
F10: CAP50/70 | G10: Data ANP | H10: 2026-01-01
C11: DATA-BASE | D11: PRODUTOS | E11: LOCALIDADES | J11: CUSTO ANP (R$/Kg) | L11: CUSTO ANP | M11: IMPOSTOS DO PRODUTO | N11: CUSTO DO PRODUTO COM IMPOSTOS | O11: DMT's | P11: DMT's FLUVIAL | Q11: CUSTO DO TRANSPORTE RODOVIA PAVIMENTADA | R11: CUSTO DO TRANSPORTE FLUVIAL | S11: CUSTO DO TRANSPORTE TOTAL | T11: ICMS | U11: ATUALIZAÇÃO DO CUSTO DE TRANSPORTE | V11: CUSTO DO TRANSPORTE RODOVIA PAVIMENTADA COM IMPOSTOS E ATUALIZAÇÃO MONETÁRIA | W11: PEDÁGIO | Y11: TOTAL TRANSPORTE | Z11: AQUISIÇÃO DO PRODUTO | AA11: TOTAL GERAL ( TRANSP + AQUISIÇÃO) | AC11: 1 | AD11: 2 | AE11: 3
C12: 2025-09-01 | E12: REFINARIAS | F12: ENDEREÇO | G12: ESTADO | H12: CIDADE | I12: DESTINO | J12: ESTADO | K12: REGIÃO | L12: R$/t | M12: R$/t | N12: R$/t | O12: KM | P12: KM | Q12: R$/t | R12: R$/t | S12: R$/t | T12: R$/t | U12: R$/t | V12: R$/t | W12: CUSTO | X12: R$/t | Y12: R$/t | Z12: R$/t | AA12: R$/t | AC12: TOTAL GERAL ( TRANSP + AQUISIÇÃO) | AD12: TOTAL TRANSPORTE | AE12: AQUISIÇÃO DO PRODUTO
B13: =AA13 -> 5563.402564 | C13: 1 | D13: CIMENTOS ASFÁLTICOS CAP-50-70 | E13: Refinaria Abreu e Lima | F13: Rodovia PE 60, Km 10 - Ipojuca - PE CEP:55590-000 | G13: Pernambuco | H13: IPOJUCA-PE | I13: Santana -AP | J13: =VLOOKUP('Transporte Cap 50-70'!G13,OFFSET('ANP ESTADO'!$A$1,MATCH('Transporte Cap 50-70'!$I$7,'ANP ESTADO'!B:B,0)+MATCH('Transporte Cap 50-70'!$H$10,OFFSET('ANP ESTADO'!$A$1,MATCH('Transporte Cap 50-70'!$I$7,'ANP ESTADO'!B:B,0),0,100000,1),0),2,100000,2),2,FALSE) -> - | K13: =VLOOKUP($H$10,OFFSET('ANP REGIÃO'!$A$9,MATCH('Transporte Cap 50-70'!$I$7,'ANP REGIÃO'!A:A,0),1,10000,10000),MATCH('Transporte Cap 50-70'!AH13,'ANP REGIÃO'!$B$8:$G$8,0),FALSE) -> 2.979532564 | L13: =IF(AND(J13="-",K13=""),"",IF(AND(J13<>0,K13=""),J13*1000,IF(AND(J13="-",K13<>0),K13*1000,IF(AND(J13<>0,K13<>0),J13*1000,"")))) -> 2979.532564 | M13: =ROUND(((L13/(1-$O$7-$O$8-$O$9))-L13),2) -> 823.32 | N13: =L13+M13 -> 3802.852564 | O13: 2050.9 | P13: 547 | Q13: =ROUND((26.939+0.253*O13),2) -> 545.82 | R13: =(ROUND((24.3894+0.1603*P13),2)) -> 112.07 | S13: =Q13+R13 -> 657.89 | T13: =TRUNC(S13*($O$9/(1-$O$9)),2) -> 144.41 | U13: =TRUNC(IF($J$8="","",(($J$9-$J$8)/$J$8)*(S13+T13)),2) -> 958.25 | V13: =S13+T13+U13 -> 1760.55 | W13: 0 | X13: =EVEN('Orçamento Sintético'!$F$54*2/28)*W13/('Orçamento Sintético'!$F$54) -> 0 | Y13: =IF(AND(Q13="",T13=""),"",V13+X13) -> 1760.55 | Z13: =IF(OR(L13="",M13=""),"",L13+M13) -> 3802.852564 | AA13: =IF(OR(Y13="",Z13=""),"",Y13+Z13) -> 5563.402564 | AC13: 6137.338176 | AD13: 1733.23 | AE13: 4404.108176 | AH13: NORDESTE
B14: =AA14 -> 6222.711808 | C14: 2 | E14: ISAC SAABA | F14: Rua Rio Quixito, 1, Vila Buriti - Distrito Industrial - Manaus - AM CEP: 69072-070 | G14: Amazonas | H14: MANAUS-AM | I14: Santana -AP | J14: =VLOOKUP('Transporte Cap 50-70'!G14,OFFSET('ANP ESTADO'!$A$1,MATCH('Transporte Cap 50-70'!$I$7,'ANP ESTADO'!B:B,0)+MATCH('Transporte Cap 50-70'!$H$10,OFFSET('ANP ESTADO'!$A$1,MATCH('Transporte Cap 50-70'!$I$7,'ANP ESTADO'!B:B,0),0,100000,1),0),2,100000,2),2,FALSE) -> 4.392871808 | K14: =VLOOKUP($H$10,OFFSET('ANP REGIÃO'!$A$9,MATCH('Transporte Cap 50-70'!$I$7,'ANP REGIÃO'!A:A,0),1,10000,10000),MATCH('Transporte Cap 50-70'!AH14,'ANP REGIÃO'!$B$8:$G$8,0),FALSE) -> 3.467945406 | L14: =IF(AND(J14="-",K14=""),"",IF(AND(J14<>0,K14=""),J14*1000,IF(AND(J14="-",K14<>0),K14*1000,IF(AND(J14<>0,K14<>0),J14*1000,"")))) -> 4392.871808 | M14: =ROUND(((L14/(1-$O$7-$O$8-$O$9))-L14),2) -> 1213.86 | N14: =L14+M14 -> 5606.731808 | O14: 10 | P14: 1100 | Q14: =ROUND((26.939+0.253*O14),2) -> 29.47 | R14: =(ROUND((24.3894+0.1603*P14),2)) -> 200.72 | S14: =Q14+R14 -> 230.19 | T14: =TRUNC(S14*($O$9/(1-$O$9)),2) -> 50.52 | U14: =TRUNC(IF($J$8="","",(($J$9-$J$8)/$J$8)*(S14+T14)),2) -> 335.27 | V14: =S14+T14+U14 -> 615.98 | W14: 0 | X14: =EVEN('Orçamento Sintético'!$F$54*2/28)*W14/('Orçamento Sintético'!$F$54) -> 0 | Y14: =IF(AND(Q14="",T14=""),"",V14+X14) -> 615.98 | Z14: =IF(OR(L14="",M14=""),"",L14+M14) -> 5606.731808 | AA14: =IF(OR(Y14="",Z14=""),"",Y14+Z14) -> 6222.711808 | AC14: 7756.968413 | AD14: 2156.28 | AE14: 5600.688413 | AH14: NORTE
B15: 5443.472564 | C15: 2 | E15: Refinaria Potiguar Clara Camarão | F15: Rodovia RN 221, KM 25 - Guamaré - RN CEP:59598-000 | G15: Rio Grande do Norte | H15: GUAMARÉ - RN | I15: Santana -AP | J15: =VLOOKUP('Transporte Cap 50-70'!G15,OFFSET('ANP ESTADO'!$A$1,MATCH('Transporte Cap 50-70'!$I$7,'ANP ESTADO'!B:B,0)+MATCH('Transporte Cap 50-70'!$H$10,OFFSET('ANP ESTADO'!$A$1,MATCH('Transporte Cap 50-70'!$I$7,'ANP ESTADO'!B:B,0),0,100000,1),0),2,100000,2),2,FALSE) -> - | K15: =VLOOKUP($H$10,OFFSET('ANP REGIÃO'!$A$9,MATCH('Transporte Cap 50-70'!$I$7,'ANP REGIÃO'!A:A,0),1,10000,10000),MATCH('Transporte Cap 50-70'!AH15,'ANP REGIÃO'!$B$8:$G$8,0),FALSE) -> 2.979532564 | L15: =IF(AND(J15="-",K15=""),"",IF(AND(J15<>0,K15=""),J15*1000,IF(AND(J15="-",K15<>0),K15*1000,IF(AND(J15<>0,K15<>0),J15*1000,"")))) -> 2979.532564 | M15: 823.32 | N15: 3802.852564 | O15: 1873.8 | P15: 547 | Q15: 501.01 | R15: 112.07 | S15: 613.08 | T15: 134.57 | U15: 892.97 | V15: =S15+T15+U15 -> 1640.62 | W15: 0 | X15: =EVEN('Orçamento Sintético'!$F$54*2/28)*W15/('Orçamento Sintético'!$F$54) -> 0 | Y15: 1640.62 | Z15: 3802.852564 | AA15: 5443.472564 | AC15: 5998.578176 | AD15: 1594.47 | AE15: 4404.108176 | AH15: NORDESTE
B16: 5650.146933 | C16: 3 | E16: Refinaria Landulpho Alves (RLAM) | F16: Rodovia BA 523, KM 4 – Mataripe São Francisco do Conde - BA CEP:43900-000 | G16: Bahia | H16: SÃO FRANCISCO DO CONDE - BA | I16: Santana -AP | J16: =VLOOKUP('Transporte Cap 50-70'!G16,OFFSET('ANP ESTADO'!$A$1,MATCH('Transporte Cap 50-70'!$I$7,'ANP ESTADO'!B:B,0)+MATCH('Transporte Cap 50-70'!$H$10,OFFSET('ANP ESTADO'!$A$1,MATCH('Transporte Cap 50-70'!$I$7,'ANP ESTADO'!B:B,0),0,100000,1),0),2,100000,2),2,FALSE) -> 3.026895344 | K16: =VLOOKUP($H$10,OFFSET('ANP REGIÃO'!$A$9,MATCH('Transporte Cap 50-70'!$I$7,'ANP REGIÃO'!A:A,0),1,10000,10000),MATCH('Transporte Cap 50-70'!AH16,'ANP REGIÃO'!$B$8:$G$8,0),FALSE) -> 2.979532564 | L16: 3026.895344 | M16: 836.4 | N16: 3863.295344 | O16: 2087.5 | P16: 547 | Q16: 555.08 | R16: 112.07 | S16: 667.15 | T16: 146.44 | U16: 971.73 | V16: 1785.32 | W16: 21 | X16: =EVEN('Orçamento Sintético'!$F$54*2/28)*W16/('Orçamento Sintético'!$F$54) -> 1.531589024 | Y16: 1786.851589 | Z16: 3863.295344 | AA16: 5650.146933 | AC16: 6445.683893 | AD16: 1713.849641 | AE16: 4731.834252 | AH16: NORDESTE
A17: 2403 | B17: 5134.742343 | C17: 4 | E17: Refinaria Lubrificantes e Derivados do Nordeste (Lubnor) | F17: Av. Leite Barbosa, s/nº - Mucuripe Fortaleza - Ceará CEP:60180-420 | G17: Ceará | H17: FORTALEZA - CE | I17: Santana -AP | J17: =VLOOKUP('Transporte Cap 50-70'!G17,OFFSET('ANP ESTADO'!$A$1,MATCH('Transporte Cap 50-70'!$I$7,'ANP ESTADO'!B:B,0)+MATCH('Transporte Cap 50-70'!$H$10,OFFSET('ANP ESTADO'!$A$1,MATCH('Transporte Cap 50-70'!$I$7,'ANP ESTADO'!B:B,0),0,100000,1),0),2,100000,2),2,FALSE) -> 2.952692343 | K17: =VLOOKUP($H$10,OFFSET('ANP REGIÃO'!$A$9,MATCH('Transporte Cap 50-70'!$I$7,'ANP REGIÃO'!A:A,0),1,10000,10000),MATCH('Transporte Cap 50-70'!AH17,'ANP REGIÃO'!$B$8:$G$8,0),FALSE) -> 2.979532564 | L17: 2952.692343 | M17: 815.9 | N17: 3768.592343 | O17: 1468.4 | P17: 547 | Q17: 398.44 | R17: 112.07 | S17: 510.51 | T17: 112.06 | U17: 743.58 | V17: 1366.15 | W17: 0 | X17: =EVEN('Orçamento Sintético'!$F$54*2/28)*W17/('Orçamento Sintético'!$F$54) -> 0 | Y17: 1366.15 | Z17: 3768.592343 | AA17: 5134.742343 | AC17: 5564.169582 | AD17: 1374.93 | AE17: 4189.239582 | AH17: NORDESTE
B18: 6608.400784 | C18: 5 | E18: Refinaria Capuava (Recap) | F18: Av. Alberto Soares Sampaio, 2122-A Capuava – Mauá - SP | G18: São Paulo | H18: MAUÁ - SP | I18: Santana -AP | J18: =VLOOKUP('Transporte Cap 50-70'!G18,OFFSET('ANP ESTADO'!$A$1,MATCH('Transporte Cap 50-70'!$I$7,'ANP ESTADO'!B:B,0)+MATCH('Transporte Cap 50-70'!$H$10,OFFSET('ANP ESTADO'!$A$1,MATCH('Transporte Cap 50-70'!$I$7,'ANP ESTADO'!B:B,0),0,100000,1),0),2,100000,2),2,FALSE) -> 3.235849675 | K18: =VLOOKUP($H$10,OFFSET('ANP REGIÃO'!$A$9,MATCH('Transporte Cap 50-70'!$I$7,'ANP REGIÃO'!A:A,0),1,10000,10000),MATCH('Transporte Cap 50-70'!AH18,'ANP REGIÃO'!$B$8:$G$8,0),FALSE) -> 3.218732311 | L18: 3235.849675 | M18: 894.14 | N18: 4129.989675 | O18: 2951.6 | P18: 547 | Q18: 773.69 | R18: 112.07 | S18: 885.76 | T18: 194.43 | U18: 1290.15 | V18: 2370.34 | W18: 1481.79 | X18: =EVEN('Orçamento Sintético'!$F$54*2/28)*W18/('Orçamento Sintético'!$F$54) -> 108.0711095 | Y18: 2478.411109 | Z18: 4129.989675 | AA18: 6608.400784 | AC18: 7011.52725 | AD18: 2420.335966 | AE18: 4591.191284 | AH18: SUDESTE
B19: 6737.057008 | C19: 6 | E19: Refinaria Duque de Caxias (Reduc) | F19: Rodovia Washington Luiz, km 113,7 Campos Elíseos – Duque de Caxias - RJ CEP:25213-005 | G19: Rio de Janeiro | H19: DUQUE DE CAXIAS - RJ | I19: Santana -AP | J19: =VLOOKUP('Transporte Cap 50-70'!G19,OFFSET('ANP ESTADO'!$A$1,MATCH('Transporte Cap 50-70'!$I$7,'ANP ESTADO'!B:B,0)+MATCH('Transporte Cap 50-70'!$H$10,OFFSET('ANP ESTADO'!$A$1,MATCH('Transporte Cap 50-70'!$I$7,'ANP ESTADO'!B:B,0),0,100000,1),0),2,100000,2),2,FALSE) -> 3.265801009 | K19: =VLOOKUP($H$10,OFFSET('ANP REGIÃO'!$A$9,MATCH('Transporte Cap 50-70'!$I$7,'ANP REGIÃO'!A:A,0),1,10000,10000),MATCH('Transporte Cap 50-70'!AH19,'ANP REGIÃO'!$B$8:$G$8,0),FALSE) -> 3.218732311 | L19: 3265.801009 | M19: 902.42 | N19: 4168.221009 | O19: 3096.3 | P19: 547 | Q19: 810.3 | R19: 112.07 | S19: 922.37 | T19: 202.47 | U19: 1343.48 | V19: 2468.32 | W19: 1378.2 | X19: =EVEN('Orçamento Sintético'!$F$54*2/28)*W19/('Orçamento Sintético'!$F$54) -> 100.5159996 | Y19: 2568.836 | Z19: 4168.221009 | AA19: 6737.057008 | AC19: 6887.796552 | AD19: 2566.406374 | AE19: 4321.390178 | AH19: SUDESTE
B20: 7536.640919 | C20: 7 | E20: Refinaria Alberto Pasqualini (Refap) | F20: Avenida Getúlio Vargas, 11001 - Bairro Brigadeira Canoas - RS - Brasil CEP:92420-221 | G20: Rio grande do sul | H20: CANOAS - RS | I20: Santana -AP | J20: =VLOOKUP('Transporte Cap 50-70'!G20,OFFSET('ANP ESTADO'!$A$1,MATCH('Transporte Cap 50-70'!$I$7,'ANP ESTADO'!B:B,0)+MATCH('Transporte Cap 50-70'!$H$10,OFFSET('ANP ESTADO'!$A$1,MATCH('Transporte Cap 50-70'!$I$7,'ANP ESTADO'!B:B,0),0,100000,1),0),2,100000,2),2,FALSE) -> 3.371304291 | K20: =VLOOKUP($H$10,OFFSET('ANP REGIÃO'!$A$9,MATCH('Transporte Cap 50-70'!$I$7,'ANP REGIÃO'!A:A,0),1,10000,10000),MATCH('Transporte Cap 50-70'!AH20,'ANP REGIÃO'!$B$8:$G$8,0),FALSE) -> 3.300419924 | L20: 3371.304291 | M20: 931.57 | N20: 4302.874291 | O20: 3992.9 | P20: 547 | Q20: 1037.14 | R20: 112.07 | S20: 1149.21 | T20: 252.26 | U20: 1673.88 | V20: 3075.35 | W20: 2172.09 | X20: =EVEN('Orçamento Sintético'!$F$54*2/28)*W20/('Orçamento Sintético'!$F$54) -> 158.4166287 | Y20: 3233.766629 | Z20: 4302.874291 | AA20: 7536.640919 | AC20: 7925.756433 | AD20: 3182.829042 | AE20: 4742.927391 | AH20: SUL
B21: 6785.963968 | C21: 8 | E21: Unidade de Industrialização do Xisto (SIX) | F21: Rodovia do Xisto, BR 476, km 153 São Mateus do Sul – PR CEP 83900-000 | G21: Paraná | H21: SÃO MATEUS DO SUL - PR | I21: Santana -AP | J21: =VLOOKUP('Transporte Cap 50-70'!G21,OFFSET('ANP ESTADO'!$A$1,MATCH('Transporte Cap 50-70'!$I$7,'ANP ESTADO'!B:B,0)+MATCH('Transporte Cap 50-70'!$H$10,OFFSET('ANP ESTADO'!$A$1,MATCH('Transporte Cap 50-70'!$I$7,'ANP ESTADO'!B:B,0),0,100000,1),0),2,100000,2),2,FALSE) -> 3.26001382 | K21: =VLOOKUP($H$10,OFFSET('ANP REGIÃO'!$A$9,MATCH('Transporte Cap 50-70'!$I$7,'ANP REGIÃO'!A:A,0),1,10000,10000),MATCH('Transporte Cap 50-70'!AH21,'ANP REGIÃO'!$B$8:$G$8,0),FALSE) -> 3.300419924 | L21: 3260.01382 | M21: 900.82 | N21: 4160.83382 | O21: 3193.5 | P21: 547 | Q21: 834.89 | R21: 112.07 | S21: 946.96 | T21: 207.86 | U21: 1379.29 | V21: 2534.11 | W21: 1248 | X21: =EVEN('Orçamento Sintético'!$F$54*2/28)*W21/('Orçamento Sintético'!$F$54) -> 91.02014769 | Y21: 2625.130148 | Z21: 4160.83382 | AA21: 6785.963968 | AC21: 7273.289487 | AD21: 2613.242022 | AE21: 4660.047465 | AH21: SUL
B22: 6239.629885 | C22: 9 | E22: Refinaria Gabriel Passos (Regap) | F22: Av. Refinaria Gabriel Passos, 690 Distrito Industrial Paulo Camilo Sul Betim - MG CEP:32669-205 | G22: Minas Gerais | H22: BETIM - MG | I22: Santana -AP | J22: =VLOOKUP('Transporte Cap 50-70'!G22,OFFSET('ANP ESTADO'!$A$1,MATCH('Transporte Cap 50-70'!$I$7,'ANP ESTADO'!B:B,0)+MATCH('Transporte Cap 50-70'!$H$10,OFFSET('ANP ESTADO'!$A$1,MATCH('Transporte Cap 50-70'!$I$7,'ANP ESTADO'!B:B,0),0,100000,1),0),2,100000,2),2,FALSE) -> 3.114553244 | K22: =VLOOKUP($H$10,OFFSET('ANP REGIÃO'!$A$9,MATCH('Transporte Cap 50-70'!$I$7,'ANP REGIÃO'!A:A,0),1,10000,10000),MATCH('Transporte Cap 50-70'!AH22,'ANP REGIÃO'!$B$8:$G$8,0),FALSE) -> 3.218732311 | L22: 3114.553244 | M22: 860.63 | N22: 3975.183244 | O22: 2688.3 | P22: 547 | Q22: 707.08 | R22: 112.07 | S22: 819.15 | T22: 179.81 | U22: 1193.13 | V22: 2192.09 | W22: 992.1 | X22: =EVEN('Orçamento Sintético'!$F$54*2/28)*W22/('Orçamento Sintético'!$F$54) -> 72.35664144 | Y22: 2264.446641 | Z22: 3975.183244 | AA22: 6239.629885 | AC22: 6807.597731 | AD22: 2221.601638 | AE22: 4585.996093 | AH22: SUDESTE
B23: 6912.351401 | C23: 10 | E23: Refinaria Presidente Getúlio Vargas (Repar) | F23: Rodovia do Xisto, BR 476, km 16 Araucária - PR CEP:83707-440 | G23: Paraná | H23: ARAUCÁRIA - PR | I23: Santana -AP | J23: =VLOOKUP('Transporte Cap 50-70'!G23,OFFSET('ANP ESTADO'!$A$1,MATCH('Transporte Cap 50-70'!$I$7,'ANP ESTADO'!B:B,0)+MATCH('Transporte Cap 50-70'!$H$10,OFFSET('ANP ESTADO'!$A$1,MATCH('Transporte Cap 50-70'!$I$7,'ANP ESTADO'!B:B,0),0,100000,1),0),2,100000,2),2,FALSE) -> 3.26001382 | K23: =VLOOKUP($H$10,OFFSET('ANP REGIÃO'!$A$9,MATCH('Transporte Cap 50-70'!$I$7,'ANP REGIÃO'!A:A,0),1,10000,10000),MATCH('Transporte Cap 50-70'!AH23,'ANP REGIÃO'!$B$8:$G$8,0),FALSE) -> 3.300419924 | L23: 3260.01382 | M23: 900.82 | N23: 4160.83382 | O23: 3336.8 | P23: 547 | Q23: 871.15 | R23: 112.07 | S23: 983.22 | T23: 215.82 | U23: 1432.11 | V23: 2631.15 | W23: 1650.39 | X23: =EVEN('Orçamento Sintético'!$F$54*2/28)*W23/('Orçamento Sintético'!$F$54) -> 120.3675814 | Y23: 2751.517581 | Z23: 4160.83382 | AA23: 6912.351401 | AC23: 7284.649231 | AD23: 2624.601766 | AE23: 4660.047465 | AH23: SUL
B24: 6634.540784 | C24: 11 | E24: Refinaria Presidente Bernardes (RPBC) | F24: Av. 9 de abril, 777 - Jardim das Indústrias Cubatão - SP CEP:11505-000 | G24: São Paulo | H24: CUBATÃO - SP | I24: Santana -AP | J24: =VLOOKUP('Transporte Cap 50-70'!G24,OFFSET('ANP ESTADO'!$A$1,MATCH('Transporte Cap 50-70'!$I$7,'ANP ESTADO'!B:B,0)+MATCH('Transporte Cap 50-70'!$H$10,OFFSET('ANP ESTADO'!$A$1,MATCH('Transporte Cap 50-70'!$I$7,'ANP ESTADO'!B:B,0),0,100000,1),0),2,100000,2),2,FALSE) -> 3.235849675 | K24: =VLOOKUP($H$10,OFFSET('ANP REGIÃO'!$A$9,MATCH('Transporte Cap 50-70'!$I$7,'ANP REGIÃO'!A:A,0),1,10000,10000),MATCH('Transporte Cap 50-70'!AH24,'ANP REGIÃO'!$B$8:$G$8,0),FALSE) -> 3.218732311 | L24: 3235.849675 | M24: 894.14 | N24: 4129.989675 | O24: 2990.2 | P24: 547 | Q24: 783.46 | R24: 112.07 | S24: 895.53 | T24: 196.57 | U24: 1304.38 | V24: 2396.48 | W24: 1481.79 | X24: =EVEN('Orçamento Sintético'!$F$54*2/28)*W24/('Orçamento Sintético'!$F$54) -> 108.0711095 | Y24: 2504.551109 | Z24: 4129.989675 | AA24: 6634.540784 | AC24: 7038.45725 | AD24: 2447.265966 | AE24: 4591.191284 | AH24: SUDESTE
B25: 6513.151928 | C25: 12 | E25: Refinaria de Paulínia (Replan) | F25: Rodovia SP 332 - Km. 130 Bonfim - Paulínia – SP CEP:13140-000 | G25: São Paulo | H25: PAULÍNIA - SP | I25: Santana -AP | J25: =VLOOKUP('Transporte Cap 50-70'!G25,OFFSET('ANP ESTADO'!$A$1,MATCH('Transporte Cap 50-70'!$I$7,'ANP ESTADO'!B:B,0)+MATCH('Transporte Cap 50-70'!$H$10,OFFSET('ANP ESTADO'!$A$1,MATCH('Transporte Cap 50-70'!$I$7,'ANP ESTADO'!B:B,0),0,100000,1),0),2,100000,2),2,FALSE) -> 3.235849675 | K25: =VLOOKUP($H$10,OFFSET('ANP REGIÃO'!$A$9,MATCH('Transporte Cap 50-70'!$I$7,'ANP REGIÃO'!A:A,0),1,10000,10000),MATCH('Transporte Cap 50-70'!AH25,'ANP REGIÃO'!$B$8:$G$8,0),FALSE) -> 3.218732311 | L25: 3235.849675 | M25: 894.14 | N25: 4129.989675 | O25: 2824.1 | P25: 547 | Q25: 741.44 | R25: 112.07 | S25: 853.51 | T25: 187.35 | U25: 1243.18 | V25: 2284.04 | W25: 1359.09 | X25: =EVEN('Orçamento Sintético'!$F$54*2/28)*W25/('Orçamento Sintético'!$F$54) -> 99.12225362 | Y25: 2383.162254 | Z25: 4129.989675 | AA25: 6513.151928 | AC25: 6917.529042 | AD25: 2326.337758 | AE25: 4591.191284 | AH25: SUDESTE
B26: 6637.442102 | C26: 13 | E26: Refinaria Henrique Lage (Revap) | F26: Rodovia Presidente Dutra, KM 143, S/N Bairro Jardim Diamante - São José dos Campos – SP CEP:12223-900 | G26: São Paulo | H26: SÃO JOSÉ DOS CAMPOS - SP | I26: Santana -AP | J26: =VLOOKUP('Transporte Cap 50-70'!G26,OFFSET('ANP ESTADO'!$A$1,MATCH('Transporte Cap 50-70'!$I$7,'ANP ESTADO'!B:B,0)+MATCH('Transporte Cap 50-70'!$H$10,OFFSET('ANP ESTADO'!$A$1,MATCH('Transporte Cap 50-70'!$I$7,'ANP ESTADO'!B:B,0),0,100000,1),0),2,100000,2),2,FALSE) -> 3.235849675 | K26: =VLOOKUP($H$10,OFFSET('ANP REGIÃO'!$A$9,MATCH('Transporte Cap 50-70'!$I$7,'ANP REGIÃO'!A:A,0),1,10000,10000),MATCH('Transporte Cap 50-70'!AH26,'ANP REGIÃO'!$B$8:$G$8,0),FALSE) -> 3.218732311 | L26: 3235.849675 | M26: 894.14 | N26: 4129.989675 | O26: 2985.7 | P26: 547 | Q26: 782.32 | R26: 112.07 | S26: 894.39 | T26: 196.32 | U26: 1302.72 | V26: 2393.43 | W26: 1563.39 | X26: =EVEN('Orçamento Sintético'!$F$54*2/28)*W26/('Orçamento Sintético'!$F$54) -> 114.0224268 | Y26: 2507.452427 | Z26: 4129.989675 | AA26: 6637.442102 | AC26: 7028.657863 | AD26: 2437.466578 | AE26: 4591.191284 | AH26: SUDESTE
D36: Acre
D37: Alagoas
D38: Amapá
D39: Amazonas
D40: Bahia
D41: Ceará
D42: Distrito Federal
D43: Espírito Santo
D44: Goiás
D45: Maranhão
D46: Mato Grosso
D47: Mato Grosso do Sul
D48: Minas Gerais
D49: Pará
D50: Paraíba
D51: Paraná
D52: Pernambuco
D53: Piauí
D54: Rio de Janeiro
D55: Rio Grande do Norte
D56: Rio Grande do Sul
D57: Rondônia
D58: Roraima
D59: Santa Catarina
D60: São Paulo
D61: Sergipe
D62: Tocantins
D66: ASFALTOS DILUÍDOS CM-30
D67: ASFALTOS DILUÍDOS CM-70
D68: ASFALTOS DILUÍDOS CR-250
D69: ASFALTOS DILUÍDOS CR-70
D70: CAP MODIFICADO POR BORRACHA DE PNEU AB22
D71: CAP MODIFICADO POR BORRACHA DE PNEU AB8
D72: CAP MODIFICADO POR POLÍMERO 55-75-E
D73: CAP MODIFICADO POR POLÍMERO 60-85-E
D74: CAP MODIFICADO POR POLÍMERO 65-90-E
D75: CIMENTOS ASFÁLTICOS CAP-150-200
D76: CIMENTOS ASFÁLTICOS CAP-30-45
D77: CIMENTOS ASFÁLTICOS CAP-50-70
D78: CIMENTOS ASFÁLTICOS CAP-85-100
D79: EMULSÃO ASFÁLTICA CATIÔNICA DE RUPTURA CONTROLADA PARA SERVIÇO DE LAMA ASFÁLTICA
D80: EMULSÃO ASFÁLTICA DE RUPTURA LENTA CATIÔNICA PARA SERVIÇO DE LAMA ASFÁLTICA
D81: EMULSÃO ASFÁLTICA DE RUPTURA LENTA DE CARGA NEUTRA PARA SERVIÇO DE LAMA ASFÁLTICA
D82: EMULSÃO ASFÁLTICA PARA SERVIÇO DE IMPRIMAÇÃO
D83: EMULSÕES ASF. MOD. POR POLÍMEROS RC1C-E
D84: EMULSÕES ASF. MOD. POR POLÍMEROS RL1C-E
D85: EMULSÕES ASF. MOD. POR POLÍMEROS RM1C-E
D86: EMULSÕES ASF. MOD. POR POLÍMEROS RR1C-E
D87: EMULSÕES ASF. MOD. POR POLÍMEROS RR2C-E
D88: EMULSÕES ASFÁLTICAS RL-1C
D89: EMULSÕES ASFÁLTICAS RM-1C
D90: EMULSÕES ASFÁLTICAS RM-2C
D91: EMULSÕES ASFÁLTICAS RR-1C
D92: EMULSÕES ASFÁLTICAS RR-2C

Sheet Transporte CM-30
C2: MEMÓRIA DE CÁLCULO
C7: REAJUSTE | F7: TIPOLOGIA DO MATERIAL | I7: EMULSÃO ASFÁLTICA PARA SERVIÇO DE IMPRIMAÇÃO | M7: IMPOSTOS | N7: COFINS | O7: 0.0065 | P7: 0.0065
G8: ÍNDICE DE PAVIMENTAÇÃO DNIT | H8: 2014-07-01 | I8: ÍNDICE INICIAL | J8: 270.237 | N8: PIS | O8: 0.03 | P8: 0.03 | T8: LEGENDA | AC8: As empresas tributadas pelo Lucro Presumido pagam 0,65% de PIS e 3% de COFINS
H9: 2026-02-01 | I9: ÍNDICE FINAL | J9: 593.003 | N9: ICMS | O9: 0.18 | P9: 0.18 | Q9: 0.82 | R9: 0.82 | S9: 0.18 | T9: ENTRADA DE DADOS | AC9: As empresas tributadas pelo Lucro Real pagam 1,65% de PIS e 7,60% de COFINS
G10: Data ANP | H10: 2026-01-01
C11: DATA-BASE | D11: PRODUTOS | E11: LOCALIDADES | J11: CUSTO ANP (R$/Kg) | L11: CUSTO ANP | M11: IMPOSTOS DO PRODUTO | N11: CUSTO DO PRODUTO COM IMPOSTOS | O11: DMT's | P11: DMT'S FLUVIAL | Q11: CUSTO DO TRANSPORTE RODOVIA PAVIMENTADA | R11: CUSTO DO TRANSPORTE FLUVIAL | S11: CUSTO DO TRANSPORTE TOTAL | T11: ICMS | U11: ATUALIZAÇÃO DO CUSTO DE TRANSPORTE | V11: CUSTO DO TRANSPORTE RODOVIA PAVIMENTADA COM IMPOSTOS E ATUALIZAÇÃO MONETÁRIA | W11: PEDÁGIO | Y11: TOTAL TRANSPORTE | Z11: AQUISIÇÃO DO PRODUTO | AA11: TOTAL GERAL ( TRANSP + AQUISIÇÃO) | AC11: 1 | AD11: 2 | AE11: 3
C12: 2025-09-01 | E12: REFINARIAS | F12: ENDEREÇO | G12: ESTADO | H12: CIDADE | I12: DESTINO | J12: ESTADO | K12: REGIÃO | L12: R$/t | M12: R$/t | N12: R$/t | O12: KM | P12: KM | Q12: R$/t | R12: R$/t | S12: R$/t | T12: R$/t | U12: R$/t | V12: R$/t | W12: CUSTO | X12: R$/t | Y12: R$/t | Z12: R$/t | AA12: R$/t | AC12: TOTAL GERAL ( TRANSP + AQUISIÇÃO) | AD12: TOTAL TRANSPORTE | AE12: AQUISIÇÃO DO PRODUTO
B13: =AA13 -> 4876.486228 | C13: 1 | D13: ASFALTOS DILUÍDOS CM-30 | E13: 'CENTRO OESTE ASFALTOS LTDA. | F13: SETOR DE INFLAMÁVEIS, S/N TRECHO 02 - LOTE 1.100 - GUARÁ - CEP:71225-000 | G13: Distrito Federal | H13: BRASÍLIA - DF | I13: Santana -AP | J13: =VLOOKUP(G13,OFFSET('ANP ESTADO'!$A$1,MATCH($I$7,'ANP ESTADO'!B:B,0)+MATCH($H$10,OFFSET('ANP ESTADO'!$A$1,MATCH($I$7,'ANP ESTADO'!B:B,0),0,100000,1),0),2,100000,2),2,FALSE) -> - | K13: =VLOOKUP($H$10,OFFSET('ANP REGIÃO'!$A$9,MATCH($I$7,'ANP REGIÃO'!A:A,0),1,10000,10000),MATCH(AH13,'ANP REGIÃO'!$B$8:$G$8,0),FALSE) -> 2.462443583 | L13: =IF(AND(J13="-",K13="-"),"",IF(AND(J13<>0,K13="-"),J13*1000,IF(AND(J13="-",K13<>0),K13*1000,IF(AND(J13<>0,K13<>0),J13*1000,"")))) -> 2462.443583 | M13: =ROUND(((L13/(1-$O$7-$O$8-$O$9))-L13),2) -> 680.43 | N13: =L13+M13 -> 3142.873583 | O13: 1968.1 | P13: 547 | Q13: =ROUND((26.939+0.253*O13),2) -> 524.87 | R13: =ROUND((20.7256+0.1603*P13),2) -> 108.41 | S13: =Q13+R13 -> 633.28 | T13: =TRUNC(S13*($O$9/(1-$O$9)),2) -> 139.01 | U13: =TRUNC(IF($J$8="","",(($J$9-$J$8)/$J$8)*(S13+T13)),2) -> 922.4 | V13: =S13+T13+U13 -> 1694.69 | W13: 444 | X13: =EVEN('Orçamento Sintético'!$F$48/1000*2/28)*W13/('Orçamento Sintético'!$F$48/1000) -> 38.92264571 | Y13: =IF(AND(S13="",T13=""),"",V13+X13) -> 1733.612646 | Z13: =IF(OR(L13="",M13=""),"",L13+M13) -> 3142.873583 | AA13: =IF(OR(Y13="",Z13=""),"",Y13+Z13) -> 4876.486228 | AC13: 8751.585541 | AD13: 1711.926434 | AE13: 7039.659107 | AH13: CENTRO-OESTE
B14: =AA14 -> 4385.988591 | C14: 2 | E14: ISAC SAABA | F14: Rua Rio Quixito, 1, Vila Buriti - Distrito Industrial - Manaus - AM CEP: 69072-070 | G14: Amazonas | H14: MANAUS - AM | I14: Santana -AP | J14: =VLOOKUP(G14,OFFSET('ANP ESTADO'!$A$1,MATCH($I$7,'ANP ESTADO'!B:B,0)+MATCH($H$10,OFFSET('ANP ESTADO'!$A$1,MATCH($I$7,'ANP ESTADO'!B:B,0),0,100000,1),0),2,100000,2),2,FALSE) -> - | K14: =VLOOKUP($H$10,OFFSET('ANP REGIÃO'!$A$9,MATCH($I$7,'ANP REGIÃO'!A:A,0),1,10000,10000),MATCH(AH14,'ANP REGIÃO'!$B$8:$G$8,0),FALSE) -> 2.961468591 | L14: =IF(AND(J14="-",K14="-"),"",IF(AND(J14<>0,K14="-"),J14*1000,IF(AND(J14="-",K14<>0),K14*1000,IF(AND(J14<>0,K14<>0),J14*1000,"")))) -> 2961.468591 | M14: =ROUND(((L14/(1-$O$7-$O$8-$O$9))-L14),2) -> 818.33 | N14: =L14+M14 -> 3779.798591 | O14: 10 | P14: 1100 | Q14: =ROUND((26.939+0.253*O14),2) -> 29.47 | R14: =ROUND((20.7256+0.1603*P14),2) -> 197.06 | S14: =Q14+R14 -> 226.53 | T14: =TRUNC(S14*($O$9/(1-$O$9)),2) -> 49.72 | U14: =TRUNC(IF($J$8="","",(($J$9-$J$8)/$J$8)*(S14+T14)),2) -> 329.94 | V14: =S14+T14+U14 -> 606.19 | W14: 0 | X14: =EVEN('Orçamento Sintético'!$F$48/1000*2/28)*W14/('Orçamento Sintético'!$F$48/1000) -> 0 | Y14: =IF(AND(S14="",T14=""),"",V14+X14) -> 606.19 | Z14: =IF(OR(L14="",M14=""),"",L14+M14) -> 3779.798591 | AA14: =IF(OR(Y14="",Z14=""),"",Y14+Z14) -> 4385.988591 | AC14: 11256.08737 | AD14: 2145.87 | AE14: 9110.217372 | AH14: NORTE
B15: 4869.601543 | C15: 2 | E15: STRATURA ASFALTOS S/A | F15: AVENIDA PRESIDENTE WILSON, 08 - JUNDIAÍ - CEP:75115-100 | G15: Goiás | H15: ANÁPOLIS - GO | I15: Santana -AP | J15: =VLOOKUP(G15,OFFSET('ANP ESTADO'!$A$1,MATCH($I$7,'ANP ESTADO'!B:B,0)+MATCH($H$10,OFFSET('ANP ESTADO'!$A$1,MATCH($I$7,'ANP ESTADO'!B:B,0),0,100000,1),0),2,100000,2),2,FALSE) -> - | K15: =VLOOKUP($H$10,OFFSET('ANP REGIÃO'!$A$9,MATCH($I$7,'ANP REGIÃO'!A:A,0),1,10000,10000),MATCH(AH15,'ANP REGIÃO'!$B$8:$G$8,0),FALSE) -> 2.462443583 | L15: 2462.443583 | M15: 680.43 | N15: 3142.873583 | O15: 1945.8 | P15: 547 | Q15: 519.23 | R15: 108.41 | S15: 627.64 | T15: 137.77 | U15: 914.19 | V15: 1679.6 | W15: 537.6 | X15: =EVEN('Orçamento Sintético'!$F$48/1000*2/28)*W15/('Orçamento Sintético'!$F$48/1000) -> 47.12796021 | Y15: 1726.72796 | Z15: 3142.873583 | AA15: 4869.601543 | AC15: 8275.64034 | AD15: 1692.733337 | AE15: 6582.907003 | AH15: CENTRO-OESTE
B16: 4906.331543 | C16: 3 | E16: DISTRIBUIDORA BRASILEIRA DE ASFALTO SA - DISBRAL | F16: VIA PRIMARIA 8, S/N QD-18, MODS. 24/47 - DAIAG - CEP:74980-970 | G16: Goiás | H16: APARECIDA DE GOIANIA - GO | I16: Santana -AP | J16: =VLOOKUP(G16,OFFSET('ANP ESTADO'!$A$1,MATCH($I$7,'ANP ESTADO'!B:B,0)+MATCH($H$10,OFFSET('ANP ESTADO'!$A$1,MATCH($I$7,'ANP ESTADO'!B:B,0),0,100000,1),0),2,100000,2),2,FALSE) -> - | K16: =VLOOKUP($H$10,OFFSET('ANP REGIÃO'!$A$9,MATCH($I$7,'ANP REGIÃO'!A:A,0),1,10000,10000),MATCH(AH16,'ANP REGIÃO'!$B$8:$G$8,0),FALSE) -> 2.462443583 | L16: 2462.443583 | M16: 680.43 | N16: 3142.873583 | O16: 2000.1 | P16: 547 | Q16: 532.96 | R16: 108.41 | S16: 641.37 | T16: 140.78 | U16: 934.18 | V16: 1716.33 | W16: 537.6 | X16: =EVEN('Orçamento Sintético'!$F$48/1000*2/28)*W16/('Orçamento Sintético'!$F$48/1000) -> 47.12796021 | Y16: 1763.45796 | Z16: 3142.873583 | AA16: 4906.331543 | AC16: 8310.02034 | AD16: 1727.113337 | AE16: 6582.907003 | AH16: CENTRO-OESTE
A17: 2403 | B17: 4889.151543 | C17: 4 | E17: INDÚSTRIA NACIONAL DE ASFALTOS LTDA. | F17: VIA PRIMEIRA E SEGUNDA 3, S/N.º LOTES 01 A 10 - DISTRITO AGROINDUSTRIAL - CEP:75370-000 | G17: Goiás | H17: GOIANIRA - GO | I17: Santana -AP | J17: =VLOOKUP(G17,OFFSET('ANP ESTADO'!$A$1,MATCH($I$7,'ANP ESTADO'!B:B,0)+MATCH($H$10,OFFSET('ANP ESTADO'!$A$1,MATCH($I$7,'ANP ESTADO'!B:B,0),0,100000,1),0),2,100000,2),2,FALSE) -> - | K17: =VLOOKUP($H$10,OFFSET('ANP REGIÃO'!$A$9,MATCH($I$7,'ANP REGIÃO'!A:A,0),1,10000,10000),MATCH(AH17,'ANP REGIÃO'!$B$8:$G$8,0),FALSE) -> 2.462443583 | L17: 2462.443583 | M17: 680.43 | N17: 3142.873583 | O17: 1974.7 | P17: 547 | Q17: 526.54 | R17: 108.41 | S17: 634.95 | T17: 139.37 | U17: 924.83 | V17: 1699.15 | W17: 537.6 | X17: =EVEN('Orçamento Sintético'!$F$48/1000*2/28)*W17/('Orçamento Sintético'!$F$48/1000) -> 47.12796021 | Y17: 1746.27796 | Z17: 3142.873583 | AA17: 4889.151543 | AC17: 8290.49034 | AD17: 1707.583337 | AE17: 6582.907003 | AH17: CENTRO-OESTE
B18: 4509.156612 | C18: 5 | E18: STRATURA ASFALTOS S/A | F18: RUA VICTOR RODRIGUES RESENDE, 333 - DISTRITO IND. DE UBERLÂNDIA - CEP:38405-440 | G18: Minas Gerais | H18: UBERLANDIA - MG | I18: Santana -AP | J18: =VLOOKUP(G18,OFFSET('ANP ESTADO'!$A$1,MATCH($I$7,'ANP ESTADO'!B:B,0)+MATCH($H$10,OFFSET('ANP ESTADO'!$A$1,MATCH($I$7,'ANP ESTADO'!B:B,0),0,100000,1),0),2,100000,2),2,FALSE) -> 1.961599986 | K18: =VLOOKUP($H$10,OFFSET('ANP REGIÃO'!$A$9,MATCH($I$7,'ANP REGIÃO'!A:A,0),1,10000,10000),MATCH(AH18,'ANP REGIÃO'!$B$8:$G$8,0),FALSE) -> 2.173984481 | L18: 1961.599986 | M18: 542.04 | N18: 2503.639986 | O18: 2334.9 | P18: 547 | Q18: 617.67 | R18: 108.41 | S18: 726.08 | T18: 159.38 | U18: 1057.57 | V18: 1943.03 | W18: 712.8 | X18: =EVEN('Orçamento Sintético'!$F$48/1000*2/28)*W18/('Orçamento Sintético'!$F$48/1000) -> 62.48662582 | Y18: 2005.516626 | Z18: 2503.639986 | AA18: 4509.156612 | AC18: 10978.62751 | AD18: 1955.757512 | AE18: 9022.87 | AH18: SUDESTE
B19: 4509.156612 | C19: 6 | E19: BETUNEL INDÚSTRIA E COMÉRCIO LTDA. | F19: RUA VICTOR RODRIGUES DE REZENDE, 185 - DISTRITO INDUSTRIAL - CEP:38402-334 | G19: Minas Gerais | H19: UBERLANDIA - MG | I19: Santana -AP | J19: =VLOOKUP(G19,OFFSET('ANP ESTADO'!$A$1,MATCH($I$7,'ANP ESTADO'!B:B,0)+MATCH($H$10,OFFSET('ANP ESTADO'!$A$1,MATCH($I$7,'ANP ESTADO'!B:B,0),0,100000,1),0),2,100000,2),2,FALSE) -> 1.961599986 | K19: =VLOOKUP($H$10,OFFSET('ANP REGIÃO'!$A$9,MATCH($I$7,'ANP REGIÃO'!A:A,0),1,10000,10000),MATCH(AH19,'ANP REGIÃO'!$B$8:$G$8,0),FALSE) -> 2.173984481 | L19: 1961.599986 | M19: 542.04 | N19: 2503.639986 | O19: 2334.9 | P19: 547 | Q19: 617.67 | R19: 108.41 | S19: 726.08 | T19: 159.38 | U19: 1057.57 | V19: 1943.03 | W19: 712.8 | X19: =EVEN('Orçamento Sintético'!$F$48/1000*2/28)*W19/('Orçamento Sintético'!$F$48/1000) -> 62.48662582 | Y19: 2005.516626 | Z19: 2503.639986 | AA19: 4509.156612 | AC19: 10976.80401 | AD19: 1953.934006 | AE19: 9022.87 | AH19: SUDESTE
B20: 4886.930616 | C20: 7 | E20: ARAPETRO DISTRIBUIDORA DE PETRÓLEO LTDA. | F20: RUA 04, S/N° LOTES 17 A 20. - DISTRITO INDUSTRIAL 1/8 - CEP:78600-000 | G20: Mato grosso | H20: BARRA DO GARCAS - MT | I20: Santana -AP | J20: =VLOOKUP(G20,OFFSET('ANP ESTADO'!$A$1,MATCH($I$7,'ANP ESTADO'!B:B,0)+MATCH($H$10,OFFSET('ANP ESTADO'!$A$1,MATCH($I$7,'ANP ESTADO'!B:B,0),0,100000,1),0),2,100000,2),2,FALSE) -> 2.480970616 | K20: =VLOOKUP($H$10,OFFSET('ANP REGIÃO'!$A$9,MATCH($I$7,'ANP REGIÃO'!A:A,0),1,10000,10000),MATCH(AH20,'ANP REGIÃO'!$B$8:$G$8,0),FALSE) -> 2.462443583 | L20: 2480.970616 | M20: 685.55 | N20: 3166.520616 | O20: 2006.1 | P20: 547 | Q20: 534.48 | R20: 108.41 | S20: 642.89 | T20: 141.12 | U20: 936.4 | V20: 1720.41 | W20: 0 | X20: =EVEN('Orçamento Sintético'!$F$48/1000*2/28)*W20/('Orçamento Sintético'!$F$48/1000) -> 0 | Y20: 1720.41 | Z20: 3166.520616 | AA20: 4886.930616 | AH20: CENTRO-OESTE
B21: 4779.28106 | C21: 8 | E21: DISTRIBUIDORA BRASILEIRA DE ASFALTO SA - DISBRAL | F21: SÃO JUDAS TADEU, 288 - DISTRITO INDUSTRIAL - CEP:32450-000 | G21: Minas Gerais | H21: SARZEDO - MG | I21: Santana -AP | J21: =VLOOKUP(G21,OFFSET('ANP ESTADO'!$A$1,MATCH($I$7,'ANP ESTADO'!B:B,0)+MATCH($H$10,OFFSET('ANP ESTADO'!$A$1,MATCH($I$7,'ANP ESTADO'!B:B,0),0,100000,1),0),2,100000,2),2,FALSE) -> 1.961599986 | K21: =VLOOKUP($H$10,OFFSET('ANP REGIÃO'!$A$9,MATCH($I$7,'ANP REGIÃO'!A:A,0),1,10000,10000),MATCH(AH21,'ANP REGIÃO'!$B$8:$G$8,0),FALSE) -> 2.173984481 | L21: 1961.599986 | M21: 542.04 | N21: 2503.639986 | O21: 2697.7 | P21: 547 | Q21: 709.46 | R21: 108.41 | S21: 817.87 | T21: 179.53 | U21: 1191.27 | V21: 2188.67 | W21: 992.1 | X21: =EVEN('Orçamento Sintético'!$F$48/1000*2/28)*W21/('Orçamento Sintético'!$F$48/1000) -> 86.9710739 | Y21: 2275.641074 | Z21: 2503.639986 | AA21: 4779.28106 | AH21: SUDESTE
B22: 4966.488591 | C22: 9 | E22: 'INDÚSTRIA NACIONAL DE ASFALTOS LTDA. | F22: INDÚSTRIA NACIONAL DE ASFALTOS LTDA - CEP:77053-080 | G22: Tocantins | H22: PALMAS - TO | I22: Santana -AP | J22: =VLOOKUP(G22,OFFSET('ANP ESTADO'!$A$1,MATCH($I$7,'ANP ESTADO'!B:B,0)+MATCH($H$10,OFFSET('ANP ESTADO'!$A$1,MATCH($I$7,'ANP ESTADO'!B:B,0),0,100000,1),0),2,100000,2),2,FALSE) -> - | K22: =VLOOKUP($H$10,OFFSET('ANP REGIÃO'!$A$9,MATCH($I$7,'ANP REGIÃO'!A:A,0),1,10000,10000),MATCH(AH22,'ANP REGIÃO'!$B$8:$G$8,0),FALSE) -> 2.961468591 | L22: 2961.468591 | M22: 818.33 | N22: 3779.798591 | O22: 1217.8 | P22: 547 | Q22: 335.04 | R22: 108.41 | S22: 443.45 | T22: 97.34 | U22: 645.9 | V22: 1186.69 | W22: 0 | X22: =EVEN('Orçamento Sintético'!$F$48/1000*2/28)*W22/('Orçamento Sintético'!$F$48/1000) -> 0 | Y22: 1186.69 | Z22: 3779.798591 | AA22: 4966.488591 | AH22: NORTE
B23: 5489.471782 | C23: 10 | E23: 'NTA - NOVAS TÉCNICAS DE ASFALTOS S/A | F23: RUA SOFIA ATAURI FADIN, 150 SALA A - B. SANTA TEREZINHA - CEP:13140-000 | G23: São Paulo | H23: PAULINIA - SP | I23: Santana -AP | J23: =VLOOKUP(G23,OFFSET('ANP ESTADO'!$A$1,MATCH($I$7,'ANP ESTADO'!B:B,0)+MATCH($H$10,OFFSET('ANP ESTADO'!$A$1,MATCH($I$7,'ANP ESTADO'!B:B,0),0,100000,1),0),2,100000,2),2,FALSE) -> 2.425779037 | K23: =VLOOKUP($H$10,OFFSET('ANP REGIÃO'!$A$9,MATCH($I$7,'ANP REGIÃO'!A:A,0),1,10000,10000),MATCH(AH23,'ANP REGIÃO'!$B$8:$G$8,0),FALSE) -> 2.173984481 | L23: 2425.779037 | M23: 670.3 | N23: 3096.079037 | O23: 2824.1 | P23: 547 | Q23: 741.44 | R23: 108.41 | S23: 849.85 | T23: 186.55 | U23: 1237.85 | V23: 2274.25 | W23: 1359.09 | X23: =EVEN('Orçamento Sintético'!$F$48/1000*2/28)*W23/('Orçamento Sintético'!$F$48/1000) -> 119.1427445 | Y23: 2393.392745 | Z23: 3096.079037 | AA23: 5489.471782 | AC23: 11350.2412 | AD23: 2327.371199 | AE23: 9022.87 | AH23: SUDESTE
B24: 5562.109044 | C24: 11 | E24: COMPANHIA BRASILEIRA DE ASFALTOS DA AMAZÔNIA - IMPORTAÇÃO E EXPORTAÇÃO | F24: Avenida Doutor Olindo Dártora 2451, Galpão 02, Morro Grande - CEP:07726-555 | G24: São Paulo | H24: CAIEIRAS - SP | I24: Santana -AP | J24: =VLOOKUP(G24,OFFSET('ANP ESTADO'!$A$1,MATCH($I$7,'ANP ESTADO'!B:B,0)+MATCH($H$10,OFFSET('ANP ESTADO'!$A$1,MATCH($I$7,'ANP ESTADO'!B:B,0),0,100000,1),0),2,100000,2),2,FALSE) -> 2.425779037 | K24: =VLOOKUP($H$10,OFFSET('ANP REGIÃO'!$A$9,MATCH($I$7,'ANP REGIÃO'!A:A,0),1,10000,10000),MATCH(AH24,'ANP REGIÃO'!$B$8:$G$8,0),FALSE) -> 2.173984481 | L24: 2425.779037 | M24: 670.3 | N24: 3096.079037 | O24: 2912.8 | P24: 547 | Q24: 763.88 | R24: 108.41 | S24: 872.29 | T24: 191.47 | U24: 1270.53 | V24: 2334.29 | W24: 1502.79 | X24: =EVEN('Orçamento Sintético'!$F$48/1000*2/28)*W24/('Orçamento Sintético'!$F$48/1000) -> 131.7400062 | Y24: 2466.030006 | Z24: 3096.079037 | AA24: 5562.109044 | AH24: SUDESTE
B25: 5464.8242 | C25: 12 | E25: BETUNEL INDÚSTRIA E COMÉRCIO LTDA. | F25: R 16 , 82, Vila Nova Campo Grande - CEP:79.103-834 | G25: Mato Grosso do Sul | H25: CAMPO GRANDE - MS | I25: Santana -AP | J25: =VLOOKUP(G25,OFFSET('ANP ESTADO'!$A$1,MATCH($I$7,'ANP ESTADO'!B:B,0)+MATCH($H$10,OFFSET('ANP ESTADO'!$A$1,MATCH($I$7,'ANP ESTADO'!B:B,0),0,100000,1),0),2,100000,2),2,FALSE) -> - | K25: =VLOOKUP($H$10,OFFSET('ANP REGIÃO'!$A$9,MATCH($I$7,'ANP REGIÃO'!A:A,0),1,10000,10000),MATCH(AH25,'ANP REGIÃO'!$B$8:$G$8,0),FALSE) -> 2.462443583 | L25: 2462.443583 | M25: 680.43 | N25: 3142.873583 | O25: 2818.9 | P25: 547 | Q25: 740.12 | R25: 108.41 | S25: 848.53 | T25: 186.26 | U25: 1235.93 | V25: 2270.72 | W25: 584.4 | X25: =EVEN('Orçamento Sintético'!$F$48/1000*2/28)*W25/('Orçamento Sintético'!$F$48/1000) -> 51.23061746 | Y25: 2321.950617 | Z25: 3142.873583 | AA25: 5464.8242 | AH25: CENTRO-OESTE
B26: 5216.209809 | C26: 13 | E26: CENTRO OESTE ASFALTOS LTDA. | F26: RUA N, S/N.º LOTES 39/43 E LOTES 129/133 - DISTRITO INDUSTRIAL - CEP:78098-400 | G26: Mato Grosso | H26: CUIABA - MT | I26: Santana -AP | J26: =VLOOKUP(G26,OFFSET('ANP ESTADO'!$A$1,MATCH($I$7,'ANP ESTADO'!B:B,0)+MATCH($H$10,OFFSET('ANP ESTADO'!$A$1,MATCH($I$7,'ANP ESTADO'!B:B,0),0,100000,1),0),2,100000,2),2,FALSE) -> 2.480970616 | K26: =VLOOKUP($H$10,OFFSET('ANP REGIÃO'!$A$9,MATCH($I$7,'ANP REGIÃO'!A:A,0),1,10000,10000),MATCH(AH26,'ANP REGIÃO'!$B$8:$G$8,0),FALSE) -> 2.462443583 | L26: 2480.970616 | M26: 685.55 | N26: 3166.520616 | O26: 2462.4 | P26: 547 | Q26: 649.93 | R26: 108.41 | S26: 758.34 | T26: 166.46 | U26: 1104.56 | V26: 2029.36 | W26: 231.9 | X26: =EVEN('Orçamento Sintético'!$F$48/1000*2/28)*W26/('Orçamento Sintético'!$F$48/1000) -> 20.32919266 | Y26: 2049.689193 | Z26: 3166.520616 | AA26: 5216.209809 | AH26: CENTRO-OESTE
B27: 5216.209809 | C27: 14 | E27: BETUNEL INDÚSTRIA E COMÉRCIO LTDA. | F27: RUA N ESQUINA COM RUA X, S/N QD. IND. 7 L 01/08 - DIST. IND. - CEP:78015-285 | G27: Mato Grosso | H27: CUIABA - MT | I27: Santana -AP | J27: =VLOOKUP(G27,OFFSET('ANP ESTADO'!$A$1,MATCH($I$7,'ANP ESTADO'!B:B,0)+MATCH($H$10,OFFSET('ANP ESTADO'!$A$1,MATCH($I$7,'ANP ESTADO'!B:B,0),0,100000,1),0),2,100000,2),2,FALSE) -> 2.480970616 | K27: =VLOOKUP($H$10,OFFSET('ANP REGIÃO'!$A$9,MATCH($I$7,'ANP REGIÃO'!A:A,0),1,10000,10000),MATCH(AH27,'ANP REGIÃO'!$B$8:$G$8,0),FALSE) -> 2.462443583 | L27: 2480.970616 | M27: 685.55 | N27: 3166.520616 | O27: 2462.4 | P27: 547 | Q27: 649.93 | R27: 108.41 | S27: 758.34 | T27: 166.46 | U27: 1104.56 | V27: 2029.36 | W27: 231.9 | X27: =EVEN('Orçamento Sintético'!$F$48/1000*2/28)*W27/('Orçamento Sintético'!$F$48/1000) -> 20.32919266 | Y27: 2049.689193 | Z27: 3166.520616 | AA27: 5216.209809 | AH27: CENTRO-OESTE
B28: 5220.549809 | C28: 15 | E28: EMAM - EMULSÕES E TRANSPORTES LTDA. | F28: RODOVIA DOS IMIGRANTES, S/Nº KM 8,6 - - CEP:60035-351 | G28: Mato Grosso | H28: VARZEA GRANDE - MT | I28: Santana -AP | J28: =VLOOKUP(G28,OFFSET('ANP ESTADO'!$A$1,MATCH($I$7,'ANP ESTADO'!B:B,0)+MATCH($H$10,OFFSET('ANP ESTADO'!$A$1,MATCH($I$7,'ANP ESTADO'!B:B,0),0,100000,1),0),2,100000,2),2,FALSE) -> 2.480970616 | K28: =VLOOKUP($H$10,OFFSET('ANP REGIÃO'!$A$9,MATCH($I$7,'ANP REGIÃO'!A:A,0),1,10000,10000),MATCH(AH28,'ANP REGIÃO'!$B$8:$G$8,0),FALSE) -> 2.462443583 | L28: 2480.970616 | M28: 685.55 | N28: 3166.520616 | O28: 2468.8 | P28: 547 | Q28: 651.55 | R28: 108.41 | S28: 759.96 | T28: 166.82 | U28: 1106.92 | V28: 2033.7 | W28: 231.9 | X28: =EVEN('Orçamento Sintético'!$F$48/1000*2/28)*W28/('Orçamento Sintético'!$F$48/1000) -> 20.32919266 | Y28: 2054.029193 | Z28: 3166.520616 | AA28: 5220.549809 | AC28: 9673.022444 | AD28: 2022.433526 | AE28: 7650.588918 | AH28: CENTRO-OESTE
B29: 5630.531459 | C29: 16 | E29: VIAPOL LTDA. | F29: VITO ARDITO, 6401 KM 118,5 - JARDIM CAMPO GRANDE - CEP:12282-535 | G29: São Paulo | H29: CACAPAVA - SP | I29: Santana -AP | J29: =VLOOKUP(G29,OFFSET('ANP ESTADO'!$A$1,MATCH($I$7,'ANP ESTADO'!B:B,0)+MATCH($H$10,OFFSET('ANP ESTADO'!$A$1,MATCH($I$7,'ANP ESTADO'!B:B,0),0,100000,1),0),2,100000,2),2,FALSE) -> 2.425779037 | K29: =VLOOKUP($H$10,OFFSET('ANP REGIÃO'!$A$9,MATCH($I$7,'ANP REGIÃO'!A:A,0),1,10000,10000),MATCH(AH29,'ANP REGIÃO'!$B$8:$G$8,0),FALSE) -> 2.173984481 | L29: 2425.779037 | M29: 670.3 | N29: 3096.079037 | O29: 3006 | P29: 547 | Q29: 787.46 | R29: 108.41 | S29: 895.87 | T29: 196.65 | U29: 1304.88 | V29: 2397.4 | W29: 1563.39 | X29: =EVEN('Orçamento Sintético'!$F$48/1000*2/28)*W29/('Orçamento Sintético'!$F$48/1000) -> 137.0524214 | Y29: 2534.452421 | Z29: 3096.079037 | AA29: 5630.531459 | AC29: 11478.86901 | AD29: 2455.999011 | AE29: 9022.87 | AH29: SUDESTE
B30: 5354.032477 | C30: 17 | E30: STRATURA ASFALTOS S/A | F30: RUA LUIS DE CAMÕES, 26 - CAMPOS ELÍSEOS - CEP:25225-030 | G30: Rio de Janeiro | H30: DUQUE DE CAXIAS - RJ | I30: Santana -AP | J30: =VLOOKUP(G30,OFFSET('ANP ESTADO'!$A$1,MATCH($I$7,'ANP ESTADO'!B:B,0)+MATCH($H$10,OFFSET('ANP ESTADO'!$A$1,MATCH($I$7,'ANP ESTADO'!B:B,0),0,100000,1),0),2,100000,2),2,FALSE) -> - | K30: =VLOOKUP($H$10,OFFSET('ANP REGIÃO'!$A$9,MATCH($I$7,'ANP REGIÃO'!A:A,0),1,10000,10000),MATCH(AH30,'ANP REGIÃO'!$B$8:$G$8,0),FALSE) -> 2.173984481 | L30: 2173.984481 | M30: 600.72 | N30: 2774.704481 | O30: 3096.3 | P30: 547 | Q30: 810.3 | R30: 108.41 | S30: 918.71 | T30: 201.66 | U30: 1338.14 | V30: 2458.51 | W30: 1378.2 | X30: =EVEN('Orçamento Sintético'!$F$48/1000*2/28)*W30/('Orçamento Sintético'!$F$48/1000) -> 120.8179962 | Y30: 2579.327996 | Z30: 2774.704481 | AA30: 5354.032477 | AC30: 11588.33634 | AD30: 2565.466344 | AE30: 9022.87 | AH30: SUDESTE
B31: 5362.792477 | C31: 18 | E31: PROBITEC - PRODUTOS BETUMINOSOS E TECNOLOGIA DE APLICAÇÃO LTDA. | F31: AVENIDA CANAL DA PAVUNA, 620 - PAVUNA - CEP:21535-630 | G31: Rio de Janeiro | H31: RIO DE JANEIRO - RJ | I31: Santana -AP | J31: =VLOOKUP(G31,OFFSET('ANP ESTADO'!$A$1,MATCH($I$7,'ANP ESTADO'!B:B,0)+MATCH($H$10,OFFSET('ANP ESTADO'!$A$1,MATCH($I$7,'ANP ESTADO'!B:B,0),0,100000,1),0),2,100000,2),2,FALSE) -> - | K31: =VLOOKUP($H$10,OFFSET('ANP REGIÃO'!$A$9,MATCH($I$7,'ANP REGIÃO'!A:A,0),1,10000,10000),MATCH(AH31,'ANP REGIÃO'!$B$8:$G$8,0),FALSE) -> 2.173984481 | L31: 2173.984481 | M31: 600.72 | N31: 2774.704481 | O31: 3109.2 | P31: 547 | Q31: 813.57 | R31: 108.41 | S31: 921.98 | T31: 202.38 | U31: 1342.91 | V31: 2467.27 | W31: 1378.2 | X31: =EVEN('Orçamento Sintético'!$F$48/1000*2/28)*W31/('Orçamento Sintético'!$F$48/1000) -> 120.8179962 | Y31: 2588.087996 | Z31: 2774.704481 | AA31: 5362.792477 | AC31: 11598.46634 | AD31: 2575.596344 | AE31: 9022.87 | AH31: SUDESTE
B32: 5394.175672 | C32: 19 | E32: CASA DO ASFALTO DISTRIBUIDORA, INDÚSTRIA E COMÉRCIO DE ASFALTO LTDA. | F32: BR 376, PARQUE INDUSTRIAL, S/N LOTE 6/7/7-A-3-1 - GL.PATR.MARIALVA - CEP:86990-000 | G32: Paraná | H32: MARIALVA - PR | I32: Santana -AP | J32: =VLOOKUP(G32,OFFSET('ANP ESTADO'!$A$1,MATCH($I$7,'ANP ESTADO'!B:B,0)+MATCH($H$10,OFFSET('ANP ESTADO'!$A$1,MATCH($I$7,'ANP ESTADO'!B:B,0),0,100000,1),0),2,100000,2),2,FALSE) -> 2.298618661 | K32: =VLOOKUP($H$10,OFFSET('ANP REGIÃO'!$A$9,MATCH($I$7,'ANP REGIÃO'!A:A,0),1,10000,10000),MATCH(AH32,'ANP REGIÃO'!$B$8:$G$8,0),FALSE) -> 2.361247173 | L32: 2298.618661 | M32: 635.16 | N32: 2933.778661 | O32: 2948.1 | P32: 547 | Q32: 772.81 | R32: 108.41 | S32: 881.22 | T32: 193.43 | U32: 1283.54 | V32: 2358.19 | W32: 1165.9 | X32: =EVEN('Orçamento Sintético'!$F$48/1000*2/28)*W32/('Orçamento Sintético'!$F$48/1000) -> 102.2070104 | Y32: 2460.39701 | Z32: 2933.778661 | AA32: 5394.175672 | AC32: 8280.46236 | AD32: 2423.237712 | AE32: 5857.224648 | AH32: SUL
B33: 5480.502855 | C33: 20 | E33: PETROBRAS DISTRIBUIDORA S.A. | F33: RUA MAQUINISTA ELEODORO JACINTO, 100 - OFICINAS - CEP:84045-170 | G33: Paraná | H33: PONTA GROSSA - PR | I33: Santana -AP | J33: =VLOOKUP(G33,OFFSET('ANP ESTADO'!$A$1,MATCH($I$7,'ANP ESTADO'!B:B,0)+MATCH($H$10,OFFSET('ANP ESTADO'!$A$1,MATCH($I$7,'ANP ESTADO'!B:B,0),0,100000,1),0),2,100000,2),2,FALSE) -> 2.298618661 | K33: =VLOOKUP($H$10,OFFSET('ANP REGIÃO'!$A$9,MATCH($I$7,'ANP REGIÃO'!A:A,0),1,10000,10000),MATCH(AH33,'ANP REGIÃO'!$B$8:$G$8,0),FALSE) -> 2.361247173 | L33: 2298.618661 | M33: 635.16 | N33: 2933.778661 | O33: 3065 | P33: 547 | Q33: 802.38 | R33: 108.41 | S33: 910.79 | T33: 199.92 | U33: 1326.61 | V33: 2437.32 | W33: 1248 | X33: =EVEN('Orçamento Sintético'!$F$48/1000*2/28)*W33/('Orçamento Sintético'!$F$48/1000) -> 109.4041934 | Y33: 2546.724193 | Z33: 2933.778661 | AA33: 5480.502855 | AC33: 8389.331132 | AD33: 2532.106484 | AE33: 5857.224648 | AH33: SUL
D43: Acre
D44: Alagoas
D45: Amapá
D46: Amazonas
D47: Bahia
D48: Ceará
D49: Distrito Federal
D50: Espírito Santo
D51: Goiás
D52: Maranhão
D53: Mato Grosso
D54: Mato Grosso do Sul
D55: Minas Gerais
D56: Pará
D57: Paraíba
D58: Paraná
D59: Pernambuco
D60: Piauí
D61: Rio de Janeiro
D62: Rio Grande do Norte
D63: Rio Grande do Sul
D64: Rondônia
D65: Roraima
D66: Santa Catarina
D67: São Paulo
D68: Sergipe
D69: Tocantins
D73: ASFALTOS DILUÍDOS CM-30
D74: ASFALTOS DILUÍDOS CM-70
D75: ASFALTOS DILUÍDOS CR-250
D76: ASFALTOS DILUÍDOS CR-70
D77: CAP MODIFICADO POR BORRACHA DE PNEU AB22
D78: CAP MODIFICADO POR BORRACHA DE PNEU AB8
D79: CAP MODIFICADO POR POLÍMERO 55-75-E
D80: CAP MODIFICADO POR POLÍMERO 60-85-E
D81: CAP MODIFICADO POR POLÍMERO 65-90-E
D82: CIMENTOS ASFÁLTICOS CAP-150-200
D83: CIMENTOS ASFÁLTICOS CAP-30-45
D84: CIMENTOS ASFÁLTICOS CAP-50-70
D85: CIMENTOS ASFÁLTICOS CAP-85-100
D86: EMULSÃO ASFÁLTICA CATIÔNICA DE RUPTURA CONTROLADA PARA SERVIÇO DE LAMA ASFÁLTICA
D87: EMULSÃO ASFÁLTICA DE RUPTURA LENTA CATIÔNICA PARA SERVIÇO DE LAMA ASFÁLTICA
D88: EMULSÃO ASFÁLTICA DE RUPTURA LENTA DE CARGA NEUTRA PARA SERVIÇO DE LAMA ASFÁLTICA
D89: EMULSÃO ASFÁLTICA PARA SERVIÇO DE IMPRIMAÇÃO
D90: EMULSÕES ASF. MOD. POR POLÍMEROS RC1C-E
D91: EMULSÕES ASF. MOD. POR POLÍMEROS RL1C-E
D92: EMULSÕES ASF. MOD. POR POLÍMEROS RM1C-E
D93: EMULSÕES ASF. MOD. POR POLÍMEROS RR1C-E
D94: EMULSÕES ASF. MOD. POR POLÍMEROS RR2C-E
D95: EMULSÕES ASFÁLTICAS RL-1C
D96: EMULSÕES ASFÁLTICAS RM-1C
D97: EMULSÕES ASFÁLTICAS RM-2C
D98: EMULSÕES ASFÁLTICAS RR-1C
D99: EMULSÕES ASFÁLTICAS RR-2C

Sheet Transporte RR-2C
C2: MEMÓRIA DE CÁLCULO
C7: REAJUSTE | F7: TIPOLOGIA DO MATERIAL | I7: EMULSÕES ASFÁLTICAS RR-2C | M7: IMPOSTOS | N7: COFINS | O7: 0.0065 | P7: 0.0065
G8: ÍNDICE DE PAVIMENTAÇÃO DNIT | H8: 2014-07-01 | I8: ÍNDICE INICIAL | J8: 270.237 | N8: PIS | O8: 0.03 | P8: 0.03 | T8: LEGENDA | AC8: As empresas tributadas pelo Lucro Presumido pagam 0,65% de PIS e 3% de COFINS
H9: 2026-02-01 | I9: ÍNDICE FINAL | J9: 593.003 | N9: ICMS | O9: 0.18 | P9: 0.18 | Q9: 0.82 | R9: 0.82 | S9: 0.18 | T9: ENTRADA DE DADOS | AC9: As empresas tributadas pelo Lucro Real pagam 1,65% de PIS e 7,60% de COFINS
G10: Data ANP | H10: 2026-01-01
C11: DATA-BASE | D11: PRODUTOS | E11: LOCALIDADES | J11: CUSTO ANP (R$/Kg) | L11: CUSTO ANP | M11: IMPOSTOS DO PRODUTO | N11: CUSTO DO PRODUTO COM IMPOSTOS | O11: DMT's | P11: DMT'S FLUVIAL | Q11: CUSTO DO TRANSPORTE RODOVIA PAVIMENTADA | R11: CUSTO DO TRANSPORTE FLUVIAL | S11: CUSTO DO TRANSPORTE TOTAL | T11: ICMS | U11: ATUALIZAÇÃO DO CUSTO DE TRANSPORTE | V11: CUSTO DO TRANSPORTE RODOVIA PAVIMENTADA COM IMPOSTOS E ATUALIZAÇÃO MONETÁRIA | W11: PEDÁGIO | Y11: TOTAL TRANSPORTE | Z11: AQUISIÇÃO DO PRODUTO | AA11: TOTAL GERAL ( TRANSP + AQUISIÇÃO) | AC11: 1 | AD11: 2 | AE11: 3
C12: 2025-09-01 | E12: REFINARIAS | F12: ENDEREÇO | G12: ESTADO | H12: CIDADE | I12: DESTINO | J12: ESTADO | K12: REGIÃO | L12: R$/t | M12: R$/t | N12: R$/t | O12: KM | P12: KM | Q12: R$/t | R12: R$/t | S12: R$/t | T12: R$/t | U12: R$/t | V12: R$/t | W12: CUSTO | X12: R$/t | Y12: R$/t | Z12: R$/t | AA12: R$/t | AC12: TOTAL GERAL ( TRANSP + AQUISIÇÃO) | AD12: TOTAL TRANSPORTE | AE12: AQUISIÇÃO DO PRODUTO
B13: =AA13 -> 5723.419058 | C13: 1 | D13: EMULSÕES ASFÁLTICAS RR-2C | E13: 'CENTRO OESTE ASFALTOS LTDA. | F13: SETOR DE INFLAMÁVEIS, S/N TRECHO 02 - LOTE 1.100 - GUARÁ - CEP:71225-000 | G13: Distrito Federal | H13: BRASÍLIA - DF | I13: Santana -AP | J13: =VLOOKUP(G13,OFFSET('ANP ESTADO'!$A$1,MATCH($I$7,'ANP ESTADO'!B:B,0)+MATCH($H$10,OFFSET('ANP ESTADO'!$A$1,MATCH($I$7,'ANP ESTADO'!B:B,0),0,100000,1),0),2,100000,2),2,FALSE) -> - | K13: =VLOOKUP($H$10,OFFSET('ANP REGIÃO'!$A$9,MATCH('Transporte RR-2C'!$I$7,'ANP REGIÃO'!A:A,0),1,10000,10000),MATCH('Transporte RR-2C'!AH13,'ANP REGIÃO'!$B$8:$G$8,0),FALSE) -> 3.121271775 | L13: =IF(AND(J13="-",K13="-"),"",IF(AND(J13<>0,K13="-"),J13*1000,IF(AND(J13="-",K13<>0),K13*1000,IF(AND(J13<>0,K13<>0),J13*1000,"")))) -> 3121.271775 | M13: =ROUND(((L13/(1-$O$7-$O$8-$O$9))-L13),2) -> 862.48 | N13: =L13+M13 -> 3983.751775 | O13: 1968.1 | P13: 547 | Q13: =ROUND((26.939+0.253*O13),2) -> 524.87 | R13: =ROUND((20.7256+0.1603*P13),2) -> 108.41 | S13: =Q13+R13 -> 633.28 | T13: =TRUNC(S13*($O$9/(1-$O$9)),2) -> 139.01 | U13: =TRUNC(IF($J$8="","",(($J$9-$J$8)/$J$8)*(S13+T13)),2) -> 922.4 | V13: =S13+T13+U13 -> 1694.69 | W13: 444 | X13: =EVEN('Orçamento Sintético'!$F$51/1000*2/28)*W13/('Orçamento Sintético'!$F$51/1000) -> 44.97728343 | Y13: =IF(AND(Q13="",T13=""),"",V13+X13) -> 1739.667283 | Z13: =IF(OR(L13="",M13=""),"",L13+M13) -> 3983.751775 | AA13: =IF(OR(Y13="",Z13=""),"",Y13+Z13) -> 5723.419058 | AC13: 5855.794338 | AD13: 1714.723636 | AE13: 4141.070702 | AH13: CENTRO-OESTE
B14: =AA14 -> 6744.210622 | C14: 2 | E14: ISAC SAABA | F14: Rua Rio Quixito, 1, Vila Buriti - Distrito Industrial - Manaus - AM CEP: 69072-070 | G14: Amazonas | H14: MANAUS - AM | I14: Santana -AP | J14: =VLOOKUP(G14,OFFSET('ANP ESTADO'!$A$1,MATCH($I$7,'ANP ESTADO'!B:B,0)+MATCH($H$10,OFFSET('ANP ESTADO'!$A$1,MATCH($I$7,'ANP ESTADO'!B:B,0),0,100000,1),0),2,100000,2),2,FALSE) -> 3.602800622 | K14: =VLOOKUP($H$10,OFFSET('ANP REGIÃO'!$A$9,MATCH('Transporte RR-2C'!$I$7,'ANP REGIÃO'!A:A,0),1,10000,10000),MATCH('Transporte RR-2C'!AH14,'ANP REGIÃO'!$B$8:$G$8,0),FALSE) -> 3.125618011 | L14: =IF(AND(J14="-",K14="-"),"",IF(AND(J14<>0,K14="-"),J14*1000,IF(AND(J14="-",K14<>0),K14*1000,IF(AND(J14<>0,K14<>0),J14*1000,"")))) -> 3602.800622 | M14: =ROUND(((L14/(1-$O$7-$O$8-$O$9))-L14),2) -> 995.54 | N14: =L14+M14 -> 4598.340622 | O14: 10 | P14: 1100 | Q14: =ROUND((26.939+0.253*O14),2) -> 29.47 | R14: =ROUND((20.7256+0.1603*P14),2) -> 197.06 | S14: =Q14+R14 -> 226.53 | T14: =TRUNC(S14*($O$9/(1-$O$9)),2) -> 49.72 | U14: =TRUNC(IF($J$8="","",(($J$9-$J$8)/$J$8)*(S14+T14)),2) -> 329.94 | V14: 2145.87 | W14: 0 | X14: =EVEN('Orçamento Sintético'!$F$51/1000*2/28)*W14/('Orçamento Sintético'!$F$51/1000) -> 0 | Y14: =IF(AND(Q14="",T14=""),"",V14+X14) -> 2145.87 | Z14: =IF(OR(L14="",M14=""),"",L14+M14) -> 4598.340622 | AA14: =IF(OR(Y14="",Z14=""),"",Y14+Z14) -> 6744.210622 | AC14: 6789.64019 | AD14: 2145.87 | AE14: 4643.77019 | AH14: NORTE
B15: 5690.280756 | C15: 2 | E15: STRATURA ASFALTOS S/A | F15: AVENIDA PRESIDENTE WILSON, 08 - JUNDIAÍ - CEP:75115-100 | G15: Goiás | H15: ANÁPOLIS - GO | I15: Santana -AP | J15: =VLOOKUP(G15,OFFSET('ANP ESTADO'!$A$1,MATCH($I$7,'ANP ESTADO'!B:B,0)+MATCH($H$10,OFFSET('ANP ESTADO'!$A$1,MATCH($I$7,'ANP ESTADO'!B:B,0),0,100000,1),0),2,100000,2),2,FALSE) -> - | K15: =VLOOKUP($H$10,OFFSET('ANP REGIÃO'!$A$9,MATCH('Transporte RR-2C'!$I$7,'ANP REGIÃO'!A:A,0),1,10000,10000),MATCH('Transporte RR-2C'!AH15,'ANP REGIÃO'!$B$8:$G$8,0),FALSE) -> 3.121271775 | L15: 3121.271775 | M15: 862.48 | N15: 3983.751775 | O15: 1945.8 | P15: 547 | Q15: 519.23 | R15: 108.41 | S15: 627.64 | T15: 137.77 | U15: 914.19 | V15: 1652.07 | W15: 537.6 | X15: =EVEN('Orçamento Sintético'!$F$51/1000*2/28)*W15/('Orçamento Sintético'!$F$51/1000) -> 54.45898102 | Y15: 1706.528981 | Z15: 3983.751775 | AA15: 5690.280756 | AC15: 5250.172773 | AD15: 1695.498571 | AE15: 3554.674202 | AH15: CENTRO-OESTE
B16: 5724.660756 | C16: 3 | E16: DISTRIBUIDORA BRASILEIRA DE ASFALTO SA - DISBRAL | F16: VIA PRIMARIA 8, S/N QD-18, MODS. 24/47 - DAIAG - CEP:74980-970 | G16: Goiás | H16: APARECIDA DE GOIANIA - GO | I16: Santana -AP | J16: =VLOOKUP(G16,OFFSET('ANP ESTADO'!$A$1,MATCH($I$7,'ANP ESTADO'!B:B,0)+MATCH($H$10,OFFSET('ANP ESTADO'!$A$1,MATCH($I$7,'ANP ESTADO'!B:B,0),0,100000,1),0),2,100000,2),2,FALSE) -> - | K16: =VLOOKUP($H$10,OFFSET('ANP REGIÃO'!$A$9,MATCH('Transporte RR-2C'!$I$7,'ANP REGIÃO'!A:A,0),1,10000,10000),MATCH('Transporte RR-2C'!AH16,'ANP REGIÃO'!$B$8:$G$8,0),FALSE) -> 3.121271775 | L16: 3121.271775 | M16: 862.48 | N16: 3983.751775 | O16: 2000.1 | P16: 547 | Q16: 532.96 | R16: 108.41 | S16: 641.37 | T16: 140.78 | U16: 934.18 | V16: 1686.45 | W16: 537.6 | X16: =EVEN('Orçamento Sintético'!$F$51/1000*2/28)*W16/('Orçamento Sintético'!$F$51/1000) -> 54.45898102 | Y16: 1740.908981 | Z16: 3983.751775 | AA16: 5724.660756 | AC16: 5285.17615 | AD16: 1730.501948 | AE16: 3554.674202 | AH16: CENTRO-OESTE
A17: 2403 | B17: 5705.130756 | C17: 4 | E17: INDÚSTRIA NACIONAL DE ASFALTOS LTDA. | F17: VIA PRIMEIRA E SEGUNDA 3, S/N.º LOTES 01 A 10 - DISTRITO AGROINDUSTRIAL - CEP:75370-000 | G17: Goiás | H17: GOIANIRA - GO | I17: Santana -AP | J17: =VLOOKUP(G17,OFFSET('ANP ESTADO'!$A$1,MATCH($I$7,'ANP ESTADO'!B:B,0)+MATCH($H$10,OFFSET('ANP ESTADO'!$A$1,MATCH($I$7,'ANP ESTADO'!B:B,0),0,100000,1),0),2,100000,2),2,FALSE) -> - | K17: =VLOOKUP($H$10,OFFSET('ANP REGIÃO'!$A$9,MATCH('Transporte RR-2C'!$I$7,'ANP REGIÃO'!A:A,0),1,10000,10000),MATCH('Transporte RR-2C'!AH17,'ANP REGIÃO'!$B$8:$G$8,0),FALSE) -> 3.121271775 | L17: 3121.271775 | M17: 862.48 | N17: 3983.751775 | O17: 1974.7 | P17: 547 | Q17: 526.54 | R17: 108.41 | S17: 634.95 | T17: 139.37 | U17: 924.83 | V17: 1666.92 | W17: 537.6 | X17: =EVEN('Orçamento Sintético'!$F$51/1000*2/28)*W17/('Orçamento Sintético'!$F$51/1000) -> 54.45898102 | Y17: 1721.378981 | Z17: 3983.751775 | AA17: 5705.130756 | AC17: 5265.64615 | AD17: 1710.971948 | AE17: 3554.674202 | AH17: CENTRO-OESTE
B18: 5267.498487 | C18: 5 | E18: STRATURA ASFALTOS S/A | F18: RUA VICTOR RODRIGUES RESENDE, 333 - DISTRITO IND. DE UBERLÂNDIA - CEP:38405-440 | G18: Minas Gerais | H18: UBERLANDIA - MG | I18: Santana -AP | J18: =VLOOKUP(G18,OFFSET('ANP ESTADO'!$A$1,MATCH($I$7,'ANP ESTADO'!B:B,0)+MATCH($H$10,OFFSET('ANP ESTADO'!$A$1,MATCH($I$7,'ANP ESTADO'!B:B,0),0,100000,1),0),2,100000,2),2,FALSE) -> 2.582431713 | K18: =VLOOKUP($H$10,OFFSET('ANP REGIÃO'!$A$9,MATCH('Transporte RR-2C'!$I$7,'ANP REGIÃO'!A:A,0),1,10000,10000),MATCH('Transporte RR-2C'!AH18,'ANP REGIÃO'!$B$8:$G$8,0),FALSE) -> 2.658802727 | L18: 2582.431713 | M18: 713.59 | N18: 3296.021713 | O18: 2334.9 | P18: 547 | Q18: 617.67 | R18: 108.41 | S18: 726.08 | T18: 159.38 | U18: 1057.57 | V18: 1899.27 | W18: 712.8 | X18: =EVEN('Orçamento Sintético'!$F$51/1000*2/28)*W18/('Orçamento Sintético'!$F$51/1000) -> 72.20677394 | Y18: 1971.476774 | Z18: 3296.021713 | AA18: 5267.498487 | AC18: 5538.070279 | AD18: 1960.464805 | AE18: 3577.605474 | AH18: SUDESTE
B19: 5268.168487 | C19: 6 | E19: BETUNEL INDÚSTRIA E COMÉRCIO LTDA. | F19: RUA VICTOR RODRIGUES DE REZENDE, 185 - DISTRITO INDUSTRIAL - CEP:38402-334 | G19: Minas Gerais | H19: UBERLANDIA - MG | I19: Santana -AP | J19: =VLOOKUP(G19,OFFSET('ANP ESTADO'!$A$1,MATCH($I$7,'ANP ESTADO'!B:B,0)+MATCH($H$10,OFFSET('ANP ESTADO'!$A$1,MATCH($I$7,'ANP ESTADO'!B:B,0),0,100000,1),0),2,100000,2),2,FALSE) -> 2.582431713 | K19: =VLOOKUP($H$10,OFFSET('ANP REGIÃO'!$A$9,MATCH('Transporte RR-2C'!$I$7,'ANP REGIÃO'!A:A,0),1,10000,10000),MATCH('Transporte RR-2C'!AH19,'ANP REGIÃO'!$B$8:$G$8,0),FALSE) -> 2.658802727 | L19: 2582.431713 | M19: 713.59 | N19: 3296.021713 | O19: 2334.9 | P19: 547 | Q19: 617.67 | R19: 108.41 | S19: 726.08 | T19: 159.38 | U19: 1057.57 | V19: 1899.94 | W19: 712.8 | X19: =EVEN('Orçamento Sintético'!$F$51/1000*2/28)*W19/('Orçamento Sintético'!$F$51/1000) -> 72.20677394 | Y19: 1972.146774 | Z19: 3296.021713 | AA19: 5268.168487 | AC19: 5536.038981 | AD19: 1958.433506 | AE19: 3577.605474 | AH19: SUDESTE
B20: 6191.466532 | C20: 7 | E20: ARAPETRO DISTRIBUIDORA DE PETRÓLEO LTDA. | F20: RUA 04, S/N° LOTES 17 A 20. - DISTRITO INDUSTRIAL 1/8 - CEP:78600-000 | G20: Mato grosso | H20: BARRA DO GARCAS - MT | I20: Santana -AP | J20: =VLOOKUP(G20,OFFSET('ANP ESTADO'!$A$1,MATCH($I$7,'ANP ESTADO'!B:B,0)+MATCH($H$10,OFFSET('ANP ESTADO'!$A$1,MATCH($I$7,'ANP ESTADO'!B:B,0),0,100000,1),0),2,100000,2),2,FALSE) -> 3.436826532 | K20: =VLOOKUP($H$10,OFFSET('ANP REGIÃO'!$A$9,MATCH('Transporte RR-2C'!$I$7,'ANP REGIÃO'!A:A,0),1,10000,10000),MATCH('Transporte RR-2C'!AH20,'ANP REGIÃO'!$B$8:$G$8,0),FALSE) -> 3.121271775 | L20: 3436.826532 | M20: 949.68 | N20: 4386.506532 | O20: 2006.1 | P20: 547 | Q20: 534.48 | R20: 108.41 | S20: 642.89 | T20: 141.12 | U20: 936.4 | V20: 1804.96 | W20: 0 | X20: =EVEN('Orçamento Sintético'!$F$51/1000*2/28)*W20/('Orçamento Sintético'!$F$51/1000) -> 0 | Y20: 1804.96 | Z20: 4386.506532 | AA20: 6191.466532 | AH20: CENTRO-OESTE
B21: 5604.93163 | C21: 8 | E21: DISTRIBUIDORA BRASILEIRA DE ASFALTO SA - DISBRAL | F21: SÃO JUDAS TADEU, 288 - DISTRITO INDUSTRIAL - CEP:32450-000 | G21: Minas Gerais | H21: SARZEDO - MG | I21: Santana -AP | J21: =VLOOKUP(G21,OFFSET('ANP ESTADO'!$A$1,MATCH($I$7,'ANP ESTADO'!B:B,0)+MATCH($H$10,OFFSET('ANP ESTADO'!$A$1,MATCH($I$7,'ANP ESTADO'!B:B,0),0,100000,1),0),2,100000,2),2,FALSE) -> 2.582431713 | K21: =VLOOKUP($H$10,OFFSET('ANP REGIÃO'!$A$9,MATCH('Transporte RR-2C'!$I$7,'ANP REGIÃO'!A:A,0),1,10000,10000),MATCH('Transporte RR-2C'!AH21,'ANP REGIÃO'!$B$8:$G$8,0),FALSE) -> 2.658802727 | L21: 2582.431713 | M21: 713.59 | N21: 3296.021713 | O21: 2697.7 | P21: 547 | Q21: 709.46 | R21: 108.41 | S21: 817.87 | T21: 179.53 | U21: 1191.27 | V21: 2208.41 | W21: 992.1 | X21: =EVEN('Orçamento Sintético'!$F$51/1000*2/28)*W21/('Orçamento Sintético'!$F$51/1000) -> 100.4999164 | Y21: 2308.909916 | Z21: 3296.021713 | AA21: 5604.93163 | AH21: SUDESTE
B22: 5152.438011 | C22: 9 | E22: 'INDÚSTRIA NACIONAL DE ASFALTOS LTDA. | F22: INDÚSTRIA NACIONAL DE ASFALTOS LTDA - CEP:77053-080 | G22: Tocantins | H22: PALMAS - TO | I22: Santana -AP | J22: =VLOOKUP(G22,OFFSET('ANP ESTADO'!$A$1,MATCH($I$7,'ANP ESTADO'!B:B,0)+MATCH($H$10,OFFSET('ANP ESTADO'!$A$1,MATCH($I$7,'ANP ESTADO'!B:B,0),0,100000,1),0),2,100000,2),2,FALSE) -> - | K22: =VLOOKUP($H$10,OFFSET('ANP REGIÃO'!$A$9,MATCH('Transporte RR-2C'!$I$7,'ANP REGIÃO'!A:A,0),1,10000,10000),MATCH('Transporte RR-2C'!AH22,'ANP REGIÃO'!$B$8:$G$8,0),FALSE) -> 3.125618011 | L22: 3125.618011 | M22: 863.68 | N22: 3989.298011 | O22: 1217.8 | P22: 547 | Q22: 335.04 | R22: 108.41 | S22: 443.45 | T22: 97.34 | U22: 645.9 | V22: 1163.14 | W22: 0 | X22: =EVEN('Orçamento Sintético'!$F$51/1000*2/28)*W22/('Orçamento Sintético'!$F$51/1000) -> 0 | Y22: 1163.14 | Z22: 3989.298011 | AA22: 5152.438011 | AH22: NORTE
B23: 5774.129098 | C23: 10 | E23: 'NTA - NOVAS TÉCNICAS DE ASFALTOS S/A | F23: RUA SOFIA ATAURI FADIN, 150 SALA A - B. SANTA TEREZINHA - CEP:13140-000 | G23: São Paulo | H23: PAULINIA - SP | I23: Santana -AP | J23: =VLOOKUP(G23,OFFSET('ANP ESTADO'!$A$1,MATCH($I$7,'ANP ESTADO'!B:B,0)+MATCH($H$10,OFFSET('ANP ESTADO'!$A$1,MATCH($I$7,'ANP ESTADO'!B:B,0),0,100000,1),0),2,100000,2),2,FALSE) -> 2.673213026 | K23: =VLOOKUP($H$10,OFFSET('ANP REGIÃO'!$A$9,MATCH('Transporte RR-2C'!$I$7,'ANP REGIÃO'!A:A,0),1,10000,10000),MATCH('Transporte RR-2C'!AH23,'ANP REGIÃO'!$B$8:$G$8,0),FALSE) -> 2.658802727 | L23: 2673.213026 | M23: 738.67 | N23: 3411.883026 | O23: 2824.1 | P23: 547 | Q23: 741.44 | R23: 108.41 | S23: 849.85 | T23: 186.55 | U23: 1237.85 | V23: 2224.57 | W23: 1359.09 | X23: =EVEN('Orçamento Sintético'!$F$51/1000*2/28)*W23/('Orçamento Sintético'!$F$51/1000) -> 137.6760724 | Y23: 2362.246072 | Z23: 3411.883026 | AA23: 5774.129098 | AC23: 6041.109925 | AD23: 2335.937965 | AE23: 3705.171959 | AH23: SUDESTE
B24: 5835.835935 | C24: 11 | E24: COMPANHIA BRASILEIRA DE ASFALTOS DA AMAZÔNIA - IMPORTAÇÃO E EXPORTAÇÃO | F24: Avenida Doutor Olindo Dártora 2451, Galpão 02, Morro Grande - CEP:07726-555 | G24: São Paulo | H24: CAIEIRAS - SP | I24: Santana -AP | J24: =VLOOKUP(G24,OFFSET('ANP ESTADO'!$A$1,MATCH($I$7,'ANP ESTADO'!B:B,0)+MATCH($H$10,OFFSET('ANP ESTADO'!$A$1,MATCH($I$7,'ANP ESTADO'!B:B,0),0,100000,1),0),2,100000,2),2,FALSE) -> 2.673213026 | K24: =VLOOKUP($H$10,OFFSET('ANP REGIÃO'!$A$9,MATCH('Transporte RR-2C'!$I$7,'ANP REGIÃO'!A:A,0),1,10000,10000),MATCH('Transporte RR-2C'!AH24,'ANP REGIÃO'!$B$8:$G$8,0),FALSE) -> 2.658802727 | L24: 2673.213026 | M24: 738.67 | N24: 3411.883026 | O24: 2912.8 | P24: 547 | Q24: 763.88 | R24: 108.41 | S24: 872.29 | T24: 191.47 | U24: 1270.53 | V24: 2271.72 | W24: 1502.79 | X24: =EVEN('Orçamento Sintético'!$F$51/1000*2/28)*W24/('Orçamento Sintético'!$F$51/1000) -> 152.2329094 | Y24: 2423.952909 | Z24: 3411.883026 | AA24: 5835.835935 | AH24: SUDESTE
B25: 6279.651605 | C25: 12 | E25: BETUNEL INDÚSTRIA E COMÉRCIO LTDA. | F25: R 16 , 82, Vila Nova Campo Grande - CEP:79.103-834 | G25: Mato Grosso do Sul | H25: CAMPO GRANDE - MS | I25: Santana -AP | J25: =VLOOKUP(G25,OFFSET('ANP ESTADO'!$A$1,MATCH($I$7,'ANP ESTADO'!B:B,0)+MATCH($H$10,OFFSET('ANP ESTADO'!$A$1,MATCH($I$7,'ANP ESTADO'!B:B,0),0,100000,1),0),2,100000,2),2,FALSE) -> - | K25: =VLOOKUP($H$10,OFFSET('ANP REGIÃO'!$A$9,MATCH('Transporte RR-2C'!$I$7,'ANP REGIÃO'!A:A,0),1,10000,10000),MATCH('Transporte RR-2C'!AH25,'ANP REGIÃO'!$B$8:$G$8,0),FALSE) -> 3.121271775 | L25: 3121.271775 | M25: 862.48 | N25: 3983.751775 | O25: 2818.9 | P25: 547 | Q25: 740.12 | R25: 108.41 | S25: 848.53 | T25: 186.26 | U25: 1235.93 | V25: 2236.7 | W25: 584.4 | X25: =EVEN('Orçamento Sintético'!$F$51/1000*2/28)*W25/('Orçamento Sintético'!$F$51/1000) -> 59.19982982 | Y25: 2295.89983 | Z25: 3983.751775 | AA25: 6279.651605 | AH25: CENTRO-OESTE
B26: 6377.308045 | C26: 13 | E26: CENTRO OESTE ASFALTOS LTDA. | F26: RUA N, S/N.º LOTES 39/43 E LOTES 129/133 - DISTRITO INDUSTRIAL - CEP:78098-400 | G26: Mato Grosso | H26: CUIABA - MT | I26: Santana -AP | J26: =VLOOKUP(G26,OFFSET('ANP ESTADO'!$A$1,MATCH($I$7,'ANP ESTADO'!B:B,0)+MATCH($H$10,OFFSET('ANP ESTADO'!$A$1,MATCH($I$7,'ANP ESTADO'!B:B,0),0,100000,1),0),2,100000,2),2,FALSE) -> 3.436826532 | K26: =VLOOKUP($H$10,OFFSET('ANP REGIÃO'!$A$9,MATCH('Transporte RR-2C'!$I$7,'ANP REGIÃO'!A:A,0),1,10000,10000),MATCH('Transporte RR-2C'!AH26,'ANP REGIÃO'!$B$8:$G$8,0),FALSE) -> 3.121271775 | L26: 3436.826532 | M26: 949.68 | N26: 4386.506532 | O26: 2462.4 | P26: 547 | Q26: 649.93 | R26: 108.41 | S26: 758.34 | T26: 166.46 | U26: 1104.56 | V26: 1967.31 | W26: 231.9 | X26: =EVEN('Orçamento Sintético'!$F$51/1000*2/28)*W26/('Orçamento Sintético'!$F$51/1000) -> 23.49151358 | Y26: 1990.801514 | Z26: 4386.506532 | AA26: 6377.308045 | AH26: CENTRO-OESTE
B27: 6377.308045 | C27: 14 | E27: BETUNEL INDÚSTRIA E COMÉRCIO LTDA. | F27: RUA N ESQUINA COM RUA X, S/N QD. IND. 7 L 01/08 - DIST. IND. - CEP:78015-285 | G27: Mato Grosso | H27: CUIABA - MT | I27: Santana -AP | J27: =VLOOKUP(G27,OFFSET('ANP ESTADO'!$A$1,MATCH($I$7,'ANP ESTADO'!B:B,0)+MATCH($H$10,OFFSET('ANP ESTADO'!$A$1,MATCH($I$7,'ANP ESTADO'!B:B,0),0,100000,1),0),2,100000,2),2,FALSE) -> 3.436826532 | K27: =VLOOKUP($H$10,OFFSET('ANP REGIÃO'!$A$9,MATCH('Transporte RR-2C'!$I$7,'ANP REGIÃO'!A:A,0),1,10000,10000),MATCH('Transporte RR-2C'!AH27,'ANP REGIÃO'!$B$8:$G$8,0),FALSE) -> 3.121271775 | L27: 3436.826532 | M27: 949.68 | N27: 4386.506532 | O27: 2462.4 | P27: 547 | Q27: 649.93 | R27: 108.41 | S27: 758.34 | T27: 166.46 | U27: 1104.56 | V27: 1967.31 | W27: 231.9 | X27: =EVEN('Orçamento Sintético'!$F$51/1000*2/28)*W27/('Orçamento Sintético'!$F$51/1000) -> 23.49151358 | Y27: 1990.801514 | Z27: 4386.506532 | AA27: 6377.308045 | AH27: CENTRO-OESTE
B28: 6377.958045 | C28: 15 | E28: EMAM - EMULSÕES E TRANSPORTES LTDA. | F28: RODOVIA DOS IMIGRANTES, S/Nº KM 8,6 - - CEP:60035-351 | G28: Mato Grosso | H28: VARZEA GRANDE - MT | I28: Santana -AP | J28: =VLOOKUP(G28,OFFSET('ANP ESTADO'!$A$1,MATCH($I$7,'ANP ESTADO'!B:B,0)+MATCH($H$10,OFFSET('ANP ESTADO'!$A$1,MATCH($I$7,'ANP ESTADO'!B:B,0),0,100000,1),0),2,100000,2),2,FALSE) -> 3.436826532 | K28: =VLOOKUP($H$10,OFFSET('ANP REGIÃO'!$A$9,MATCH('Transporte RR-2C'!$I$7,'ANP REGIÃO'!A:A,0),1,10000,10000),MATCH('Transporte RR-2C'!AH28,'ANP REGIÃO'!$B$8:$G$8,0),FALSE) -> 3.121271775 | L28: 3436.826532 | M28: 949.68 | N28: 4386.506532 | O28: 2468.8 | P28: 547 | Q28: 651.55 | R28: 108.41 | S28: 759.96 | T28: 166.82 | U28: 1106.92 | V28: 1967.96 | W28: 231.9 | X28: =EVEN('Orçamento Sintético'!$F$51/1000*2/28)*W28/('Orçamento Sintético'!$F$51/1000) -> 23.49151358 | Y28: 1991.451514 | Z28: 4386.506532 | AA28: 6377.958045 | AC28: 6513.39589 | AD28: 2026.972987 | AE28: 4486.422903 | AH28: CENTRO-OESTE
B29: 5903.264726 | C29: 16 | E29: VIAPOL LTDA. | F29: VITO ARDITO, 6401 KM 118,5 - JARDIM CAMPO GRANDE - CEP:12282-535 | G29: São Paulo | H29: CACAPAVA - SP | I29: Santana -AP | J29: =VLOOKUP(G29,OFFSET('ANP ESTADO'!$A$1,MATCH($I$7,'ANP ESTADO'!B:B,0)+MATCH($H$10,OFFSET('ANP ESTADO'!$A$1,MATCH($I$7,'ANP ESTADO'!B:B,0),0,100000,1),0),2,100000,2),2,FALSE) -> 2.673213026 | K29: =VLOOKUP($H$10,OFFSET('ANP REGIÃO'!$A$9,MATCH('Transporte RR-2C'!$I$7,'ANP REGIÃO'!A:A,0),1,10000,10000),MATCH('Transporte RR-2C'!AH29,'ANP REGIÃO'!$B$8:$G$8,0),FALSE) -> 2.658802727 | L29: 2673.213026 | M29: 738.67 | N29: 3411.883026 | O29: 3006 | P29: 547 | Q29: 787.46 | R29: 108.41 | S29: 895.87 | T29: 196.65 | U29: 1304.88 | V29: 2333.01 | W29: 1563.39 | X29: =EVEN('Orçamento Sintético'!$F$51/1000*2/28)*W29/('Orçamento Sintético'!$F$51/1000) -> 158.3717008 | Y29: 2491.381701 | Z29: 3411.883026 | AA29: 5903.264726 | AC29: 6171.420054 | AD29: 2466.248095 | AE29: 3705.171959 | AH29: SUDESTE
B30: 6010.914646 | C30: 17 | E30: STRATURA ASFALTOS S/A | F30: RUA LUIS DE CAMÕES, 26 - CAMPOS ELÍSEOS - CEP:25225-030 | G30: Rio de Janeiro | H30: DUQUE DE CAXIAS - RJ | I30: Santana -AP | J30: =VLOOKUP(G30,OFFSET('ANP ESTADO'!$A$1,MATCH($I$7,'ANP ESTADO'!B:B,0)+MATCH($H$10,OFFSET('ANP ESTADO'!$A$1,MATCH($I$7,'ANP ESTADO'!B:B,0),0,100000,1),0),2,100000,2),2,FALSE) -> - | K30: =VLOOKUP($H$10,OFFSET('ANP REGIÃO'!$A$9,MATCH('Transporte RR-2C'!$I$7,'ANP REGIÃO'!A:A,0),1,10000,10000),MATCH('Transporte RR-2C'!AH30,'ANP REGIÃO'!$B$8:$G$8,0),FALSE) -> 2.658802727 | L30: 2658.802727 | M30: 734.69 | N30: 3393.492727 | O30: 3096.3 | P30: 547 | Q30: 810.3 | R30: 108.41 | S30: 918.71 | T30: 201.66 | U30: 1338.14 | V30: 2477.81 | W30: 1378.2 | X30: =EVEN('Orçamento Sintético'!$F$51/1000*2/28)*W30/('Orçamento Sintético'!$F$51/1000) -> 139.611919 | Y30: 2617.421919 | Z30: 3393.492727 | AA30: 6010.914646 | AC30: 6250.146633 | AD30: 2572.771039 | AE30: 3677.375594 | AH30: SUDESTE
B31: 6021.044646 | C31: 18 | E31: PROBITEC - PRODUTOS BETUMINOSOS E TECNOLOGIA DE APLICAÇÃO LTDA. | F31: AVENIDA CANAL DA PAVUNA, 620 - PAVUNA - CEP:21535-630 | G31: Rio de Janeiro | H31: RIO DE JANEIRO - RJ | I31: Santana -AP | J31: =VLOOKUP(G31,OFFSET('ANP ESTADO'!$A$1,MATCH($I$7,'ANP ESTADO'!B:B,0)+MATCH($H$10,OFFSET('ANP ESTADO'!$A$1,MATCH($I$7,'ANP ESTADO'!B:B,0),0,100000,1),0),2,100000,2),2,FALSE) -> - | K31: =VLOOKUP($H$10,OFFSET('ANP REGIÃO'!$A$9,MATCH('Transporte RR-2C'!$I$7,'ANP REGIÃO'!A:A,0),1,10000,10000),MATCH('Transporte RR-2C'!AH31,'ANP REGIÃO'!$B$8:$G$8,0),FALSE) -> 2.658802727 | L31: 2658.802727 | M31: 734.69 | N31: 3393.492727 | O31: 3109.2 | P31: 547 | Q31: 813.57 | R31: 108.41 | S31: 921.98 | T31: 202.38 | U31: 1342.91 | V31: 2487.94 | W31: 1378.2 | X31: =EVEN('Orçamento Sintético'!$F$51/1000*2/28)*W31/('Orçamento Sintético'!$F$51/1000) -> 139.611919 | Y31: 2627.551919 | Z31: 3393.492727 | AA31: 6021.044646 | AC31: 6260.276633 | AD31: 2582.901039 | AE31: 3677.375594 | AH31: SUDESTE
B32: 5715.726534 | C32: 19 | E32: CASA DO ASFALTO DISTRIBUIDORA, INDÚSTRIA E COMÉRCIO DE ASFALTO LTDA. | F32: BR 376, PARQUE INDUSTRIAL, S/N LOTE 6/7/7-A-3-1 - GL.PATR.MARIALVA - CEP:86990-000 | G32: Paraná | H32: MARIALVA - PR | I32: Santana -AP | J32: =VLOOKUP(G32,OFFSET('ANP ESTADO'!$A$1,MATCH($I$7,'ANP ESTADO'!B:B,0)+MATCH($H$10,OFFSET('ANP ESTADO'!$A$1,MATCH($I$7,'ANP ESTADO'!B:B,0),0,100000,1),0),2,100000,2),2,FALSE) -> 2.562570645 | K32: =VLOOKUP($H$10,OFFSET('ANP REGIÃO'!$A$9,MATCH('Transporte RR-2C'!$I$7,'ANP REGIÃO'!A:A,0),1,10000,10000),MATCH('Transporte RR-2C'!AH32,'ANP REGIÃO'!$B$8:$G$8,0),FALSE) -> 2.600145333 | L32: 2562.570645 | M32: 708.1 | N32: 3270.670645 | O32: 2948.1 | P32: 547 | Q32: 772.81 | R32: 108.41 | S32: 881.22 | T32: 193.43 | U32: 1283.54 | V32: 2326.95 | W32: 1165.9 | X32: =EVEN('Orçamento Sintético'!$F$51/1000*2/28)*W32/('Orçamento Sintético'!$F$51/1000) -> 118.1058891 | Y32: 2445.055889 | Z32: 3270.670645 | AA32: 5715.726534 | AC32: 6008.953828 | AD32: 2431.261688 | AE32: 3577.692139 | AH32: SUL
B33: 5821.68328 | C33: 20 | E33: PETROBRAS DISTRIBUIDORA S.A. | F33: RUA MAQUINISTA ELEODORO JACINTO, 100 - OFICINAS - CEP:84045-170 | G33: Paraná | H33: PONTA GROSSA - PR | I33: Santana -AP | J33: =VLOOKUP(G33,OFFSET('ANP ESTADO'!$A$1,MATCH($I$7,'ANP ESTADO'!B:B,0)+MATCH($H$10,OFFSET('ANP ESTADO'!$A$1,MATCH($I$7,'ANP ESTADO'!B:B,0),0,100000,1),0),2,100000,2),2,FALSE) -> 2.562570645 | K33: =VLOOKUP($H$10,OFFSET('ANP REGIÃO'!$A$9,MATCH('Transporte RR-2C'!$I$7,'ANP REGIÃO'!A:A,0),1,10000,10000),MATCH('Transporte RR-2C'!AH33,'ANP REGIÃO'!$B$8:$G$8,0),FALSE) -> 2.600145333 | L33: 2562.570645 | M33: 708.1 | N33: 3270.670645 | O33: 3065 | P33: 547 | Q33: 802.38 | R33: 108.41 | S33: 910.79 | T33: 199.92 | U33: 1326.61 | V33: 2424.59 | W33: 1248 | X33: =EVEN('Orçamento Sintético'!$F$51/1000*2/28)*W33/('Orçamento Sintético'!$F$51/1000) -> 126.4226345 | Y33: 2551.012635 | Z33: 3270.670645 | AA33: 5821.68328 | AC33: 6118.75833 | AD33: 2541.06619 | AE33: 3577.692139 | AH33: SUL
D43: Acre
D44: Alagoas
D45: Amapá
D46: Amazonas
D47: Bahia
D48: Ceará
D49: Distrito Federal
D50: Espírito Santo
D51: Goiás
D52: Maranhão
